Workbook

Sheet Dashboard - Global Analysis
B5: Name of Plan
C8: Section 1. Funding Gap Analysis
C10: Total Costs | H10: State Contribution | M10: Partners Contribution | R10: Private Donations | W10: Total Funding Gap
C11: =GETPIVOTDATA("Cost amount",'Section 1. Gap analysis'!$B$3) -> 84494489.07 | H11: =GETPIVOTDATA("Amount committed",'Section 1. Gap analysis'!$E$3,"Funding Source","Financement Public")+GETPIVOTDATA("Value of non-financial donation en CFA",'Section 1. Gap analysis'!$L$3,"Funding Source","Financement Public") -> 4226218.31 | M11: =GETPIVOTDATA("Amount committed",'Section 1. Gap analysis'!$E$3,"Funding Source","Financement PTF")+GETPIVOTDATA("Value of non-financial donation en CFA",'Section 1. Gap analysis'!$L$3,"Funding Source","Financement PTF") -> 9867868.654 | R11: =GETPIVOTDATA("Amount committed",'Section 1. Gap analysis'!$E$3,"Funding Source","Don privé ou de particuliers ")+GETPIVOTDATA("Value of non-financial donation en CFA",'Section 1. Gap analysis'!$L$3,"Funding Source","Don privé ou de particuliers ") -> 393523.8095 | W11: =C11-(H11+M11+R11) -> 70006878.29
C13: Fig 1. Funding sources and gap | L13: Fig 2. Total funding gap | U13: Fig 3. Type of ressources available
C35: Tableau 1. Available resources by area
C37: Area | F37: Cost | I37: Available resources | L37: Gap
C38: Logistic | F38: =GETPIVOTDATA("Cost amount",'Section 1. Gap analysis'!$B$3,"Area - revised","Logistique") -> 21254835.39 | I38: =GETPIVOTDATA("Amount committed",'Section 1. Gap analysis'!$E$3,"Area - revised","Logistique")+GETPIVOTDATA("Value of non-financial donation en CFA",'Section 1. Gap analysis'!$L$3,"Area - revised","Logistique") -> 8623821.907 | L38: =F38-I38 -> 12631013.48
C39: Treatment and care | F39: =GETPIVOTDATA("Cost amount",'Section 1. Gap analysis'!$B$3,"Area - revised","Prise en charge des cas") -> 27541840.27 | I39: =GETPIVOTDATA("Amount committed",'Section 1. Gap analysis'!$E$3,"Area - revised","Prise en charge des cas")+GETPIVOTDATA("Value of non-financial donation en CFA",'Section 1. Gap analysis'!$L$3,"Area - revised","Prise en charge des cas") -> 1885482.243 | L39: 25656358.02
C40: Coordination | F40: =GETPIVOTDATA("Cost amount",'Section 1. Gap analysis'!$B$3,"Area - revised","Coordination") -> 3805761.15 | I40: =GETPIVOTDATA("Amount committed",'Section 1. Gap analysis'!$E$3,"area - revised","Coordination")+GETPIVOTDATA("Value of non-financial donation en CFA",'Section 1. Gap analysis'!$L$3,"area - revised","Coordination") -> 874285.119 | L40: 2931476.031
C41: Surveillance | F41: =GETPIVOTDATA("Cost amount",'Section 1. Gap analysis'!$B$3,"Area - revised","Surveillance") -> 2725927.453 | I41: =GETPIVOTDATA("Amount committed",'Section 1. Gap analysis'!$E$3,"Area - revised","Surveillance")+GETPIVOTDATA("Value of non-financial donation en CFA",'Section 1. Gap analysis'!$L$3,"Area - revised","Surveillance") -> 759038.7286 | L41: 1966888.725
C42: Communication | F42: =GETPIVOTDATA("Cost amount",'Section 1. Gap analysis'!$B$3,"Area - revised","Communication") -> 659196.5714 | I42: =GETPIVOTDATA("Amount committed",'Section 1. Gap analysis'!$E$3,"area - revised","Communication")+GETPIVOTDATA("Value of non-financial donation en CFA",'Section 1. Gap analysis'!$L$3,"area - revised","Communication") -> 616286.3095 | L42: 42910.2619
C43: Laboratory | F43: =GETPIVOTDATA("Cost amount",'Section 1. Gap analysis'!$B$3,"Area - revised","Laboratoire") -> 4278612.131 | I43: =GETPIVOTDATA("Amount committed",'Section 1. Gap analysis'!$E$3,"area - revised","Laboratoire")+GETPIVOTDATA("Value of non-financial donation en CFA",'Section 1. Gap analysis'!$L$3,"area - revised","Laboratoire") -> 319753.5012 | L43: 3958858.63
C44: Research | F44: =GETPIVOTDATA("Cost amount",'Section 1. Gap analysis'!$B$3,"Area - revised","Recherche") -> 476190.4762 | I44: =GETPIVOTDATA("amount committed",'Section 1. Gap analysis'!$E$3,"area - revised","Recherche")+GETPIVOTDATA("Value of non-financial donation en CFA",'Section 1. Gap analysis'!$L$3,"area - revised","Recherche") -> 62380.95238 | L44: 413809.5238
C45: IPC | F45: =GETPIVOTDATA("Cost amount",'Section 1. Gap analysis'!$B$3,"Area - revised","PCI") -> 23744813.82 | I45: =GETPIVOTDATA("Amount committed",'Section 1. Gap analysis'!$E$3,"area - revised","PCI")+GETPIVOTDATA("Value of non-financial donation en CFA",'Section 1. Gap analysis'!$L$3,"area - revised","PCI") -> 33882.14286 | L45: 23710931.68
C46: Security | F46: =GETPIVOTDATA("Cost amount",'Section 1. Gap analysis'!$B$3,"Area - revised","Sécurité") -> 7311.809524 | I46: =GETPIVOTDATA("Amount committed",'Section 1. Gap analysis'!$E$3,"area - revised","Sécurité")+GETPIVOTDATA("Value of non-financial donation en CFA",'Section 1. Gap analysis'!$L$3,"area - revised","Sécurité") -> 2805.357143 | L46: 4506.452381
C47: Non targeted | I47: =GETPIVOTDATA("amount committed",'Section 1. Gap analysis'!$E$3,"area - revised",0)+GETPIVOTDATA("Value of non-financial donation en CFA",'Section 1. Gap analysis'!$L$3,"area - revised",0) -> 1309874.512
C48: Total | F48: =SUM(F38:H47) -> 84494489.07 | I48: =SUM(I38:I47) -> 14487610.77 | L48: =F48-I48 -> 70006878.29
C50: Fig 4. Level of flexibility of available resources | O50: Fig 6. Funding gap by area
C63: Fig 5. Type of funding available
C79: Section 2. Funding available by funder and area
C107: Section 3. Geographic Distribution of resources
C109: Fig 7 . Resource by level of implementation | K109: Fig 8 . Resources by region
C134: Fig 9 . Ressources by region and district

Sheet Costs
B2: Imporant! | C2: Ce tableau est programmé pour accepter des activités jusqu'à la ligne numéro 500. Si vous avez besoin d'ajouter plus de lignes, veuillez demander une assistance technique.
L5: Sub total (funding engaged)
L6: =SUBTOTAL(9,Couts[Cost amount]) -> 84494489.07
B7: Activity details | K7: Geographic Distribution | L7: Cost
B8: Plan | C8: N° Activity | D8: Activities | E8: Phase | F8: Area | G8: Area - revised | H8: Activities RSS | I8: Timeframe | J8: Priority | K8: Implementation Level | L8: Cost amount
A9: Ces lignes ont été ajoutées pour permettre les options de ressources ciblant un certain domaine ou non ciblées qui ne peuvent pas encore être liées à une activité spécifique - (à masquer) | B9: Plan riposte central | C9: Resources Non-ciblé | D9: Contribution en resources non-ciblée à allouer à un domain ou une activité spécifique dans le plan de riposte | G9: =IF(Couts[[#This Row],[Area]]= "", "", IF(OR(Couts[[#This Row],[Area]]= "EIR ", Couts[[#This Row],[Area]]= "Points d'entrée"),"Surveillance",Couts[[#This Row],[Area]])) -> 
B10: Plan riposte central | C10: Ciblé (Communication) | D10: Contribution ciblée sur le domaine de Communication à allouer à une activité spécifique dans le plan de riposte | F10: Communication | G10: =IF(Couts[[#This Row],[Area]]= "", "", IF(OR(Couts[[#This Row],[Area]]= "EIR ", Couts[[#This Row],[Area]]= "Points d'entrée"),"Surveillance",Couts[[#This Row],[Area]])) -> Communication
B11: Plan riposte central | C11: Ciblé (Coordination) | D11: Contribution ciblée sur le domaine de Coordination à allouer à une activité spécifique dans le plan de riposte | F11: Coordination | G11: =IF(Couts[[#This Row],[Area]]= "", "", IF(OR(Couts[[#This Row],[Area]]= "EIR ", Couts[[#This Row],[Area]]= "Points d'entrée"),"Surveillance",Couts[[#This Row],[Area]])) -> Coordination
B12: Plan riposte central | C12: Ciblé (EIR) | D12: Contribution ciblée sur le domaine de EIR à allouer à une activité spécifique dans le plan de riposte | F12: EIR | G12: =IF(Couts[[#This Row],[Area]]= "", "", IF(OR(Couts[[#This Row],[Area]]= "EIR ", Couts[[#This Row],[Area]]= "Points d'entrée"),"Surveillance",Couts[[#This Row],[Area]])) -> Surveillance
B13: Plan riposte central | C13: Ciblé (Labratoire) | D13: Contribution ciblée sur le domaine de Laboratoire à allouer à une activité spécifique dans le plan de riposte | F13: Laboratoire | G13: =IF(Couts[[#This Row],[Area]]= "", "", IF(OR(Couts[[#This Row],[Area]]= "EIR ", Couts[[#This Row],[Area]]= "Points d'entrée"),"Surveillance",Couts[[#This Row],[Area]])) -> Laboratoire
B14: Plan riposte central | C14: Ciblé (Logistique) | D14: Contribution ciblée sur le domaine de Logistique à allouer à une activité spécifique dans le plan de riposte | F14: Logistique | G14: =IF(Couts[[#This Row],[Area]]= "", "", IF(OR(Couts[[#This Row],[Area]]= "EIR ", Couts[[#This Row],[Area]]= "Points d'entrée"),"Surveillance",Couts[[#This Row],[Area]])) -> Logistique
B15: Plan riposte central | C15: Ciblé (PCI) | D15: Contribution ciblée sur le domaine de PCI à allouer à une activité spécifique dans le plan de riposte | F15: PCI | G15: =IF(Couts[[#This Row],[Area]]= "", "", IF(OR(Couts[[#This Row],[Area]]= "EIR ", Couts[[#This Row],[Area]]= "Points d'entrée"),"Surveillance",Couts[[#This Row],[Area]])) -> PCI
B16: Plan riposte central | C16: Ciblé (Points d'entrée) | D16: Contribution ciblée sur le domaine de Points d'entrée à allouer à une activité spécifique dans le plan de riposte | F16: Points d'entrée | G16: =IF(Couts[[#This Row],[Area]]= "", "", IF(OR(Couts[[#This Row],[Area]]= "EIR ", Couts[[#This Row],[Area]]= "Points d'entrée"),"Surveillance",Couts[[#This Row],[Area]])) -> Surveillance
B17: Plan riposte central | C17: Ciblé (Prise en charge des cas) | D17: Contribution ciblée sur le domaine de Prise en charge des cas à allouer à une activité spécifique dans le plan de riposte | F17: Prise en charge des cas | G17: =IF(Couts[[#This Row],[Area]]= "", "", IF(OR(Couts[[#This Row],[Area]]= "EIR ", Couts[[#This Row],[Area]]= "Points d'entrée"),"Surveillance",Couts[[#This Row],[Area]])) -> Prise en charge des cas
B18: Plan riposte central | C18: Ciblé (Recherche) | D18: Contribution ciblée sur le domaine de Recherche à allouer à une activité spécifique dans le plan de riposte | F18: Recherche | G18: =IF(Couts[[#This Row],[Area]]= "", "", IF(OR(Couts[[#This Row],[Area]]= "EIR ", Couts[[#This Row],[Area]]= "Points d'entrée"),"Surveillance",Couts[[#This Row],[Area]])) -> Recherche
B19: Plan riposte central | C19: Ciblé (Sécurité) | D19: Contribution ciblée sur le domaine de Sécurité à allouer à une activité spécifique dans le plan de riposte | F19: Sécurité | G19: =IF(Couts[[#This Row],[Area]]= "", "", IF(OR(Couts[[#This Row],[Area]]= "EIR ", Couts[[#This Row],[Area]]= "Points d'entrée"),"Surveillance",Couts[[#This Row],[Area]])) -> Sécurité
B20: Plan riposte central | C20: Ciblé (Surveillance) | D20: Contribution ciblée sur le domaine de Surveillance à allouer à une activité spécifique dans le plan de riposte | F20: Surveillance | G20: =IF(Couts[[#This Row],[Area]]= "", "", IF(OR(Couts[[#This Row],[Area]]= "EIR ", Couts[[#This Row],[Area]]= "Points d'entrée"),"Surveillance",Couts[[#This Row],[Area]])) -> Surveillance
C21: Dépenses non spécifiques | D21: Dépenses non spécifiques à une activité du plan, merci de préciser l'activité et le domaine dans la section suivante | G21: =IF(Couts[[#This Row],[Area]]= "", "", IF(OR(Couts[[#This Row],[Area]]= "EIR ", Couts[[#This Row],[Area]]= "Points d'entrée"),"Surveillance",Couts[[#This Row],[Area]])) -> 
B22: Plan riposte central | C22: 1 | D22: Activity 1 | E22: Préparation | F22: Coordination | G22: =IF(Couts[[#This Row],[Area]]= "", "", IF(OR(Couts[[#This Row],[Area]]= "EIR ", Couts[[#This Row],[Area]]= "Points d'entrée"),"Surveillance",Couts[[#This Row],[Area]])) -> Coordination | I22: CT | K22: Niveau central | L22: 136.1904762
B23: Plan riposte central | C23: 2 | D23: Activity 2 | E23: Préparation | F23: Coordination | G23: =IF(Couts[[#This Row],[Area]]= "", "", IF(OR(Couts[[#This Row],[Area]]= "EIR ", Couts[[#This Row],[Area]]= "Points d'entrée"),"Surveillance",Couts[[#This Row],[Area]])) -> Coordination | I23: CT | K23: Niveau central | L23: 285.7142857
B24: Plan riposte central | C24: 3 | D24: Activity 3 | E24: Préparation | F24: Coordination | G24: =IF(Couts[[#This Row],[Area]]= "", "", IF(OR(Couts[[#This Row],[Area]]= "EIR ", Couts[[#This Row],[Area]]= "Points d'entrée"),"Surveillance",Couts[[#This Row],[Area]])) -> Coordination | I24: CT | K24: Niveau central | L24: 4000
B25: Plan riposte central | C25: 4 | D25: Activity 4 | E25: Préparation | F25: Coordination | G25: =IF(Couts[[#This Row],[Area]]= "", "", IF(OR(Couts[[#This Row],[Area]]= "EIR ", Couts[[#This Row],[Area]]= "Points d'entrée"),"Surveillance",Couts[[#This Row],[Area]])) -> Coordination | I25: CT | K25: Niveau central | L25: 0
B26: Plan riposte central | C26: 5 | D26: Activity 5 | E26: Préparation | F26: Coordination | G26: =IF(Couts[[#This Row],[Area]]= "", "", IF(OR(Couts[[#This Row],[Area]]= "EIR ", Couts[[#This Row],[Area]]= "Points d'entrée"),"Surveillance",Couts[[#This Row],[Area]])) -> Coordination | I26: CT | K26: Niveau central | L26: 2171.428571
B27: Plan riposte central | C27: 6 | D27: Activity 6 | E27: Préparation | F27: Coordination | G27: =IF(Couts[[#This Row],[Area]]= "", "", IF(OR(Couts[[#This Row],[Area]]= "EIR ", Couts[[#This Row],[Area]]= "Points d'entrée"),"Surveillance",Couts[[#This Row],[Area]])) -> Coordination | I27: CT | K27: Niveau des districts | L27: 47619.04762
B28: Plan riposte central | C28: 7 | D28: Activity 7 | E28: Préparation | F28: Coordination | G28: =IF(Couts[[#This Row],[Area]]= "", "", IF(OR(Couts[[#This Row],[Area]]= "EIR ", Couts[[#This Row],[Area]]= "Points d'entrée"),"Surveillance",Couts[[#This Row],[Area]])) -> Coordination | I28: CT | K28: Niveau central | L28: 4761.904762
B29: Plan riposte central | C29: 8 | D29: Activity 8 | E29: Préparation | F29: Communication | G29: =IF(Couts[[#This Row],[Area]]= "", "", IF(OR(Couts[[#This Row],[Area]]= "EIR ", Couts[[#This Row],[Area]]= "Points d'entrée"),"Surveillance",Couts[[#This Row],[Area]])) -> Communication | I29: CT | K29: Niveau des districts | L29: 93572.57143
B30: Plan riposte central | C30: 9 | D30: Activity 9 | E30: Préparation | F30: Communication | G30: =IF(Couts[[#This Row],[Area]]= "", "", IF(OR(Couts[[#This Row],[Area]]= "EIR ", Couts[[#This Row],[Area]]= "Points d'entrée"),"Surveillance",Couts[[#This Row],[Area]])) -> Communication | I30: CT | K30: Niveau des districts | L30: 93572.57143
B31: Plan riposte central | C31: 10 | D31: Activity 10 | E31: Préparation | F31: Communication | G31: =IF(Couts[[#This Row],[Area]]= "", "", IF(OR(Couts[[#This Row],[Area]]= "EIR ", Couts[[#This Row],[Area]]= "Points d'entrée"),"Surveillance",Couts[[#This Row],[Area]])) -> Communication | I31: CT | K31: Niveau central | L31: 354.7619048
B32: Plan riposte central | C32: 11 | D32: Activity 11 | E32: Préparation | F32: Communication | G32: =IF(Couts[[#This Row],[Area]]= "", "", IF(OR(Couts[[#This Row],[Area]]= "EIR ", Couts[[#This Row],[Area]]= "Points d'entrée"),"Surveillance",Couts[[#This Row],[Area]])) -> Communication | I32: CT | K32: Niveau central | L32: 0
B33: Plan riposte central | C33: 12 | D33: Activity 12 | E33: Préparation | F33: Communication | G33: =IF(Couts[[#This Row],[Area]]= "", "", IF(OR(Couts[[#This Row],[Area]]= "EIR ", Couts[[#This Row],[Area]]= "Points d'entrée"),"Surveillance",Couts[[#This Row],[Area]])) -> Communication | I33: CT | K33: Niveau central | L33: 0
B34: Plan riposte central | C34: 13 | D34: Activity 13 | E34: Préparation | F34: Communication | G34: =IF(Couts[[#This Row],[Area]]= "", "", IF(OR(Couts[[#This Row],[Area]]= "EIR ", Couts[[#This Row],[Area]]= "Points d'entrée"),"Surveillance",Couts[[#This Row],[Area]])) -> Communication | I34: CT | K34: Niveau central | L34: 8333.333333
B35: Plan riposte central | C35: 14 | D35: Activity 14 | E35: Préparation | F35: Communication | G35: =IF(Couts[[#This Row],[Area]]= "", "", IF(OR(Couts[[#This Row],[Area]]= "EIR ", Couts[[#This Row],[Area]]= "Points d'entrée"),"Surveillance",Couts[[#This Row],[Area]])) -> Communication | I35: CT | K35: Niveau des districts | L35: 10023.80952
B36: Plan riposte central | C36: 15 | D36: Activity 15 | E36: Préparation | F36: Communication | G36: =IF(Couts[[#This Row],[Area]]= "", "", IF(OR(Couts[[#This Row],[Area]]= "EIR ", Couts[[#This Row],[Area]]= "Points d'entrée"),"Surveillance",Couts[[#This Row],[Area]])) -> Communication | I36: CT | K36: Niveau régional | L36: 2697.142857
B37: Plan riposte central | C37: 16 | D37: Activity 16 | E37: Préparation | F37: Communication | G37: =IF(Couts[[#This Row],[Area]]= "", "", IF(OR(Couts[[#This Row],[Area]]= "EIR ", Couts[[#This Row],[Area]]= "Points d'entrée"),"Surveillance",Couts[[#This Row],[Area]])) -> Communication | I37: CT | K37: Niveau central | L37: 6095.238095
B38: Plan riposte central | C38: 17 | D38: Activity 17 | E38: Préparation | F38: Communication | G38: =IF(Couts[[#This Row],[Area]]= "", "", IF(OR(Couts[[#This Row],[Area]]= "EIR ", Couts[[#This Row],[Area]]= "Points d'entrée"),"Surveillance",Couts[[#This Row],[Area]])) -> Communication | I38: CT | K38: Niveau central | L38: 1785.714286
B39: Plan riposte central | C39: 18 | D39: Activity 18 | E39: Préparation | F39: Communication | G39: =IF(Couts[[#This Row],[Area]]= "", "", IF(OR(Couts[[#This Row],[Area]]= "EIR ", Couts[[#This Row],[Area]]= "Points d'entrée"),"Surveillance",Couts[[#This Row],[Area]])) -> Communication | I39: CT | K39: Niveau central | L39: 0
B40: Plan riposte central | C40: 19 | D40: Activity 19 | E40: Préparation | F40: Communication | G40: =IF(Couts[[#This Row],[Area]]= "", "", IF(OR(Couts[[#This Row],[Area]]= "EIR ", Couts[[#This Row],[Area]]= "Points d'entrée"),"Surveillance",Couts[[#This Row],[Area]])) -> Communication | I40: CT | K40: Niveau des districts | L40: 2000
B41: Plan riposte central | C41: 20 | D41: Activity 20 | E41: Préparation | F41: Communication | G41: =IF(Couts[[#This Row],[Area]]= "", "", IF(OR(Couts[[#This Row],[Area]]= "EIR ", Couts[[#This Row],[Area]]= "Points d'entrée"),"Surveillance",Couts[[#This Row],[Area]])) -> Communication | I41: CT | K41: Niveau régional | L41: 292.8571429
B42: Plan riposte central | C42: 21 | D42: Activity 21 | E42: Préparation | F42: Communication | G42: =IF(Couts[[#This Row],[Area]]= "", "", IF(OR(Couts[[#This Row],[Area]]= "EIR ", Couts[[#This Row],[Area]]= "Points d'entrée"),"Surveillance",Couts[[#This Row],[Area]])) -> Communication | I42: CT | K42: Niveau central | L42: 292.8571429
B43: Plan riposte central | C43: 22 | D43: Activity 22 | E43: Préparation | F43: Communication | G43: =IF(Couts[[#This Row],[Area]]= "", "", IF(OR(Couts[[#This Row],[Area]]= "EIR ", Couts[[#This Row],[Area]]= "Points d'entrée"),"Surveillance",Couts[[#This Row],[Area]])) -> Communication | I43: CT | K43: Niveau des districts | L43: 2785.714286
B44: Plan riposte central | C44: 23 | D44: Activity 23 | E44: Préparation | F44: Communication | G44: =IF(Couts[[#This Row],[Area]]= "", "", IF(OR(Couts[[#This Row],[Area]]= "EIR ", Couts[[#This Row],[Area]]= "Points d'entrée"),"Surveillance",Couts[[#This Row],[Area]])) -> Communication | I44: CT | K44: Niveau des districts | L44: 2000
B45: Plan riposte central | C45: 24 | D45: Activity 24 | E45: Préparation | F45: Communication | G45: =IF(Couts[[#This Row],[Area]]= "", "", IF(OR(Couts[[#This Row],[Area]]= "EIR ", Couts[[#This Row],[Area]]= "Points d'entrée"),"Surveillance",Couts[[#This Row],[Area]])) -> Communication | I45: CT | K45: Niveau central | L45: 1056.904762
B46: Plan riposte central | C46: 25 | D46: Activity 25 | E46: Préparation | F46: Communication | G46: =IF(Couts[[#This Row],[Area]]= "", "", IF(OR(Couts[[#This Row],[Area]]= "EIR ", Couts[[#This Row],[Area]]= "Points d'entrée"),"Surveillance",Couts[[#This Row],[Area]])) -> Communication | I46: CT | K46: Niveau central | L46: 4264.761905
B47: Plan riposte central | C47: 26 | D47: Activity 26 | E47: Préparation | F47: Communication | G47: =IF(Couts[[#This Row],[Area]]= "", "", IF(OR(Couts[[#This Row],[Area]]= "EIR ", Couts[[#This Row],[Area]]= "Points d'entrée"),"Surveillance",Couts[[#This Row],[Area]])) -> Communication | I47: CT | K47: Niveau central | L47: 7544.761905
B48: Plan riposte central | C48: 27 | D48: Activity 27 | E48: Préparation | F48: Communication | G48: =IF(Couts[[#This Row],[Area]]= "", "", IF(OR(Couts[[#This Row],[Area]]= "EIR ", Couts[[#This Row],[Area]]= "Points d'entrée"),"Surveillance",Couts[[#This Row],[Area]])) -> Communication | I48: CT | K48: Niveau central | L48: 2171.428571
B49: Plan riposte central | C49: 28 | D49: Activity 28 | E49: Préparation | F49: Communication | G49: =IF(Couts[[#This Row],[Area]]= "", "", IF(OR(Couts[[#This Row],[Area]]= "EIR ", Couts[[#This Row],[Area]]= "Points d'entrée"),"Surveillance",Couts[[#This Row],[Area]])) -> Communication | I49: CT | K49: Niveau central | L49: 2171.428571
B50: Plan riposte central | C50: 29 | D50: Activity 29 | E50: Préparation | F50: Surveillance | G50: =IF(Couts[[#This Row],[Area]]= "", "", IF(OR(Couts[[#This Row],[Area]]= "EIR ", Couts[[#This Row],[Area]]= "Points d'entrée"),"Surveillance",Couts[[#This Row],[Area]])) -> Surveillance | I50: CT | K50: Niveau des districts | L50: 583.3333333
B51: Plan riposte central | C51: 30 | D51: Activity 30 | E51: Préparation | F51: Surveillance | G51: =IF(Couts[[#This Row],[Area]]= "", "", IF(OR(Couts[[#This Row],[Area]]= "EIR ", Couts[[#This Row],[Area]]= "Points d'entrée"),"Surveillance",Couts[[#This Row],[Area]])) -> Surveillance | I51: CT | K51: Niveau central | L51: 285.7142857
B52: Plan riposte central | C52: 31 | D52: Activity 31 | E52: Préparation | F52: Surveillance | G52: =IF(Couts[[#This Row],[Area]]= "", "", IF(OR(Couts[[#This Row],[Area]]= "EIR ", Couts[[#This Row],[Area]]= "Points d'entrée"),"Surveillance",Couts[[#This Row],[Area]])) -> Surveillance | I52: CT | K52: Niveau des districts | L52: 0
B53: Plan riposte central | C53: 32 | D53: Activity 32 | E53: Préparation | F53: Surveillance | G53: =IF(Couts[[#This Row],[Area]]= "", "", IF(OR(Couts[[#This Row],[Area]]= "EIR ", Couts[[#This Row],[Area]]= "Points d'entrée"),"Surveillance",Couts[[#This Row],[Area]])) -> Surveillance | I53: CT | K53: Niveau des districts | L53: 10542.85714
B54: Plan riposte central | C54: 33 | D54: Activity 33 | E54: Préparation | F54: Surveillance | G54: =IF(Couts[[#This Row],[Area]]= "", "", IF(OR(Couts[[#This Row],[Area]]= "EIR ", Couts[[#This Row],[Area]]= "Points d'entrée"),"Surveillance",Couts[[#This Row],[Area]])) -> Surveillance | I54: CT | K54: Niveau des districts | L54: 28571.42857
B55: Plan riposte central | C55: 34 | D55: Activity 34 | E55: Préparation | F55: Points d'entrée | G55: =IF(Couts[[#This Row],[Area]]= "", "", IF(OR(Couts[[#This Row],[Area]]= "EIR ", Couts[[#This Row],[Area]]= "Points d'entrée"),"Surveillance",Couts[[#This Row],[Area]])) -> Surveillance | I55: CT | K55: Niveau central | L55: 0
B56: Plan riposte central | C56: 35 | D56: Activity 35 | E56: Préparation | F56: Points d'entrée | G56: =IF(Couts[[#This Row],[Area]]= "", "", IF(OR(Couts[[#This Row],[Area]]= "EIR ", Couts[[#This Row],[Area]]= "Points d'entrée"),"Surveillance",Couts[[#This Row],[Area]])) -> Surveillance | I56: CT | K56: Niveau des districts | L56: 5142.857143
B57: Plan riposte central | C57: 36 | D57: Activity 36 | E57: Préparation | F57: Points d'entrée | G57: =IF(Couts[[#This Row],[Area]]= "", "", IF(OR(Couts[[#This Row],[Area]]= "EIR ", Couts[[#This Row],[Area]]= "Points d'entrée"),"Surveillance",Couts[[#This Row],[Area]])) -> Surveillance | I57: CT | K57: Niveau des districts | L57: 0
B58: Plan riposte central | C58: 37 | D58: Activity 37 | E58: Préparation | F58: EIR | G58: =IF(Couts[[#This Row],[Area]]= "", "", IF(OR(Couts[[#This Row],[Area]]= "EIR ", Couts[[#This Row],[Area]]= "Points d'entrée"),"Surveillance",Couts[[#This Row],[Area]])) -> Surveillance | I58: CT | K58: Niveau des districts | L58: 22355.2381
B59: Plan riposte central | C59: 38 | D59: Activity 38 | E59: Préparation | F59: Logistique | G59: =IF(Couts[[#This Row],[Area]]= "", "", IF(OR(Couts[[#This Row],[Area]]= "EIR ", Couts[[#This Row],[Area]]= "Points d'entrée"),"Surveillance",Couts[[#This Row],[Area]])) -> Logistique | I59: LT | K59: Niveau central | L59: 1428571.429
B60: Plan riposte central | C60: 39 | D60: Activity 39 | E60: Préparation | F60: Logistique | G60: =IF(Couts[[#This Row],[Area]]= "", "", IF(OR(Couts[[#This Row],[Area]]= "EIR ", Couts[[#This Row],[Area]]= "Points d'entrée"),"Surveillance",Couts[[#This Row],[Area]])) -> Logistique | I60: CT | K60: Niveau central | L60: 1571.428571
B61: Plan riposte central | C61: 40 | D61: Activity 40 | E61: Préparation | F61: Logistique | G61: =IF(Couts[[#This Row],[Area]]= "", "", IF(OR(Couts[[#This Row],[Area]]= "EIR ", Couts[[#This Row],[Area]]= "Points d'entrée"),"Surveillance",Couts[[#This Row],[Area]])) -> Logistique | I61: CT | K61: Niveau régional | L61: 5720
B62: Plan riposte central | C62: 41 | D62: Activity 41 | E62: Préparation | F62: Logistique | G62: =IF(Couts[[#This Row],[Area]]= "", "", IF(OR(Couts[[#This Row],[Area]]= "EIR ", Couts[[#This Row],[Area]]= "Points d'entrée"),"Surveillance",Couts[[#This Row],[Area]])) -> Logistique | I62: CT | K62: Niveau central | L62: 499623.8095
B63: Plan riposte central | C63: 42 | D63: Activity 42 | E63: Préparation | F63: Logistique | G63: =IF(Couts[[#This Row],[Area]]= "", "", IF(OR(Couts[[#This Row],[Area]]= "EIR ", Couts[[#This Row],[Area]]= "Points d'entrée"),"Surveillance",Couts[[#This Row],[Area]])) -> Logistique | I63: CT | K63: Niveau des districts | L63: 150000
B64: Plan riposte central | C64: 43 | D64: Activity 43 | E64: Préparation | F64: Logistique | G64: =IF(Couts[[#This Row],[Area]]= "", "", IF(OR(Couts[[#This Row],[Area]]= "EIR ", Couts[[#This Row],[Area]]= "Points d'entrée"),"Surveillance",Couts[[#This Row],[Area]])) -> Logistique | I64: CT | K64: Niveau régional | L64: 71428.57143
B65: Plan riposte central | C65: 44 | D65: Activity 44 | E65: Préparation | F65: Logistique | G65: =IF(Couts[[#This Row],[Area]]= "", "", IF(OR(Couts[[#This Row],[Area]]= "EIR ", Couts[[#This Row],[Area]]= "Points d'entrée"),"Surveillance",Couts[[#This Row],[Area]])) -> Logistique | I65: CT | K65: Niveau central | L65: 1694.142857
B66: Plan riposte central | C66: 45 | D66: Activity 45 | E66: Préparation | F66: Logistique | G66: =IF(Couts[[#This Row],[Area]]= "", "", IF(OR(Couts[[#This Row],[Area]]= "EIR ", Couts[[#This Row],[Area]]= "Points d'entrée"),"Surveillance",Couts[[#This Row],[Area]])) -> Logistique | I66: CT | K66: Niveau régional | L66: 43491.42857
B67: Plan riposte central | C67: 46 | D67: Activity 46 | E67: Préparation | F67: Logistique | G67: =IF(Couts[[#This Row],[Area]]= "", "", IF(OR(Couts[[#This Row],[Area]]= "EIR ", Couts[[#This Row],[Area]]= "Points d'entrée"),"Surveillance",Couts[[#This Row],[Area]])) -> Logistique | I67: CT | K67: Niveau central | L67: 1475
B68: Plan riposte central | C68: 47 | D68: Activity 47 | E68: Préparation | F68: Logistique | G68: =IF(Couts[[#This Row],[Area]]= "", "", IF(OR(Couts[[#This Row],[Area]]= "EIR ", Couts[[#This Row],[Area]]= "Points d'entrée"),"Surveillance",Couts[[#This Row],[Area]])) -> Logistique | I68: CT | K68: Niveau régional | L68: 1404.761905
B69: Plan riposte central | C69: 48 | D69: Activity 48 | E69: Préparation | F69: Logistique | G69: =IF(Couts[[#This Row],[Area]]= "", "", IF(OR(Couts[[#This Row],[Area]]= "EIR ", Couts[[#This Row],[Area]]= "Points d'entrée"),"Surveillance",Couts[[#This Row],[Area]])) -> Logistique | I69: CT | K69: Niveau régional | L69: 11238.09524
B70: Plan riposte central | C70: 49 | D70: Activity 49 | E70: Préparation | F70: Logistique | G70: =IF(Couts[[#This Row],[Area]]= "", "", IF(OR(Couts[[#This Row],[Area]]= "EIR ", Couts[[#This Row],[Area]]= "Points d'entrée"),"Surveillance",Couts[[#This Row],[Area]])) -> Logistique | I70: CT | K70: Niveau central | L70: 9833.333333
B71: Plan riposte central | C71: 50 | D71: Activity 50 | E71: Préparation | F71: Logistique | G71: =IF(Couts[[#This Row],[Area]]= "", "", IF(OR(Couts[[#This Row],[Area]]= "EIR ", Couts[[#This Row],[Area]]= "Points d'entrée"),"Surveillance",Couts[[#This Row],[Area]])) -> Logistique | I71: MT | K71: Niveau central | L71: 1000000
B72: Plan riposte central | C72: 51 | D72: Activity 51 | E72: Préparation | F72: Logistique | G72: =IF(Couts[[#This Row],[Area]]= "", "", IF(OR(Couts[[#This Row],[Area]]= "EIR ", Couts[[#This Row],[Area]]= "Points d'entrée"),"Surveillance",Couts[[#This Row],[Area]])) -> Logistique | I72: CT | K72: Niveau central | L72: 190476.1905
B73: Plan riposte central | C73: 52 | D73: Activity 52 | E73: Préparation | F73: Logistique | G73: =IF(Couts[[#This Row],[Area]]= "", "", IF(OR(Couts[[#This Row],[Area]]= "EIR ", Couts[[#This Row],[Area]]= "Points d'entrée"),"Surveillance",Couts[[#This Row],[Area]])) -> Logistique | I73: CT | K73: Niveau central | L73: 1714285.714
B74: Plan riposte central | C74: 53 | D74: Activity 53 | E74: Préparation | F74: Logistique | G74: =IF(Couts[[#This Row],[Area]]= "", "", IF(OR(Couts[[#This Row],[Area]]= "EIR ", Couts[[#This Row],[Area]]= "Points d'entrée"),"Surveillance",Couts[[#This Row],[Area]])) -> Logistique | I74: MT | K74: Niveau central | L74: 218695.0786
B75: Plan riposte central | C75: 54 | D75: Activity 54 | E75: Préparation | F75: Logistique | G75: =IF(Couts[[#This Row],[Area]]= "", "", IF(OR(Couts[[#This Row],[Area]]= "EIR ", Couts[[#This Row],[Area]]= "Points d'entrée"),"Surveillance",Couts[[#This Row],[Area]])) -> Logistique | I75: CT | K75: Niveau central | L75: 2167019.26
B76: Plan riposte central | C76: 55 | D76: Activity 55 | E76: Préparation | F76: Logistique | G76: =IF(Couts[[#This Row],[Area]]= "", "", IF(OR(Couts[[#This Row],[Area]]= "EIR ", Couts[[#This Row],[Area]]= "Points d'entrée"),"Surveillance",Couts[[#This Row],[Area]])) -> Logistique | I76: CT | K76: Niveau central | L76: 7285714.286
B77: Plan riposte central | C77: 56 | D77: Activity 56 | E77: Préparation | F77: Logistique | G77: =IF(Couts[[#This Row],[Area]]= "", "", IF(OR(Couts[[#This Row],[Area]]= "EIR ", Couts[[#This Row],[Area]]= "Points d'entrée"),"Surveillance",Couts[[#This Row],[Area]])) -> Logistique | I77: CT | K77: Niveau régional | L77: 139619.0476
B78: Plan riposte central | C78: 57 | D78: Activity 57 | E78: Préparation | F78: Logistique | G78: =IF(Couts[[#This Row],[Area]]= "", "", IF(OR(Couts[[#This Row],[Area]]= "EIR ", Couts[[#This Row],[Area]]= "Points d'entrée"),"Surveillance",Couts[[#This Row],[Area]])) -> Logistique | I78: CT | K78: Niveau central | L78: 12642.85714
B79: Plan riposte central | C79: 58 | D79: Activity 58 | E79: Préparation | F79: Logistique | G79: =IF(Couts[[#This Row],[Area]]= "", "", IF(OR(Couts[[#This Row],[Area]]= "EIR ", Couts[[#This Row],[Area]]= "Points d'entrée"),"Surveillance",Couts[[#This Row],[Area]])) -> Logistique | I79: CT | K79: Niveau régional | L79: 26971.42857
B80: Plan riposte central | C80: 59 | D80: Activity 59 | E80: Préparation | F80: Logistique | G80: =IF(Couts[[#This Row],[Area]]= "", "", IF(OR(Couts[[#This Row],[Area]]= "EIR ", Couts[[#This Row],[Area]]= "Points d'entrée"),"Surveillance",Couts[[#This Row],[Area]])) -> Logistique | I80: CT | K80: Niveau central | L80: 63571.42857
B81: Plan riposte central | C81: 60 | D81: Activity 60 | E81: Préparation | F81: Logistique | G81: =IF(Couts[[#This Row],[Area]]= "", "", IF(OR(Couts[[#This Row],[Area]]= "EIR ", Couts[[#This Row],[Area]]= "Points d'entrée"),"Surveillance",Couts[[#This Row],[Area]])) -> Logistique | I81: CT | K81: Niveau régional | L81: 1060.952381
B82: Plan riposte central | C82: 61 | D82: Activity 61 | E82: Préparation | F82: Logistique | G82: =IF(Couts[[#This Row],[Area]]= "", "", IF(OR(Couts[[#This Row],[Area]]= "EIR ", Couts[[#This Row],[Area]]= "Points d'entrée"),"Surveillance",Couts[[#This Row],[Area]])) -> Logistique | I82: MT | K82: Niveau central | L82: 47619.04762
B83: Plan riposte central | C83: 62 | D83: Activity 62 | E83: Préparation | F83: Logistique | G83: =IF(Couts[[#This Row],[Area]]= "", "", IF(OR(Couts[[#This Row],[Area]]= "EIR ", Couts[[#This Row],[Area]]= "Points d'entrée"),"Surveillance",Couts[[#This Row],[Area]])) -> Logistique | I83: MT | K83: Niveau central | L83: 2352380.952
B84: Plan riposte central | C84: 63 | D84: Activity 63 | E84: Préparation | F84: Logistique | G84: =IF(Couts[[#This Row],[Area]]= "", "", IF(OR(Couts[[#This Row],[Area]]= "EIR ", Couts[[#This Row],[Area]]= "Points d'entrée"),"Surveillance",Couts[[#This Row],[Area]])) -> Logistique | I84: CT | K84: Niveau central | L84: 1190476.19
B85: Plan riposte central | C85: 64 | D85: Activity 64 | E85: Préparation | F85: PCI | G85: =IF(Couts[[#This Row],[Area]]= "", "", IF(OR(Couts[[#This Row],[Area]]= "EIR ", Couts[[#This Row],[Area]]= "Points d'entrée"),"Surveillance",Couts[[#This Row],[Area]])) -> PCI | I85: CT | K85: Niveau central | L85: 32726.29762
B86: Plan riposte central | C86: 65 | D86: Activity 65 | E86: Préparation | F86: Prise en charge des cas | G86: =IF(Couts[[#This Row],[Area]]= "", "", IF(OR(Couts[[#This Row],[Area]]= "EIR ", Couts[[#This Row],[Area]]= "Points d'entrée"),"Surveillance",Couts[[#This Row],[Area]])) -> Prise en charge des cas | I86: CT | K86: Niveau central | L86: 67390.32381
B87: Plan riposte central | C87: 66 | D87: Activity 66 | E87: Préparation | F87: Prise en charge des cas | G87: =IF(Couts[[#This Row],[Area]]= "", "", IF(OR(Couts[[#This Row],[Area]]= "EIR ", Couts[[#This Row],[Area]]= "Points d'entrée"),"Surveillance",Couts[[#This Row],[Area]])) -> Prise en charge des cas | I87: CT | K87: Niveau central | L87: 1287.238095
B88: Plan riposte central | C88: 67 | D88: Activity 67 | E88: Préparation | F88: Prise en charge des cas | G88: =IF(Couts[[#This Row],[Area]]= "", "", IF(OR(Couts[[#This Row],[Area]]= "EIR ", Couts[[#This Row],[Area]]= "Points d'entrée"),"Surveillance",Couts[[#This Row],[Area]])) -> Prise en charge des cas | I88: CT | K88: Niveau central | L88: 357.1428571
B89: Plan riposte central | C89: 68 | D89: Activity 68 | E89: Préparation | F89: Prise en charge des cas | G89: =IF(Couts[[#This Row],[Area]]= "", "", IF(OR(Couts[[#This Row],[Area]]= "EIR ", Couts[[#This Row],[Area]]= "Points d'entrée"),"Surveillance",Couts[[#This Row],[Area]])) -> Prise en charge des cas | I89: CT | K89: Niveau central | L89: 776.0380952
B90: Plan riposte central | C90: 69 | D90: Activity 69 | E90: Préparation | F90: Sécurité | G90: =IF(Couts[[#This Row],[Area]]= "", "", IF(OR(Couts[[#This Row],[Area]]= "EIR ", Couts[[#This Row],[Area]]= "Points d'entrée"),"Surveillance",Couts[[#This Row],[Area]])) -> Sécurité | I90: CT | K90: Niveau régional | L90: 7311.809524
B91: Plan riposte central | C91: 70 | D91: Activity 70 | E91: Préparation | F91: Laboratoire | G91: =IF(Couts[[#This Row],[Area]]= "", "", IF(OR(Couts[[#This Row],[Area]]= "EIR ", Couts[[#This Row],[Area]]= "Points d'entrée"),"Surveillance",Couts[[#This Row],[Area]])) -> Laboratoire | I91: CT | K91: Niveau central | L91: 11904.7619
B92: Plan riposte central | C92: 71 | D92: Activity 71 | E92: Préparation | F92: Laboratoire | G92: =IF(Couts[[#This Row],[Area]]= "", "", IF(OR(Couts[[#This Row],[Area]]= "EIR ", Couts[[#This Row],[Area]]= "Points d'entrée"),"Surveillance",Couts[[#This Row],[Area]])) -> Laboratoire | I92: CT | K92: Niveau central | L92: 1428571.429
B93: Plan riposte central | C93: 72 | D93: Activity 72 | E93: Préparation | F93: Laboratoire | G93: =IF(Couts[[#This Row],[Area]]= "", "", IF(OR(Couts[[#This Row],[Area]]= "EIR ", Couts[[#This Row],[Area]]= "Points d'entrée"),"Surveillance",Couts[[#This Row],[Area]])) -> Laboratoire | I93: CT | K93: Niveau central | L93: 23809.52381
B94: Plan riposte central | C94: 73 | D94: Activity 73 | E94: Préparation | F94: Laboratoire | G94: =IF(Couts[[#This Row],[Area]]= "", "", IF(OR(Couts[[#This Row],[Area]]= "EIR ", Couts[[#This Row],[Area]]= "Points d'entrée"),"Surveillance",Couts[[#This Row],[Area]])) -> Laboratoire | I94: CT | K94: Niveau central | L94: 239285.7143
B95: Plan riposte central | C95: 74 | D95: Activity 74 | E95: Préparation | F95: Laboratoire | G95: =IF(Couts[[#This Row],[Area]]= "", "", IF(OR(Couts[[#This Row],[Area]]= "EIR ", Couts[[#This Row],[Area]]= "Points d'entrée"),"Surveillance",Couts[[#This Row],[Area]])) -> Laboratoire | I95: CT | K95: Niveau central | L95: 262.6314286
B96: Plan riposte central | C96: 75 | D96: Activity 75 | E96: Préparation | F96: Laboratoire | G96: =IF(Couts[[#This Row],[Area]]= "", "", IF(OR(Couts[[#This Row],[Area]]= "EIR ", Couts[[#This Row],[Area]]= "Points d'entrée"),"Surveillance",Couts[[#This Row],[Area]])) -> Laboratoire | I96: CT | K96: Niveau central | L96: 9474.739048
B97: Plan riposte central | C97: 76 | D97: Activity 76 | E97: Préparation | F97: Laboratoire | G97: =IF(Couts[[#This Row],[Area]]= "", "", IF(OR(Couts[[#This Row],[Area]]= "EIR ", Couts[[#This Row],[Area]]= "Points d'entrée"),"Surveillance",Couts[[#This Row],[Area]])) -> Laboratoire | I97: CT | K97: Niveau central | L97: 2420.714286
B98: Plan riposte central | C98: 77 | D98: Activity 77 | E98: Préparation | F98: Laboratoire | G98: =IF(Couts[[#This Row],[Area]]= "", "", IF(OR(Couts[[#This Row],[Area]]= "EIR ", Couts[[#This Row],[Area]]= "Points d'entrée"),"Surveillance",Couts[[#This Row],[Area]])) -> Laboratoire | I98: CT | K98: Niveau central | L98: 3571.428571
B99: Plan riposte central | C99: 78 | D99: Activity 78 | E99: Préparation | F99: Laboratoire | G99: =IF(Couts[[#This Row],[Area]]= "", "", IF(OR(Couts[[#This Row],[Area]]= "EIR ", Couts[[#This Row],[Area]]= "Points d'entrée"),"Surveillance",Couts[[#This Row],[Area]])) -> Laboratoire | I99: CT | K99: Niveau central | L99: 3571.428571
B100: Plan riposte central | C100: 79 | D100: Activity 79 | E100: Préparation | F100: Laboratoire | G100: =IF(Couts[[#This Row],[Area]]= "", "", IF(OR(Couts[[#This Row],[Area]]= "EIR ", Couts[[#This Row],[Area]]= "Points d'entrée"),"Surveillance",Couts[[#This Row],[Area]])) -> Laboratoire | I100: CT | K100: Niveau central | L100: 71.42857143
B101: Plan riposte central | C101: 80 | D101: Activity 80 | E101: Préparation | F101: Laboratoire | G101: =IF(Couts[[#This Row],[Area]]= "", "", IF(OR(Couts[[#This Row],[Area]]= "EIR ", Couts[[#This Row],[Area]]= "Points d'entrée"),"Surveillance",Couts[[#This Row],[Area]])) -> Laboratoire | I101: CT | K101: Niveau central | L101: 9523.809524
B102: Plan riposte central | C102: 81 | D102: Activity 81 | E102: Préparation | F102: Laboratoire | G102: =IF(Couts[[#This Row],[Area]]= "", "", IF(OR(Couts[[#This Row],[Area]]= "EIR ", Couts[[#This Row],[Area]]= "Points d'entrée"),"Surveillance",Couts[[#This Row],[Area]])) -> Laboratoire | I102: CT | K102: Niveau central | L102: 364.2052381
B103: Plan riposte central | C103: 82 | D103: Activity 82 | E103: Préparation | F103: Laboratoire | G103: =IF(Couts[[#This Row],[Area]]= "", "", IF(OR(Couts[[#This Row],[Area]]= "EIR ", Couts[[#This Row],[Area]]= "Points d'entrée"),"Surveillance",Couts[[#This Row],[Area]])) -> Laboratoire | I103: CT | K103: Niveau central | L103: 1594.52381
B104: Plan riposte central | C104: 83 | D104: Activity 83 | E104: Préparation | F104: Laboratoire | G104: =IF(Couts[[#This Row],[Area]]= "", "", IF(OR(Couts[[#This Row],[Area]]= "EIR ", Couts[[#This Row],[Area]]= "Points d'entrée"),"Surveillance",Couts[[#This Row],[Area]])) -> Laboratoire | I104: CT | K104: Niveau central | L104: 11904.7619
B105: Plan riposte central | C105: 84 | D105: Activity 84 | E105: Riposte | F105: Coordination | G105: =IF(Couts[[#This Row],[Area]]= "", "", IF(OR(Couts[[#This Row],[Area]]= "EIR ", Couts[[#This Row],[Area]]= "Points d'entrée"),"Surveillance",Couts[[#This Row],[Area]])) -> Coordination | I105: MT | K105: Niveau central | L105: 233333.3333
B106: Plan riposte central | C106: 85 | D106: Activity 85 | E106: Riposte | F106: Coordination | G106: =IF(Couts[[#This Row],[Area]]= "", "", IF(OR(Couts[[#This Row],[Area]]= "EIR ", Couts[[#This Row],[Area]]= "Points d'entrée"),"Surveillance",Couts[[#This Row],[Area]])) -> Coordination | I106: CT | K106: Niveau central | L106: 20000
B107: Plan riposte central | C107: 86 | D107: Activity 86 | E107: Riposte | F107: Coordination | G107: =IF(Couts[[#This Row],[Area]]= "", "", IF(OR(Couts[[#This Row],[Area]]= "EIR ", Couts[[#This Row],[Area]]= "Points d'entrée"),"Surveillance",Couts[[#This Row],[Area]])) -> Coordination | I107: CT | K107: Niveau central | L107: 66685.71429
B108: Plan riposte central | C108: 87 | D108: Activity 87 | E108: Riposte | F108: Coordination | G108: =IF(Couts[[#This Row],[Area]]= "", "", IF(OR(Couts[[#This Row],[Area]]= "EIR ", Couts[[#This Row],[Area]]= "Points d'entrée"),"Surveillance",Couts[[#This Row],[Area]])) -> Coordination | I108: CT | K108: Niveau régional | L108: 5142.857143
B109: Plan riposte central | C109: 88 | D109: Activity 88 | E109: Riposte | F109: Coordination | G109: =IF(Couts[[#This Row],[Area]]= "", "", IF(OR(Couts[[#This Row],[Area]]= "EIR ", Couts[[#This Row],[Area]]= "Points d'entrée"),"Surveillance",Couts[[#This Row],[Area]])) -> Coordination | I109: CT | K109: Niveau central | L109: 40000
B110: Plan riposte central | C110: 89 | D110: Activity 89 | E110: Riposte | F110: Coordination | G110: =IF(Couts[[#This Row],[Area]]= "", "", IF(OR(Couts[[#This Row],[Area]]= "EIR ", Couts[[#This Row],[Area]]= "Points d'entrée"),"Surveillance",Couts[[#This Row],[Area]])) -> Coordination | I110: CT | K110: Niveau central | L110: 3750
B111: Plan riposte central | C111: 90 | D111: Activity 90 | E111: Riposte | F111: Coordination | G111: =IF(Couts[[#This Row],[Area]]= "", "", IF(OR(Couts[[#This Row],[Area]]= "EIR ", Couts[[#This Row],[Area]]= "Points d'entrée"),"Surveillance",Couts[[#This Row],[Area]])) -> Coordination | I111: CT | K111: Niveau central | L111: 0
B112: Plan riposte central | C112: 91 | D112: Activity 91 | E112: Riposte | F112: Coordination | G112: =IF(Couts[[#This Row],[Area]]= "", "", IF(OR(Couts[[#This Row],[Area]]= "EIR ", Couts[[#This Row],[Area]]= "Points d'entrée"),"Surveillance",Couts[[#This Row],[Area]])) -> Coordination | I112: CT | K112: Niveau central | L112: 0
B113: Plan riposte central | C113: 92 | D113: Activity 92 | E113: Riposte | F113: Coordination | G113: =IF(Couts[[#This Row],[Area]]= "", "", IF(OR(Couts[[#This Row],[Area]]= "EIR ", Couts[[#This Row],[Area]]= "Points d'entrée"),"Surveillance",Couts[[#This Row],[Area]])) -> Coordination | I113: CT | K113: Niveau central | L113: 0
B114: Plan riposte central | C114: 93 | D114: Activity 93 | E114: Riposte | F114: Coordination | G114: =IF(Couts[[#This Row],[Area]]= "", "", IF(OR(Couts[[#This Row],[Area]]= "EIR ", Couts[[#This Row],[Area]]= "Points d'entrée"),"Surveillance",Couts[[#This Row],[Area]])) -> Coordination | I114: CT | K114: Niveau central | L114: 0
B115: Plan riposte central | C115: 94 | D115: Activity 94 | E115: Riposte | F115: Coordination | G115: =IF(Couts[[#This Row],[Area]]= "", "", IF(OR(Couts[[#This Row],[Area]]= "EIR ", Couts[[#This Row],[Area]]= "Points d'entrée"),"Surveillance",Couts[[#This Row],[Area]])) -> Coordination | I115: CT | K115: Niveau central | L115: 0
B116: Plan riposte central | C116: 95 | D116: Activity 95 | E116: Riposte | F116: Coordination | G116: =IF(Couts[[#This Row],[Area]]= "", "", IF(OR(Couts[[#This Row],[Area]]= "EIR ", Couts[[#This Row],[Area]]= "Points d'entrée"),"Surveillance",Couts[[#This Row],[Area]])) -> Coordination | I116: CT | K116: Niveau central | L116: 0
B117: Plan riposte central | C117: 96 | D117: Activity 96 | E117: Riposte | F117: Coordination | G117: =IF(Couts[[#This Row],[Area]]= "", "", IF(OR(Couts[[#This Row],[Area]]= "EIR ", Couts[[#This Row],[Area]]= "Points d'entrée"),"Surveillance",Couts[[#This Row],[Area]])) -> Coordination | I117: CT | K117: Niveau central | L117: 0
B118: Plan riposte central | C118: 97 | D118: Activity 97 | E118: Riposte | F118: Coordination | G118: =IF(Couts[[#This Row],[Area]]= "", "", IF(OR(Couts[[#This Row],[Area]]= "EIR ", Couts[[#This Row],[Area]]= "Points d'entrée"),"Surveillance",Couts[[#This Row],[Area]])) -> Coordination | I118: CT | K118: Niveau central | L118: 18360.8
B119: Plan riposte central | C119: 98 | D119: Activity 98 | E119: Riposte | F119: Coordination | G119: =IF(Couts[[#This Row],[Area]]= "", "", IF(OR(Couts[[#This Row],[Area]]= "EIR ", Couts[[#This Row],[Area]]= "Points d'entrée"),"Surveillance",Couts[[#This Row],[Area]])) -> Coordination | I119: CT | K119: Niveau central | L119: 55082.4
B120: Plan riposte central | C120: 99 | D120: Activity 99 | E120: Riposte | F120: Coordination | G120: =IF(Couts[[#This Row],[Area]]= "", "", IF(OR(Couts[[#This Row],[Area]]= "EIR ", Couts[[#This Row],[Area]]= "Points d'entrée"),"Surveillance",Couts[[#This Row],[Area]])) -> Coordination | I120: MT | K120: Niveau central | L120: 23809.52381
B121: Plan riposte central | C121: 100 | D121: Activity 100 | E121: Riposte | F121: Coordination | G121: =IF(Couts[[#This Row],[Area]]= "", "", IF(OR(Couts[[#This Row],[Area]]= "EIR ", Couts[[#This Row],[Area]]= "Points d'entrée"),"Surveillance",Couts[[#This Row],[Area]])) -> Coordination | I121: CT | K121: Niveau central | L121: 2644645.57
B122: Plan riposte central | C122: 101 | D122: Activity 101 | E122: Riposte | F122: Coordination | G122: =IF(Couts[[#This Row],[Area]]= "", "", IF(OR(Couts[[#This Row],[Area]]= "EIR ", Couts[[#This Row],[Area]]= "Points d'entrée"),"Surveillance",Couts[[#This Row],[Area]])) -> Coordination | I122: CT | K122: Niveau central | L122: 138095.2381
B123: Plan riposte central | C123: 102 | D123: Activity 102 | E123: Riposte | F123: Coordination | G123: =IF(Couts[[#This Row],[Area]]= "", "", IF(OR(Couts[[#This Row],[Area]]= "EIR ", Couts[[#This Row],[Area]]= "Points d'entrée"),"Surveillance",Couts[[#This Row],[Area]])) -> Coordination | I123: CT | K123: Niveau central | L123: 92857.14286
B124: Plan riposte central | C124: 103 | D124: Activity 103 | E124: Riposte | F124: Coordination | G124: =IF(Couts[[#This Row],[Area]]= "", "", IF(OR(Couts[[#This Row],[Area]]= "EIR ", Couts[[#This Row],[Area]]= "Points d'entrée"),"Surveillance",Couts[[#This Row],[Area]])) -> Coordination | I124: CT | K124: Niveau central | L124: 381214.2857
B125: Plan riposte central | C125: 104 | D125: Activity 104 | E125: Riposte | F125: Surveillance | G125: =IF(Couts[[#This Row],[Area]]= "", "", IF(OR(Couts[[#This Row],[Area]]= "EIR ", Couts[[#This Row],[Area]]= "Points d'entrée"),"Surveillance",Couts[[#This Row],[Area]])) -> Surveillance | I125: CT | K125: Niveau central | L125: 1242857.143
B126: Plan riposte central | C126: 105 | D126: Activity 105 | E126: Riposte | F126: Surveillance | G126: =IF(Couts[[#This Row],[Area]]= "", "", IF(OR(Couts[[#This Row],[Area]]= "EIR ", Couts[[#This Row],[Area]]= "Points d'entrée"),"Surveillance",Couts[[#This Row],[Area]])) -> Surveillance | I126: CT | K126: Niveau central | L126: 0
B127: Plan riposte central | C127: 106 | D127: Activity 106 | E127: Riposte | F127: Surveillance | G127: =IF(Couts[[#This Row],[Area]]= "", "", IF(OR(Couts[[#This Row],[Area]]= "EIR ", Couts[[#This Row],[Area]]= "Points d'entrée"),"Surveillance",Couts[[#This Row],[Area]])) -> Surveillance | I127: CT | K127: Niveau central | L127: 68473.64381
B128: Plan riposte central | C128: 107 | D128: Activity 107 | E128: Riposte | F128: Surveillance | G128: =IF(Couts[[#This Row],[Area]]= "", "", IF(OR(Couts[[#This Row],[Area]]= "EIR ", Couts[[#This Row],[Area]]= "Points d'entrée"),"Surveillance",Couts[[#This Row],[Area]])) -> Surveillance | I128: CT | K128: Niveau central | L128: 42342.85714
B129: Plan riposte central | C129: 108 | D129: Activity 108 | E129: Riposte | F129: Surveillance | G129: =IF(Couts[[#This Row],[Area]]= "", "", IF(OR(Couts[[#This Row],[Area]]= "EIR ", Couts[[#This Row],[Area]]= "Points d'entrée"),"Surveillance",Couts[[#This Row],[Area]])) -> Surveillance | I129: CT | K129: Niveau central | L129: 1051714.286
B130: Plan riposte central | C130: 109 | D130: Activity 109 | E130: Riposte | F130: Surveillance | G130: =IF(Couts[[#This Row],[Area]]= "", "", IF(OR(Couts[[#This Row],[Area]]= "EIR ", Couts[[#This Row],[Area]]= "Points d'entrée"),"Surveillance",Couts[[#This Row],[Area]])) -> Surveillance | I130: MT | K130: Niveau central | L130: 142857.1429
B131: Plan riposte central | C131: 110 | D131: Activity 110 | E131: Riposte | F131: Surveillance | G131: =IF(Couts[[#This Row],[Area]]= "", "", IF(OR(Couts[[#This Row],[Area]]= "EIR ", Couts[[#This Row],[Area]]= "Points d'entrée"),"Surveillance",Couts[[#This Row],[Area]])) -> Surveillance | I131: CT | K131: Niveau des districts | L131: 0
B132: Plan riposte central | C132: 111 | D132: Activity 111 | E132: Riposte | F132: Surveillance | G132: =IF(Couts[[#This Row],[Area]]= "", "", IF(OR(Couts[[#This Row],[Area]]= "EIR ", Couts[[#This Row],[Area]]= "Points d'entrée"),"Surveillance",Couts[[#This Row],[Area]])) -> Surveillance | I132: CT | K132: Niveau des districts | L132: 0
B133: Plan riposte central | C133: 112 | D133: Activity 112 | E133: Riposte | F133: Surveillance | G133: =IF(Couts[[#This Row],[Area]]= "", "", IF(OR(Couts[[#This Row],[Area]]= "EIR ", Couts[[#This Row],[Area]]= "Points d'entrée"),"Surveillance",Couts[[#This Row],[Area]])) -> Surveillance | I133: CT | K133: Niveau des districts | L133: 0
B134: Plan riposte central | C134: 113 | D134: Activity 113 | E134: Riposte | F134: Surveillance | G134: =IF(Couts[[#This Row],[Area]]= "", "", IF(OR(Couts[[#This Row],[Area]]= "EIR ", Couts[[#This Row],[Area]]= "Points d'entrée"),"Surveillance",Couts[[#This Row],[Area]])) -> Surveillance | I134: CT | K134: Niveau central | L134: 0
B135: Plan riposte central | C135: 114 | D135: Activity 114 | E135: Riposte | F135: Surveillance | G135: =IF(Couts[[#This Row],[Area]]= "", "", IF(OR(Couts[[#This Row],[Area]]= "EIR ", Couts[[#This Row],[Area]]= "Points d'entrée"),"Surveillance",Couts[[#This Row],[Area]])) -> Surveillance | I135: CT | K135: Niveau régional | L135: 4500
B136: Plan riposte central | C136: 115 | D136: Activity 115 | E136: Riposte | F136: Surveillance | G136: =IF(Couts[[#This Row],[Area]]= "", "", IF(OR(Couts[[#This Row],[Area]]= "EIR ", Couts[[#This Row],[Area]]= "Points d'entrée"),"Surveillance",Couts[[#This Row],[Area]])) -> Surveillance | I136: CT | K136: Niveau régional | L136: 77142.85714
B137: Plan riposte central | C137: 116 | D137: Activity 116 | E137: Riposte | F137: Surveillance | G137: =IF(Couts[[#This Row],[Area]]= "", "", IF(OR(Couts[[#This Row],[Area]]= "EIR ", Couts[[#This Row],[Area]]= "Points d'entrée"),"Surveillance",Couts[[#This Row],[Area]])) -> Surveillance | I137: CT | K137: Niveau central | L137: 2857.142857
B138: Plan riposte central | C138: 117 | D138: Activity 117 | E138: Riposte | F138: Surveillance | G138: =IF(Couts[[#This Row],[Area]]= "", "", IF(OR(Couts[[#This Row],[Area]]= "EIR ", Couts[[#This Row],[Area]]= "Points d'entrée"),"Surveillance",Couts[[#This Row],[Area]])) -> Surveillance | I138: CT | K138: Niveau central | L138: 476.1904762
B139: Plan riposte central | C139: 118 | D139: Activity 118 | E139: Riposte | F139: Surveillance | G139: =IF(Couts[[#This Row],[Area]]= "", "", IF(OR(Couts[[#This Row],[Area]]= "EIR ", Couts[[#This Row],[Area]]= "Points d'entrée"),"Surveillance",Couts[[#This Row],[Area]])) -> Surveillance | I139: CT | K139: Niveau central | L139: 3857.142857
B140: Plan riposte central | C140: 119 | D140: Activity 119 | E140: Riposte | F140: Surveillance | G140: =IF(Couts[[#This Row],[Area]]= "", "", IF(OR(Couts[[#This Row],[Area]]= "EIR ", Couts[[#This Row],[Area]]= "Points d'entrée"),"Surveillance",Couts[[#This Row],[Area]])) -> Surveillance | I140: CT | K140: Niveau des districts | L140: 0
B141: Plan riposte central | C141: 120 | D141: Activity 120 | E141: Riposte | F141: Surveillance | G141: =IF(Couts[[#This Row],[Area]]= "", "", IF(OR(Couts[[#This Row],[Area]]= "EIR ", Couts[[#This Row],[Area]]= "Points d'entrée"),"Surveillance",Couts[[#This Row],[Area]])) -> Surveillance | I141: CT | K141: Niveau des districts | L141: 2047.619048
B142: Plan riposte central | C142: 121 | D142: Activity 121 | E142: Riposte | F142: Surveillance | G142: =IF(Couts[[#This Row],[Area]]= "", "", IF(OR(Couts[[#This Row],[Area]]= "EIR ", Couts[[#This Row],[Area]]= "Points d'entrée"),"Surveillance",Couts[[#This Row],[Area]])) -> Surveillance | I142: CT | K142: Niveau des districts | L142: 0
B143: Plan riposte central | C143: 122 | D143: Activity 122 | E143: Riposte | F143: Surveillance | G143: =IF(Couts[[#This Row],[Area]]= "", "", IF(OR(Couts[[#This Row],[Area]]= "EIR ", Couts[[#This Row],[Area]]= "Points d'entrée"),"Surveillance",Couts[[#This Row],[Area]])) -> Surveillance | I143: CT | K143: Niveau central | L143: 1372.380952
B144: Plan riposte central | C144: 123 | D144: Activity 123 | E144: Riposte | F144: Surveillance | G144: =IF(Couts[[#This Row],[Area]]= "", "", IF(OR(Couts[[#This Row],[Area]]= "EIR ", Couts[[#This Row],[Area]]= "Points d'entrée"),"Surveillance",Couts[[#This Row],[Area]])) -> Surveillance | I144: CT | K144: Niveau central | L144: 0
B145: Plan riposte central | C145: 124 | D145: Activity 124 | E145: Riposte | F145: Surveillance | G145: =IF(Couts[[#This Row],[Area]]= "", "", IF(OR(Couts[[#This Row],[Area]]= "EIR ", Couts[[#This Row],[Area]]= "Points d'entrée"),"Surveillance",Couts[[#This Row],[Area]])) -> Surveillance | I145: CT | K145: Niveau central | L145: 14466.66667
B146: Plan riposte central | C146: 125 | D146: Activity 125 | E146: Riposte | F146: Surveillance | G146: =IF(Couts[[#This Row],[Area]]= "", "", IF(OR(Couts[[#This Row],[Area]]= "EIR ", Couts[[#This Row],[Area]]= "Points d'entrée"),"Surveillance",Couts[[#This Row],[Area]])) -> Surveillance | I146: CT | K146: Niveau central | L146: 3480.952381
B147: Plan riposte central | C147: 126 | D147: Activity 126 | E147: Riposte | F147: Recherche | G147: =IF(Couts[[#This Row],[Area]]= "", "", IF(OR(Couts[[#This Row],[Area]]= "EIR ", Couts[[#This Row],[Area]]= "Points d'entrée"),"Surveillance",Couts[[#This Row],[Area]])) -> Recherche | I147: CT | K147: Niveau central | L147: 476190.4762
B148: Plan riposte central | C148: 127 | D148: Activity 127 | E148: Riposte | F148: Communication | G148: =IF(Couts[[#This Row],[Area]]= "", "", IF(OR(Couts[[#This Row],[Area]]= "EIR ", Couts[[#This Row],[Area]]= "Points d'entrée"),"Surveillance",Couts[[#This Row],[Area]])) -> Communication | I148: CT | K148: Niveau central | L148: 0
B149: Plan riposte central | C149: 128 | D149: Activity 128 | E149: Riposte | F149: Communication | G149: =IF(Couts[[#This Row],[Area]]= "", "", IF(OR(Couts[[#This Row],[Area]]= "EIR ", Couts[[#This Row],[Area]]= "Points d'entrée"),"Surveillance",Couts[[#This Row],[Area]])) -> Communication | I149: CT | K149: Niveau central | L149: 17700
B150: Plan riposte central | C150: 129 | D150: Activity 129 | E150: Riposte | F150: Communication | G150: =IF(Couts[[#This Row],[Area]]= "", "", IF(OR(Couts[[#This Row],[Area]]= "EIR ", Couts[[#This Row],[Area]]= "Points d'entrée"),"Surveillance",Couts[[#This Row],[Area]])) -> Communication | I150: CT | K150: Niveau central | L150: 0
B151: Plan riposte central | C151: 130 | D151: Activity 130 | E151: Riposte | F151: Communication | G151: =IF(Couts[[#This Row],[Area]]= "", "", IF(OR(Couts[[#This Row],[Area]]= "EIR ", Couts[[#This Row],[Area]]= "Points d'entrée"),"Surveillance",Couts[[#This Row],[Area]])) -> Communication | I151: CT | K151: Niveau central | L151: 0
B152: Plan riposte central | C152: 131 | D152: Activity 131 | E152: Riposte | F152: Communication | G152: =IF(Couts[[#This Row],[Area]]= "", "", IF(OR(Couts[[#This Row],[Area]]= "EIR ", Couts[[#This Row],[Area]]= "Points d'entrée"),"Surveillance",Couts[[#This Row],[Area]])) -> Communication | I152: CT | K152: Niveau central | L152: 0
B153: Plan riposte central | C153: 132 | D153: Activity 132 | E153: Riposte | F153: Communication | G153: =IF(Couts[[#This Row],[Area]]= "", "", IF(OR(Couts[[#This Row],[Area]]= "EIR ", Couts[[#This Row],[Area]]= "Points d'entrée"),"Surveillance",Couts[[#This Row],[Area]])) -> Communication | I153: CT | K153: Niveau central | L153: 114285.7143
B154: Plan riposte central | C154: 133 | D154: Activity 133 | E154: Riposte | F154: Communication | G154: =IF(Couts[[#This Row],[Area]]= "", "", IF(OR(Couts[[#This Row],[Area]]= "EIR ", Couts[[#This Row],[Area]]= "Points d'entrée"),"Surveillance",Couts[[#This Row],[Area]])) -> Communication | I154: CT | K154: Niveau central | L154: 5238.095238
B155: Plan riposte central | C155: 134 | D155: Activity 134 | E155: Riposte | F155: Communication | G155: =IF(Couts[[#This Row],[Area]]= "", "", IF(OR(Couts[[#This Row],[Area]]= "EIR ", Couts[[#This Row],[Area]]= "Points d'entrée"),"Surveillance",Couts[[#This Row],[Area]])) -> Communication | I155: CT | K155: Niveau régional | L155: 0
B156: Plan riposte central | C156: 135 | D156: Activity 135 | E156: Riposte | F156: Communication | G156: =IF(Couts[[#This Row],[Area]]= "", "", IF(OR(Couts[[#This Row],[Area]]= "EIR ", Couts[[#This Row],[Area]]= "Points d'entrée"),"Surveillance",Couts[[#This Row],[Area]])) -> Communication | I156: CT | K156: Niveau central | L156: 734.047619
B157: Plan riposte central | C157: 136 | D157: Activity 136 | E157: Riposte | F157: Communication | G157: =IF(Couts[[#This Row],[Area]]= "", "", IF(OR(Couts[[#This Row],[Area]]= "EIR ", Couts[[#This Row],[Area]]= "Points d'entrée"),"Surveillance",Couts[[#This Row],[Area]])) -> Communication | I157: CT | K157: Niveau central | L157: 0
B158: Plan riposte central | C158: 137 | D158: Activity 137 | E158: Riposte | F158: Communication | G158: =IF(Couts[[#This Row],[Area]]= "", "", IF(OR(Couts[[#This Row],[Area]]= "EIR ", Couts[[#This Row],[Area]]= "Points d'entrée"),"Surveillance",Couts[[#This Row],[Area]])) -> Communication | I158: CT | K158: Niveau central | L158: 47619.04762
B159: Plan riposte central | C159: 138 | D159: Activity 138 | E159: Riposte | F159: Communication | G159: =IF(Couts[[#This Row],[Area]]= "", "", IF(OR(Couts[[#This Row],[Area]]= "EIR ", Couts[[#This Row],[Area]]= "Points d'entrée"),"Surveillance",Couts[[#This Row],[Area]])) -> Communication | I159: CT | K159: Niveau des districts | L159: 71794.28571
B160: Plan riposte central | C160: 139 | D160: Activity 139 | E160: Riposte | F160: Communication | G160: =IF(Couts[[#This Row],[Area]]= "", "", IF(OR(Couts[[#This Row],[Area]]= "EIR ", Couts[[#This Row],[Area]]= "Points d'entrée"),"Surveillance",Couts[[#This Row],[Area]])) -> Communication | I160: CT | K160: Niveau central | L160: 7142.857143
B161: Plan riposte central | C161: 140 | D161: Activity 140 | E161: Riposte | F161: Communication | G161: =IF(Couts[[#This Row],[Area]]= "", "", IF(OR(Couts[[#This Row],[Area]]= "EIR ", Couts[[#This Row],[Area]]= "Points d'entrée"),"Surveillance",Couts[[#This Row],[Area]])) -> Communication | I161: CT | K161: Niveau central | L161: 52380.95238
B162: Plan riposte central | C162: 141 | D162: Activity 141 | E162: Riposte | F162: Communication | G162: =IF(Couts[[#This Row],[Area]]= "", "", IF(OR(Couts[[#This Row],[Area]]= "EIR ", Couts[[#This Row],[Area]]= "Points d'entrée"),"Surveillance",Couts[[#This Row],[Area]])) -> Communication | I162: MT | K162: Niveau central | L162: 28571.42857
B163: Plan riposte central | C163: 142 | D163: Activity 142 | E163: Riposte | F163: Communication | G163: =IF(Couts[[#This Row],[Area]]= "", "", IF(OR(Couts[[#This Row],[Area]]= "EIR ", Couts[[#This Row],[Area]]= "Points d'entrée"),"Surveillance",Couts[[#This Row],[Area]])) -> Communication | I163: CT | K163: Niveau central | L163: 7142.857143
B164: Plan riposte central | C164: 143 | D164: Activity 143 | E164: Riposte | F164: Communication | G164: =IF(Couts[[#This Row],[Area]]= "", "", IF(OR(Couts[[#This Row],[Area]]= "EIR ", Couts[[#This Row],[Area]]= "Points d'entrée"),"Surveillance",Couts[[#This Row],[Area]])) -> Communication | I164: CT | K164: Niveau régional | L164: 23809.52381
B165: Plan riposte central | C165: 144 | D165: Activity 144 | E165: Riposte | F165: Communication | G165: =IF(Couts[[#This Row],[Area]]= "", "", IF(OR(Couts[[#This Row],[Area]]= "EIR ", Couts[[#This Row],[Area]]= "Points d'entrée"),"Surveillance",Couts[[#This Row],[Area]])) -> Communication | I165: CT | K165: Niveau central | L165: 8095.238095
B166: Plan riposte central | C166: 145 | D166: Activity 145 | E166: Riposte | F166: Communication | G166: =IF(Couts[[#This Row],[Area]]= "", "", IF(OR(Couts[[#This Row],[Area]]= "EIR ", Couts[[#This Row],[Area]]= "Points d'entrée"),"Surveillance",Couts[[#This Row],[Area]])) -> Communication | I166: CT | K166: Niveau des districts | L166: 5000
B167: Plan riposte central | C167: 146 | D167: Activity 146 | E167: Riposte | F167: Communication | G167: =IF(Couts[[#This Row],[Area]]= "", "", IF(OR(Couts[[#This Row],[Area]]= "EIR ", Couts[[#This Row],[Area]]= "Points d'entrée"),"Surveillance",Couts[[#This Row],[Area]])) -> Communication | I167: CT | K167: Niveau central | L167: 23809.52381
B168: Plan riposte central | C168: 147 | D168: Activity 147 | E168: Riposte | F168: Communication | G168: =IF(Couts[[#This Row],[Area]]= "", "", IF(OR(Couts[[#This Row],[Area]]= "EIR ", Couts[[#This Row],[Area]]= "Points d'entrée"),"Surveillance",Couts[[#This Row],[Area]])) -> Communication | I168: CT | K168: Niveau central | L168: 4857.142857
B169: Plan riposte central | C169: 148 | D169: Activity 148 | E169: Riposte | F169: Communication | G169: =IF(Couts[[#This Row],[Area]]= "", "", IF(OR(Couts[[#This Row],[Area]]= "EIR ", Couts[[#This Row],[Area]]= "Points d'entrée"),"Surveillance",Couts[[#This Row],[Area]])) -> Communication | I169: CT | K169: Niveau central | L169: 0
B170: Plan riposte central | C170: 149 | D170: Activity 149 | E170: Riposte | F170: Logistique | G170: =IF(Couts[[#This Row],[Area]]= "", "", IF(OR(Couts[[#This Row],[Area]]= "EIR ", Couts[[#This Row],[Area]]= "Points d'entrée"),"Surveillance",Couts[[#This Row],[Area]])) -> Logistique | I170: CT | K170: Niveau central | L170: 23012.85714
B171: Plan riposte central | C171: 150 | D171: Activity 150 | E171: Riposte | F171: Logistique | G171: =IF(Couts[[#This Row],[Area]]= "", "", IF(OR(Couts[[#This Row],[Area]]= "EIR ", Couts[[#This Row],[Area]]= "Points d'entrée"),"Surveillance",Couts[[#This Row],[Area]])) -> Logistique | I171: CT | K171: Niveau central | L171: 2595238.095
B172: Plan riposte central | C172: 151 | D172: Activity 151 | E172: Riposte | F172: PCI | G172: =IF(Couts[[#This Row],[Area]]= "", "", IF(OR(Couts[[#This Row],[Area]]= "EIR ", Couts[[#This Row],[Area]]= "Points d'entrée"),"Surveillance",Couts[[#This Row],[Area]])) -> PCI | I172: CT | K172: Niveau central | L172: 12370.66667
B173: Plan riposte central | C173: 152 | D173: Activity 152 | E173: Riposte | F173: PCI | G173: =IF(Couts[[#This Row],[Area]]= "", "", IF(OR(Couts[[#This Row],[Area]]= "EIR ", Couts[[#This Row],[Area]]= "Points d'entrée"),"Surveillance",Couts[[#This Row],[Area]])) -> PCI | I173: CT | K173: Niveau central | L173: 12370.66667
B174: Plan riposte central | C174: 153 | D174: Activity 153 | E174: Riposte | F174: PCI | G174: =IF(Couts[[#This Row],[Area]]= "", "", IF(OR(Couts[[#This Row],[Area]]= "EIR ", Couts[[#This Row],[Area]]= "Points d'entrée"),"Surveillance",Couts[[#This Row],[Area]])) -> PCI | I174: CT | K174: Niveau central | L174: 92628.09524
B175: Plan riposte central | C175: 154 | D175: Activity 154 | E175: Riposte | F175: PCI | G175: =IF(Couts[[#This Row],[Area]]= "", "", IF(OR(Couts[[#This Row],[Area]]= "EIR ", Couts[[#This Row],[Area]]= "Points d'entrée"),"Surveillance",Couts[[#This Row],[Area]])) -> PCI | I175: CT | K175: Niveau central | L175: 257190.4762
B176: Plan riposte central | C176: 155 | D176: Activity 155 | E176: Riposte | F176: PCI | G176: =IF(Couts[[#This Row],[Area]]= "", "", IF(OR(Couts[[#This Row],[Area]]= "EIR ", Couts[[#This Row],[Area]]= "Points d'entrée"),"Surveillance",Couts[[#This Row],[Area]])) -> PCI | I176: CT | K176: Niveau central | L176: 3433431.429
B177: Plan riposte central | C177: 156 | D177: Activity 156 | E177: Riposte | F177: PCI | G177: =IF(Couts[[#This Row],[Area]]= "", "", IF(OR(Couts[[#This Row],[Area]]= "EIR ", Couts[[#This Row],[Area]]= "Points d'entrée"),"Surveillance",Couts[[#This Row],[Area]])) -> PCI | I177: CT | K177: Niveau central | L177: 10714285.71
B178: Plan riposte central | C178: 157 | D178: Activity 157 | E178: Riposte | F178: PCI | G178: =IF(Couts[[#This Row],[Area]]= "", "", IF(OR(Couts[[#This Row],[Area]]= "EIR ", Couts[[#This Row],[Area]]= "Points d'entrée"),"Surveillance",Couts[[#This Row],[Area]])) -> PCI | I178: CT | K178: Niveau central | L178: 6080000
B179: Plan riposte central | C179: 158 | D179: Activity 158 | E179: Riposte | F179: PCI | G179: =IF(Couts[[#This Row],[Area]]= "", "", IF(OR(Couts[[#This Row],[Area]]= "EIR ", Couts[[#This Row],[Area]]= "Points d'entrée"),"Surveillance",Couts[[#This Row],[Area]])) -> PCI | I179: CT | K179: Niveau central | L179: 309523.8095
B180: Plan riposte central | C180: 159 | D180: Activity 159 | E180: Riposte | F180: PCI | G180: =IF(Couts[[#This Row],[Area]]= "", "", IF(OR(Couts[[#This Row],[Area]]= "EIR ", Couts[[#This Row],[Area]]= "Points d'entrée"),"Surveillance",Couts[[#This Row],[Area]])) -> PCI | I180: CT | K180: Niveau central | L180: 1372380.952
B181: Plan riposte central | C181: 160 | D181: Activity 160 | E181: Riposte | F181: PCI | G181: =IF(Couts[[#This Row],[Area]]= "", "", IF(OR(Couts[[#This Row],[Area]]= "EIR ", Couts[[#This Row],[Area]]= "Points d'entrée"),"Surveillance",Couts[[#This Row],[Area]])) -> PCI | I181: CT | K181: Niveau central | L181: 107142.8571
B182: Plan riposte central | C182: 161 | D182: Activity 161 | E182: Riposte | F182: PCI | G182: =IF(Couts[[#This Row],[Area]]= "", "", IF(OR(Couts[[#This Row],[Area]]= "EIR ", Couts[[#This Row],[Area]]= "Points d'entrée"),"Surveillance",Couts[[#This Row],[Area]])) -> PCI | I182: CT | K182: Niveau central | L182: 690476.1905
B183: Plan riposte central | C183: 162 | D183: Activity 162 | E183: Riposte | F183: PCI | G183: =IF(Couts[[#This Row],[Area]]= "", "", IF(OR(Couts[[#This Row],[Area]]= "EIR ", Couts[[#This Row],[Area]]= "Points d'entrée"),"Surveillance",Couts[[#This Row],[Area]])) -> PCI | I183: CT | K183: Niveau central | L183: 14285.71429
B184: Plan riposte central | C184: 163 | D184: Activity 163 | E184: Riposte | F184: PCI | G184: =IF(Couts[[#This Row],[Area]]= "", "", IF(OR(Couts[[#This Row],[Area]]= "EIR ", Couts[[#This Row],[Area]]= "Points d'entrée"),"Surveillance",Couts[[#This Row],[Area]])) -> PCI | I184: CT | K184: Niveau central | L184: 2098.095238
B185: Plan riposte central | C185: 164 | D185: Activity 164 | E185: Riposte | F185: PCI | G185: =IF(Couts[[#This Row],[Area]]= "", "", IF(OR(Couts[[#This Row],[Area]]= "EIR ", Couts[[#This Row],[Area]]= "Points d'entrée"),"Surveillance",Couts[[#This Row],[Area]])) -> PCI | I185: CT | K185: Niveau central | L185: 0
B186: Plan riposte central | C186: 165 | D186: Activity 165 | E186: Riposte | F186: PCI | G186: =IF(Couts[[#This Row],[Area]]= "", "", IF(OR(Couts[[#This Row],[Area]]= "EIR ", Couts[[#This Row],[Area]]= "Points d'entrée"),"Surveillance",Couts[[#This Row],[Area]])) -> PCI | I186: CT | K186: Niveau central | L186: 380952.381
B187: Plan riposte central | C187: 166 | D187: Activity 166 | E187: Riposte | F187: PCI | G187: =IF(Couts[[#This Row],[Area]]= "", "", IF(OR(Couts[[#This Row],[Area]]= "EIR ", Couts[[#This Row],[Area]]= "Points d'entrée"),"Surveillance",Couts[[#This Row],[Area]])) -> PCI | I187: CT | K187: Niveau central | L187: 71428.57143
B188: Plan riposte central | C188: 167 | D188: Activity 167 | E188: Riposte | F188: PCI | G188: =IF(Couts[[#This Row],[Area]]= "", "", IF(OR(Couts[[#This Row],[Area]]= "EIR ", Couts[[#This Row],[Area]]= "Points d'entrée"),"Surveillance",Couts[[#This Row],[Area]])) -> PCI | I188: CT | K188: Niveau central | L188: 0
B189: Plan riposte central | C189: 168 | D189: Activity 168 | E189: Riposte | F189: PCI | G189: =IF(Couts[[#This Row],[Area]]= "", "", IF(OR(Couts[[#This Row],[Area]]= "EIR ", Couts[[#This Row],[Area]]= "Points d'entrée"),"Surveillance",Couts[[#This Row],[Area]])) -> PCI | I189: CT | K189: Niveau central | L189: 119047.619
B190: Plan riposte central | C190: 169 | D190: Activity 169 | E190: Riposte | F190: PCI | G190: =IF(Couts[[#This Row],[Area]]= "", "", IF(OR(Couts[[#This Row],[Area]]= "EIR ", Couts[[#This Row],[Area]]= "Points d'entrée"),"Surveillance",Couts[[#This Row],[Area]])) -> PCI | I190: CT | K190: Niveau central | L190: 33333.33333
B191: Plan riposte central | C191: 170 | D191: Activity 170 | E191: Riposte | F191: PCI | G191: =IF(Couts[[#This Row],[Area]]= "", "", IF(OR(Couts[[#This Row],[Area]]= "EIR ", Couts[[#This Row],[Area]]= "Points d'entrée"),"Surveillance",Couts[[#This Row],[Area]])) -> PCI | I191: CT | K191: Niveau central | L191: 8095.238095
B192: Plan riposte central | C192: 171 | D192: Activity 171 | E192: Riposte | F192: PCI | G192: =IF(Couts[[#This Row],[Area]]= "", "", IF(OR(Couts[[#This Row],[Area]]= "EIR ", Couts[[#This Row],[Area]]= "Points d'entrée"),"Surveillance",Couts[[#This Row],[Area]])) -> PCI | I192: CT | K192: Niveau central | L192: 1045.714286
B193: Plan riposte central | C193: 172 | D193: Activity 172 | E193: Riposte | F193: Prise en charge des cas | G193: =IF(Couts[[#This Row],[Area]]= "", "", IF(OR(Couts[[#This Row],[Area]]= "EIR ", Couts[[#This Row],[Area]]= "Points d'entrée"),"Surveillance",Couts[[#This Row],[Area]])) -> Prise en charge des cas | I193: CT | K193: Niveau régional | L193: 0
B194: Plan riposte central | C194: 173 | D194: Activity 173 | E194: Riposte | F194: Prise en charge des cas | G194: =IF(Couts[[#This Row],[Area]]= "", "", IF(OR(Couts[[#This Row],[Area]]= "EIR ", Couts[[#This Row],[Area]]= "Points d'entrée"),"Surveillance",Couts[[#This Row],[Area]])) -> Prise en charge des cas | I194: CT | K194: Niveau central | L194: 2000571.429
B195: Plan riposte central | C195: 174 | D195: Activity 174 | E195: Riposte | F195: Prise en charge des cas | G195: =IF(Couts[[#This Row],[Area]]= "", "", IF(OR(Couts[[#This Row],[Area]]= "EIR ", Couts[[#This Row],[Area]]= "Points d'entrée"),"Surveillance",Couts[[#This Row],[Area]])) -> Prise en charge des cas | I195: CT | K195: Niveau central | L195: 16942857.14
B196: Plan riposte central | C196: 175 | D196: Activity 175 | E196: Riposte | F196: Prise en charge des cas | G196: =IF(Couts[[#This Row],[Area]]= "", "", IF(OR(Couts[[#This Row],[Area]]= "EIR ", Couts[[#This Row],[Area]]= "Points d'entrée"),"Surveillance",Couts[[#This Row],[Area]])) -> Prise en charge des cas | I196: CT | K196: Niveau régional | L196: 11904.7619
B197: Plan riposte central | C197: 176 | D197: Activity 176 | E197: Riposte | F197: Prise en charge des cas | G197: =IF(Couts[[#This Row],[Area]]= "", "", IF(OR(Couts[[#This Row],[Area]]= "EIR ", Couts[[#This Row],[Area]]= "Points d'entrée"),"Surveillance",Couts[[#This Row],[Area]])) -> Prise en charge des cas | I197: CT | K197: Niveau central | L197: 5000000
B198: Plan riposte central | C198: 177 | D198: Activity 177 | E198: Riposte | F198: Prise en charge des cas | G198: =IF(Couts[[#This Row],[Area]]= "", "", IF(OR(Couts[[#This Row],[Area]]= "EIR ", Couts[[#This Row],[Area]]= "Points d'entrée"),"Surveillance",Couts[[#This Row],[Area]])) -> Prise en charge des cas | I198: CT | K198: Niveau central | L198: 0
B199: Plan riposte central | C199: 178 | D199: Activity 178 | E199: Riposte | F199: Prise en charge des cas | G199: =IF(Couts[[#This Row],[Area]]= "", "", IF(OR(Couts[[#This Row],[Area]]= "EIR ", Couts[[#This Row],[Area]]= "Points d'entrée"),"Surveillance",Couts[[#This Row],[Area]])) -> Prise en charge des cas | I199: CT | K199: Niveau central | L199: 3333333.333
B200: Plan riposte central | C200: 179 | D200: Activity 179 | E200: Riposte | F200: Prise en charge des cas | G200: =IF(Couts[[#This Row],[Area]]= "", "", IF(OR(Couts[[#This Row],[Area]]= "EIR ", Couts[[#This Row],[Area]]= "Points d'entrée"),"Surveillance",Couts[[#This Row],[Area]])) -> Prise en charge des cas | I200: CT | K200: Niveau central | L200: 458.0952381
B201: Plan riposte central | C201: 180 | D201: Activity 180 | E201: Riposte | F201: Prise en charge des cas | G201: =IF(Couts[[#This Row],[Area]]= "", "", IF(OR(Couts[[#This Row],[Area]]= "EIR ", Couts[[#This Row],[Area]]= "Points d'entrée"),"Surveillance",Couts[[#This Row],[Area]])) -> Prise en charge des cas | I201: CT | K201: Niveau central | L201: 14333.33333
B202: Plan riposte central | C202: 181 | D202: Activity 181 | E202: Riposte | F202: Prise en charge des cas | G202: =IF(Couts[[#This Row],[Area]]= "", "", IF(OR(Couts[[#This Row],[Area]]= "EIR ", Couts[[#This Row],[Area]]= "Points d'entrée"),"Surveillance",Couts[[#This Row],[Area]])) -> Prise en charge des cas | I202: CT | K202: Niveau central | L202: 150000
B203: Plan riposte central | C203: 182 | D203: Activity 182 | E203: Riposte | F203: Prise en charge des cas | G203: =IF(Couts[[#This Row],[Area]]= "", "", IF(OR(Couts[[#This Row],[Area]]= "EIR ", Couts[[#This Row],[Area]]= "Points d'entrée"),"Surveillance",Couts[[#This Row],[Area]])) -> Prise en charge des cas | I203: CT | K203: Niveau central | L203: 18571.42857
... 58 more rows

Sheet Financial Resources
U2: Sub-total (Amount committed) | W2: Sub-total (Amount disbursed)
U3: =SUBTOTAL(9,ResFin[Amount committed]) -> 14466110.77 | W3: =SUBTOTAL(9,ResFin[Amount disbursed]) -> 7233055.387
C4: Sources of financement | F4: Mapping to response plan | Q4: Distribution Geographique | T4: Funding amount
C5: Funding Source | D5: Organisation/Funder | E5: Funds origin | F5: N° Activity | G5: Objective | H5: Response Plan | I5: Activities | J5: Area | K5: Activities RSS | L5: Timeframe | M5: Priority | N5: Phase | O5: Area - revised | P5: Cost category | Q5: Level of implementation | R5: Region | S5: District | T5: Type of support | U5: Amount committed | V5: Date of commitment | W5: Amount disbursed | X5: Date of disbursement | Y5: Days
B6: Ces lignes ont été créées pour des raisons analytiques afin de permettre toutes les options aux Tableaux croisés dynamiques. (à masquer) | C6: Financement Public | D6: Etat | E6: Réorientation des fonds | F6: Resources Non-ciblé | G6: =IF($F6="","",IF(ISNA(MATCH(F6,Costs!$C$22:$C$504,0)),(IF(F6="","",IF(ISNA(MATCH(F6,Costs!$C$10:$C$20,0)),"Non-ciblé","Ciblé sur un domaine"))),"Ciblé sur une activité")) -> Non-ciblé | H6: =IF($F6="","",(INDEX(Costs!$B$9:$B$504, MATCH('Financial Resources'!F6,Costs!$C$9:$C$504,0)))) -> Plan riposte central | I6: =IF($F6="","",(INDEX(Costs!$D$9:$D$504, MATCH(ResFin[[#This Row],[N° Activity]],Costs!$C$9:$C$504,0)))) -> Contribution en resources non-ciblée à allouer à un domain ou une activité spécifique dans le plan de riposte | J6: =IF($F6="","",(INDEX(Costs!$F$9:$F$504, MATCH(ResFin[[#This Row],[N° Activity]],Costs!$C$9:$C$504,0)))) -> 0 | K6: =IF(F6="","",(INDEX(Costs!$H$9:$H$504, MATCH(ResFin[[#This Row],[N° Activity]],Costs!$C$9:$C$504,0)))) -> 0 | L6: =IF($F6="","",(INDEX(Costs!$I$9:$I$504, MATCH(ResFin[[#This Row],[N° Activity]],Costs!$C$9:$C$504,0)))) -> 0 | M6: =IF($F6="","",(INDEX(Costs!$J$9:$J$504, MATCH(ResFin[[#This Row],[N° Activity]],Costs!$C$9:$C$504,0)))) -> 0 | O6: =IF(ResFin[[#This Row],[Area]]= "", "", IF(OR(ResFin[[#This Row],[Area]]= "EIR ", ResFin[[#This Row],[Area]]= "Points d'entrée"),"Surveillance",ResFin[[#This Row],[Area]])) -> 0 | Q6: Niveau central | T6: =IF($F6="","", "Ressources financières") -> Ressources financières | Y6: =ResFin[[#This Row],[Date of disbursement]]-ResFin[[#This Row],[Date of commitment]] -> 0
C7: Financement PTF | E7: Nouveau prêt | F7: Ciblé (Communication) | G7: =IF($F7="","",IF(ISNA(MATCH(F7,Costs!$C$22:$C$504,0)),(IF(F7="","",IF(ISNA(MATCH(F7,Costs!$C$10:$C$20,0)),"Non-ciblé","Ciblé sur un domaine"))),"Ciblé sur une activité")) -> Ciblé sur un domaine | H7: =IF($F7="","",(INDEX(Costs!$B$9:$B$504, MATCH('Financial Resources'!F7,Costs!$C$9:$C$504,0)))) -> Plan riposte central | I7: =IF($F7="","",(INDEX(Costs!$D$9:$D$504, MATCH(ResFin[[#This Row],[N° Activity]],Costs!$C$9:$C$504,0)))) -> Contribution ciblée sur le domaine de Communication à allouer à une activité spécifique dans le plan de riposte | J7: =IF($F7="","",(INDEX(Costs!$F$9:$F$504, MATCH(ResFin[[#This Row],[N° Activity]],Costs!$C$9:$C$504,0)))) -> Communication | K7: =IF(F7="","",(INDEX(Costs!$H$9:$H$504, MATCH(ResFin[[#This Row],[N° Activity]],Costs!$C$9:$C$504,0)))) -> 0 | L7: =IF($F7="","",(INDEX(Costs!$I$9:$I$504, MATCH(ResFin[[#This Row],[N° Activity]],Costs!$C$9:$C$504,0)))) -> 0 | M7: =IF($F7="","",(INDEX(Costs!$J$9:$J$504, MATCH(ResFin[[#This Row],[N° Activity]],Costs!$C$9:$C$504,0)))) -> 0 | O7: =IF(ResFin[[#This Row],[Area]]= "", "", IF(OR(ResFin[[#This Row],[Area]]= "EIR ", ResFin[[#This Row],[Area]]= "Points d'entrée"),"Surveillance",ResFin[[#This Row],[Area]])) -> Communication | Q7: Niveau régional | T7: Ressources financières | Y7: =ResFin[[#This Row],[Date of disbursement]]-ResFin[[#This Row],[Date of commitment]] -> 0
C8: Don privé ou de particuliers | E8: Nouveau don | F8: Ciblé (Coordination) | G8: =IF($F8="","",IF(ISNA(MATCH(F8,Costs!$C$22:$C$504,0)),(IF(F8="","",IF(ISNA(MATCH(F8,Costs!$C$10:$C$20,0)),"Non-ciblé","Ciblé sur un domaine"))),"Ciblé sur une activité")) -> Ciblé sur un domaine | H8: =IF($F8="","",(INDEX(Costs!$B$9:$B$504, MATCH('Financial Resources'!F8,Costs!$C$9:$C$504,0)))) -> Plan riposte central | I8: =IF($F8="","",(INDEX(Costs!$D$9:$D$504, MATCH(ResFin[[#This Row],[N° Activity]],Costs!$C$9:$C$504,0)))) -> Contribution ciblée sur le domaine de Coordination à allouer à une activité spécifique dans le plan de riposte | J8: =IF($F8="","",(INDEX(Costs!$F$9:$F$504, MATCH(ResFin[[#This Row],[N° Activity]],Costs!$C$9:$C$504,0)))) -> Coordination | K8: =IF(F8="","",(INDEX(Costs!$H$9:$H$504, MATCH(ResFin[[#This Row],[N° Activity]],Costs!$C$9:$C$504,0)))) -> 0 | L8: =IF($F8="","",(INDEX(Costs!$I$9:$I$504, MATCH(ResFin[[#This Row],[N° Activity]],Costs!$C$9:$C$504,0)))) -> 0 | M8: =IF($F8="","",(INDEX(Costs!$J$9:$J$504, MATCH(ResFin[[#This Row],[N° Activity]],Costs!$C$9:$C$504,0)))) -> 0 | O8: =IF(ResFin[[#This Row],[Area]]= "", "", IF(OR(ResFin[[#This Row],[Area]]= "EIR ", ResFin[[#This Row],[Area]]= "Points d'entrée"),"Surveillance",ResFin[[#This Row],[Area]])) -> Coordination | Q8: Niveau des districts | T8: Ressources financières | Y8: =ResFin[[#This Row],[Date of disbursement]]-ResFin[[#This Row],[Date of commitment]] -> 0
E9: Don privé ou de particuliers | F9: Ciblé (EIR) | G9: =IF($F9="","",IF(ISNA(MATCH(F9,Costs!$C$22:$C$504,0)),(IF(F9="","",IF(ISNA(MATCH(F9,Costs!$C$10:$C$20,0)),"Non-ciblé","Ciblé sur un domaine"))),"Ciblé sur une activité")) -> Ciblé sur un domaine | H9: =IF($F9="","",(INDEX(Costs!$B$9:$B$504, MATCH('Financial Resources'!F9,Costs!$C$9:$C$504,0)))) -> Plan riposte central | I9: =IF($F9="","",(INDEX(Costs!$D$9:$D$504, MATCH(ResFin[[#This Row],[N° Activity]],Costs!$C$9:$C$504,0)))) -> Contribution ciblée sur le domaine de EIR à allouer à une activité spécifique dans le plan de riposte | J9: =IF($F9="","",(INDEX(Costs!$F$9:$F$504, MATCH(ResFin[[#This Row],[N° Activity]],Costs!$C$9:$C$504,0)))) -> EIR | K9: =IF(F9="","",(INDEX(Costs!$H$9:$H$504, MATCH(ResFin[[#This Row],[N° Activity]],Costs!$C$9:$C$504,0)))) -> 0 | L9: =IF($F9="","",(INDEX(Costs!$I$9:$I$504, MATCH(ResFin[[#This Row],[N° Activity]],Costs!$C$9:$C$504,0)))) -> 0 | M9: =IF($F9="","",(INDEX(Costs!$J$9:$J$504, MATCH(ResFin[[#This Row],[N° Activity]],Costs!$C$9:$C$504,0)))) -> 0 | O9: =IF(ResFin[[#This Row],[Area]]= "", "", IF(OR(ResFin[[#This Row],[Area]]= "EIR ", ResFin[[#This Row],[Area]]= "Points d'entrée"),"Surveillance",ResFin[[#This Row],[Area]])) -> Surveillance | Q9: n'est pas spécifié | T9: Ressources financières | Y9: =ResFin[[#This Row],[Date of disbursement]]-ResFin[[#This Row],[Date of commitment]] -> 0
C10: Financement Public | D10: Etat | G10: Ciblé sur une activité | H10: =IF($F10="","",(INDEX(Costs!$B$9:$B$504, MATCH('Financial Resources'!F10,Costs!$C$9:$C$504,0)))) ->  | I10: =IF($F10="","",(INDEX(Costs!$D$9:$D$504, MATCH(ResFin[[#This Row],[N° Activity]],Costs!$C$9:$C$504,0)))) ->  | J10: =IF($F10="","",(INDEX(Costs!$F$9:$F$504, MATCH(ResFin[[#This Row],[N° Activity]],Costs!$C$9:$C$504,0)))) ->  | K10: =IF(F10="","",(INDEX(Costs!$H$9:$H$504, MATCH(ResFin[[#This Row],[N° Activity]],Costs!$C$9:$C$504,0)))) ->  | L10: =IF($F10="","",(INDEX(Costs!$I$9:$I$504, MATCH(ResFin[[#This Row],[N° Activity]],Costs!$C$9:$C$504,0)))) ->  | M10: =IF($F10="","",(INDEX(Costs!$J$9:$J$504, MATCH(ResFin[[#This Row],[N° Activity]],Costs!$C$9:$C$504,0)))) ->  | O10: =IF(ResFin[[#This Row],[Area]]= "", "", IF(OR(ResFin[[#This Row],[Area]]= "EIR ", ResFin[[#This Row],[Area]]= "Points d'entrée"),"Surveillance",ResFin[[#This Row],[Area]])) ->  | Y10: =ResFin[[#This Row],[Date of disbursement]]-ResFin[[#This Row],[Date of commitment]] -> 0
C11: Financement PTF | F11: Resources Non-ciblé | G11: =IF($F11="","",IF(ISNA(MATCH(F11,Costs!$C$22:$C$504,0)),(IF(F11="","",IF(ISNA(MATCH(F11,Costs!$C$10:$C$20,0)),"Non-ciblé","Ciblé sur un domaine"))),"Ciblé sur une activité")) -> Non-ciblé | H11: =IF($F11="","",(INDEX(Costs!$B$9:$B$504, MATCH('Financial Resources'!F11,Costs!$C$9:$C$504,0)))) -> Plan riposte central | I11: =IF($F11="","",(INDEX(Costs!$D$9:$D$504, MATCH(ResFin[[#This Row],[N° Activity]],Costs!$C$9:$C$504,0)))) -> Contribution en resources non-ciblée à allouer à un domain ou une activité spécifique dans le plan de riposte | J11: =IF($F11="","",(INDEX(Costs!$F$9:$F$504, MATCH(ResFin[[#This Row],[N° Activity]],Costs!$C$9:$C$504,0)))) -> 0 | K11: =IF(F11="","",(INDEX(Costs!$H$9:$H$504, MATCH(ResFin[[#This Row],[N° Activity]],Costs!$C$9:$C$504,0)))) -> 0 | L11: =IF($F11="","",(INDEX(Costs!$I$9:$I$504, MATCH(ResFin[[#This Row],[N° Activity]],Costs!$C$9:$C$504,0)))) -> 0 | M11: =IF($F11="","",(INDEX(Costs!$J$9:$J$504, MATCH(ResFin[[#This Row],[N° Activity]],Costs!$C$9:$C$504,0)))) -> 0 | O11: =IF(ResFin[[#This Row],[Area]]= "", "", IF(OR(ResFin[[#This Row],[Area]]= "EIR ", ResFin[[#This Row],[Area]]= "Points d'entrée"),"Surveillance",ResFin[[#This Row],[Area]])) -> 0 | T11: Ressources financières | Y11: =ResFin[[#This Row],[Date of disbursement]]-ResFin[[#This Row],[Date of commitment]] -> 0
C12: Don privé ou de particuliers | G12: Ciblé sur une activité | H12: =IF($F12="","",(INDEX(Costs!$B$9:$B$504, MATCH('Financial Resources'!F12,Costs!$C$9:$C$504,0)))) ->  | I12: =IF($F12="","",(INDEX(Costs!$D$9:$D$504, MATCH(ResFin[[#This Row],[N° Activity]],Costs!$C$9:$C$504,0)))) ->  | J12: =IF($F12="","",(INDEX(Costs!$F$9:$F$504, MATCH(ResFin[[#This Row],[N° Activity]],Costs!$C$9:$C$504,0)))) ->  | K12: =IF(F12="","",(INDEX(Costs!$H$9:$H$504, MATCH(ResFin[[#This Row],[N° Activity]],Costs!$C$9:$C$504,0)))) ->  | L12: =IF($F12="","",(INDEX(Costs!$I$9:$I$504, MATCH(ResFin[[#This Row],[N° Activity]],Costs!$C$9:$C$504,0)))) ->  | M12: =IF($F12="","",(INDEX(Costs!$J$9:$J$504, MATCH(ResFin[[#This Row],[N° Activity]],Costs!$C$9:$C$504,0)))) ->  | O12: =IF(ResFin[[#This Row],[Area]]= "", "", IF(OR(ResFin[[#This Row],[Area]]= "EIR ", ResFin[[#This Row],[Area]]= "Points d'entrée"),"Surveillance",ResFin[[#This Row],[Area]])) ->  | Y12: =ResFin[[#This Row],[Date of disbursement]]-ResFin[[#This Row],[Date of commitment]] -> 0
F13: Ciblé (Labratoire) | G13: =IF($F13="","",IF(ISNA(MATCH(F13,Costs!$C$22:$C$504,0)),(IF(F13="","",IF(ISNA(MATCH(F13,Costs!$C$10:$C$20,0)),"Non-ciblé","Ciblé sur un domaine"))),"Ciblé sur une activité")) -> Ciblé sur un domaine | H13: =IF($F13="","",(INDEX(Costs!$B$9:$B$504, MATCH('Financial Resources'!F13,Costs!$C$9:$C$504,0)))) -> Plan riposte central | I13: =IF($F13="","",(INDEX(Costs!$D$9:$D$504, MATCH(ResFin[[#This Row],[N° Activity]],Costs!$C$9:$C$504,0)))) -> Contribution ciblée sur le domaine de Laboratoire à allouer à une activité spécifique dans le plan de riposte | J13: =IF($F13="","",(INDEX(Costs!$F$9:$F$504, MATCH(ResFin[[#This Row],[N° Activity]],Costs!$C$9:$C$504,0)))) -> Laboratoire | K13: =IF(F13="","",(INDEX(Costs!$H$9:$H$504, MATCH(ResFin[[#This Row],[N° Activity]],Costs!$C$9:$C$504,0)))) -> 0 | L13: =IF($F13="","",(INDEX(Costs!$I$9:$I$504, MATCH(ResFin[[#This Row],[N° Activity]],Costs!$C$9:$C$504,0)))) -> 0 | M13: =IF($F13="","",(INDEX(Costs!$J$9:$J$504, MATCH(ResFin[[#This Row],[N° Activity]],Costs!$C$9:$C$504,0)))) -> 0 | O13: =IF(ResFin[[#This Row],[Area]]= "", "", IF(OR(ResFin[[#This Row],[Area]]= "EIR ", ResFin[[#This Row],[Area]]= "Points d'entrée"),"Surveillance",ResFin[[#This Row],[Area]])) -> Laboratoire | T13: Ressources financières | Y13: =ResFin[[#This Row],[Date of disbursement]]-ResFin[[#This Row],[Date of commitment]] -> 0
F14: Ciblé (Logistique) | G14: =IF($F14="","",IF(ISNA(MATCH(F14,Costs!$C$22:$C$504,0)),(IF(F14="","",IF(ISNA(MATCH(F14,Costs!$C$10:$C$20,0)),"Non-ciblé","Ciblé sur un domaine"))),"Ciblé sur une activité")) -> Ciblé sur un domaine | H14: =IF($F14="","",(INDEX(Costs!$B$9:$B$504, MATCH('Financial Resources'!F14,Costs!$C$9:$C$504,0)))) -> Plan riposte central | I14: =IF($F14="","",(INDEX(Costs!$D$9:$D$504, MATCH(ResFin[[#This Row],[N° Activity]],Costs!$C$9:$C$504,0)))) -> Contribution ciblée sur le domaine de Logistique à allouer à une activité spécifique dans le plan de riposte | J14: =IF($F14="","",(INDEX(Costs!$F$9:$F$504, MATCH(ResFin[[#This Row],[N° Activity]],Costs!$C$9:$C$504,0)))) -> Logistique | K14: =IF(F14="","",(INDEX(Costs!$H$9:$H$504, MATCH(ResFin[[#This Row],[N° Activity]],Costs!$C$9:$C$504,0)))) -> 0 | L14: =IF($F14="","",(INDEX(Costs!$I$9:$I$504, MATCH(ResFin[[#This Row],[N° Activity]],Costs!$C$9:$C$504,0)))) -> 0 | M14: =IF($F14="","",(INDEX(Costs!$J$9:$J$504, MATCH(ResFin[[#This Row],[N° Activity]],Costs!$C$9:$C$504,0)))) -> 0 | O14: =IF(ResFin[[#This Row],[Area]]= "", "", IF(OR(ResFin[[#This Row],[Area]]= "EIR ", ResFin[[#This Row],[Area]]= "Points d'entrée"),"Surveillance",ResFin[[#This Row],[Area]])) -> Logistique | T14: Ressources financières | Y14: =ResFin[[#This Row],[Date of disbursement]]-ResFin[[#This Row],[Date of commitment]] -> 0
F15: Ciblé (PCI) | G15: =IF($F15="","",IF(ISNA(MATCH(F15,Costs!$C$22:$C$504,0)),(IF(F15="","",IF(ISNA(MATCH(F15,Costs!$C$10:$C$20,0)),"Non-ciblé","Ciblé sur un domaine"))),"Ciblé sur une activité")) -> Ciblé sur un domaine | H15: =IF($F15="","",(INDEX(Costs!$B$9:$B$504, MATCH('Financial Resources'!F15,Costs!$C$9:$C$504,0)))) -> Plan riposte central | I15: =IF($F15="","",(INDEX(Costs!$D$9:$D$504, MATCH(ResFin[[#This Row],[N° Activity]],Costs!$C$9:$C$504,0)))) -> Contribution ciblée sur le domaine de PCI à allouer à une activité spécifique dans le plan de riposte | J15: =IF($F15="","",(INDEX(Costs!$F$9:$F$504, MATCH(ResFin[[#This Row],[N° Activity]],Costs!$C$9:$C$504,0)))) -> PCI | K15: =IF(F15="","",(INDEX(Costs!$H$9:$H$504, MATCH(ResFin[[#This Row],[N° Activity]],Costs!$C$9:$C$504,0)))) -> 0 | L15: =IF($F15="","",(INDEX(Costs!$I$9:$I$504, MATCH(ResFin[[#This Row],[N° Activity]],Costs!$C$9:$C$504,0)))) -> 0 | M15: =IF($F15="","",(INDEX(Costs!$J$9:$J$504, MATCH(ResFin[[#This Row],[N° Activity]],Costs!$C$9:$C$504,0)))) -> 0 | O15: =IF(ResFin[[#This Row],[Area]]= "", "", IF(OR(ResFin[[#This Row],[Area]]= "EIR ", ResFin[[#This Row],[Area]]= "Points d'entrée"),"Surveillance",ResFin[[#This Row],[Area]])) -> PCI | T15: Ressources financières | Y15: =ResFin[[#This Row],[Date of disbursement]]-ResFin[[#This Row],[Date of commitment]] -> 0
F16: Ciblé (Points d'entrée) | G16: =IF($F16="","",IF(ISNA(MATCH(F16,Costs!$C$22:$C$504,0)),(IF(F16="","",IF(ISNA(MATCH(F16,Costs!$C$10:$C$20,0)),"Non-ciblé","Ciblé sur un domaine"))),"Ciblé sur une activité")) -> Ciblé sur un domaine | H16: =IF($F16="","",(INDEX(Costs!$B$9:$B$504, MATCH('Financial Resources'!F16,Costs!$C$9:$C$504,0)))) -> Plan riposte central | I16: =IF($F16="","",(INDEX(Costs!$D$9:$D$504, MATCH(ResFin[[#This Row],[N° Activity]],Costs!$C$9:$C$504,0)))) -> Contribution ciblée sur le domaine de Points d'entrée à allouer à une activité spécifique dans le plan de riposte | J16: =IF($F16="","",(INDEX(Costs!$F$9:$F$504, MATCH(ResFin[[#This Row],[N° Activity]],Costs!$C$9:$C$504,0)))) -> Points d'entrée | K16: =IF(F16="","",(INDEX(Costs!$H$9:$H$504, MATCH(ResFin[[#This Row],[N° Activity]],Costs!$C$9:$C$504,0)))) -> 0 | L16: =IF($F16="","",(INDEX(Costs!$I$9:$I$504, MATCH(ResFin[[#This Row],[N° Activity]],Costs!$C$9:$C$504,0)))) -> 0 | M16: =IF($F16="","",(INDEX(Costs!$J$9:$J$504, MATCH(ResFin[[#This Row],[N° Activity]],Costs!$C$9:$C$504,0)))) -> 0 | O16: =IF(ResFin[[#This Row],[Area]]= "", "", IF(OR(ResFin[[#This Row],[Area]]= "EIR ", ResFin[[#This Row],[Area]]= "Points d'entrée"),"Surveillance",ResFin[[#This Row],[Area]])) -> Surveillance | T16: Ressources financières | Y16: =ResFin[[#This Row],[Date of disbursement]]-ResFin[[#This Row],[Date of commitment]] -> 0
F17: Ciblé (Prise en charge des cas) | G17: =IF($F17="","",IF(ISNA(MATCH(F17,Costs!$C$22:$C$504,0)),(IF(F17="","",IF(ISNA(MATCH(F17,Costs!$C$10:$C$20,0)),"Non-ciblé","Ciblé sur un domaine"))),"Ciblé sur une activité")) -> Ciblé sur un domaine | H17: =IF($F17="","",(INDEX(Costs!$B$9:$B$504, MATCH('Financial Resources'!F17,Costs!$C$9:$C$504,0)))) -> Plan riposte central | I17: =IF($F17="","",(INDEX(Costs!$D$9:$D$504, MATCH(ResFin[[#This Row],[N° Activity]],Costs!$C$9:$C$504,0)))) -> Contribution ciblée sur le domaine de Prise en charge des cas à allouer à une activité spécifique dans le plan de riposte | J17: =IF($F17="","",(INDEX(Costs!$F$9:$F$504, MATCH(ResFin[[#This Row],[N° Activity]],Costs!$C$9:$C$504,0)))) -> Prise en charge des cas | K17: =IF(F17="","",(INDEX(Costs!$H$9:$H$504, MATCH(ResFin[[#This Row],[N° Activity]],Costs!$C$9:$C$504,0)))) -> 0 | L17: =IF($F17="","",(INDEX(Costs!$I$9:$I$504, MATCH(ResFin[[#This Row],[N° Activity]],Costs!$C$9:$C$504,0)))) -> 0 | M17: =IF($F17="","",(INDEX(Costs!$J$9:$J$504, MATCH(ResFin[[#This Row],[N° Activity]],Costs!$C$9:$C$504,0)))) -> 0 | O17: =IF(ResFin[[#This Row],[Area]]= "", "", IF(OR(ResFin[[#This Row],[Area]]= "EIR ", ResFin[[#This Row],[Area]]= "Points d'entrée"),"Surveillance",ResFin[[#This Row],[Area]])) -> Prise en charge des cas | T17: Ressources financières | Y17: =ResFin[[#This Row],[Date of disbursement]]-ResFin[[#This Row],[Date of commitment]] -> 0
C18: Financement Public | D18: ETat | F18: Ciblé (Recherche) | G18: =IF($F18="","",IF(ISNA(MATCH(F18,Costs!$C$22:$C$504,0)),(IF(F18="","",IF(ISNA(MATCH(F18,Costs!$C$10:$C$20,0)),"Non-ciblé","Ciblé sur un domaine"))),"Ciblé sur une activité")) -> Ciblé sur un domaine | H18: =IF($F18="","",(INDEX(Costs!$B$9:$B$504, MATCH('Financial Resources'!F18,Costs!$C$9:$C$504,0)))) -> Plan riposte central | I18: =IF($F18="","",(INDEX(Costs!$D$9:$D$504, MATCH(ResFin[[#This Row],[N° Activity]],Costs!$C$9:$C$504,0)))) -> Contribution ciblée sur le domaine de Recherche à allouer à une activité spécifique dans le plan de riposte | J18: =IF($F18="","",(INDEX(Costs!$F$9:$F$504, MATCH(ResFin[[#This Row],[N° Activity]],Costs!$C$9:$C$504,0)))) -> Recherche | K18: =IF(F18="","",(INDEX(Costs!$H$9:$H$504, MATCH(ResFin[[#This Row],[N° Activity]],Costs!$C$9:$C$504,0)))) -> 0 | L18: =IF($F18="","",(INDEX(Costs!$I$9:$I$504, MATCH(ResFin[[#This Row],[N° Activity]],Costs!$C$9:$C$504,0)))) -> 0 | M18: =IF($F18="","",(INDEX(Costs!$J$9:$J$504, MATCH(ResFin[[#This Row],[N° Activity]],Costs!$C$9:$C$504,0)))) -> 0 | O18: =IF(ResFin[[#This Row],[Area]]= "", "", IF(OR(ResFin[[#This Row],[Area]]= "EIR ", ResFin[[#This Row],[Area]]= "Points d'entrée"),"Surveillance",ResFin[[#This Row],[Area]])) -> Recherche | T18: Ressources financières | Y18: =ResFin[[#This Row],[Date of disbursement]]-ResFin[[#This Row],[Date of commitment]] -> 0
C19: Don privé ou de particuliers | F19: Ciblé (Communication) | G19: =IF($F19="","",IF(ISNA(MATCH(F19,Costs!$C$22:$C$504,0)),(IF(F19="","",IF(ISNA(MATCH(F19,Costs!$C$10:$C$20,0)),"Non-ciblé","Ciblé sur un domaine"))),"Ciblé sur une activité")) -> Ciblé sur un domaine | H19: =IF($F19="","",(INDEX(Costs!$B$9:$B$504, MATCH('Financial Resources'!F19,Costs!$C$9:$C$504,0)))) -> Plan riposte central | I19: =IF($F19="","",(INDEX(Costs!$D$9:$D$504, MATCH(ResFin[[#This Row],[N° Activity]],Costs!$C$9:$C$504,0)))) -> Contribution ciblée sur le domaine de Communication à allouer à une activité spécifique dans le plan de riposte | J19: =IF($F19="","",(INDEX(Costs!$F$9:$F$504, MATCH(ResFin[[#This Row],[N° Activity]],Costs!$C$9:$C$504,0)))) -> Communication | K19: =IF(F19="","",(INDEX(Costs!$H$9:$H$504, MATCH(ResFin[[#This Row],[N° Activity]],Costs!$C$9:$C$504,0)))) -> 0 | L19: =IF($F19="","",(INDEX(Costs!$I$9:$I$504, MATCH(ResFin[[#This Row],[N° Activity]],Costs!$C$9:$C$504,0)))) -> 0 | M19: =IF($F19="","",(INDEX(Costs!$J$9:$J$504, MATCH(ResFin[[#This Row],[N° Activity]],Costs!$C$9:$C$504,0)))) -> 0 | O19: =IF(ResFin[[#This Row],[Area]]= "", "", IF(OR(ResFin[[#This Row],[Area]]= "EIR ", ResFin[[#This Row],[Area]]= "Points d'entrée"),"Surveillance",ResFin[[#This Row],[Area]])) -> Communication | T19: =IF($F19="","", "Ressources financières") -> Ressources financières | Y19: =ResFin[[#This Row],[Date of disbursement]]-ResFin[[#This Row],[Date of commitment]] -> 0
C20: Don privé ou de particuliers | F20: Ciblé (EIR) | G20: =IF($F20="","",IF(ISNA(MATCH(F20,Costs!$C$22:$C$504,0)),(IF(F20="","",IF(ISNA(MATCH(F20,Costs!$C$10:$C$20,0)),"Non-ciblé","Ciblé sur un domaine"))),"Ciblé sur une activité")) -> Ciblé sur un domaine | H20: =IF($F20="","",(INDEX(Costs!$B$9:$B$504, MATCH('Financial Resources'!F20,Costs!$C$9:$C$504,0)))) -> Plan riposte central | I20: =IF($F20="","",(INDEX(Costs!$D$9:$D$504, MATCH(ResFin[[#This Row],[N° Activity]],Costs!$C$9:$C$504,0)))) -> Contribution ciblée sur le domaine de EIR à allouer à une activité spécifique dans le plan de riposte | J20: =IF($F20="","",(INDEX(Costs!$F$9:$F$504, MATCH(ResFin[[#This Row],[N° Activity]],Costs!$C$9:$C$504,0)))) -> EIR | K20: =IF(F20="","",(INDEX(Costs!$H$9:$H$504, MATCH(ResFin[[#This Row],[N° Activity]],Costs!$C$9:$C$504,0)))) -> 0 | L20: =IF($F20="","",(INDEX(Costs!$I$9:$I$504, MATCH(ResFin[[#This Row],[N° Activity]],Costs!$C$9:$C$504,0)))) -> 0 | M20: =IF($F20="","",(INDEX(Costs!$J$9:$J$504, MATCH(ResFin[[#This Row],[N° Activity]],Costs!$C$9:$C$504,0)))) -> 0 | O20: =IF(ResFin[[#This Row],[Area]]= "", "", IF(OR(ResFin[[#This Row],[Area]]= "EIR ", ResFin[[#This Row],[Area]]= "Points d'entrée"),"Surveillance",ResFin[[#This Row],[Area]])) -> Surveillance | T20: Ressources financières | Y20: =ResFin[[#This Row],[Date of disbursement]]-ResFin[[#This Row],[Date of commitment]] -> 0
C21: Don privé ou de particuliers | F21: Ciblé (Labratoire) | G21: =IF($F21="","",IF(ISNA(MATCH(F21,Costs!$C$22:$C$504,0)),(IF(F21="","",IF(ISNA(MATCH(F21,Costs!$C$10:$C$20,0)),"Non-ciblé","Ciblé sur un domaine"))),"Ciblé sur une activité")) -> Ciblé sur un domaine | H21: =IF($F21="","",(INDEX(Costs!$B$9:$B$504, MATCH('Financial Resources'!F21,Costs!$C$9:$C$504,0)))) -> Plan riposte central | I21: =IF($F21="","",(INDEX(Costs!$D$9:$D$504, MATCH(ResFin[[#This Row],[N° Activity]],Costs!$C$9:$C$504,0)))) -> Contribution ciblée sur le domaine de Laboratoire à allouer à une activité spécifique dans le plan de riposte | J21: =IF($F21="","",(INDEX(Costs!$F$9:$F$504, MATCH(ResFin[[#This Row],[N° Activity]],Costs!$C$9:$C$504,0)))) -> Laboratoire | K21: =IF(F21="","",(INDEX(Costs!$H$9:$H$504, MATCH(ResFin[[#This Row],[N° Activity]],Costs!$C$9:$C$504,0)))) -> 0 | L21: =IF($F21="","",(INDEX(Costs!$I$9:$I$504, MATCH(ResFin[[#This Row],[N° Activity]],Costs!$C$9:$C$504,0)))) -> 0 | M21: =IF($F21="","",(INDEX(Costs!$J$9:$J$504, MATCH(ResFin[[#This Row],[N° Activity]],Costs!$C$9:$C$504,0)))) -> 0 | O21: =IF(ResFin[[#This Row],[Area]]= "", "", IF(OR(ResFin[[#This Row],[Area]]= "EIR ", ResFin[[#This Row],[Area]]= "Points d'entrée"),"Surveillance",ResFin[[#This Row],[Area]])) -> Laboratoire | T21: Ressources financières | Y21: =ResFin[[#This Row],[Date of disbursement]]-ResFin[[#This Row],[Date of commitment]] -> 0
C22: Don privé ou de particuliers | F22: Ciblé (Logistique) | G22: =IF($F22="","",IF(ISNA(MATCH(F22,Costs!$C$22:$C$504,0)),(IF(F22="","",IF(ISNA(MATCH(F22,Costs!$C$10:$C$20,0)),"Non-ciblé","Ciblé sur un domaine"))),"Ciblé sur une activité")) -> Ciblé sur un domaine | H22: =IF($F22="","",(INDEX(Costs!$B$9:$B$504, MATCH('Financial Resources'!F22,Costs!$C$9:$C$504,0)))) -> Plan riposte central | I22: =IF($F22="","",(INDEX(Costs!$D$9:$D$504, MATCH(ResFin[[#This Row],[N° Activity]],Costs!$C$9:$C$504,0)))) -> Contribution ciblée sur le domaine de Logistique à allouer à une activité spécifique dans le plan de riposte | J22: =IF($F22="","",(INDEX(Costs!$F$9:$F$504, MATCH(ResFin[[#This Row],[N° Activity]],Costs!$C$9:$C$504,0)))) -> Logistique | K22: =IF(F22="","",(INDEX(Costs!$H$9:$H$504, MATCH(ResFin[[#This Row],[N° Activity]],Costs!$C$9:$C$504,0)))) -> 0 | L22: =IF($F22="","",(INDEX(Costs!$I$9:$I$504, MATCH(ResFin[[#This Row],[N° Activity]],Costs!$C$9:$C$504,0)))) -> 0 | M22: =IF($F22="","",(INDEX(Costs!$J$9:$J$504, MATCH(ResFin[[#This Row],[N° Activity]],Costs!$C$9:$C$504,0)))) -> 0 | O22: =IF(ResFin[[#This Row],[Area]]= "", "", IF(OR(ResFin[[#This Row],[Area]]= "EIR ", ResFin[[#This Row],[Area]]= "Points d'entrée"),"Surveillance",ResFin[[#This Row],[Area]])) -> Logistique | T22: Ressources financières | Y22: =ResFin[[#This Row],[Date of disbursement]]-ResFin[[#This Row],[Date of commitment]] -> 0
C23: Don privé ou de particuliers | F23: Ciblé (PCI) | G23: =IF($F23="","",IF(ISNA(MATCH(F23,Costs!$C$22:$C$504,0)),(IF(F23="","",IF(ISNA(MATCH(F23,Costs!$C$10:$C$20,0)),"Non-ciblé","Ciblé sur un domaine"))),"Ciblé sur une activité")) -> Ciblé sur un domaine | H23: =IF($F23="","",(INDEX(Costs!$B$9:$B$504, MATCH('Financial Resources'!F23,Costs!$C$9:$C$504,0)))) -> Plan riposte central | I23: =IF($F23="","",(INDEX(Costs!$D$9:$D$504, MATCH(ResFin[[#This Row],[N° Activity]],Costs!$C$9:$C$504,0)))) -> Contribution ciblée sur le domaine de PCI à allouer à une activité spécifique dans le plan de riposte | J23: =IF($F23="","",(INDEX(Costs!$F$9:$F$504, MATCH(ResFin[[#This Row],[N° Activity]],Costs!$C$9:$C$504,0)))) -> PCI | K23: =IF(F23="","",(INDEX(Costs!$H$9:$H$504, MATCH(ResFin[[#This Row],[N° Activity]],Costs!$C$9:$C$504,0)))) -> 0 | L23: =IF($F23="","",(INDEX(Costs!$I$9:$I$504, MATCH(ResFin[[#This Row],[N° Activity]],Costs!$C$9:$C$504,0)))) -> 0 | M23: =IF($F23="","",(INDEX(Costs!$J$9:$J$504, MATCH(ResFin[[#This Row],[N° Activity]],Costs!$C$9:$C$504,0)))) -> 0 | O23: =IF(ResFin[[#This Row],[Area]]= "", "", IF(OR(ResFin[[#This Row],[Area]]= "EIR ", ResFin[[#This Row],[Area]]= "Points d'entrée"),"Surveillance",ResFin[[#This Row],[Area]])) -> PCI | T23: Ressources financières | Y23: =ResFin[[#This Row],[Date of disbursement]]-ResFin[[#This Row],[Date of commitment]] -> 0
C24: Don privé ou de particuliers | F24: Ciblé (Points d'entrée) | G24: =IF($F24="","",IF(ISNA(MATCH(F24,Costs!$C$22:$C$504,0)),(IF(F24="","",IF(ISNA(MATCH(F24,Costs!$C$10:$C$20,0)),"Non-ciblé","Ciblé sur un domaine"))),"Ciblé sur une activité")) -> Ciblé sur un domaine | H24: =IF($F24="","",(INDEX(Costs!$B$9:$B$504, MATCH('Financial Resources'!F24,Costs!$C$9:$C$504,0)))) -> Plan riposte central | I24: =IF($F24="","",(INDEX(Costs!$D$9:$D$504, MATCH(ResFin[[#This Row],[N° Activity]],Costs!$C$9:$C$504,0)))) -> Contribution ciblée sur le domaine de Points d'entrée à allouer à une activité spécifique dans le plan de riposte | J24: =IF($F24="","",(INDEX(Costs!$F$9:$F$504, MATCH(ResFin[[#This Row],[N° Activity]],Costs!$C$9:$C$504,0)))) -> Points d'entrée | K24: =IF(F24="","",(INDEX(Costs!$H$9:$H$504, MATCH(ResFin[[#This Row],[N° Activity]],Costs!$C$9:$C$504,0)))) -> 0 | L24: =IF($F24="","",(INDEX(Costs!$I$9:$I$504, MATCH(ResFin[[#This Row],[N° Activity]],Costs!$C$9:$C$504,0)))) -> 0 | M24: =IF($F24="","",(INDEX(Costs!$J$9:$J$504, MATCH(ResFin[[#This Row],[N° Activity]],Costs!$C$9:$C$504,0)))) -> 0 | O24: =IF(ResFin[[#This Row],[Area]]= "", "", IF(OR(ResFin[[#This Row],[Area]]= "EIR ", ResFin[[#This Row],[Area]]= "Points d'entrée"),"Surveillance",ResFin[[#This Row],[Area]])) -> Surveillance | T24: Ressources financières | Y24: =ResFin[[#This Row],[Date of disbursement]]-ResFin[[#This Row],[Date of commitment]] -> 0
C25: Don privé ou de particuliers | F25: Ciblé (Prise en charge des cas) | G25: =IF($F25="","",IF(ISNA(MATCH(F25,Costs!$C$22:$C$504,0)),(IF(F25="","",IF(ISNA(MATCH(F25,Costs!$C$10:$C$20,0)),"Non-ciblé","Ciblé sur un domaine"))),"Ciblé sur une activité")) -> Ciblé sur un domaine | H25: =IF($F25="","",(INDEX(Costs!$B$9:$B$504, MATCH('Financial Resources'!F25,Costs!$C$9:$C$504,0)))) -> Plan riposte central | I25: =IF($F25="","",(INDEX(Costs!$D$9:$D$504, MATCH(ResFin[[#This Row],[N° Activity]],Costs!$C$9:$C$504,0)))) -> Contribution ciblée sur le domaine de Prise en charge des cas à allouer à une activité spécifique dans le plan de riposte | J25: =IF($F25="","",(INDEX(Costs!$F$9:$F$504, MATCH(ResFin[[#This Row],[N° Activity]],Costs!$C$9:$C$504,0)))) -> Prise en charge des cas | K25: =IF(F25="","",(INDEX(Costs!$H$9:$H$504, MATCH(ResFin[[#This Row],[N° Activity]],Costs!$C$9:$C$504,0)))) -> 0 | L25: =IF($F25="","",(INDEX(Costs!$I$9:$I$504, MATCH(ResFin[[#This Row],[N° Activity]],Costs!$C$9:$C$504,0)))) -> 0 | M25: =IF($F25="","",(INDEX(Costs!$J$9:$J$504, MATCH(ResFin[[#This Row],[N° Activity]],Costs!$C$9:$C$504,0)))) -> 0 | O25: =IF(ResFin[[#This Row],[Area]]= "", "", IF(OR(ResFin[[#This Row],[Area]]= "EIR ", ResFin[[#This Row],[Area]]= "Points d'entrée"),"Surveillance",ResFin[[#This Row],[Area]])) -> Prise en charge des cas | T25: Ressources financières | Y25: =ResFin[[#This Row],[Date of disbursement]]-ResFin[[#This Row],[Date of commitment]] -> 0
C26: Don privé ou de particuliers | F26: Ciblé (Recherche) | G26: =IF($F26="","",IF(ISNA(MATCH(F26,Costs!$C$22:$C$504,0)),(IF(F26="","",IF(ISNA(MATCH(F26,Costs!$C$10:$C$20,0)),"Non-ciblé","Ciblé sur un domaine"))),"Ciblé sur une activité")) -> Ciblé sur un domaine | H26: =IF($F26="","",(INDEX(Costs!$B$9:$B$504, MATCH('Financial Resources'!F26,Costs!$C$9:$C$504,0)))) -> Plan riposte central | I26: =IF($F26="","",(INDEX(Costs!$D$9:$D$504, MATCH(ResFin[[#This Row],[N° Activity]],Costs!$C$9:$C$504,0)))) -> Contribution ciblée sur le domaine de Recherche à allouer à une activité spécifique dans le plan de riposte | J26: =IF($F26="","",(INDEX(Costs!$F$9:$F$504, MATCH(ResFin[[#This Row],[N° Activity]],Costs!$C$9:$C$504,0)))) -> Recherche | K26: =IF(F26="","",(INDEX(Costs!$H$9:$H$504, MATCH(ResFin[[#This Row],[N° Activity]],Costs!$C$9:$C$504,0)))) -> 0 | L26: =IF($F26="","",(INDEX(Costs!$I$9:$I$504, MATCH(ResFin[[#This Row],[N° Activity]],Costs!$C$9:$C$504,0)))) -> 0 | M26: =IF($F26="","",(INDEX(Costs!$J$9:$J$504, MATCH(ResFin[[#This Row],[N° Activity]],Costs!$C$9:$C$504,0)))) -> 0 | O26: =IF(ResFin[[#This Row],[Area]]= "", "", IF(OR(ResFin[[#This Row],[Area]]= "EIR ", ResFin[[#This Row],[Area]]= "Points d'entrée"),"Surveillance",ResFin[[#This Row],[Area]])) -> Recherche | T26: Ressources financières | Y26: =ResFin[[#This Row],[Date of disbursement]]-ResFin[[#This Row],[Date of commitment]] -> 0
C27: Don privé ou de particuliers | F27: Ciblé (Sécurité) | G27: =IF($F27="","",IF(ISNA(MATCH(F27,Costs!$C$22:$C$504,0)),(IF(F27="","",IF(ISNA(MATCH(F27,Costs!$C$10:$C$20,0)),"Non-ciblé","Ciblé sur un domaine"))),"Ciblé sur une activité")) -> Ciblé sur un domaine | H27: =IF($F27="","",(INDEX(Costs!$B$9:$B$504, MATCH('Financial Resources'!F27,Costs!$C$9:$C$504,0)))) -> Plan riposte central | I27: =IF($F27="","",(INDEX(Costs!$D$9:$D$504, MATCH(ResFin[[#This Row],[N° Activity]],Costs!$C$9:$C$504,0)))) -> Contribution ciblée sur le domaine de Sécurité à allouer à une activité spécifique dans le plan de riposte | J27: =IF($F27="","",(INDEX(Costs!$F$9:$F$504, MATCH(ResFin[[#This Row],[N° Activity]],Costs!$C$9:$C$504,0)))) -> Sécurité | K27: =IF(F27="","",(INDEX(Costs!$H$9:$H$504, MATCH(ResFin[[#This Row],[N° Activity]],Costs!$C$9:$C$504,0)))) -> 0 | L27: =IF($F27="","",(INDEX(Costs!$I$9:$I$504, MATCH(ResFin[[#This Row],[N° Activity]],Costs!$C$9:$C$504,0)))) -> 0 | M27: =IF($F27="","",(INDEX(Costs!$J$9:$J$504, MATCH(ResFin[[#This Row],[N° Activity]],Costs!$C$9:$C$504,0)))) -> 0 | O27: =IF(ResFin[[#This Row],[Area]]= "", "", IF(OR(ResFin[[#This Row],[Area]]= "EIR ", ResFin[[#This Row],[Area]]= "Points d'entrée"),"Surveillance",ResFin[[#This Row],[Area]])) -> Sécurité | T27: Ressources financières | Y27: =ResFin[[#This Row],[Date of disbursement]]-ResFin[[#This Row],[Date of commitment]] -> 0
C28: Don privé ou de particuliers | F28: Ciblé (Surveillance) | G28: =IF($F28="","",IF(ISNA(MATCH(F28,Costs!$C$22:$C$504,0)),(IF(F28="","",IF(ISNA(MATCH(F28,Costs!$C$10:$C$20,0)),"Non-ciblé","Ciblé sur un domaine"))),"Ciblé sur une activité")) -> Ciblé sur un domaine | H28: =IF($F28="","",(INDEX(Costs!$B$9:$B$504, MATCH('Financial Resources'!F28,Costs!$C$9:$C$504,0)))) -> Plan riposte central | I28: =IF($F28="","",(INDEX(Costs!$D$9:$D$504, MATCH(ResFin[[#This Row],[N° Activity]],Costs!$C$9:$C$504,0)))) -> Contribution ciblée sur le domaine de Surveillance à allouer à une activité spécifique dans le plan de riposte | J28: =IF($F28="","",(INDEX(Costs!$F$9:$F$504, MATCH(ResFin[[#This Row],[N° Activity]],Costs!$C$9:$C$504,0)))) -> Surveillance | K28: =IF(F28="","",(INDEX(Costs!$H$9:$H$504, MATCH(ResFin[[#This Row],[N° Activity]],Costs!$C$9:$C$504,0)))) -> 0 | L28: =IF($F28="","",(INDEX(Costs!$I$9:$I$504, MATCH(ResFin[[#This Row],[N° Activity]],Costs!$C$9:$C$504,0)))) -> 0 | M28: =IF($F28="","",(INDEX(Costs!$J$9:$J$504, MATCH(ResFin[[#This Row],[N° Activity]],Costs!$C$9:$C$504,0)))) -> 0 | O28: =IF(ResFin[[#This Row],[Area]]= "", "", IF(OR(ResFin[[#This Row],[Area]]= "EIR ", ResFin[[#This Row],[Area]]= "Points d'entrée"),"Surveillance",ResFin[[#This Row],[Area]])) -> Surveillance | T28: Ressources financières | Y28: =ResFin[[#This Row],[Date of disbursement]]-ResFin[[#This Row],[Date of commitment]] -> 0
F29: Ciblé (Sécurité) | G29: =IF($F29="","",IF(ISNA(MATCH(F29,Costs!$C$22:$C$504,0)),(IF(F29="","",IF(ISNA(MATCH(F29,Costs!$C$10:$C$20,0)),"Non-ciblé","Ciblé sur un domaine"))),"Ciblé sur une activité")) -> Ciblé sur un domaine | H29: =IF($F29="","",(INDEX(Costs!$B$9:$B$504, MATCH('Financial Resources'!F29,Costs!$C$9:$C$504,0)))) -> Plan riposte central | I29: =IF($F29="","",(INDEX(Costs!$D$9:$D$504, MATCH(ResFin[[#This Row],[N° Activity]],Costs!$C$9:$C$504,0)))) -> Contribution ciblée sur le domaine de Sécurité à allouer à une activité spécifique dans le plan de riposte | J29: =IF($F29="","",(INDEX(Costs!$F$9:$F$504, MATCH(ResFin[[#This Row],[N° Activity]],Costs!$C$9:$C$504,0)))) -> Sécurité | K29: =IF(F29="","",(INDEX(Costs!$H$9:$H$504, MATCH(ResFin[[#This Row],[N° Activity]],Costs!$C$9:$C$504,0)))) -> 0 | L29: =IF($F29="","",(INDEX(Costs!$I$9:$I$504, MATCH(ResFin[[#This Row],[N° Activity]],Costs!$C$9:$C$504,0)))) -> 0 | M29: =IF($F29="","",(INDEX(Costs!$J$9:$J$504, MATCH(ResFin[[#This Row],[N° Activity]],Costs!$C$9:$C$504,0)))) -> 0 | O29: =IF(ResFin[[#This Row],[Area]]= "", "", IF(OR(ResFin[[#This Row],[Area]]= "EIR ", ResFin[[#This Row],[Area]]= "Points d'entrée"),"Surveillance",ResFin[[#This Row],[Area]])) -> Sécurité | T29: Ressources financières | Y29: =ResFin[[#This Row],[Date of disbursement]]-ResFin[[#This Row],[Date of commitment]] -> 0
F30: Ciblé (Surveillance) | G30: =IF($F30="","",IF(ISNA(MATCH(F30,Costs!$C$22:$C$504,0)),(IF(F30="","",IF(ISNA(MATCH(F30,Costs!$C$10:$C$20,0)),"Non-ciblé","Ciblé sur un domaine"))),"Ciblé sur une activité")) -> Ciblé sur un domaine | H30: =IF($F30="","",(INDEX(Costs!$B$9:$B$504, MATCH('Financial Resources'!F30,Costs!$C$9:$C$504,0)))) -> Plan riposte central | I30: =IF($F30="","",(INDEX(Costs!$D$9:$D$504, MATCH(ResFin[[#This Row],[N° Activity]],Costs!$C$9:$C$504,0)))) -> Contribution ciblée sur le domaine de Surveillance à allouer à une activité spécifique dans le plan de riposte | J30: =IF($F30="","",(INDEX(Costs!$F$9:$F$504, MATCH(ResFin[[#This Row],[N° Activity]],Costs!$C$9:$C$504,0)))) -> Surveillance | K30: =IF(F30="","",(INDEX(Costs!$H$9:$H$504, MATCH(ResFin[[#This Row],[N° Activity]],Costs!$C$9:$C$504,0)))) -> 0 | L30: =IF($F30="","",(INDEX(Costs!$I$9:$I$504, MATCH(ResFin[[#This Row],[N° Activity]],Costs!$C$9:$C$504,0)))) -> 0 | M30: =IF($F30="","",(INDEX(Costs!$J$9:$J$504, MATCH(ResFin[[#This Row],[N° Activity]],Costs!$C$9:$C$504,0)))) -> 0 | O30: =IF(ResFin[[#This Row],[Area]]= "", "", IF(OR(ResFin[[#This Row],[Area]]= "EIR ", ResFin[[#This Row],[Area]]= "Points d'entrée"),"Surveillance",ResFin[[#This Row],[Area]])) -> Surveillance | T30: Ressources financières | Y30: =ResFin[[#This Row],[Date of disbursement]]-ResFin[[#This Row],[Date of commitment]] -> 0
C31: Financement Public | D31: Etat | F31: Ciblé (Coordination) | G31: =IF($F31="","",IF(ISNA(MATCH(F31,Costs!$C$22:$C$504,0)),(IF(F31="","",IF(ISNA(MATCH(F31,Costs!$C$10:$C$20,0)),"Non-ciblé","Ciblé sur un domaine"))),"Ciblé sur une activité")) -> Ciblé sur un domaine | H31: =IF($F31="","",(INDEX(Costs!$B$9:$B$504, MATCH('Financial Resources'!F31,Costs!$C$9:$C$504,0)))) -> Plan riposte central | I31: =IF($F31="","",(INDEX(Costs!$D$9:$D$504, MATCH(ResFin[[#This Row],[N° Activity]],Costs!$C$9:$C$504,0)))) -> Contribution ciblée sur le domaine de Coordination à allouer à une activité spécifique dans le plan de riposte | J31: =IF($F31="","",(INDEX(Costs!$F$9:$F$504, MATCH(ResFin[[#This Row],[N° Activity]],Costs!$C$9:$C$504,0)))) -> Coordination | K31: =IF(F31="","",(INDEX(Costs!$H$9:$H$504, MATCH(ResFin[[#This Row],[N° Activity]],Costs!$C$9:$C$504,0)))) -> 0 | L31: =IF($F31="","",(INDEX(Costs!$I$9:$I$504, MATCH(ResFin[[#This Row],[N° Activity]],Costs!$C$9:$C$504,0)))) -> 0 | M31: =IF($F31="","",(INDEX(Costs!$J$9:$J$504, MATCH(ResFin[[#This Row],[N° Activity]],Costs!$C$9:$C$504,0)))) -> 0 | N31: Riposte | O31: =IF(ResFin[[#This Row],[Area]]= "", "", IF(OR(ResFin[[#This Row],[Area]]= "EIR ", ResFin[[#This Row],[Area]]= "Points d'entrée"),"Surveillance",ResFin[[#This Row],[Area]])) -> Coordination | Q31: Niveau central | T31: Ressources financières | U31: 119047.619 | W31: 59523.80952 | Y31: =ResFin[[#This Row],[Date of disbursement]]-ResFin[[#This Row],[Date of commitment]] -> 0
C32: Financement Public | D32: Etat | F32: Ciblé (Communication) | G32: =IF($F32="","",IF(ISNA(MATCH(F32,Costs!$C$22:$C$504,0)),(IF(F32="","",IF(ISNA(MATCH(F32,Costs!$C$10:$C$20,0)),"Non-ciblé","Ciblé sur un domaine"))),"Ciblé sur une activité")) -> Ciblé sur un domaine | H32: =IF($F32="","",(INDEX(Costs!$B$9:$B$504, MATCH('Financial Resources'!F32,Costs!$C$9:$C$504,0)))) -> Plan riposte central | I32: =IF($F32="","",(INDEX(Costs!$D$9:$D$504, MATCH(ResFin[[#This Row],[N° Activity]],Costs!$C$9:$C$504,0)))) -> Contribution ciblée sur le domaine de Communication à allouer à une activité spécifique dans le plan de riposte | J32: =IF($F32="","",(INDEX(Costs!$F$9:$F$504, MATCH(ResFin[[#This Row],[N° Activity]],Costs!$C$9:$C$504,0)))) -> Communication | K32: =IF(F32="","",(INDEX(Costs!$H$9:$H$504, MATCH(ResFin[[#This Row],[N° Activity]],Costs!$C$9:$C$504,0)))) -> 0 | L32: =IF($F32="","",(INDEX(Costs!$I$9:$I$504, MATCH(ResFin[[#This Row],[N° Activity]],Costs!$C$9:$C$504,0)))) -> 0 | M32: =IF($F32="","",(INDEX(Costs!$J$9:$J$504, MATCH(ResFin[[#This Row],[N° Activity]],Costs!$C$9:$C$504,0)))) -> 0 | N32: Riposte | O32: =IF(ResFin[[#This Row],[Area]]= "", "", IF(OR(ResFin[[#This Row],[Area]]= "EIR ", ResFin[[#This Row],[Area]]= "Points d'entrée"),"Surveillance",ResFin[[#This Row],[Area]])) -> Communication | Q32: Niveau central | T32: =IF($F32="","", "Ressources financières") -> Ressources financières | U32: 297619.0476 | W32: 148809.5238 | Y32: =ResFin[[#This Row],[Date of disbursement]]-ResFin[[#This Row],[Date of commitment]] -> 0
C33: Financement Public | D33: Etat | F33: Ciblé (EIR) | G33: =IF($F33="","",IF(ISNA(MATCH(F33,Costs!$C$22:$C$504,0)),(IF(F33="","",IF(ISNA(MATCH(F33,Costs!$C$10:$C$20,0)),"Non-ciblé","Ciblé sur un domaine"))),"Ciblé sur une activité")) -> Ciblé sur un domaine | H33: =IF($F33="","",(INDEX(Costs!$B$9:$B$504, MATCH('Financial Resources'!F33,Costs!$C$9:$C$504,0)))) -> Plan riposte central | I33: =IF($F33="","",(INDEX(Costs!$D$9:$D$504, MATCH(ResFin[[#This Row],[N° Activity]],Costs!$C$9:$C$504,0)))) -> Contribution ciblée sur le domaine de EIR à allouer à une activité spécifique dans le plan de riposte | J33: =IF($F33="","",(INDEX(Costs!$F$9:$F$504, MATCH(ResFin[[#This Row],[N° Activity]],Costs!$C$9:$C$504,0)))) -> EIR | K33: =IF(F33="","",(INDEX(Costs!$H$9:$H$504, MATCH(ResFin[[#This Row],[N° Activity]],Costs!$C$9:$C$504,0)))) -> 0 | L33: =IF($F33="","",(INDEX(Costs!$I$9:$I$504, MATCH(ResFin[[#This Row],[N° Activity]],Costs!$C$9:$C$504,0)))) -> 0 | M33: =IF($F33="","",(INDEX(Costs!$J$9:$J$504, MATCH(ResFin[[#This Row],[N° Activity]],Costs!$C$9:$C$504,0)))) -> 0 | N33: Riposte | O33: =IF(ResFin[[#This Row],[Area]]= "", "", IF(OR(ResFin[[#This Row],[Area]]= "EIR ", ResFin[[#This Row],[Area]]= "Points d'entrée"),"Surveillance",ResFin[[#This Row],[Area]])) -> Surveillance | Q33: Niveau central | T33: =IF($F33="","", "Ressources financières") -> Ressources financières | U33: 35714.28571 | W33: 17857.14286 | Y33: =ResFin[[#This Row],[Date of disbursement]]-ResFin[[#This Row],[Date of commitment]] -> 0
C34: Financement Public | D34: Etat | F34: Ciblé (Logistique) | G34: =IF($F34="","",IF(ISNA(MATCH(F34,Costs!$C$22:$C$504,0)),(IF(F34="","",IF(ISNA(MATCH(F34,Costs!$C$10:$C$20,0)),"Non-ciblé","Ciblé sur un domaine"))),"Ciblé sur une activité")) -> Ciblé sur un domaine | H34: =IF($F34="","",(INDEX(Costs!$B$9:$B$504, MATCH('Financial Resources'!F34,Costs!$C$9:$C$504,0)))) -> Plan riposte central | I34: =IF($F34="","",(INDEX(Costs!$D$9:$D$504, MATCH(ResFin[[#This Row],[N° Activity]],Costs!$C$9:$C$504,0)))) -> Contribution ciblée sur le domaine de Logistique à allouer à une activité spécifique dans le plan de riposte | J34: =IF($F34="","",(INDEX(Costs!$F$9:$F$504, MATCH(ResFin[[#This Row],[N° Activity]],Costs!$C$9:$C$504,0)))) -> Logistique | K34: =IF(F34="","",(INDEX(Costs!$H$9:$H$504, MATCH(ResFin[[#This Row],[N° Activity]],Costs!$C$9:$C$504,0)))) -> 0 | L34: =IF($F34="","",(INDEX(Costs!$I$9:$I$504, MATCH(ResFin[[#This Row],[N° Activity]],Costs!$C$9:$C$504,0)))) -> 0 | M34: =IF($F34="","",(INDEX(Costs!$J$9:$J$504, MATCH(ResFin[[#This Row],[N° Activity]],Costs!$C$9:$C$504,0)))) -> 0 | N34: Riposte | O34: =IF(ResFin[[#This Row],[Area]]= "", "", IF(OR(ResFin[[#This Row],[Area]]= "EIR ", ResFin[[#This Row],[Area]]= "Points d'entrée"),"Surveillance",ResFin[[#This Row],[Area]])) -> Logistique | Q34: Niveau central | T34: Ressources financières | U34: 3059551.643 | W34: 1529775.821 | Y34: =ResFin[[#This Row],[Date of disbursement]]-ResFin[[#This Row],[Date of commitment]] -> 0
C35: Financement Public | D35: Etat | F35: Ciblé (Prise en charge des cas) | G35: =IF($F35="","",IF(ISNA(MATCH(F35,Costs!$C$22:$C$504,0)),(IF(F35="","",IF(ISNA(MATCH(F35,Costs!$C$10:$C$20,0)),"Non-ciblé","Ciblé sur un domaine"))),"Ciblé sur une activité")) -> Ciblé sur un domaine | H35: =IF($F35="","",(INDEX(Costs!$B$9:$B$504, MATCH('Financial Resources'!F35,Costs!$C$9:$C$504,0)))) -> Plan riposte central | I35: =IF($F35="","",(INDEX(Costs!$D$9:$D$504, MATCH(ResFin[[#This Row],[N° Activity]],Costs!$C$9:$C$504,0)))) -> Contribution ciblée sur le domaine de Prise en charge des cas à allouer à une activité spécifique dans le plan de riposte | J35: =IF($F35="","",(INDEX(Costs!$F$9:$F$504, MATCH(ResFin[[#This Row],[N° Activity]],Costs!$C$9:$C$504,0)))) -> Prise en charge des cas | K35: =IF(F35="","",(INDEX(Costs!$H$9:$H$504, MATCH(ResFin[[#This Row],[N° Activity]],Costs!$C$9:$C$504,0)))) -> 0 | L35: =IF($F35="","",(INDEX(Costs!$I$9:$I$504, MATCH(ResFin[[#This Row],[N° Activity]],Costs!$C$9:$C$504,0)))) -> 0 | M35: =IF($F35="","",(INDEX(Costs!$J$9:$J$504, MATCH(ResFin[[#This Row],[N° Activity]],Costs!$C$9:$C$504,0)))) -> 0 | N35: Riposte | O35: =IF(ResFin[[#This Row],[Area]]= "", "", IF(OR(ResFin[[#This Row],[Area]]= "EIR ", ResFin[[#This Row],[Area]]= "Points d'entrée"),"Surveillance",ResFin[[#This Row],[Area]])) -> Prise en charge des cas | Q35: Niveau central | T35: =IF($F35="","", "Ressources financières") -> Ressources financières | U35: 714285.7143 | W35: 357142.8571 | Y35: =ResFin[[#This Row],[Date of disbursement]]-ResFin[[#This Row],[Date of commitment]] -> 0
C36: Financement PTF | D36: PTF8 | E36: Réorientation des fonds | F36: 41 | G36: =IF($F36="","",IF(ISNA(MATCH(F36,Costs!$C$22:$C$504,0)),(IF(F36="","",IF(ISNA(MATCH(F36,Costs!$C$10:$C$20,0)),"Non-ciblé","Ciblé sur un domaine"))),"Ciblé sur une activité")) -> Ciblé sur une activité | H36: =IF($F36="","",(INDEX(Costs!$B$9:$B$504, MATCH('Financial Resources'!F36,Costs!$C$9:$C$504,0)))) -> Plan riposte central | I36: =IF($F36="","",(INDEX(Costs!$D$9:$D$504, MATCH(ResFin[[#This Row],[N° Activity]],Costs!$C$9:$C$504,0)))) -> Activity 41 | J36: =IF($F36="","",(INDEX(Costs!$F$9:$F$504, MATCH(ResFin[[#This Row],[N° Activity]],Costs!$C$9:$C$504,0)))) -> Logistique | K36: =IF(F36="","",(INDEX(Costs!$H$9:$H$504, MATCH(ResFin[[#This Row],[N° Activity]],Costs!$C$9:$C$504,0)))) -> 0 | L36: =IF($F36="","",(INDEX(Costs!$I$9:$I$504, MATCH(ResFin[[#This Row],[N° Activity]],Costs!$C$9:$C$504,0)))) -> CT | M36: =IF($F36="","",(INDEX(Costs!$J$9:$J$504, MATCH(ResFin[[#This Row],[N° Activity]],Costs!$C$9:$C$504,0)))) -> 0 | N36: Préparation | O36: =IF(ResFin[[#This Row],[Area]]= "", "", IF(OR(ResFin[[#This Row],[Area]]= "EIR ", ResFin[[#This Row],[Area]]= "Points d'entrée"),"Surveillance",ResFin[[#This Row],[Area]])) -> Logistique | Q36: Niveau central | T36: =IF($F36="","", "Financial resources") -> Financial resources | U36: 759234.8214 | W36: 379617.4107 | Y36: =ResFin[[#This Row],[Date of disbursement]]-ResFin[[#This Row],[Date of commitment]] -> 0
C37: Financement PTF | D37: PTF8 | E37: Réorientation des fonds | F37: Ciblé (Logistique) | G37: =IF($F37="","",IF(ISNA(MATCH(F37,Costs!$C$22:$C$504,0)),(IF(F37="","",IF(ISNA(MATCH(F37,Costs!$C$10:$C$20,0)),"Non-ciblé","Ciblé sur un domaine"))),"Ciblé sur une activité")) -> Ciblé sur un domaine | H37: =IF($F37="","",(INDEX(Costs!$B$9:$B$504, MATCH('Financial Resources'!F37,Costs!$C$9:$C$504,0)))) -> Plan riposte central | I37: =IF($F37="","",(INDEX(Costs!$D$9:$D$504, MATCH(ResFin[[#This Row],[N° Activity]],Costs!$C$9:$C$504,0)))) -> Contribution ciblée sur le domaine de Logistique à allouer à une activité spécifique dans le plan de riposte | J37: =IF($F37="","",(INDEX(Costs!$F$9:$F$504, MATCH(ResFin[[#This Row],[N° Activity]],Costs!$C$9:$C$504,0)))) -> Logistique | K37: =IF(F37="","",(INDEX(Costs!$H$9:$H$504, MATCH(ResFin[[#This Row],[N° Activity]],Costs!$C$9:$C$504,0)))) -> 0 | L37: =IF($F37="","",(INDEX(Costs!$I$9:$I$504, MATCH(ResFin[[#This Row],[N° Activity]],Costs!$C$9:$C$504,0)))) -> 0 | M37: =IF($F37="","",(INDEX(Costs!$J$9:$J$504, MATCH(ResFin[[#This Row],[N° Activity]],Costs!$C$9:$C$504,0)))) -> 0 | N37: Préparation | O37: =IF(ResFin[[#This Row],[Area]]= "", "", IF(OR(ResFin[[#This Row],[Area]]= "EIR ", ResFin[[#This Row],[Area]]= "Points d'entrée"),"Surveillance",ResFin[[#This Row],[Area]])) -> Logistique | Q37: Niveau des districts | R37: Region 2 | S37: District 1 | T37: =IF($F37="","", "Financial resources") -> Financial resources | U37: 93750 | W37: 46875 | Y37: =ResFin[[#This Row],[Date of disbursement]]-ResFin[[#This Row],[Date of commitment]] -> 0
C38: Financement PTF | D38: PTF8 | E38: Réorientation des fonds | F38: 156 | G38: =IF($F38="","",IF(ISNA(MATCH(F38,Costs!$C$22:$C$504,0)),(IF(F38="","",IF(ISNA(MATCH(F38,Costs!$C$10:$C$20,0)),"Non-ciblé","Ciblé sur un domaine"))),"Ciblé sur une activité")) -> Ciblé sur une activité | H38: =IF($F38="","",(INDEX(Costs!$B$9:$B$504, MATCH('Financial Resources'!F38,Costs!$C$9:$C$504,0)))) -> Plan riposte central | I38: =IF($F38="","",(INDEX(Costs!$D$9:$D$504, MATCH(ResFin[[#This Row],[N° Activity]],Costs!$C$9:$C$504,0)))) -> Activity 156 | J38: =IF($F38="","",(INDEX(Costs!$F$9:$F$504, MATCH(ResFin[[#This Row],[N° Activity]],Costs!$C$9:$C$504,0)))) -> PCI | K38: =IF(F38="","",(INDEX(Costs!$H$9:$H$504, MATCH(ResFin[[#This Row],[N° Activity]],Costs!$C$9:$C$504,0)))) -> 0 | L38: =IF($F38="","",(INDEX(Costs!$I$9:$I$504, MATCH(ResFin[[#This Row],[N° Activity]],Costs!$C$9:$C$504,0)))) -> CT | M38: =IF($F38="","",(INDEX(Costs!$J$9:$J$504, MATCH(ResFin[[#This Row],[N° Activity]],Costs!$C$9:$C$504,0)))) -> 0 | N38: Riposte | O38: =IF(ResFin[[#This Row],[Area]]= "", "", IF(OR(ResFin[[#This Row],[Area]]= "EIR ", ResFin[[#This Row],[Area]]= "Points d'entrée"),"Surveillance",ResFin[[#This Row],[Area]])) -> PCI | Q38: Niveau des districts | R38: Region 4 | S38: District 1 | T38: Financial resources | U38: 7822.619048 | W38: 3911.309524 | Y38: =ResFin[[#This Row],[Date of disbursement]]-ResFin[[#This Row],[Date of commitment]] -> 0
C39: Financement PTF | D39: PTF8 | E39: Réorientation des fonds | F39: 48 | G39: =IF($F39="","",IF(ISNA(MATCH(F39,Costs!$C$22:$C$504,0)),(IF(F39="","",IF(ISNA(MATCH(F39,Costs!$C$10:$C$20,0)),"Non-ciblé","Ciblé sur un domaine"))),"Ciblé sur une activité")) -> Ciblé sur une activité | H39: =IF($F39="","",(INDEX(Costs!$B$9:$B$504, MATCH('Financial Resources'!F39,Costs!$C$9:$C$504,0)))) -> Plan riposte central | I39: =IF($F39="","",(INDEX(Costs!$D$9:$D$504, MATCH(ResFin[[#This Row],[N° Activity]],Costs!$C$9:$C$504,0)))) -> Activity 48 | J39: =IF($F39="","",(INDEX(Costs!$F$9:$F$504, MATCH(ResFin[[#This Row],[N° Activity]],Costs!$C$9:$C$504,0)))) -> Logistique | K39: =IF(F39="","",(INDEX(Costs!$H$9:$H$504, MATCH(ResFin[[#This Row],[N° Activity]],Costs!$C$9:$C$504,0)))) -> 0 | L39: =IF($F39="","",(INDEX(Costs!$I$9:$I$504, MATCH(ResFin[[#This Row],[N° Activity]],Costs!$C$9:$C$504,0)))) -> CT | M39: =IF($F39="","",(INDEX(Costs!$J$9:$J$504, MATCH(ResFin[[#This Row],[N° Activity]],Costs!$C$9:$C$504,0)))) -> 0 | N39: Préparation | O39: =IF(ResFin[[#This Row],[Area]]= "", "", IF(OR(ResFin[[#This Row],[Area]]= "EIR ", ResFin[[#This Row],[Area]]= "Points d'entrée"),"Surveillance",ResFin[[#This Row],[Area]])) -> Logistique | Q39: n'est pas spécifié | R39: Region 3 | S39: n'est pas spécifié | T39: Financial resources | U39: 1041.666667 | W39: 520.8333333 | Y39: =ResFin[[#This Row],[Date of disbursement]]-ResFin[[#This Row],[Date of commitment]] -> 0
C40: Financement PTF | D40: PTF8 | E40: Réorientation des fonds | F40: Ciblé (Logistique) | G40: =IF($F40="","",IF(ISNA(MATCH(F40,Costs!$C$22:$C$504,0)),(IF(F40="","",IF(ISNA(MATCH(F40,Costs!$C$10:$C$20,0)),"Non-ciblé","Ciblé sur un domaine"))),"Ciblé sur une activité")) -> Ciblé sur un domaine | H40: =IF($F40="","",(INDEX(Costs!$B$9:$B$504, MATCH('Financial Resources'!F40,Costs!$C$9:$C$504,0)))) -> Plan riposte central | I40: =IF($F40="","",(INDEX(Costs!$D$9:$D$504, MATCH(ResFin[[#This Row],[N° Activity]],Costs!$C$9:$C$504,0)))) -> Contribution ciblée sur le domaine de Logistique à allouer à une activité spécifique dans le plan de riposte | J40: =IF($F40="","",(INDEX(Costs!$F$9:$F$504, MATCH(ResFin[[#This Row],[N° Activity]],Costs!$C$9:$C$504,0)))) -> Logistique | K40: =IF(F40="","",(INDEX(Costs!$H$9:$H$504, MATCH(ResFin[[#This Row],[N° Activity]],Costs!$C$9:$C$504,0)))) -> 0 | L40: =IF($F40="","",(INDEX(Costs!$I$9:$I$504, MATCH(ResFin[[#This Row],[N° Activity]],Costs!$C$9:$C$504,0)))) -> 0 | M40: =IF($F40="","",(INDEX(Costs!$J$9:$J$504, MATCH(ResFin[[#This Row],[N° Activity]],Costs!$C$9:$C$504,0)))) -> 0 | N40: Riposte | O40: =IF(ResFin[[#This Row],[Area]]= "", "", IF(OR(ResFin[[#This Row],[Area]]= "EIR ", ResFin[[#This Row],[Area]]= "Points d'entrée"),"Surveillance",ResFin[[#This Row],[Area]])) -> Logistique | Q40: Niveau des districts | R40: Region 5 | S40: n'est pas spécifié | T40: Financial resources | U40: 8068.75 | W40: 4034.375 | Y40: =ResFin[[#This Row],[Date of disbursement]]-ResFin[[#This Row],[Date of commitment]] -> 0
C41: Financement PTF | D41: PTF8 | E41: Réorientation des fonds | F41: Ciblé (Logistique) | G41: =IF($F41="","",IF(ISNA(MATCH(F41,Costs!$C$22:$C$504,0)),(IF(F41="","",IF(ISNA(MATCH(F41,Costs!$C$10:$C$20,0)),"Non-ciblé","Ciblé sur un domaine"))),"Ciblé sur une activité")) -> Ciblé sur un domaine | H41: =IF($F41="","",(INDEX(Costs!$B$9:$B$504, MATCH('Financial Resources'!F41,Costs!$C$9:$C$504,0)))) -> Plan riposte central | I41: =IF($F41="","",(INDEX(Costs!$D$9:$D$504, MATCH(ResFin[[#This Row],[N° Activity]],Costs!$C$9:$C$504,0)))) -> Contribution ciblée sur le domaine de Logistique à allouer à une activité spécifique dans le plan de riposte | J41: =IF($F41="","",(INDEX(Costs!$F$9:$F$504, MATCH(ResFin[[#This Row],[N° Activity]],Costs!$C$9:$C$504,0)))) -> Logistique | K41: =IF(F41="","",(INDEX(Costs!$H$9:$H$504, MATCH(ResFin[[#This Row],[N° Activity]],Costs!$C$9:$C$504,0)))) -> 0 | L41: =IF($F41="","",(INDEX(Costs!$I$9:$I$504, MATCH(ResFin[[#This Row],[N° Activity]],Costs!$C$9:$C$504,0)))) -> 0 | M41: =IF($F41="","",(INDEX(Costs!$J$9:$J$504, MATCH(ResFin[[#This Row],[N° Activity]],Costs!$C$9:$C$504,0)))) -> 0 | N41: Préparation | O41: =IF(ResFin[[#This Row],[Area]]= "", "", IF(OR(ResFin[[#This Row],[Area]]= "EIR ", ResFin[[#This Row],[Area]]= "Points d'entrée"),"Surveillance",ResFin[[#This Row],[Area]])) -> Logistique | Q41: Niveau des districts | R41: Region 4 | S41: District 1 | T41: Financial resources | U41: 8142.857143 | W41: 4071.428571 | Y41: =ResFin[[#This Row],[Date of disbursement]]-ResFin[[#This Row],[Date of commitment]] -> 0
C42: Financement PTF | D42: PTF8 | E42: Réorientation des fonds | F42: Ciblé (Logistique) | G42: =IF($F42="","",IF(ISNA(MATCH(F42,Costs!$C$22:$C$504,0)),(IF(F42="","",IF(ISNA(MATCH(F42,Costs!$C$10:$C$20,0)),"Non-ciblé","Ciblé sur un domaine"))),"Ciblé sur une activité")) -> Ciblé sur un domaine | H42: =IF($F42="","",(INDEX(Costs!$B$9:$B$504, MATCH('Financial Resources'!F42,Costs!$C$9:$C$504,0)))) -> Plan riposte central | I42: =IF($F42="","",(INDEX(Costs!$D$9:$D$504, MATCH(ResFin[[#This Row],[N° Activity]],Costs!$C$9:$C$504,0)))) -> Contribution ciblée sur le domaine de Logistique à allouer à une activité spécifique dans le plan de riposte | J42: =IF($F42="","",(INDEX(Costs!$F$9:$F$504, MATCH(ResFin[[#This Row],[N° Activity]],Costs!$C$9:$C$504,0)))) -> Logistique | K42: =IF(F42="","",(INDEX(Costs!$H$9:$H$504, MATCH(ResFin[[#This Row],[N° Activity]],Costs!$C$9:$C$504,0)))) -> 0 | L42: =IF($F42="","",(INDEX(Costs!$I$9:$I$504, MATCH(ResFin[[#This Row],[N° Activity]],Costs!$C$9:$C$504,0)))) -> 0 | M42: =IF($F42="","",(INDEX(Costs!$J$9:$J$504, MATCH(ResFin[[#This Row],[N° Activity]],Costs!$C$9:$C$504,0)))) -> 0 | N42: Préparation | O42: =IF(ResFin[[#This Row],[Area]]= "", "", IF(OR(ResFin[[#This Row],[Area]]= "EIR ", ResFin[[#This Row],[Area]]= "Points d'entrée"),"Surveillance",ResFin[[#This Row],[Area]])) -> Logistique | Q42: Niveau régional | R42: n'est pas spécifiée | T42: Financial resources | U42: 454523.8095 | W42: 227261.9048 | Y42: =ResFin[[#This Row],[Date of disbursement]]-ResFin[[#This Row],[Date of commitment]] -> 0
C43: Financement PTF | D43: PTF8 | E43: Réorientation des fonds | F43: Ciblé (Logistique) | G43: =IF($F43="","",IF(ISNA(MATCH(F43,Costs!$C$22:$C$504,0)),(IF(F43="","",IF(ISNA(MATCH(F43,Costs!$C$10:$C$20,0)),"Non-ciblé","Ciblé sur un domaine"))),"Ciblé sur une activité")) -> Ciblé sur un domaine | H43: =IF($F43="","",(INDEX(Costs!$B$9:$B$504, MATCH('Financial Resources'!F43,Costs!$C$9:$C$504,0)))) -> Plan riposte central | I43: =IF($F43="","",(INDEX(Costs!$D$9:$D$504, MATCH(ResFin[[#This Row],[N° Activity]],Costs!$C$9:$C$504,0)))) -> Contribution ciblée sur le domaine de Logistique à allouer à une activité spécifique dans le plan de riposte | J43: =IF($F43="","",(INDEX(Costs!$F$9:$F$504, MATCH(ResFin[[#This Row],[N° Activity]],Costs!$C$9:$C$504,0)))) -> Logistique | K43: =IF(F43="","",(INDEX(Costs!$H$9:$H$504, MATCH(ResFin[[#This Row],[N° Activity]],Costs!$C$9:$C$504,0)))) -> 0 | L43: =IF($F43="","",(INDEX(Costs!$I$9:$I$504, MATCH(ResFin[[#This Row],[N° Activity]],Costs!$C$9:$C$504,0)))) -> 0 | M43: =IF($F43="","",(INDEX(Costs!$J$9:$J$504, MATCH(ResFin[[#This Row],[N° Activity]],Costs!$C$9:$C$504,0)))) -> 0 | N43: Préparation | O43: =IF(ResFin[[#This Row],[Area]]= "", "", IF(OR(ResFin[[#This Row],[Area]]= "EIR ", ResFin[[#This Row],[Area]]= "Points d'entrée"),"Surveillance",ResFin[[#This Row],[Area]])) -> Logistique | Q43: Niveau régional | R43: n'est pas spécifiée | T43: Financial resources | U43: 107142.8571 | W43: 53571.42857 | Y43: =ResFin[[#This Row],[Date of disbursement]]-ResFin[[#This Row],[Date of commitment]] -> 0
C44: Financement PTF | D44: PTF5 | E44: Nouveau don | F44: Ciblé (Coordination) | G44: =IF($F44="","",IF(ISNA(MATCH(F44,Costs!$C$22:$C$504,0)),(IF(F44="","",IF(ISNA(MATCH(F44,Costs!$C$10:$C$20,0)),"Non-ciblé","Ciblé sur un domaine"))),"Ciblé sur une activité")) -> Ciblé sur un domaine | H44: =IF($F44="","",(INDEX(Costs!$B$9:$B$504, MATCH('Financial Resources'!F44,Costs!$C$9:$C$504,0)))) -> Plan riposte central | I44: =IF($F44="","",(INDEX(Costs!$D$9:$D$504, MATCH(ResFin[[#This Row],[N° Activity]],Costs!$C$9:$C$504,0)))) -> Contribution ciblée sur le domaine de Coordination à allouer à une activité spécifique dans le plan de riposte | J44: =IF($F44="","",(INDEX(Costs!$F$9:$F$504, MATCH(ResFin[[#This Row],[N° Activity]],Costs!$C$9:$C$504,0)))) -> Coordination | K44: =IF(F44="","",(INDEX(Costs!$H$9:$H$504, MATCH(ResFin[[#This Row],[N° Activity]],Costs!$C$9:$C$504,0)))) -> 0 | L44: =IF($F44="","",(INDEX(Costs!$I$9:$I$504, MATCH(ResFin[[#This Row],[N° Activity]],Costs!$C$9:$C$504,0)))) -> 0 | M44: =IF($F44="","",(INDEX(Costs!$J$9:$J$504, MATCH(ResFin[[#This Row],[N° Activity]],Costs!$C$9:$C$504,0)))) -> 0 | N44: Riposte | O44: =IF(ResFin[[#This Row],[Area]]= "", "", IF(OR(ResFin[[#This Row],[Area]]= "EIR ", ResFin[[#This Row],[Area]]= "Points d'entrée"),"Surveillance",ResFin[[#This Row],[Area]])) -> Coordination | Q44: Niveau régional | R44: n'est pas spécifiée | T44: Ressources financières | U44: 47619.04762 | W44: 23809.52381 | Y44: =ResFin[[#This Row],[Date of disbursement]]-ResFin[[#This Row],[Date of commitment]] -> 0
C45: Financement PTF | D45: PTF8 | E45: Réorientation des fonds | F45: Ciblé (Labratoire) | G45: =IF($F45="","",IF(ISNA(MATCH(F45,Costs!$C$22:$C$504,0)),(IF(F45="","",IF(ISNA(MATCH(F45,Costs!$C$10:$C$20,0)),"Non-ciblé","Ciblé sur un domaine"))),"Ciblé sur une activité")) -> Ciblé sur un domaine | H45: =IF($F45="","",(INDEX(Costs!$B$9:$B$504, MATCH('Financial Resources'!F45,Costs!$C$9:$C$504,0)))) -> Plan riposte central | I45: =IF($F45="","",(INDEX(Costs!$D$9:$D$504, MATCH(ResFin[[#This Row],[N° Activity]],Costs!$C$9:$C$504,0)))) -> Contribution ciblée sur le domaine de Laboratoire à allouer à une activité spécifique dans le plan de riposte | J45: =IF($F45="","",(INDEX(Costs!$F$9:$F$504, MATCH(ResFin[[#This Row],[N° Activity]],Costs!$C$9:$C$504,0)))) -> Laboratoire | K45: =IF(F45="","",(INDEX(Costs!$H$9:$H$504, MATCH(ResFin[[#This Row],[N° Activity]],Costs!$C$9:$C$504,0)))) -> 0 | L45: =IF($F45="","",(INDEX(Costs!$I$9:$I$504, MATCH(ResFin[[#This Row],[N° Activity]],Costs!$C$9:$C$504,0)))) -> 0 | M45: =IF($F45="","",(INDEX(Costs!$J$9:$J$504, MATCH(ResFin[[#This Row],[N° Activity]],Costs!$C$9:$C$504,0)))) -> 0 | N45: Préparation | O45: =IF(ResFin[[#This Row],[Area]]= "", "", IF(OR(ResFin[[#This Row],[Area]]= "EIR ", ResFin[[#This Row],[Area]]= "Points d'entrée"),"Surveillance",ResFin[[#This Row],[Area]])) -> Laboratoire | Q45: Niveau des districts | R45: Region 1 | S45: District 1 | T45: =IF($F45="","", "Financial resources") -> Financial resources | U45: 24898.60833 | W45: 12449.30417 | Y45: =ResFin[[#This Row],[Date of disbursement]]-ResFin[[#This Row],[Date of commitment]] -> 0
C46: Financement PTF | D46: PTF1 | E46: Réorientation des fonds | F46: Ciblé (Prise en charge des cas) | G46: =IF($F46="","",IF(ISNA(MATCH(F46,Costs!$C$22:$C$504,0)),(IF(F46="","",IF(ISNA(MATCH(F46,Costs!$C$10:$C$20,0)),"Non-ciblé","Ciblé sur un domaine"))),"Ciblé sur une activité")) -> Ciblé sur un domaine | H46: =IF($F46="","",(INDEX(Costs!$B$9:$B$504, MATCH('Financial Resources'!F46,Costs!$C$9:$C$504,0)))) -> Plan riposte central | I46: =IF($F46="","",(INDEX(Costs!$D$9:$D$504, MATCH(ResFin[[#This Row],[N° Activity]],Costs!$C$9:$C$504,0)))) -> Contribution ciblée sur le domaine de Prise en charge des cas à allouer à une activité spécifique dans le plan de riposte | J46: =IF($F46="","",(INDEX(Costs!$F$9:$F$504, MATCH(ResFin[[#This Row],[N° Activity]],Costs!$C$9:$C$504,0)))) -> Prise en charge des cas | K46: =IF(F46="","",(INDEX(Costs!$H$9:$H$504, MATCH(ResFin[[#This Row],[N° Activity]],Costs!$C$9:$C$504,0)))) -> 0 | L46: =IF($F46="","",(INDEX(Costs!$I$9:$I$504, MATCH(ResFin[[#This Row],[N° Activity]],Costs!$C$9:$C$504,0)))) -> 0 | M46: =IF($F46="","",(INDEX(Costs!$J$9:$J$504, MATCH(ResFin[[#This Row],[N° Activity]],Costs!$C$9:$C$504,0)))) -> 0 | N46: Riposte | O46: =IF(ResFin[[#This Row],[Area]]= "", "", IF(OR(ResFin[[#This Row],[Area]]= "EIR ", ResFin[[#This Row],[Area]]= "Points d'entrée"),"Surveillance",ResFin[[#This Row],[Area]])) -> Prise en charge des cas | Q46: Niveau régional | T46: Ressources financières | U46: 1058830.124 | W46: 529415.0619 | Y46: =ResFin[[#This Row],[Date of disbursement]]-ResFin[[#This Row],[Date of commitment]] -> 0
G47: =IF($F47="","",IF(ISNA(MATCH(F47,Costs!$C$22:$C$504,0)),(IF(F47="","",IF(ISNA(MATCH(F47,Costs!$C$10:$C$20,0)),"Non-ciblé","Ciblé sur un domaine"))),"Ciblé sur une activité")) ->  | H47: =IF($F47="","",(INDEX(Costs!$B$9:$B$504, MATCH('Financial Resources'!F47,Costs!$C$9:$C$504,0)))) ->  | I47: =IF($F47="","",(INDEX(Costs!$D$9:$D$504, MATCH(ResFin[[#This Row],[N° Activity]],Costs!$C$9:$C$504,0)))) ->  | J47: =IF($F47="","",(INDEX(Costs!$F$9:$F$504, MATCH(ResFin[[#This Row],[N° Activity]],Costs!$C$9:$C$504,0)))) ->  | K47: =IF(F47="","",(INDEX(Costs!$H$9:$H$504, MATCH(ResFin[[#This Row],[N° Activity]],Costs!$C$9:$C$504,0)))) ->  | L47: =IF($F47="","",(INDEX(Costs!$I$9:$I$504, MATCH(ResFin[[#This Row],[N° Activity]],Costs!$C$9:$C$504,0)))) ->  | M47: =IF($F47="","",(INDEX(Costs!$J$9:$J$504, MATCH(ResFin[[#This Row],[N° Activity]],Costs!$C$9:$C$504,0)))) ->  | O47: =IF(ResFin[[#This Row],[Area]]= "", "", IF(OR(ResFin[[#This Row],[Area]]= "EIR ", ResFin[[#This Row],[Area]]= "Points d'entrée"),"Surveillance",ResFin[[#This Row],[Area]])) ->  | U47: 0 | W47: 0 | Y47: =ResFin[[#This Row],[Date of disbursement]]-ResFin[[#This Row],[Date of commitment]] -> 0
C48: Financement PTF | D48: PTF8 | E48: Réorientation des fonds | F48: Ciblé (Coordination) | G48: =IF($F48="","",IF(ISNA(MATCH(F48,Costs!$C$22:$C$504,0)),(IF(F48="","",IF(ISNA(MATCH(F48,Costs!$C$10:$C$20,0)),"Non-ciblé","Ciblé sur un domaine"))),"Ciblé sur une activité")) -> Ciblé sur un domaine | H48: =IF($F48="","",(INDEX(Costs!$B$9:$B$504, MATCH('Financial Resources'!F48,Costs!$C$9:$C$504,0)))) -> Plan riposte central | I48: =IF($F48="","",(INDEX(Costs!$D$9:$D$504, MATCH(ResFin[[#This Row],[N° Activity]],Costs!$C$9:$C$504,0)))) -> Contribution ciblée sur le domaine de Coordination à allouer à une activité spécifique dans le plan de riposte | J48: =IF($F48="","",(INDEX(Costs!$F$9:$F$504, MATCH(ResFin[[#This Row],[N° Activity]],Costs!$C$9:$C$504,0)))) -> Coordination | K48: =IF(F48="","",(INDEX(Costs!$H$9:$H$504, MATCH(ResFin[[#This Row],[N° Activity]],Costs!$C$9:$C$504,0)))) -> 0 | L48: =IF($F48="","",(INDEX(Costs!$I$9:$I$504, MATCH(ResFin[[#This Row],[N° Activity]],Costs!$C$9:$C$504,0)))) -> 0 | M48: =IF($F48="","",(INDEX(Costs!$J$9:$J$504, MATCH(ResFin[[#This Row],[N° Activity]],Costs!$C$9:$C$504,0)))) -> 0 | N48: Riposte | O48: =IF(ResFin[[#This Row],[Area]]= "", "", IF(OR(ResFin[[#This Row],[Area]]= "EIR ", ResFin[[#This Row],[Area]]= "Points d'entrée"),"Surveillance",ResFin[[#This Row],[Area]])) -> Coordination | Q48: Niveau des districts | R48: Region 4 | S48: District 1 | T48: =IF($F48="","", "Financial resources") -> Financial resources | U48: 39285.71429 | W48: 19642.85714 | Y48: =ResFin[[#This Row],[Date of disbursement]]-ResFin[[#This Row],[Date of commitment]] -> 0
C49: Financement PTF | D49: PTF8 | E49: Réorientation des fonds | F49: 104 | G49: =IF($F49="","",IF(ISNA(MATCH(F49,Costs!$C$22:$C$504,0)),(IF(F49="","",IF(ISNA(MATCH(F49,Costs!$C$10:$C$20,0)),"Non-ciblé","Ciblé sur un domaine"))),"Ciblé sur une activité")) -> Ciblé sur une activité | H49: =IF($F49="","",(INDEX(Costs!$B$9:$B$504, MATCH('Financial Resources'!F49,Costs!$C$9:$C$504,0)))) -> Plan riposte central | I49: =IF($F49="","",(INDEX(Costs!$D$9:$D$504, MATCH(ResFin[[#This Row],[N° Activity]],Costs!$C$9:$C$504,0)))) -> Activity 104 | J49: =IF($F49="","",(INDEX(Costs!$F$9:$F$504, MATCH(ResFin[[#This Row],[N° Activity]],Costs!$C$9:$C$504,0)))) -> Surveillance | K49: =IF(F49="","",(INDEX(Costs!$H$9:$H$504, MATCH(ResFin[[#This Row],[N° Activity]],Costs!$C$9:$C$504,0)))) -> 0 | L49: =IF($F49="","",(INDEX(Costs!$I$9:$I$504, MATCH(ResFin[[#This Row],[N° Activity]],Costs!$C$9:$C$504,0)))) -> CT | M49: =IF($F49="","",(INDEX(Costs!$J$9:$J$504, MATCH(ResFin[[#This Row],[N° Activity]],Costs!$C$9:$C$504,0)))) -> 0 | N49: Riposte | O49: =IF(ResFin[[#This Row],[Area]]= "", "", IF(OR(ResFin[[#This Row],[Area]]= "EIR ", ResFin[[#This Row],[Area]]= "Points d'entrée"),"Surveillance",ResFin[[#This Row],[Area]])) -> Surveillance | Q49: Niveau des districts | R49: Region 3 | S49: District 1 | T49: Financial resources | U49: 8928.571429 | W49: 4464.285714 | Y49: =ResFin[[#This Row],[Date of disbursement]]-ResFin[[#This Row],[Date of commitment]] -> 0
C50: Financement PTF | D50: PTF8 | E50: Réorientation des fonds | F50: 124 | G50: =IF($F50="","",IF(ISNA(MATCH(F50,Costs!$C$22:$C$504,0)),(IF(F50="","",IF(ISNA(MATCH(F50,Costs!$C$10:$C$20,0)),"Non-ciblé","Ciblé sur un domaine"))),"Ciblé sur une activité")) -> Ciblé sur une activité | H50: =IF($F50="","",(INDEX(Costs!$B$9:$B$504, MATCH('Financial Resources'!F50,Costs!$C$9:$C$504,0)))) -> Plan riposte central | I50: =IF($F50="","",(INDEX(Costs!$D$9:$D$504, MATCH(ResFin[[#This Row],[N° Activity]],Costs!$C$9:$C$504,0)))) -> Activity 124 | J50: =IF($F50="","",(INDEX(Costs!$F$9:$F$504, MATCH(ResFin[[#This Row],[N° Activity]],Costs!$C$9:$C$504,0)))) -> Surveillance | K50: =IF(F50="","",(INDEX(Costs!$H$9:$H$504, MATCH(ResFin[[#This Row],[N° Activity]],Costs!$C$9:$C$504,0)))) -> 0 | L50: =IF($F50="","",(INDEX(Costs!$I$9:$I$504, MATCH(ResFin[[#This Row],[N° Activity]],Costs!$C$9:$C$504,0)))) -> CT | M50: =IF($F50="","",(INDEX(Costs!$J$9:$J$504, MATCH(ResFin[[#This Row],[N° Activity]],Costs!$C$9:$C$504,0)))) -> 0 | N50: Riposte | O50: =IF(ResFin[[#This Row],[Area]]= "", "", IF(OR(ResFin[[#This Row],[Area]]= "EIR ", ResFin[[#This Row],[Area]]= "Points d'entrée"),"Surveillance",ResFin[[#This Row],[Area]])) -> Surveillance | Q50: Niveau des districts | R50: Region 5 | S50: District 1 | T50: Financial resources | U50: 21428.57143 | W50: 10714.28571 | Y50: =ResFin[[#This Row],[Date of disbursement]]-ResFin[[#This Row],[Date of commitment]] -> 0
C51: Financement PTF | D51: PTF8 | E51: Réorientation des fonds | F51: 125 | G51: =IF($F51="","",IF(ISNA(MATCH(F51,Costs!$C$22:$C$504,0)),(IF(F51="","",IF(ISNA(MATCH(F51,Costs!$C$10:$C$20,0)),"Non-ciblé","Ciblé sur un domaine"))),"Ciblé sur une activité")) -> Ciblé sur une activité | H51: =IF($F51="","",(INDEX(Costs!$B$9:$B$504, MATCH('Financial Resources'!F51,Costs!$C$9:$C$504,0)))) -> Plan riposte central | I51: =IF($F51="","",(INDEX(Costs!$D$9:$D$504, MATCH(ResFin[[#This Row],[N° Activity]],Costs!$C$9:$C$504,0)))) -> Activity 125 | J51: =IF($F51="","",(INDEX(Costs!$F$9:$F$504, MATCH(ResFin[[#This Row],[N° Activity]],Costs!$C$9:$C$504,0)))) -> Surveillance | K51: =IF(F51="","",(INDEX(Costs!$H$9:$H$504, MATCH(ResFin[[#This Row],[N° Activity]],Costs!$C$9:$C$504,0)))) -> 0 | L51: =IF($F51="","",(INDEX(Costs!$I$9:$I$504, MATCH(ResFin[[#This Row],[N° Activity]],Costs!$C$9:$C$504,0)))) -> CT | M51: =IF($F51="","",(INDEX(Costs!$J$9:$J$504, MATCH(ResFin[[#This Row],[N° Activity]],Costs!$C$9:$C$504,0)))) -> 0 | N51: Riposte | O51: =IF(ResFin[[#This Row],[Area]]= "", "", IF(OR(ResFin[[#This Row],[Area]]= "EIR ", ResFin[[#This Row],[Area]]= "Points d'entrée"),"Surveillance",ResFin[[#This Row],[Area]])) -> Surveillance | Q51: Niveau des districts | R51: Region 4 | S51: District 1 | T51: Financial resources | U51: 7642.857143 | W51: 3821.428571 | Y51: =ResFin[[#This Row],[Date of disbursement]]-ResFin[[#This Row],[Date of commitment]] -> 0
C52: Financement PTF | D52: PTF8 | E52: Réorientation des fonds | F52: 104 | G52: =IF($F52="","",IF(ISNA(MATCH(F52,Costs!$C$22:$C$504,0)),(IF(F52="","",IF(ISNA(MATCH(F52,Costs!$C$10:$C$20,0)),"Non-ciblé","Ciblé sur un domaine"))),"Ciblé sur une activité")) -> Ciblé sur une activité | H52: =IF($F52="","",(INDEX(Costs!$B$9:$B$504, MATCH('Financial Resources'!F52,Costs!$C$9:$C$504,0)))) -> Plan riposte central | I52: =IF($F52="","",(INDEX(Costs!$D$9:$D$504, MATCH(ResFin[[#This Row],[N° Activity]],Costs!$C$9:$C$504,0)))) -> Activity 104 | J52: =IF($F52="","",(INDEX(Costs!$F$9:$F$504, MATCH(ResFin[[#This Row],[N° Activity]],Costs!$C$9:$C$504,0)))) -> Surveillance | K52: =IF(F52="","",(INDEX(Costs!$H$9:$H$504, MATCH(ResFin[[#This Row],[N° Activity]],Costs!$C$9:$C$504,0)))) -> 0 | L52: =IF($F52="","",(INDEX(Costs!$I$9:$I$504, MATCH(ResFin[[#This Row],[N° Activity]],Costs!$C$9:$C$504,0)))) -> CT | M52: =IF($F52="","",(INDEX(Costs!$J$9:$J$504, MATCH(ResFin[[#This Row],[N° Activity]],Costs!$C$9:$C$504,0)))) -> 0 | N52: Riposte | O52: =IF(ResFin[[#This Row],[Area]]= "", "", IF(OR(ResFin[[#This Row],[Area]]= "EIR ", ResFin[[#This Row],[Area]]= "Points d'entrée"),"Surveillance",ResFin[[#This Row],[Area]])) -> Surveillance | Q52: Niveau des districts | R52: Region 1 | S52: District 1 | T52: Financial resources | U52: 20000 | W52: 10000 | Y52: =ResFin[[#This Row],[Date of disbursement]]-ResFin[[#This Row],[Date of commitment]] -> 0
C53: Financement PTF | D53: PTF8 | E53: Réorientation des fonds | F53: 107 | G53: =IF($F53="","",IF(ISNA(MATCH(F53,Costs!$C$22:$C$504,0)),(IF(F53="","",IF(ISNA(MATCH(F53,Costs!$C$10:$C$20,0)),"Non-ciblé","Ciblé sur un domaine"))),"Ciblé sur une activité")) -> Ciblé sur une activité | H53: =IF($F53="","",(INDEX(Costs!$B$9:$B$504, MATCH('Financial Resources'!F53,Costs!$C$9:$C$504,0)))) -> Plan riposte central | I53: =IF($F53="","",(INDEX(Costs!$D$9:$D$504, MATCH(ResFin[[#This Row],[N° Activity]],Costs!$C$9:$C$504,0)))) -> Activity 107 | J53: =IF($F53="","",(INDEX(Costs!$F$9:$F$504, MATCH(ResFin[[#This Row],[N° Activity]],Costs!$C$9:$C$504,0)))) -> Surveillance | K53: =IF(F53="","",(INDEX(Costs!$H$9:$H$504, MATCH(ResFin[[#This Row],[N° Activity]],Costs!$C$9:$C$504,0)))) -> 0 | L53: =IF($F53="","",(INDEX(Costs!$I$9:$I$504, MATCH(ResFin[[#This Row],[N° Activity]],Costs!$C$9:$C$504,0)))) -> CT | M53: =IF($F53="","",(INDEX(Costs!$J$9:$J$504, MATCH(ResFin[[#This Row],[N° Activity]],Costs!$C$9:$C$504,0)))) -> 0 | N53: Riposte | O53: =IF(ResFin[[#This Row],[Area]]= "", "", IF(OR(ResFin[[#This Row],[Area]]= "EIR ", ResFin[[#This Row],[Area]]= "Points d'entrée"),"Surveillance",ResFin[[#This Row],[Area]])) -> Surveillance | Q53: Niveau des districts | R53: Region 2 | S53: District 2 | T53: Financial resources | U53: 5428.571429 | W53: 2714.285714 | Y53: =ResFin[[#This Row],[Date of disbursement]]-ResFin[[#This Row],[Date of commitment]] -> 0
C54: Financement PTF | D54: PTF8 | E54: Réorientation des fonds | F54: Ciblé (Surveillance) | G54: =IF($F54="","",IF(ISNA(MATCH(F54,Costs!$C$22:$C$504,0)),(IF(F54="","",IF(ISNA(MATCH(F54,Costs!$C$10:$C$20,0)),"Non-ciblé","Ciblé sur un domaine"))),"Ciblé sur une activité")) -> Ciblé sur un domaine | H54: =IF($F54="","",(INDEX(Costs!$B$9:$B$504, MATCH('Financial Resources'!F54,Costs!$C$9:$C$504,0)))) -> Plan riposte central | I54: =IF($F54="","",(INDEX(Costs!$D$9:$D$504, MATCH(ResFin[[#This Row],[N° Activity]],Costs!$C$9:$C$504,0)))) -> Contribution ciblée sur le domaine de Surveillance à allouer à une activité spécifique dans le plan de riposte | J54: =IF($F54="","",(INDEX(Costs!$F$9:$F$504, MATCH(ResFin[[#This Row],[N° Activity]],Costs!$C$9:$C$504,0)))) -> Surveillance | K54: =IF(F54="","",(INDEX(Costs!$H$9:$H$504, MATCH(ResFin[[#This Row],[N° Activity]],Costs!$C$9:$C$504,0)))) -> 0 | L54: =IF($F54="","",(INDEX(Costs!$I$9:$I$504, MATCH(ResFin[[#This Row],[N° Activity]],Costs!$C$9:$C$504,0)))) -> 0 | M54: =IF($F54="","",(INDEX(Costs!$J$9:$J$504, MATCH(ResFin[[#This Row],[N° Activity]],Costs!$C$9:$C$504,0)))) -> 0 | N54: Riposte | O54: =IF(ResFin[[#This Row],[Area]]= "", "", IF(OR(ResFin[[#This Row],[Area]]= "EIR ", ResFin[[#This Row],[Area]]= "Points d'entrée"),"Surveillance",ResFin[[#This Row],[Area]])) -> Surveillance | Q54: Niveau central | T54: Financial resources | U54: 1108.333333 | W54: 554.1666667 | Y54: =ResFin[[#This Row],[Date of disbursement]]-ResFin[[#This Row],[Date of commitment]] -> 0
C55: Financement PTF | D55: PTF8 | E55: Réorientation des fonds | F55: 108 | G55: =IF($F55="","",IF(ISNA(MATCH(F55,Costs!$C$22:$C$504,0)),(IF(F55="","",IF(ISNA(MATCH(F55,Costs!$C$10:$C$20,0)),"Non-ciblé","Ciblé sur un domaine"))),"Ciblé sur une activité")) -> Ciblé sur une activité | H55: =IF($F55="","",(INDEX(Costs!$B$9:$B$504, MATCH('Financial Resources'!F55,Costs!$C$9:$C$504,0)))) -> Plan riposte central | I55: =IF($F55="","",(INDEX(Costs!$D$9:$D$504, MATCH(ResFin[[#This Row],[N° Activity]],Costs!$C$9:$C$504,0)))) -> Activity 108 | J55: =IF($F55="","",(INDEX(Costs!$F$9:$F$504, MATCH(ResFin[[#This Row],[N° Activity]],Costs!$C$9:$C$504,0)))) -> Surveillance | K55: =IF(F55="","",(INDEX(Costs!$H$9:$H$504, MATCH(ResFin[[#This Row],[N° Activity]],Costs!$C$9:$C$504,0)))) -> 0 | L55: =IF($F55="","",(INDEX(Costs!$I$9:$I$504, MATCH(ResFin[[#This Row],[N° Activity]],Costs!$C$9:$C$504,0)))) -> CT | M55: =IF($F55="","",(INDEX(Costs!$J$9:$J$504, MATCH(ResFin[[#This Row],[N° Activity]],Costs!$C$9:$C$504,0)))) -> 0 | N55: Riposte | O55: =IF(ResFin[[#This Row],[Area]]= "", "", IF(OR(ResFin[[#This Row],[Area]]= "EIR ", ResFin[[#This Row],[Area]]= "Points d'entrée"),"Surveillance",ResFin[[#This Row],[Area]])) -> Surveillance | Q55: Niveau des districts | R55: Region 4 | S55: District 1 | T55: Financial resources | U55: 5357.142857 | W55: 2678.571429 | Y55: =ResFin[[#This Row],[Date of disbursement]]-ResFin[[#This Row],[Date of commitment]] -> 0
C56: Financement PTF | D56: PTF8 | E56: Réorientation des fonds | F56: Resources Non-ciblé | G56: =IF($F56="","",IF(ISNA(MATCH(F56,Costs!$C$22:$C$504,0)),(IF(F56="","",IF(ISNA(MATCH(F56,Costs!$C$10:$C$20,0)),"Non-ciblé","Ciblé sur un domaine"))),"Ciblé sur une activité")) -> Non-ciblé | H56: =IF($F56="","",(INDEX(Costs!$B$9:$B$504, MATCH('Financial Resources'!F56,Costs!$C$9:$C$504,0)))) -> Plan riposte central | I56: =IF($F56="","",(INDEX(Costs!$D$9:$D$504, MATCH(ResFin[[#This Row],[N° Activity]],Costs!$C$9:$C$504,0)))) -> Contribution en resources non-ciblée à allouer à un domain ou une activité spécifique dans le plan de riposte | J56: =IF($F56="","",(INDEX(Costs!$F$9:$F$504, MATCH(ResFin[[#This Row],[N° Activity]],Costs!$C$9:$C$504,0)))) -> 0 | K56: =IF(F56="","",(INDEX(Costs!$H$9:$H$504, MATCH(ResFin[[#This Row],[N° Activity]],Costs!$C$9:$C$504,0)))) -> 0 | L56: =IF($F56="","",(INDEX(Costs!$I$9:$I$504, MATCH(ResFin[[#This Row],[N° Activity]],Costs!$C$9:$C$504,0)))) -> 0 | M56: =IF($F56="","",(INDEX(Costs!$J$9:$J$504, MATCH(ResFin[[#This Row],[N° Activity]],Costs!$C$9:$C$504,0)))) -> 0 | N56: Riposte | O56: =IF(ResFin[[#This Row],[Area]]= "", "", IF(OR(ResFin[[#This Row],[Area]]= "EIR ", ResFin[[#This Row],[Area]]= "Points d'entrée"),"Surveillance",ResFin[[#This Row],[Area]])) -> 0 | Q56: n'est pas spécifié | T56: Financial resources | U56: 916350.7029 | W56: 458175.3514 | Y56: =ResFin[[#This Row],[Date of disbursement]]-ResFin[[#This Row],[Date of commitment]] -> 0
C57: Financement PTF | D57: PTF8 | E57: Réorientation des fonds | F57: 175 | G57: =IF($F57="","",IF(ISNA(MATCH(F57,Costs!$C$22:$C$504,0)),(IF(F57="","",IF(ISNA(MATCH(F57,Costs!$C$10:$C$20,0)),"Non-ciblé","Ciblé sur un domaine"))),"Ciblé sur une activité")) -> Ciblé sur une activité | H57: =IF($F57="","",(INDEX(Costs!$B$9:$B$504, MATCH('Financial Resources'!F57,Costs!$C$9:$C$504,0)))) -> Plan riposte central | I57: =IF($F57="","",(INDEX(Costs!$D$9:$D$504, MATCH(ResFin[[#This Row],[N° Activity]],Costs!$C$9:$C$504,0)))) -> Activity 175 | J57: =IF($F57="","",(INDEX(Costs!$F$9:$F$504, MATCH(ResFin[[#This Row],[N° Activity]],Costs!$C$9:$C$504,0)))) -> Prise en charge des cas | K57: =IF(F57="","",(INDEX(Costs!$H$9:$H$504, MATCH(ResFin[[#This Row],[N° Activity]],Costs!$C$9:$C$504,0)))) -> 0 | L57: =IF($F57="","",(INDEX(Costs!$I$9:$I$504, MATCH(ResFin[[#This Row],[N° Activity]],Costs!$C$9:$C$504,0)))) -> CT | M57: =IF($F57="","",(INDEX(Costs!$J$9:$J$504, MATCH(ResFin[[#This Row],[N° Activity]],Costs!$C$9:$C$504,0)))) -> 0 | N57: Riposte | O57: =IF(ResFin[[#This Row],[Area]]= "", "", IF(OR(ResFin[[#This Row],[Area]]= "EIR ", ResFin[[#This Row],[Area]]= "Points d'entrée"),"Surveillance",ResFin[[#This Row],[Area]])) -> Prise en charge des cas | Q57: Niveau des districts | R57: Region 3 | S57: District 2 | T57: Financial resources | U57: 26785.71429 | W57: 13392.85714 | Y57: =ResFin[[#This Row],[Date of disbursement]]-ResFin[[#This Row],[Date of commitment]] -> 0
C58: Financement PTF | D58: PTF1 | E58: Réorientation des fonds | F58: Ciblé (Coordination) | G58: =IF($F58="","",IF(ISNA(MATCH(F58,Costs!$C$22:$C$504,0)),(IF(F58="","",IF(ISNA(MATCH(F58,Costs!$C$10:$C$20,0)),"Non-ciblé","Ciblé sur un domaine"))),"Ciblé sur une activité")) -> Ciblé sur un domaine | H58: =IF($F58="","",(INDEX(Costs!$B$9:$B$504, MATCH('Financial Resources'!F58,Costs!$C$9:$C$504,0)))) -> Plan riposte central | I58: =IF($F58="","",(INDEX(Costs!$D$9:$D$504, MATCH(ResFin[[#This Row],[N° Activity]],Costs!$C$9:$C$504,0)))) -> Contribution ciblée sur le domaine de Coordination à allouer à une activité spécifique dans le plan de riposte | J58: =IF($F58="","",(INDEX(Costs!$F$9:$F$504, MATCH(ResFin[[#This Row],[N° Activity]],Costs!$C$9:$C$504,0)))) -> Coordination | K58: =IF(F58="","",(INDEX(Costs!$H$9:$H$504, MATCH(ResFin[[#This Row],[N° Activity]],Costs!$C$9:$C$504,0)))) -> 0 | L58: =IF($F58="","",(INDEX(Costs!$I$9:$I$504, MATCH(ResFin[[#This Row],[N° Activity]],Costs!$C$9:$C$504,0)))) -> 0 | M58: =IF($F58="","",(INDEX(Costs!$J$9:$J$504, MATCH(ResFin[[#This Row],[N° Activity]],Costs!$C$9:$C$504,0)))) -> 0 | N58: Riposte | O58: =IF(ResFin[[#This Row],[Area]]= "", "", IF(OR(ResFin[[#This Row],[Area]]= "EIR ", ResFin[[#This Row],[Area]]= "Points d'entrée"),"Surveillance",ResFin[[#This Row],[Area]])) -> Coordination | Q58: Niveau des districts | T58: Ressources financières | U58: 238510.119 | W58: 119255.0595 | Y58: =ResFin[[#This Row],[Date of disbursement]]-ResFin[[#This Row],[Date of commitment]] -> 0
C59: Financement PTF | D59: PTF1 | E59: Réorientation des fonds | F59: Ciblé (EIR) | G59: =IF($F59="","",IF(ISNA(MATCH(F59,Costs!$C$22:$C$504,0)),(IF(F59="","",IF(ISNA(MATCH(F59,Costs!$C$10:$C$20,0)),"Non-ciblé","Ciblé sur un domaine"))),"Ciblé sur une activité")) -> Ciblé sur un domaine | H59: =IF($F59="","",(INDEX(Costs!$B$9:$B$504, MATCH('Financial Resources'!F59,Costs!$C$9:$C$504,0)))) -> Plan riposte central | I59: =IF($F59="","",(INDEX(Costs!$D$9:$D$504, MATCH(ResFin[[#This Row],[N° Activity]],Costs!$C$9:$C$504,0)))) -> Contribution ciblée sur le domaine de EIR à allouer à une activité spécifique dans le plan de riposte | J59: =IF($F59="","",(INDEX(Costs!$F$9:$F$504, MATCH(ResFin[[#This Row],[N° Activity]],Costs!$C$9:$C$504,0)))) -> EIR | K59: =IF(F59="","",(INDEX(Costs!$H$9:$H$504, MATCH(ResFin[[#This Row],[N° Activity]],Costs!$C$9:$C$504,0)))) -> 0 | L59: =IF($F59="","",(INDEX(Costs!$I$9:$I$504, MATCH(ResFin[[#This Row],[N° Activity]],Costs!$C$9:$C$504,0)))) -> 0 | M59: =IF($F59="","",(INDEX(Costs!$J$9:$J$504, MATCH(ResFin[[#This Row],[N° Activity]],Costs!$C$9:$C$504,0)))) -> 0 | N59: Riposte | O59: =IF(ResFin[[#This Row],[Area]]= "", "", IF(OR(ResFin[[#This Row],[Area]]= "EIR ", ResFin[[#This Row],[Area]]= "Points d'entrée"),"Surveillance",ResFin[[#This Row],[Area]])) -> Surveillance | Q59: Niveau régional | T59: Ressources financières | U59: 124114.2857 | W59: 62057.14286 | Y59: =ResFin[[#This Row],[Date of disbursement]]-ResFin[[#This Row],[Date of commitment]] -> 0
C60: Financement PTF | D60: PTF1 | E60: Réorientation des fonds | F60: Ciblé (Logistique) | G60: =IF($F60="","",IF(ISNA(MATCH(F60,Costs!$C$22:$C$504,0)),(IF(F60="","",IF(ISNA(MATCH(F60,Costs!$C$10:$C$20,0)),"Non-ciblé","Ciblé sur un domaine"))),"Ciblé sur une activité")) -> Ciblé sur un domaine | H60: =IF($F60="","",(INDEX(Costs!$B$9:$B$504, MATCH('Financial Resources'!F60,Costs!$C$9:$C$504,0)))) -> Plan riposte central | I60: =IF($F60="","",(INDEX(Costs!$D$9:$D$504, MATCH(ResFin[[#This Row],[N° Activity]],Costs!$C$9:$C$504,0)))) -> Contribution ciblée sur le domaine de Logistique à allouer à une activité spécifique dans le plan de riposte | J60: =IF($F60="","",(INDEX(Costs!$F$9:$F$504, MATCH(ResFin[[#This Row],[N° Activity]],Costs!$C$9:$C$504,0)))) -> Logistique | K60: =IF(F60="","",(INDEX(Costs!$H$9:$H$504, MATCH(ResFin[[#This Row],[N° Activity]],Costs!$C$9:$C$504,0)))) -> 0 | L60: =IF($F60="","",(INDEX(Costs!$I$9:$I$504, MATCH(ResFin[[#This Row],[N° Activity]],Costs!$C$9:$C$504,0)))) -> 0 | M60: =IF($F60="","",(INDEX(Costs!$J$9:$J$504, MATCH(ResFin[[#This Row],[N° Activity]],Costs!$C$9:$C$504,0)))) -> 0 | N60: Riposte | O60: =IF(ResFin[[#This Row],[Area]]= "", "", IF(OR(ResFin[[#This Row],[Area]]= "EIR ", ResFin[[#This Row],[Area]]= "Points d'entrée"),"Surveillance",ResFin[[#This Row],[Area]])) -> Logistique | Q60: Niveau régional | T60: Ressources financières | U60: 1316640.71 | W60: 658320.3548 | Y60: =ResFin[[#This Row],[Date of disbursement]]-ResFin[[#This Row],[Date of commitment]] -> 0
C61: Financement PTF | D61: PTF9 | E61: Réorientation des fonds | F61: 19 | G61: =IF($F61="","",IF(ISNA(MATCH(F61,Costs!$C$22:$C$504,0)),(IF(F61="","",IF(ISNA(MATCH(F61,Costs!$C$10:$C$20,0)),"Non-ciblé","Ciblé sur un domaine"))),"Ciblé sur une activité")) -> Ciblé sur une activité | H61: =IF($F61="","",(INDEX(Costs!$B$9:$B$504, MATCH('Financial Resources'!F61,Costs!$C$9:$C$504,0)))) -> Plan riposte central | I61: =IF($F61="","",(INDEX(Costs!$D$9:$D$504, MATCH(ResFin[[#This Row],[N° Activity]],Costs!$C$9:$C$504,0)))) -> Activity 19 | J61: =IF($F61="","",(INDEX(Costs!$F$9:$F$504, MATCH(ResFin[[#This Row],[N° Activity]],Costs!$C$9:$C$504,0)))) -> Communication | K61: =IF(F61="","",(INDEX(Costs!$H$9:$H$504, MATCH(ResFin[[#This Row],[N° Activity]],Costs!$C$9:$C$504,0)))) -> 0 | L61: =IF($F61="","",(INDEX(Costs!$I$9:$I$504, MATCH(ResFin[[#This Row],[N° Activity]],Costs!$C$9:$C$504,0)))) -> CT | M61: =IF($F61="","",(INDEX(Costs!$J$9:$J$504, MATCH(ResFin[[#This Row],[N° Activity]],Costs!$C$9:$C$504,0)))) -> 0 | N61: Préparation | O61: =IF(ResFin[[#This Row],[Area]]= "", "", IF(OR(ResFin[[#This Row],[Area]]= "EIR ", ResFin[[#This Row],[Area]]= "Points d'entrée"),"Surveillance",ResFin[[#This Row],[Area]])) -> Communication | Q61: Niveau des districts | R61: Region 2 | S61: District 3 | T61: Ressources financières | U61: 5000 | W61: 2500 | Y61: =ResFin[[#This Row],[Date of disbursement]]-ResFin[[#This Row],[Date of commitment]] -> 0
C62: Financement PTF | D62: PTF9 | E62: Réorientation des fonds | F62: 20 | G62: =IF($F62="","",IF(ISNA(MATCH(F62,Costs!$C$22:$C$504,0)),(IF(F62="","",IF(ISNA(MATCH(F62,Costs!$C$10:$C$20,0)),"Non-ciblé","Ciblé sur un domaine"))),"Ciblé sur une activité")) -> Ciblé sur une activité | H62: =IF($F62="","",(INDEX(Costs!$B$9:$B$504, MATCH('Financial Resources'!F62,Costs!$C$9:$C$504,0)))) -> Plan riposte central | I62: =IF($F62="","",(INDEX(Costs!$D$9:$D$504, MATCH(ResFin[[#This Row],[N° Activity]],Costs!$C$9:$C$504,0)))) -> Activity 20 | J62: =IF($F62="","",(INDEX(Costs!$F$9:$F$504, MATCH(ResFin[[#This Row],[N° Activity]],Costs!$C$9:$C$504,0)))) -> Communication | K62: =IF(F62="","",(INDEX(Costs!$H$9:$H$504, MATCH(ResFin[[#This Row],[N° Activity]],Costs!$C$9:$C$504,0)))) -> 0 | L62: =IF($F62="","",(INDEX(Costs!$I$9:$I$504, MATCH(ResFin[[#This Row],[N° Activity]],Costs!$C$9:$C$504,0)))) -> CT | M62: =IF($F62="","",(INDEX(Costs!$J$9:$J$504, MATCH(ResFin[[#This Row],[N° Activity]],Costs!$C$9:$C$504,0)))) -> 0 | N62: Préparation | O62: =IF(ResFin[[#This Row],[Area]]= "", "", IF(OR(ResFin[[#This Row],[Area]]= "EIR ", ResFin[[#This Row],[Area]]= "Points d'entrée"),"Surveillance",ResFin[[#This Row],[Area]])) -> Communication | Q62: Niveau des districts | R62: Region 4 | S62: District 2 | T62: Ressources financières | U62: 732.1428571 | W62: 366.0714286 | Y62: =ResFin[[#This Row],[Date of disbursement]]-ResFin[[#This Row],[Date of commitment]] -> 0
C63: Financement PTF | D63: PTF9 | E63: Réorientation des fonds | F63: 21 | G63: =IF($F63="","",IF(ISNA(MATCH(F63,Costs!$C$22:$C$504,0)),(IF(F63="","",IF(ISNA(MATCH(F63,Costs!$C$10:$C$20,0)),"Non-ciblé","Ciblé sur un domaine"))),"Ciblé sur une activité")) -> Ciblé sur une activité | H63: =IF($F63="","",(INDEX(Costs!$B$9:$B$504, MATCH('Financial Resources'!F63,Costs!$C$9:$C$504,0)))) -> Plan riposte central | I63: =IF($F63="","",(INDEX(Costs!$D$9:$D$504, MATCH(ResFin[[#This Row],[N° Activity]],Costs!$C$9:$C$504,0)))) -> Activity 21 | J63: =IF($F63="","",(INDEX(Costs!$F$9:$F$504, MATCH(ResFin[[#This Row],[N° Activity]],Costs!$C$9:$C$504,0)))) -> Communication | K63: =IF(F63="","",(INDEX(Costs!$H$9:$H$504, MATCH(ResFin[[#This Row],[N° Activity]],Costs!$C$9:$C$504,0)))) -> 0 | L63: =IF($F63="","",(INDEX(Costs!$I$9:$I$504, MATCH(ResFin[[#This Row],[N° Activity]],Costs!$C$9:$C$504,0)))) -> CT | M63: =IF($F63="","",(INDEX(Costs!$J$9:$J$504, MATCH(ResFin[[#This Row],[N° Activity]],Costs!$C$9:$C$504,0)))) -> 0 | N63: Préparation | O63: =IF(ResFin[[#This Row],[Area]]= "", "", IF(OR(ResFin[[#This Row],[Area]]= "EIR ", ResFin[[#This Row],[Area]]= "Points d'entrée"),"Surveillance",ResFin[[#This Row],[Area]])) -> Communication | Q63: Niveau des districts | R63: Region 3 | S63: District 3 | T63: Ressources financières | U63: 732.1428571 | W63: 366.0714286 | Y63: =ResFin[[#This Row],[Date of disbursement]]-ResFin[[#This Row],[Date of commitment]] -> 0
C64: Financement PTF | D64: PTF9 | E64: Réorientation des fonds | F64: 37 | G64: =IF($F64="","",IF(ISNA(MATCH(F64,Costs!$C$22:$C$504,0)),(IF(F64="","",IF(ISNA(MATCH(F64,Costs!$C$10:$C$20,0)),"Non-ciblé","Ciblé sur un domaine"))),"Ciblé sur une activité")) -> Ciblé sur une activité | H64: =IF($F64="","",(INDEX(Costs!$B$9:$B$504, MATCH('Financial Resources'!F64,Costs!$C$9:$C$504,0)))) -> Plan riposte central | I64: =IF($F64="","",(INDEX(Costs!$D$9:$D$504, MATCH(ResFin[[#This Row],[N° Activity]],Costs!$C$9:$C$504,0)))) -> Activity 37 | J64: =IF($F64="","",(INDEX(Costs!$F$9:$F$504, MATCH(ResFin[[#This Row],[N° Activity]],Costs!$C$9:$C$504,0)))) -> EIR | K64: =IF(F64="","",(INDEX(Costs!$H$9:$H$504, MATCH(ResFin[[#This Row],[N° Activity]],Costs!$C$9:$C$504,0)))) -> 0 | L64: =IF($F64="","",(INDEX(Costs!$I$9:$I$504, MATCH(ResFin[[#This Row],[N° Activity]],Costs!$C$9:$C$504,0)))) -> CT | M64: =IF($F64="","",(INDEX(Costs!$J$9:$J$504, MATCH(ResFin[[#This Row],[N° Activity]],Costs!$C$9:$C$504,0)))) -> 0 | N64: Préparation | O64: =IF(ResFin[[#This Row],[Area]]= "", "", IF(OR(ResFin[[#This Row],[Area]]= "EIR ", ResFin[[#This Row],[Area]]= "Points d'entrée"),"Surveillance",ResFin[[#This Row],[Area]])) -> Surveillance | Q64: Niveau des districts | R64: Region 5 | S64: District 2 | T64: Ressources financières | U64: 55888.09524 | W64: 27944.04762 | Y64: =ResFin[[#This Row],[Date of disbursement]]-ResFin[[#This Row],[Date of commitment]] -> 0
C65: Financement PTF | D65: PTF9 | E65: Réorientation des fonds | F65: 156 | G65: =IF($F65="","",IF(ISNA(MATCH(F65,Costs!$C$22:$C$504,0)),(IF(F65="","",IF(ISNA(MATCH(F65,Costs!$C$10:$C$20,0)),"Non-ciblé","Ciblé sur un domaine"))),"Ciblé sur une activité")) -> Ciblé sur une activité | H65: =IF($F65="","",(INDEX(Costs!$B$9:$B$504, MATCH('Financial Resources'!F65,Costs!$C$9:$C$504,0)))) -> Plan riposte central | I65: =IF($F65="","",(INDEX(Costs!$D$9:$D$504, MATCH(ResFin[[#This Row],[N° Activity]],Costs!$C$9:$C$504,0)))) -> Activity 156 | J65: =IF($F65="","",(INDEX(Costs!$F$9:$F$504, MATCH(ResFin[[#This Row],[N° Activity]],Costs!$C$9:$C$504,0)))) -> PCI | K65: =IF(F65="","",(INDEX(Costs!$H$9:$H$504, MATCH(ResFin[[#This Row],[N° Activity]],Costs!$C$9:$C$504,0)))) -> 0 | L65: =IF($F65="","",(INDEX(Costs!$I$9:$I$504, MATCH(ResFin[[#This Row],[N° Activity]],Costs!$C$9:$C$504,0)))) -> CT | M65: =IF($F65="","",(INDEX(Costs!$J$9:$J$504, MATCH(ResFin[[#This Row],[N° Activity]],Costs!$C$9:$C$504,0)))) -> 0 | N65: Riposte | O65: =IF(ResFin[[#This Row],[Area]]= "", "", IF(OR(ResFin[[#This Row],[Area]]= "EIR ", ResFin[[#This Row],[Area]]= "Points d'entrée"),"Surveillance",ResFin[[#This Row],[Area]])) -> PCI | Q65: Niveau des districts | R65: Region 4 | S65: District 3 | T65: Ressources financières | U65: 25000 | W65: 12500 | Y65: =ResFin[[#This Row],[Date of disbursement]]-ResFin[[#This Row],[Date of commitment]] -> 0
C66: Financement PTF | D66: PTF9 | E66: Réorientation des fonds | F66: 59 | G66: =IF($F66="","",IF(ISNA(MATCH(F66,Costs!$C$22:$C$504,0)),(IF(F66="","",IF(ISNA(MATCH(F66,Costs!$C$10:$C$20,0)),"Non-ciblé","Ciblé sur un domaine"))),"Ciblé sur une activité")) -> Ciblé sur une activité | H66: =IF($F66="","",(INDEX(Costs!$B$9:$B$504, MATCH('Financial Resources'!F66,Costs!$C$9:$C$504,0)))) -> Plan riposte central | I66: =IF($F66="","",(INDEX(Costs!$D$9:$D$504, MATCH(ResFin[[#This Row],[N° Activity]],Costs!$C$9:$C$504,0)))) -> Activity 59 | J66: =IF($F66="","",(INDEX(Costs!$F$9:$F$504, MATCH(ResFin[[#This Row],[N° Activity]],Costs!$C$9:$C$504,0)))) -> Logistique | K66: =IF(F66="","",(INDEX(Costs!$H$9:$H$504, MATCH(ResFin[[#This Row],[N° Activity]],Costs!$C$9:$C$504,0)))) -> 0 | L66: =IF($F66="","",(INDEX(Costs!$I$9:$I$504, MATCH(ResFin[[#This Row],[N° Activity]],Costs!$C$9:$C$504,0)))) -> CT | M66: =IF($F66="","",(INDEX(Costs!$J$9:$J$504, MATCH(ResFin[[#This Row],[N° Activity]],Costs!$C$9:$C$504,0)))) -> 0 | N66: Préparation | O66: =IF(ResFin[[#This Row],[Area]]= "", "", IF(OR(ResFin[[#This Row],[Area]]= "EIR ", ResFin[[#This Row],[Area]]= "Points d'entrée"),"Surveillance",ResFin[[#This Row],[Area]])) -> Logistique | Q66: Niveau des districts | R66: Region 1 | S66: District 2 | T66: Ressources financières | U66: 63492.0631 | W66: 31746.03155 | Y66: =ResFin[[#This Row],[Date of disbursement]]-ResFin[[#This Row],[Date of commitment]] -> 0
C67: Financement PTF | D67: PTF9 | E67: Réorientation des fonds | F67: 65 | G67: =IF($F67="","",IF(ISNA(MATCH(F67,Costs!$C$22:$C$504,0)),(IF(F67="","",IF(ISNA(MATCH(F67,Costs!$C$10:$C$20,0)),"Non-ciblé","Ciblé sur un domaine"))),"Ciblé sur une activité")) -> Ciblé sur une activité | H67: =IF($F67="","",(INDEX(Costs!$B$9:$B$504, MATCH('Financial Resources'!F67,Costs!$C$9:$C$504,0)))) -> Plan riposte central | I67: =IF($F67="","",(INDEX(Costs!$D$9:$D$504, MATCH(ResFin[[#This Row],[N° Activity]],Costs!$C$9:$C$504,0)))) -> Activity 65 | J67: =IF($F67="","",(INDEX(Costs!$F$9:$F$504, MATCH(ResFin[[#This Row],[N° Activity]],Costs!$C$9:$C$504,0)))) -> Prise en charge des cas | K67: =IF(F67="","",(INDEX(Costs!$H$9:$H$504, MATCH(ResFin[[#This Row],[N° Activity]],Costs!$C$9:$C$504,0)))) -> 0 | L67: =IF($F67="","",(INDEX(Costs!$I$9:$I$504, MATCH(ResFin[[#This Row],[N° Activity]],Costs!$C$9:$C$504,0)))) -> CT | M67: =IF($F67="","",(INDEX(Costs!$J$9:$J$504, MATCH(ResFin[[#This Row],[N° Activity]],Costs!$C$9:$C$504,0)))) -> 0 | N67: Préparation | O67: =IF(ResFin[[#This Row],[Area]]= "", "", IF(OR(ResFin[[#This Row],[Area]]= "EIR ", ResFin[[#This Row],[Area]]= "Points d'entrée"),"Surveillance",ResFin[[#This Row],[Area]])) -> Prise en charge des cas | Q67: Niveau des districts | R67: Region 2 | S67: District 3 | T67: Ressources financières | U67: 66828.69048 | W67: 33414.34524 | Y67: =ResFin[[#This Row],[Date of disbursement]]-ResFin[[#This Row],[Date of commitment]] -> 0
C68: Financement PTF | D68: PTF9 | E68: Réorientation des fonds | F68: Ciblé (Prise en charge des cas) | G68: =IF($F68="","",IF(ISNA(MATCH(F68,Costs!$C$22:$C$504,0)),(IF(F68="","",IF(ISNA(MATCH(F68,Costs!$C$10:$C$20,0)),"Non-ciblé","Ciblé sur un domaine"))),"Ciblé sur une activité")) -> Ciblé sur un domaine | H68: =IF($F68="","",(INDEX(Costs!$B$9:$B$504, MATCH('Financial Resources'!F68,Costs!$C$9:$C$504,0)))) -> Plan riposte central | I68: =IF($F68="","",(INDEX(Costs!$D$9:$D$504, MATCH(ResFin[[#This Row],[N° Activity]],Costs!$C$9:$C$504,0)))) -> Contribution ciblée sur le domaine de Prise en charge des cas à allouer à une activité spécifique dans le plan de riposte | J68: =IF($F68="","",(INDEX(Costs!$F$9:$F$504, MATCH(ResFin[[#This Row],[N° Activity]],Costs!$C$9:$C$504,0)))) -> Prise en charge des cas | K68: =IF(F68="","",(INDEX(Costs!$H$9:$H$504, MATCH(ResFin[[#This Row],[N° Activity]],Costs!$C$9:$C$504,0)))) -> 0 | L68: =IF($F68="","",(INDEX(Costs!$I$9:$I$504, MATCH(ResFin[[#This Row],[N° Activity]],Costs!$C$9:$C$504,0)))) -> 0 | M68: =IF($F68="","",(INDEX(Costs!$J$9:$J$504, MATCH(ResFin[[#This Row],[N° Activity]],Costs!$C$9:$C$504,0)))) -> 0 | N68: Préparation | O68: =IF(ResFin[[#This Row],[Area]]= "", "", IF(OR(ResFin[[#This Row],[Area]]= "EIR ", ResFin[[#This Row],[Area]]= "Points d'entrée"),"Surveillance",ResFin[[#This Row],[Area]])) -> Prise en charge des cas | Q68: Niveau des districts | R68: Region 4 | S68: District 2 | T68: Ressources financières | U68: 15666.66667 | W68: 7833.333333 | Y68: =ResFin[[#This Row],[Date of disbursement]]-ResFin[[#This Row],[Date of commitment]] -> 0
C69: Financement PTF | D69: PTF9 | E69: Réorientation des fonds | F69: 68 | G69: =IF($F69="","",IF(ISNA(MATCH(F69,Costs!$C$22:$C$504,0)),(IF(F69="","",IF(ISNA(MATCH(F69,Costs!$C$10:$C$20,0)),"Non-ciblé","Ciblé sur un domaine"))),"Ciblé sur une activité")) -> Ciblé sur une activité | H69: =IF($F69="","",(INDEX(Costs!$B$9:$B$504, MATCH('Financial Resources'!F69,Costs!$C$9:$C$504,0)))) -> Plan riposte central | I69: =IF($F69="","",(INDEX(Costs!$D$9:$D$504, MATCH(ResFin[[#This Row],[N° Activity]],Costs!$C$9:$C$504,0)))) -> Activity 68 | J69: =IF($F69="","",(INDEX(Costs!$F$9:$F$504, MATCH(ResFin[[#This Row],[N° Activity]],Costs!$C$9:$C$504,0)))) -> Prise en charge des cas | K69: =IF(F69="","",(INDEX(Costs!$H$9:$H$504, MATCH(ResFin[[#This Row],[N° Activity]],Costs!$C$9:$C$504,0)))) -> 0 | L69: =IF($F69="","",(INDEX(Costs!$I$9:$I$504, MATCH(ResFin[[#This Row],[N° Activity]],Costs!$C$9:$C$504,0)))) -> CT | M69: =IF($F69="","",(INDEX(Costs!$J$9:$J$504, MATCH(ResFin[[#This Row],[N° Activity]],Costs!$C$9:$C$504,0)))) -> 0 | N69: Préparation | O69: =IF(ResFin[[#This Row],[Area]]= "", "", IF(OR(ResFin[[#This Row],[Area]]= "EIR ", ResFin[[#This Row],[Area]]= "Points d'entrée"),"Surveillance",ResFin[[#This Row],[Area]])) -> Prise en charge des cas | Q69: Niveau des districts | R69: Region 3 | S69: District 3 | T69: Ressources financières | U69: 1940.095238 | W69: 970.047619 | Y69: =ResFin[[#This Row],[Date of disbursement]]-ResFin[[#This Row],[Date of commitment]] -> 0
C70: Financement PTF | D70: PTF9 | E70: Réorientation des fonds | F70: 69 | G70: =IF($F70="","",IF(ISNA(MATCH(F70,Costs!$C$22:$C$504,0)),(IF(F70="","",IF(ISNA(MATCH(F70,Costs!$C$10:$C$20,0)),"Non-ciblé","Ciblé sur un domaine"))),"Ciblé sur une activité")) -> Ciblé sur une activité | H70: =IF($F70="","",(INDEX(Costs!$B$9:$B$504, MATCH('Financial Resources'!F70,Costs!$C$9:$C$504,0)))) -> Plan riposte central | I70: =IF($F70="","",(INDEX(Costs!$D$9:$D$504, MATCH(ResFin[[#This Row],[N° Activity]],Costs!$C$9:$C$504,0)))) -> Activity 69 | J70: =IF($F70="","",(INDEX(Costs!$F$9:$F$504, MATCH(ResFin[[#This Row],[N° Activity]],Costs!$C$9:$C$504,0)))) -> Sécurité | K70: =IF(F70="","",(INDEX(Costs!$H$9:$H$504, MATCH(ResFin[[#This Row],[N° Activity]],Costs!$C$9:$C$504,0)))) -> 0 | L70: =IF($F70="","",(INDEX(Costs!$I$9:$I$504, MATCH(ResFin[[#This Row],[N° Activity]],Costs!$C$9:$C$504,0)))) -> CT | M70: =IF($F70="","",(INDEX(Costs!$J$9:$J$504, MATCH(ResFin[[#This Row],[N° Activity]],Costs!$C$9:$C$504,0)))) -> 0 | N70: Préparation | O70: =IF(ResFin[[#This Row],[Area]]= "", "", IF(OR(ResFin[[#This Row],[Area]]= "EIR ", ResFin[[#This Row],[Area]]= "Points d'entrée"),"Surveillance",ResFin[[#This Row],[Area]])) -> Sécurité | Q70: Niveau des districts | R70: Region 5 | S70: District 2 | T70: Ressources financières | U70: 2805.357143 | W70: 1402.678571 | Y70: =ResFin[[#This Row],[Date of disbursement]]-ResFin[[#This Row],[Date of commitment]] -> 0
C71: Financement PTF | D71: PTF9 | E71: Réorientation des fonds | F71: 125 | G71: =IF($F71="","",IF(ISNA(MATCH(F71,Costs!$C$22:$C$504,0)),(IF(F71="","",IF(ISNA(MATCH(F71,Costs!$C$10:$C$20,0)),"Non-ciblé","Ciblé sur un domaine"))),"Ciblé sur une activité")) -> Ciblé sur une activité | H71: =IF($F71="","",(INDEX(Costs!$B$9:$B$504, MATCH('Financial Resources'!F71,Costs!$C$9:$C$504,0)))) -> Plan riposte central | I71: =IF($F71="","",(INDEX(Costs!$D$9:$D$504, MATCH(ResFin[[#This Row],[N° Activity]],Costs!$C$9:$C$504,0)))) -> Activity 125 | J71: =IF($F71="","",(INDEX(Costs!$F$9:$F$504, MATCH(ResFin[[#This Row],[N° Activity]],Costs!$C$9:$C$504,0)))) -> Surveillance | K71: =IF(F71="","",(INDEX(Costs!$H$9:$H$504, MATCH(ResFin[[#This Row],[N° Activity]],Costs!$C$9:$C$504,0)))) -> 0 | L71: =IF($F71="","",(INDEX(Costs!$I$9:$I$504, MATCH(ResFin[[#This Row],[N° Activity]],Costs!$C$9:$C$504,0)))) -> CT | M71: =IF($F71="","",(INDEX(Costs!$J$9:$J$504, MATCH(ResFin[[#This Row],[N° Activity]],Costs!$C$9:$C$504,0)))) -> 0 | N71: Riposte | O71: =IF(ResFin[[#This Row],[Area]]= "", "", IF(OR(ResFin[[#This Row],[Area]]= "EIR ", ResFin[[#This Row],[Area]]= "Points d'entrée"),"Surveillance",ResFin[[#This Row],[Area]])) -> Surveillance | Q71: Niveau des districts | R71: Region 4 | S71: District 3 | T71: Ressources financières | U71: 8702.380952 | W71: 4351.190476 | Y71: =ResFin[[#This Row],[Date of disbursement]]-ResFin[[#This Row],[Date of commitment]] -> 0
C72: Financement PTF | D72: PTF9 | E72: Réorientation des fonds | F72: 179 | G72: =IF($F72="","",IF(ISNA(MATCH(F72,Costs!$C$22:$C$504,0)),(IF(F72="","",IF(ISNA(MATCH(F72,Costs!$C$10:$C$20,0)),"Non-ciblé","Ciblé sur un domaine"))),"Ciblé sur une activité")) -> Ciblé sur une activité | H72: =IF($F72="","",(INDEX(Costs!$B$9:$B$504, MATCH('Financial Resources'!F72,Costs!$C$9:$C$504,0)))) -> Plan riposte central | I72: =IF($F72="","",(INDEX(Costs!$D$9:$D$504, MATCH(ResFin[[#This Row],[N° Activity]],Costs!$C$9:$C$504,0)))) -> Activity 179 | J72: =IF($F72="","",(INDEX(Costs!$F$9:$F$504, MATCH(ResFin[[#This Row],[N° Activity]],Costs!$C$9:$C$504,0)))) -> Prise en charge des cas | K72: =IF(F72="","",(INDEX(Costs!$H$9:$H$504, MATCH(ResFin[[#This Row],[N° Activity]],Costs!$C$9:$C$504,0)))) -> 0 | L72: =IF($F72="","",(INDEX(Costs!$I$9:$I$504, MATCH(ResFin[[#This Row],[N° Activity]],Costs!$C$9:$C$504,0)))) -> CT | M72: =IF($F72="","",(INDEX(Costs!$J$9:$J$504, MATCH(ResFin[[#This Row],[N° Activity]],Costs!$C$9:$C$504,0)))) -> 0 | N72: Riposte | O72: =IF(ResFin[[#This Row],[Area]]= "", "", IF(OR(ResFin[[#This Row],[Area]]= "EIR ", ResFin[[#This Row],[Area]]= "Points d'entrée"),"Surveillance",ResFin[[#This Row],[Area]])) -> Prise en charge des cas | Q72: Niveau des districts | R72: Region 1 | S72: District 2 | T72: Ressources financières | U72: 1145.238095 | W72: 572.6190476 | Y72: =ResFin[[#This Row],[Date of disbursement]]-ResFin[[#This Row],[Date of commitment]] -> 0
C73: Financement PTF | D73: PTF9 | E73: Réorientation des fonds | F73: Ciblé (Labratoire) | G73: =IF($F73="","",IF(ISNA(MATCH(F73,Costs!$C$22:$C$504,0)),(IF(F73="","",IF(ISNA(MATCH(F73,Costs!$C$10:$C$20,0)),"Non-ciblé","Ciblé sur un domaine"))),"Ciblé sur une activité")) -> Ciblé sur un domaine | H73: =IF($F73="","",(INDEX(Costs!$B$9:$B$504, MATCH('Financial Resources'!F73,Costs!$C$9:$C$504,0)))) -> Plan riposte central | I73: =IF($F73="","",(INDEX(Costs!$D$9:$D$504, MATCH(ResFin[[#This Row],[N° Activity]],Costs!$C$9:$C$504,0)))) -> Contribution ciblée sur le domaine de Laboratoire à allouer à une activité spécifique dans le plan de riposte | J73: =IF($F73="","",(INDEX(Costs!$F$9:$F$504, MATCH(ResFin[[#This Row],[N° Activity]],Costs!$C$9:$C$504,0)))) -> Laboratoire | K73: =IF(F73="","",(INDEX(Costs!$H$9:$H$504, MATCH(ResFin[[#This Row],[N° Activity]],Costs!$C$9:$C$504,0)))) -> 0 | L73: =IF($F73="","",(INDEX(Costs!$I$9:$I$504, MATCH(ResFin[[#This Row],[N° Activity]],Costs!$C$9:$C$504,0)))) -> 0 | M73: =IF($F73="","",(INDEX(Costs!$J$9:$J$504, MATCH(ResFin[[#This Row],[N° Activity]],Costs!$C$9:$C$504,0)))) -> 0 | N73: Riposte | O73: =IF(ResFin[[#This Row],[Area]]= "", "", IF(OR(ResFin[[#This Row],[Area]]= "EIR ", ResFin[[#This Row],[Area]]= "Points d'entrée"),"Surveillance",ResFin[[#This Row],[Area]])) -> Laboratoire | Q73: Niveau des districts | R73: Region 2 | S73: District 3 | T73: Ressources financières | U73: 46848.64286 | W73: 23424.32143 | Y73: =ResFin[[#This Row],[Date of disbursement]]-ResFin[[#This Row],[Date of commitment]] -> 0
C74: Financement PTF | D74: PTF2 | E74: Nouveau don | F74: Ciblé (Surveillance) | G74: =IF($F74="","",IF(ISNA(MATCH(F74,Costs!$C$22:$C$504,0)),(IF(F74="","",IF(ISNA(MATCH(F74,Costs!$C$10:$C$20,0)),"Non-ciblé","Ciblé sur un domaine"))),"Ciblé sur une activité")) -> Ciblé sur un domaine | H74: =IF($F74="","",(INDEX(Costs!$B$9:$B$504, MATCH('Financial Resources'!F74,Costs!$C$9:$C$504,0)))) -> Plan riposte central | I74: =IF($F74="","",(INDEX(Costs!$D$9:$D$504, MATCH(ResFin[[#This Row],[N° Activity]],Costs!$C$9:$C$504,0)))) -> Contribution ciblée sur le domaine de Surveillance à allouer à une activité spécifique dans le plan de riposte | J74: =IF($F74="","",(INDEX(Costs!$F$9:$F$504, MATCH(ResFin[[#This Row],[N° Activity]],Costs!$C$9:$C$504,0)))) -> Surveillance | K74: =IF(F74="","",(INDEX(Costs!$H$9:$H$504, MATCH(ResFin[[#This Row],[N° Activity]],Costs!$C$9:$C$504,0)))) -> 0 | L74: =IF($F74="","",(INDEX(Costs!$I$9:$I$504, MATCH(ResFin[[#This Row],[N° Activity]],Costs!$C$9:$C$504,0)))) -> 0 | M74: =IF($F74="","",(INDEX(Costs!$J$9:$J$504, MATCH(ResFin[[#This Row],[N° Activity]],Costs!$C$9:$C$504,0)))) -> 0 | N74: Riposte | O74: =IF(ResFin[[#This Row],[Area]]= "", "", IF(OR(ResFin[[#This Row],[Area]]= "EIR ", ResFin[[#This Row],[Area]]= "Points d'entrée"),"Surveillance",ResFin[[#This Row],[Area]])) -> Surveillance | Q74: Niveau des districts | R74: Region 4 | S74: District 2 | T74: Ressources financières | U74: 6904.761905 | W74: 3452.380952 | Y74: =ResFin[[#This Row],[Date of disbursement]]-ResFin[[#This Row],[Date of commitment]] -> 0
C75: Financement PTF | D75: PTF3 | E75: Nouveau don | F75: Ciblé (Logistique) | G75: =IF($F75="","",IF(ISNA(MATCH(F75,Costs!$C$22:$C$504,0)),(IF(F75="","",IF(ISNA(MATCH(F75,Costs!$C$10:$C$20,0)),"Non-ciblé","Ciblé sur un domaine"))),"Ciblé sur une activité")) -> Ciblé sur un domaine | H75: =IF($F75="","",(INDEX(Costs!$B$9:$B$504, MATCH('Financial Resources'!F75,Costs!$C$9:$C$504,0)))) -> Plan riposte central | I75: =IF($F75="","",(INDEX(Costs!$D$9:$D$504, MATCH(ResFin[[#This Row],[N° Activity]],Costs!$C$9:$C$504,0)))) -> Contribution ciblée sur le domaine de Logistique à allouer à une activité spécifique dans le plan de riposte | J75: =IF($F75="","",(INDEX(Costs!$F$9:$F$504, MATCH(ResFin[[#This Row],[N° Activity]],Costs!$C$9:$C$504,0)))) -> Logistique | K75: =IF(F75="","",(INDEX(Costs!$H$9:$H$504, MATCH(ResFin[[#This Row],[N° Activity]],Costs!$C$9:$C$504,0)))) -> 0 | L75: =IF($F75="","",(INDEX(Costs!$I$9:$I$504, MATCH(ResFin[[#This Row],[N° Activity]],Costs!$C$9:$C$504,0)))) -> 0 | M75: =IF($F75="","",(INDEX(Costs!$J$9:$J$504, MATCH(ResFin[[#This Row],[N° Activity]],Costs!$C$9:$C$504,0)))) -> 0 | N75: Riposte | O75: =IF(ResFin[[#This Row],[Area]]= "", "", IF(OR(ResFin[[#This Row],[Area]]= "EIR ", ResFin[[#This Row],[Area]]= "Points d'entrée"),"Surveillance",ResFin[[#This Row],[Area]])) -> Logistique | Q75: Niveau des districts | R75: Region 3 | S75: District 3 | T75: Ressources financières | U75: 42949.56548 | W75: 21474.78274 | Y75: =ResFin[[#This Row],[Date of disbursement]]-ResFin[[#This Row],[Date of commitment]] -> 0
C76: Financement PTF | D76: PTF4 | E76: Réorientation des fonds | F76: Ciblé (Communication) | G76: =IF($F76="","",IF(ISNA(MATCH(F76,Costs!$C$22:$C$504,0)),(IF(F76="","",IF(ISNA(MATCH(F76,Costs!$C$10:$C$20,0)),"Non-ciblé","Ciblé sur un domaine"))),"Ciblé sur une activité")) -> Ciblé sur un domaine | H76: =IF($F76="","",(INDEX(Costs!$B$9:$B$504, MATCH('Financial Resources'!F76,Costs!$C$9:$C$504,0)))) -> Plan riposte central | I76: =IF($F76="","",(INDEX(Costs!$D$9:$D$504, MATCH(ResFin[[#This Row],[N° Activity]],Costs!$C$9:$C$504,0)))) -> Contribution ciblée sur le domaine de Communication à allouer à une activité spécifique dans le plan de riposte | J76: =IF($F76="","",(INDEX(Costs!$F$9:$F$504, MATCH(ResFin[[#This Row],[N° Activity]],Costs!$C$9:$C$504,0)))) -> Communication | K76: =IF(F76="","",(INDEX(Costs!$H$9:$H$504, MATCH(ResFin[[#This Row],[N° Activity]],Costs!$C$9:$C$504,0)))) -> 0 | L76: =IF($F76="","",(INDEX(Costs!$I$9:$I$504, MATCH(ResFin[[#This Row],[N° Activity]],Costs!$C$9:$C$504,0)))) -> 0 | M76: =IF($F76="","",(INDEX(Costs!$J$9:$J$504, MATCH(ResFin[[#This Row],[N° Activity]],Costs!$C$9:$C$504,0)))) -> 0 | N76: Riposte | O76: =IF(ResFin[[#This Row],[Area]]= "", "", IF(OR(ResFin[[#This Row],[Area]]= "EIR ", ResFin[[#This Row],[Area]]= "Points d'entrée"),"Surveillance",ResFin[[#This Row],[Area]])) -> Communication | Q76: Niveau des districts | R76: Region 5 | S76: District 2 | T76: Ressources financières | U76: 59523.80952 | W76: 29761.90476 | Y76: =ResFin[[#This Row],[Date of disbursement]]-ResFin[[#This Row],[Date of commitment]] -> 0
C77: Financement PTF | D77: PTF4 | E77: Réorientation des fonds | F77: Ciblé (Surveillance) | G77: =IF($F77="","",IF(ISNA(MATCH(F77,Costs!$C$22:$C$504,0)),(IF(F77="","",IF(ISNA(MATCH(F77,Costs!$C$10:$C$20,0)),"Non-ciblé","Ciblé sur un domaine"))),"Ciblé sur une activité")) -> Ciblé sur un domaine | H77: =IF($F77="","",(INDEX(Costs!$B$9:$B$504, MATCH('Financial Resources'!F77,Costs!$C$9:$C$504,0)))) -> Plan riposte central | I77: =IF($F77="","",(INDEX(Costs!$D$9:$D$504, MATCH(ResFin[[#This Row],[N° Activity]],Costs!$C$9:$C$504,0)))) -> Contribution ciblée sur le domaine de Surveillance à allouer à une activité spécifique dans le plan de riposte | J77: =IF($F77="","",(INDEX(Costs!$F$9:$F$504, MATCH(ResFin[[#This Row],[N° Activity]],Costs!$C$9:$C$504,0)))) -> Surveillance | K77: =IF(F77="","",(INDEX(Costs!$H$9:$H$504, MATCH(ResFin[[#This Row],[N° Activity]],Costs!$C$9:$C$504,0)))) -> 0 | L77: =IF($F77="","",(INDEX(Costs!$I$9:$I$504, MATCH(ResFin[[#This Row],[N° Activity]],Costs!$C$9:$C$504,0)))) -> 0 | M77: =IF($F77="","",(INDEX(Costs!$J$9:$J$504, MATCH(ResFin[[#This Row],[N° Activity]],Costs!$C$9:$C$504,0)))) -> 0 | N77: Riposte | O77: =IF(ResFin[[#This Row],[Area]]= "", "", IF(OR(ResFin[[#This Row],[Area]]= "EIR ", ResFin[[#This Row],[Area]]= "Points d'entrée"),"Surveillance",ResFin[[#This Row],[Area]])) -> Surveillance | Q77: Niveau des districts | R77: Region 4 | S77: District 3 | T77: Ressources financières | U77: 23809.52381 | W77: 11904.7619 | Y77: =ResFin[[#This Row],[Date of disbursement]]-ResFin[[#This Row],[Date of commitment]] -> 0
C78: Financement PTF | D78: PTF4 | E78: Réorientation des fonds | F78: Ciblé (Points d'entrée) | G78: =IF($F78="","",IF(ISNA(MATCH(F78,Costs!$C$22:$C$504,0)),(IF(F78="","",IF(ISNA(MATCH(F78,Costs!$C$10:$C$20,0)),"Non-ciblé","Ciblé sur un domaine"))),"Ciblé sur une activité")) -> Ciblé sur un domaine | H78: =IF($F78="","",(INDEX(Costs!$B$9:$B$504, MATCH('Financial Resources'!F78,Costs!$C$9:$C$504,0)))) -> Plan riposte central | I78: =IF($F78="","",(INDEX(Costs!$D$9:$D$504, MATCH(ResFin[[#This Row],[N° Activity]],Costs!$C$9:$C$504,0)))) -> Contribution ciblée sur le domaine de Points d'entrée à allouer à une activité spécifique dans le plan de riposte | J78: =IF($F78="","",(INDEX(Costs!$F$9:$F$504, MATCH(ResFin[[#This Row],[N° Activity]],Costs!$C$9:$C$504,0)))) -> Points d'entrée | K78: =IF(F78="","",(INDEX(Costs!$H$9:$H$504, MATCH(ResFin[[#This Row],[N° Activity]],Costs!$C$9:$C$504,0)))) -> 0 | L78: =IF($F78="","",(INDEX(Costs!$I$9:$I$504, MATCH(ResFin[[#This Row],[N° Activity]],Costs!$C$9:$C$504,0)))) -> 0 | M78: =IF($F78="","",(INDEX(Costs!$J$9:$J$504, MATCH(ResFin[[#This Row],[N° Activity]],Costs!$C$9:$C$504,0)))) -> 0 | N78: Préparation | O78: =IF(ResFin[[#This Row],[Area]]= "", "", IF(OR(ResFin[[#This Row],[Area]]= "EIR ", ResFin[[#This Row],[Area]]= "Points d'entrée"),"Surveillance",ResFin[[#This Row],[Area]])) -> Surveillance | Q78: Niveau central | T78: Ressources financières | U78: 187500 | W78: 93750 | Y78: =ResFin[[#This Row],[Date of disbursement]]-ResFin[[#This Row],[Date of commitment]] -> 0
C79: Financement PTF | D79: PTF4 | E79: Nouveau prêt | F79: Ciblé (Logistique) | G79: =IF($F79="","",IF(ISNA(MATCH(F79,Costs!$C$22:$C$504,0)),(IF(F79="","",IF(ISNA(MATCH(F79,Costs!$C$10:$C$20,0)),"Non-ciblé","Ciblé sur un domaine"))),"Ciblé sur une activité")) -> Ciblé sur un domaine | H79: =IF($F79="","",(INDEX(Costs!$B$9:$B$504, MATCH('Financial Resources'!F79,Costs!$C$9:$C$504,0)))) -> Plan riposte central | I79: =IF($F79="","",(INDEX(Costs!$D$9:$D$504, MATCH(ResFin[[#This Row],[N° Activity]],Costs!$C$9:$C$504,0)))) -> Contribution ciblée sur le domaine de Logistique à allouer à une activité spécifique dans le plan de riposte | J79: =IF($F79="","",(INDEX(Costs!$F$9:$F$504, MATCH(ResFin[[#This Row],[N° Activity]],Costs!$C$9:$C$504,0)))) -> Logistique | K79: =IF(F79="","",(INDEX(Costs!$H$9:$H$504, MATCH(ResFin[[#This Row],[N° Activity]],Costs!$C$9:$C$504,0)))) -> 0 | L79: =IF($F79="","",(INDEX(Costs!$I$9:$I$504, MATCH(ResFin[[#This Row],[N° Activity]],Costs!$C$9:$C$504,0)))) -> 0 | M79: =IF($F79="","",(INDEX(Costs!$J$9:$J$504, MATCH(ResFin[[#This Row],[N° Activity]],Costs!$C$9:$C$504,0)))) -> 0 | N79: Riposte | O79: =IF(ResFin[[#This Row],[Area]]= "", "", IF(OR(ResFin[[#This Row],[Area]]= "EIR ", ResFin[[#This Row],[Area]]= "Points d'entrée"),"Surveillance",ResFin[[#This Row],[Area]])) -> Logistique | Q79: Niveau central | T79: Ressources financières | U79: 2535473.64 | W79: 1267736.82 | Y79: =ResFin[[#This Row],[Date of disbursement]]-ResFin[[#This Row],[Date of commitment]] -> 0
C80: Financement PTF | D80: PTF4 | E80: Nouveau don | F80: Ciblé (Labratoire) | G80: =IF($F80="","",IF(ISNA(MATCH(F80,Costs!$C$22:$C$504,0)),(IF(F80="","",IF(ISNA(MATCH(F80,Costs!$C$10:$C$20,0)),"Non-ciblé","Ciblé sur un domaine"))),"Ciblé sur une activité")) -> Ciblé sur un domaine | H80: =IF($F80="","",(INDEX(Costs!$B$9:$B$504, MATCH('Financial Resources'!F80,Costs!$C$9:$C$504,0)))) -> Plan riposte central | I80: =IF($F80="","",(INDEX(Costs!$D$9:$D$504, MATCH(ResFin[[#This Row],[N° Activity]],Costs!$C$9:$C$504,0)))) -> Contribution ciblée sur le domaine de Laboratoire à allouer à une activité spécifique dans le plan de riposte | J80: =IF($F80="","",(INDEX(Costs!$F$9:$F$504, MATCH(ResFin[[#This Row],[N° Activity]],Costs!$C$9:$C$504,0)))) -> Laboratoire | K80: =IF(F80="","",(INDEX(Costs!$H$9:$H$504, MATCH(ResFin[[#This Row],[N° Activity]],Costs!$C$9:$C$504,0)))) -> 0 | L80: =IF($F80="","",(INDEX(Costs!$I$9:$I$504, MATCH(ResFin[[#This Row],[N° Activity]],Costs!$C$9:$C$504,0)))) -> 0 | M80: =IF($F80="","",(INDEX(Costs!$J$9:$J$504, MATCH(ResFin[[#This Row],[N° Activity]],Costs!$C$9:$C$504,0)))) -> 0 | N80: Riposte | O80: =IF(ResFin[[#This Row],[Area]]= "", "", IF(OR(ResFin[[#This Row],[Area]]= "EIR ", ResFin[[#This Row],[Area]]= "Points d'entrée"),"Surveillance",ResFin[[#This Row],[Area]])) -> Laboratoire | Q80: Niveau central | T80: Ressources financières | U80: 242857.1429 | W80: 121428.5714 | Y80: =ResFin[[#This Row],[Date of disbursement]]-ResFin[[#This Row],[Date of commitment]] -> 0
C81: Financement PTF | D81: PTF10 | E81: Nouveau don | F81: Ciblé (Coordination) | G81: =IF($F81="","",IF(ISNA(MATCH(F81,Costs!$C$22:$C$504,0)),(IF(F81="","",IF(ISNA(MATCH(F81,Costs!$C$10:$C$20,0)),"Non-ciblé","Ciblé sur un domaine"))),"Ciblé sur une activité")) -> Ciblé sur un domaine | H81: =IF($F81="","",(INDEX(Costs!$B$9:$B$504, MATCH('Financial Resources'!F81,Costs!$C$9:$C$504,0)))) -> Plan riposte central | I81: =IF($F81="","",(INDEX(Costs!$D$9:$D$504, MATCH(ResFin[[#This Row],[N° Activity]],Costs!$C$9:$C$504,0)))) -> Contribution ciblée sur le domaine de Coordination à allouer à une activité spécifique dans le plan de riposte | J81: =IF($F81="","",(INDEX(Costs!$F$9:$F$504, MATCH(ResFin[[#This Row],[N° Activity]],Costs!$C$9:$C$504,0)))) -> Coordination | K81: =IF(F81="","",(INDEX(Costs!$H$9:$H$504, MATCH(ResFin[[#This Row],[N° Activity]],Costs!$C$9:$C$504,0)))) -> 0 | L81: =IF($F81="","",(INDEX(Costs!$I$9:$I$504, MATCH(ResFin[[#This Row],[N° Activity]],Costs!$C$9:$C$504,0)))) -> 0 | M81: =IF($F81="","",(INDEX(Costs!$J$9:$J$504, MATCH(ResFin[[#This Row],[N° Activity]],Costs!$C$9:$C$504,0)))) -> 0 | N81: Riposte | O81: =IF(ResFin[[#This Row],[Area]]= "", "", IF(OR(ResFin[[#This Row],[Area]]= "EIR ", ResFin[[#This Row],[Area]]= "Points d'entrée"),"Surveillance",ResFin[[#This Row],[Area]])) -> Coordination | Q81: Niveau central | T81: Ressources financières | U81: 276190.4762 | W81: 138095.2381 | Y81: =ResFin[[#This Row],[Date of disbursement]]-ResFin[[#This Row],[Date of commitment]] -> 0
C82: Financement PTF | D82: PTF6 | E82: Nouveau don | F82: Ciblé (PCI) | G82: =IF($F82="","",IF(ISNA(MATCH(F82,Costs!$C$22:$C$504,0)),(IF(F82="","",IF(ISNA(MATCH(F82,Costs!$C$10:$C$20,0)),"Non-ciblé","Ciblé sur un domaine"))),"Ciblé sur une activité")) -> Ciblé sur un domaine | H82: =IF($F82="","",(INDEX(Costs!$B$9:$B$504, MATCH('Financial Resources'!F82,Costs!$C$9:$C$504,0)))) -> Plan riposte central | I82: =IF($F82="","",(INDEX(Costs!$D$9:$D$504, MATCH(ResFin[[#This Row],[N° Activity]],Costs!$C$9:$C$504,0)))) -> Contribution ciblée sur le domaine de PCI à allouer à une activité spécifique dans le plan de riposte | J82: =IF($F82="","",(INDEX(Costs!$F$9:$F$504, MATCH(ResFin[[#This Row],[N° Activity]],Costs!$C$9:$C$504,0)))) -> PCI | K82: =IF(F82="","",(INDEX(Costs!$H$9:$H$504, MATCH(ResFin[[#This Row],[N° Activity]],Costs!$C$9:$C$504,0)))) -> 0 | L82: =IF($F82="","",(INDEX(Costs!$I$9:$I$504, MATCH(ResFin[[#This Row],[N° Activity]],Costs!$C$9:$C$504,0)))) -> 0 | M82: =IF($F82="","",(INDEX(Costs!$J$9:$J$504, MATCH(ResFin[[#This Row],[N° Activity]],Costs!$C$9:$C$504,0)))) -> 0 | N82: Riposte | O82: =IF(ResFin[[#This Row],[Area]]= "", "", IF(OR(ResFin[[#This Row],[Area]]= "EIR ", ResFin[[#This Row],[Area]]= "Points d'entrée"),"Surveillance",ResFin[[#This Row],[Area]])) -> PCI | Q82: Niveau central | T82: Ressources financières | U82: 1059.52381 | W82: 529.7619048 | Y82: =ResFin[[#This Row],[Date of disbursement]]-ResFin[[#This Row],[Date of commitment]] -> 0
C83: Financement PTF | D83: PTF6 | E83: Nouveau don | F83: Ciblé (Labratoire) | G83: =IF($F83="","",IF(ISNA(MATCH(F83,Costs!$C$22:$C$504,0)),(IF(F83="","",IF(ISNA(MATCH(F83,Costs!$C$10:$C$20,0)),"Non-ciblé","Ciblé sur un domaine"))),"Ciblé sur une activité")) -> Ciblé sur un domaine | H83: =IF($F83="","",(INDEX(Costs!$B$9:$B$504, MATCH('Financial Resources'!F83,Costs!$C$9:$C$504,0)))) -> Plan riposte central | I83: =IF($F83="","",(INDEX(Costs!$D$9:$D$504, MATCH(ResFin[[#This Row],[N° Activity]],Costs!$C$9:$C$504,0)))) -> Contribution ciblée sur le domaine de Laboratoire à allouer à une activité spécifique dans le plan de riposte | J83: =IF($F83="","",(INDEX(Costs!$F$9:$F$504, MATCH(ResFin[[#This Row],[N° Activity]],Costs!$C$9:$C$504,0)))) -> Laboratoire | K83: =IF(F83="","",(INDEX(Costs!$H$9:$H$504, MATCH(ResFin[[#This Row],[N° Activity]],Costs!$C$9:$C$504,0)))) -> 0 | L83: =IF($F83="","",(INDEX(Costs!$I$9:$I$504, MATCH(ResFin[[#This Row],[N° Activity]],Costs!$C$9:$C$504,0)))) -> 0 | M83: =IF($F83="","",(INDEX(Costs!$J$9:$J$504, MATCH(ResFin[[#This Row],[N° Activity]],Costs!$C$9:$C$504,0)))) -> 0 | N83: Riposte | O83: =IF(ResFin[[#This Row],[Area]]= "", "", IF(OR(ResFin[[#This Row],[Area]]= "EIR ", ResFin[[#This Row],[Area]]= "Points d'entrée"),"Surveillance",ResFin[[#This Row],[Area]])) -> Laboratoire | Q83: Niveau central | T83: Ressources financières | U83: 939.2857143 | W83: 469.6428571 | Y83: =ResFin[[#This Row],[Date of disbursement]]-ResFin[[#This Row],[Date of commitment]] -> 0
C84: Financement PTF | D84: PTF11 | E84: Nouveau don | F84: Ciblé (Logistique) | G84: =IF($F84="","",IF(ISNA(MATCH(F84,Costs!$C$22:$C$504,0)),(IF(F84="","",IF(ISNA(MATCH(F84,Costs!$C$10:$C$20,0)),"Non-ciblé","Ciblé sur un domaine"))),"Ciblé sur une activité")) -> Ciblé sur un domaine | H84: =IF($F84="","",(INDEX(Costs!$B$9:$B$504, MATCH('Financial Resources'!F84,Costs!$C$9:$C$504,0)))) -> Plan riposte central | I84: =IF($F84="","",(INDEX(Costs!$D$9:$D$504, MATCH(ResFin[[#This Row],[N° Activity]],Costs!$C$9:$C$504,0)))) -> Contribution ciblée sur le domaine de Logistique à allouer à une activité spécifique dans le plan de riposte | J84: =IF($F84="","",(INDEX(Costs!$F$9:$F$504, MATCH(ResFin[[#This Row],[N° Activity]],Costs!$C$9:$C$504,0)))) -> Logistique | K84: =IF(F84="","",(INDEX(Costs!$H$9:$H$504, MATCH(ResFin[[#This Row],[N° Activity]],Costs!$C$9:$C$504,0)))) -> 0 | L84: =IF($F84="","",(INDEX(Costs!$I$9:$I$504, MATCH(ResFin[[#This Row],[N° Activity]],Costs!$C$9:$C$504,0)))) -> 0 | M84: =IF($F84="","",(INDEX(Costs!$J$9:$J$504, MATCH(ResFin[[#This Row],[N° Activity]],Costs!$C$9:$C$504,0)))) -> 0 | N84: Alerte | O84: =IF(ResFin[[#This Row],[Area]]= "", "", IF(OR(ResFin[[#This Row],[Area]]= "EIR ", ResFin[[#This Row],[Area]]= "Points d'entrée"),"Surveillance",ResFin[[#This Row],[Area]])) -> Logistique | Q84: Niveau central | T84: Ressources financières | U84: 35714.28571 | W84: 17857.14286 | Y84: =ResFin[[#This Row],[Date of disbursement]]-ResFin[[#This Row],[Date of commitment]] -> 0
C85: Financement PTF | D85: PTF12 | E85: Nouveau don | F85: Ciblé (Coordination) | G85: =IF($F85="","",IF(ISNA(MATCH(F85,Costs!$C$22:$C$504,0)),(IF(F85="","",IF(ISNA(MATCH(F85,Costs!$C$10:$C$20,0)),"Non-ciblé","Ciblé sur un domaine"))),"Ciblé sur une activité")) -> Ciblé sur un domaine | H85: =IF($F85="","",(INDEX(Costs!$B$9:$B$504, MATCH('Financial Resources'!F85,Costs!$C$9:$C$504,0)))) -> Plan riposte central | I85: =IF($F85="","",(INDEX(Costs!$D$9:$D$504, MATCH(ResFin[[#This Row],[N° Activity]],Costs!$C$9:$C$504,0)))) -> Contribution ciblée sur le domaine de Coordination à allouer à une activité spécifique dans le plan de riposte | J85: =IF($F85="","",(INDEX(Costs!$F$9:$F$504, MATCH(ResFin[[#This Row],[N° Activity]],Costs!$C$9:$C$504,0)))) -> Coordination | K85: =IF(F85="","",(INDEX(Costs!$H$9:$H$504, MATCH(ResFin[[#This Row],[N° Activity]],Costs!$C$9:$C$504,0)))) -> 0 | L85: =IF($F85="","",(INDEX(Costs!$I$9:$I$504, MATCH(ResFin[[#This Row],[N° Activity]],Costs!$C$9:$C$504,0)))) -> 0 | M85: =IF($F85="","",(INDEX(Costs!$J$9:$J$504, MATCH(ResFin[[#This Row],[N° Activity]],Costs!$C$9:$C$504,0)))) -> 0 | N85: Riposte | O85: =IF(ResFin[[#This Row],[Area]]= "", "", IF(OR(ResFin[[#This Row],[Area]]= "EIR ", ResFin[[#This Row],[Area]]= "Points d'entrée"),"Surveillance",ResFin[[#This Row],[Area]])) -> Coordination | Q85: Niveau central | T85: Ressources financières | U85: 69047.61905 | W85: 34523.80952 | Y85: =ResFin[[#This Row],[Date of disbursement]]-ResFin[[#This Row],[Date of commitment]] -> 0
C86: Financement PTF | D86: PTF14 | E86: Nouveau don | F86: Ciblé (Communication) | G86: =IF($F86="","",IF(ISNA(MATCH(F86,Costs!$C$22:$C$504,0)),(IF(F86="","",IF(ISNA(MATCH(F86,Costs!$C$10:$C$20,0)),"Non-ciblé","Ciblé sur un domaine"))),"Ciblé sur une activité")) -> Ciblé sur un domaine | H86: =IF($F86="","",(INDEX(Costs!$B$9:$B$504, MATCH('Financial Resources'!F86,Costs!$C$9:$C$504,0)))) -> Plan riposte central | I86: =IF($F86="","",(INDEX(Costs!$D$9:$D$504, MATCH(ResFin[[#This Row],[N° Activity]],Costs!$C$9:$C$504,0)))) -> Contribution ciblée sur le domaine de Communication à allouer à une activité spécifique dans le plan de riposte | J86: =IF($F86="","",(INDEX(Costs!$F$9:$F$504, MATCH(ResFin[[#This Row],[N° Activity]],Costs!$C$9:$C$504,0)))) -> Communication | K86: =IF(F86="","",(INDEX(Costs!$H$9:$H$504, MATCH(ResFin[[#This Row],[N° Activity]],Costs!$C$9:$C$504,0)))) -> 0 | L86: =IF($F86="","",(INDEX(Costs!$I$9:$I$504, MATCH(ResFin[[#This Row],[N° Activity]],Costs!$C$9:$C$504,0)))) -> 0 | M86: =IF($F86="","",(INDEX(Costs!$J$9:$J$504, MATCH(ResFin[[#This Row],[N° Activity]],Costs!$C$9:$C$504,0)))) -> 0 | N86: Riposte | O86: =IF(ResFin[[#This Row],[Area]]= "", "", IF(OR(ResFin[[#This Row],[Area]]= "EIR ", ResFin[[#This Row],[Area]]= "Points d'entrée"),"Surveillance",ResFin[[#This Row],[Area]])) -> Communication | Q86: Niveau central | T86: Ressources financières | U86: 69047.61905 | W86: 34523.80952 | Y86: =ResFin[[#This Row],[Date of disbursement]]-ResFin[[#This Row],[Date of commitment]] -> 0
C87: Financement PTF | D87: PTF14 | E87: Nouveau don | F87: Ciblé (Logistique) | G87: =IF($F87="","",IF(ISNA(MATCH(F87,Costs!$C$22:$C$504,0)),(IF(F87="","",IF(ISNA(MATCH(F87,Costs!$C$10:$C$20,0)),"Non-ciblé","Ciblé sur un domaine"))),"Ciblé sur une activité")) -> Ciblé sur un domaine | H87: =IF($F87="","",(INDEX(Costs!$B$9:$B$504, MATCH('Financial Resources'!F87,Costs!$C$9:$C$504,0)))) -> Plan riposte central | I87: =IF($F87="","",(INDEX(Costs!$D$9:$D$504, MATCH(ResFin[[#This Row],[N° Activity]],Costs!$C$9:$C$504,0)))) -> Contribution ciblée sur le domaine de Logistique à allouer à une activité spécifique dans le plan de riposte | J87: =IF($F87="","",(INDEX(Costs!$F$9:$F$504, MATCH(ResFin[[#This Row],[N° Activity]],Costs!$C$9:$C$504,0)))) -> Logistique | K87: =IF(F87="","",(INDEX(Costs!$H$9:$H$504, MATCH(ResFin[[#This Row],[N° Activity]],Costs!$C$9:$C$504,0)))) -> 0 | L87: =IF($F87="","",(INDEX(Costs!$I$9:$I$504, MATCH(ResFin[[#This Row],[N° Activity]],Costs!$C$9:$C$504,0)))) -> 0 | M87: =IF($F87="","",(INDEX(Costs!$J$9:$J$504, MATCH(ResFin[[#This Row],[N° Activity]],Costs!$C$9:$C$504,0)))) -> 0 | N87: Riposte | O87: =IF(ResFin[[#This Row],[Area]]= "", "", IF(OR(ResFin[[#This Row],[Area]]= "EIR ", ResFin[[#This Row],[Area]]= "Points d'entrée"),"Surveillance",ResFin[[#This Row],[Area]])) -> Logistique | Q87: Niveau central | T87: Ressources financières | U87: 138095.2381 | W87: 69047.61905 | Y87: =ResFin[[#This Row],[Date of disbursement]]-ResFin[[#This Row],[Date of commitment]] -> 0
C88: Don privé ou de particuliers | D88: Don Privé | E88: Nouveau don | F88: Resources Non-ciblé | G88: =IF($F88="","",IF(ISNA(MATCH(F88,Costs!$C$22:$C$504,0)),(IF(F88="","",IF(ISNA(MATCH(F88,Costs!$C$10:$C$20,0)),"Non-ciblé","Ciblé sur un domaine"))),"Ciblé sur une activité")) -> Non-ciblé | H88: =IF($F88="","",(INDEX(Costs!$B$9:$B$504, MATCH('Financial Resources'!F88,Costs!$C$9:$C$504,0)))) -> Plan riposte central | I88: =IF($F88="","",(INDEX(Costs!$D$9:$D$504, MATCH(ResFin[[#This Row],[N° Activity]],Costs!$C$9:$C$504,0)))) -> Contribution en resources non-ciblée à allouer à un domain ou une activité spécifique dans le plan de riposte | J88: =IF($F88="","",(INDEX(Costs!$F$9:$F$504, MATCH(ResFin[[#This Row],[N° Activity]],Costs!$C$9:$C$504,0)))) -> 0 | K88: =IF(F88="","",(INDEX(Costs!$H$9:$H$504, MATCH(ResFin[[#This Row],[N° Activity]],Costs!$C$9:$C$504,0)))) -> 0 | L88: =IF($F88="","",(INDEX(Costs!$I$9:$I$504, MATCH(ResFin[[#This Row],[N° Activity]],Costs!$C$9:$C$504,0)))) -> 0 | M88: =IF($F88="","",(INDEX(Costs!$J$9:$J$504, MATCH(ResFin[[#This Row],[N° Activity]],Costs!$C$9:$C$504,0)))) -> 0 | O88: =IF(ResFin[[#This Row],[Area]]= "", "", IF(OR(ResFin[[#This Row],[Area]]= "EIR ", ResFin[[#This Row],[Area]]= "Points d'entrée"),"Surveillance",ResFin[[#This Row],[Area]])) -> 0 | T88: Ressources financières | U88: 238095.2381 | V88: 2020-04-09 | W88: 119047.619 | Y88: =ResFin[[#This Row],[Date of disbursement]]-ResFin[[#This Row],[Date of commitment]] -> -43930
C89: Don privé ou de particuliers | D89: Don Privé | E89: Nouveau don | F89: Resources Non-ciblé | G89: =IF($F89="","",IF(ISNA(MATCH(F89,Costs!$C$22:$C$504,0)),(IF(F89="","",IF(ISNA(MATCH(F89,Costs!$C$10:$C$20,0)),"Non-ciblé","Ciblé sur un domaine"))),"Ciblé sur une activité")) -> Non-ciblé | H89: =IF($F89="","",(INDEX(Costs!$B$9:$B$504, MATCH('Financial Resources'!F89,Costs!$C$9:$C$504,0)))) -> Plan riposte central | I89: =IF($F89="","",(INDEX(Costs!$D$9:$D$504, MATCH(ResFin[[#This Row],[N° Activity]],Costs!$C$9:$C$504,0)))) -> Contribution en resources non-ciblée à allouer à un domain ou une activité spécifique dans le plan de riposte | J89: =IF($F89="","",(INDEX(Costs!$F$9:$F$504, MATCH(ResFin[[#This Row],[N° Activity]],Costs!$C$9:$C$504,0)))) -> 0 | K89: =IF(F89="","",(INDEX(Costs!$H$9:$H$504, MATCH(ResFin[[#This Row],[N° Activity]],Costs!$C$9:$C$504,0)))) -> 0 | L89: =IF($F89="","",(INDEX(Costs!$I$9:$I$504, MATCH(ResFin[[#This Row],[N° Activity]],Costs!$C$9:$C$504,0)))) -> 0 | M89: =IF($F89="","",(INDEX(Costs!$J$9:$J$504, MATCH(ResFin[[#This Row],[N° Activity]],Costs!$C$9:$C$504,0)))) -> 0 | O89: =IF(ResFin[[#This Row],[Area]]= "", "", IF(OR(ResFin[[#This Row],[Area]]= "EIR ", ResFin[[#This Row],[Area]]= "Points d'entrée"),"Surveillance",ResFin[[#This Row],[Area]])) -> 0 | T89: Ressources financières | U89: 3571.428571 | V89: 2020-04-09 | W89: 1785.714286 | Y89: =ResFin[[#This Row],[Date of disbursement]]-ResFin[[#This Row],[Date of commitment]] -> -43930
C90: Don privé ou de particuliers | D90: Don Privé | E90: Nouveau don | F90: Resources Non-ciblé | G90: =IF($F90="","",IF(ISNA(MATCH(F90,Costs!$C$22:$C$504,0)),(IF(F90="","",IF(ISNA(MATCH(F90,Costs!$C$10:$C$20,0)),"Non-ciblé","Ciblé sur un domaine"))),"Ciblé sur une activité")) -> Non-ciblé | H90: =IF($F90="","",(INDEX(Costs!$B$9:$B$504, MATCH('Financial Resources'!F90,Costs!$C$9:$C$504,0)))) -> Plan riposte central | I90: =IF($F90="","",(INDEX(Costs!$D$9:$D$504, MATCH(ResFin[[#This Row],[N° Activity]],Costs!$C$9:$C$504,0)))) -> Contribution en resources non-ciblée à allouer à un domain ou une activité spécifique dans le plan de riposte | J90: =IF($F90="","",(INDEX(Costs!$F$9:$F$504, MATCH(ResFin[[#This Row],[N° Activity]],Costs!$C$9:$C$504,0)))) -> 0 | K90: =IF(F90="","",(INDEX(Costs!$H$9:$H$504, MATCH(ResFin[[#This Row],[N° Activity]],Costs!$C$9:$C$504,0)))) -> 0 | L90: =IF($F90="","",(INDEX(Costs!$I$9:$I$504, MATCH(ResFin[[#This Row],[N° Activity]],Costs!$C$9:$C$504,0)))) -> 0 | M90: =IF($F90="","",(INDEX(Costs!$J$9:$J$504, MATCH(ResFin[[#This Row],[N° Activity]],Costs!$C$9:$C$504,0)))) -> 0 | O90: =IF(ResFin[[#This Row],[Area]]= "", "", IF(OR(ResFin[[#This Row],[Area]]= "EIR ", ResFin[[#This Row],[Area]]= "Points d'entrée"),"Surveillance",ResFin[[#This Row],[Area]])) -> 0 | T90: Ressources financières | U90: 119047.619 | W90: 59523.80952 | Y90: =ResFin[[#This Row],[Date of disbursement]]-ResFin[[#This Row],[Date of commitment]] -> 0
C91: Don privé ou de particuliers | D91: Don Privé | E91: Nouveau don | F91: Resources Non-ciblé | G91: =IF($F91="","",IF(ISNA(MATCH(F91,Costs!$C$22:$C$504,0)),(IF(F91="","",IF(ISNA(MATCH(F91,Costs!$C$10:$C$20,0)),"Non-ciblé","Ciblé sur un domaine"))),"Ciblé sur une activité")) -> Non-ciblé | H91: =IF($F91="","",(INDEX(Costs!$B$9:$B$504, MATCH('Financial Resources'!F91,Costs!$C$9:$C$504,0)))) -> Plan riposte central | I91: =IF($F91="","",(INDEX(Costs!$D$9:$D$504, MATCH(ResFin[[#This Row],[N° Activity]],Costs!$C$9:$C$504,0)))) -> Contribution en resources non-ciblée à allouer à un domain ou une activité spécifique dans le plan de riposte | J91: =IF($F91="","",(INDEX(Costs!$F$9:$F$504, MATCH(ResFin[[#This Row],[N° Activity]],Costs!$C$9:$C$504,0)))) -> 0 | K91: =IF(F91="","",(INDEX(Costs!$H$9:$H$504, MATCH(ResFin[[#This Row],[N° Activity]],Costs!$C$9:$C$504,0)))) -> 0 | L91: =IF($F91="","",(INDEX(Costs!$I$9:$I$504, MATCH(ResFin[[#This Row],[N° Activity]],Costs!$C$9:$C$504,0)))) -> 0 | M91: =IF($F91="","",(INDEX(Costs!$J$9:$J$504, MATCH(ResFin[[#This Row],[N° Activity]],Costs!$C$9:$C$504,0)))) -> 0 | O91: =IF(ResFin[[#This Row],[Area]]= "", "", IF(OR(ResFin[[#This Row],[Area]]= "EIR ", ResFin[[#This Row],[Area]]= "Points d'entrée"),"Surveillance",ResFin[[#This Row],[Area]])) -> 0 | T91: Ressources financières | U91: 8333.333333 | W91: 4166.666667 | Y91: =ResFin[[#This Row],[Date of disbursement]]-ResFin[[#This Row],[Date of commitment]] -> 0
C92: Don privé ou de particuliers | D92: Don Privé | E92: Nouveau don | F92: Resources Non-ciblé | G92: =IF($F92="","",IF(ISNA(MATCH(F92,Costs!$C$22:$C$504,0)),(IF(F92="","",IF(ISNA(MATCH(F92,Costs!$C$10:$C$20,0)),"Non-ciblé","Ciblé sur un domaine"))),"Ciblé sur une activité")) -> Non-ciblé | H92: =IF($F92="","",(INDEX(Costs!$B$9:$B$504, MATCH('Financial Resources'!F92,Costs!$C$9:$C$504,0)))) -> Plan riposte central | I92: =IF($F92="","",(INDEX(Costs!$D$9:$D$504, MATCH(ResFin[[#This Row],[N° Activity]],Costs!$C$9:$C$504,0)))) -> Contribution en resources non-ciblée à allouer à un domain ou une activité spécifique dans le plan de riposte | J92: =IF($F92="","",(INDEX(Costs!$F$9:$F$504, MATCH(ResFin[[#This Row],[N° Activity]],Costs!$C$9:$C$504,0)))) -> 0 | K92: =IF(F92="","",(INDEX(Costs!$H$9:$H$504, MATCH(ResFin[[#This Row],[N° Activity]],Costs!$C$9:$C$504,0)))) -> 0 | L92: =IF($F92="","",(INDEX(Costs!$I$9:$I$504, MATCH(ResFin[[#This Row],[N° Activity]],Costs!$C$9:$C$504,0)))) -> 0 | M92: =IF($F92="","",(INDEX(Costs!$J$9:$J$504, MATCH(ResFin[[#This Row],[N° Activity]],Costs!$C$9:$C$504,0)))) -> 0 | O92: =IF(ResFin[[#This Row],[Area]]= "", "", IF(OR(ResFin[[#This Row],[Area]]= "EIR ", ResFin[[#This Row],[Area]]= "Points d'entrée"),"Surveillance",ResFin[[#This Row],[Area]])) -> 0 | T92: =IF($F92="","", "Ressources financières") -> Ressources financières | U92: 2976.190476 | W92: 1488.095238 | Y92: =ResFin[[#This Row],[Date of disbursement]]-ResFin[[#This Row],[Date of commitment]] -> 0
C93: Financement PTF | D93: PTF10 | E93: Nouveau don | F93: Ciblé (Surveillance) | G93: =IF($F93="","",IF(ISNA(MATCH(F93,Costs!$C$22:$C$504,0)),(IF(F93="","",IF(ISNA(MATCH(F93,Costs!$C$10:$C$20,0)),"Non-ciblé","Ciblé sur un domaine"))),"Ciblé sur une activité")) -> Ciblé sur un domaine | H93: =IF($F93="","",(INDEX(Costs!$B$9:$B$504, MATCH('Financial Resources'!F93,Costs!$C$9:$C$504,0)))) -> Plan riposte central | I93: =IF($F93="","",(INDEX(Costs!$D$9:$D$504, MATCH(ResFin[[#This Row],[N° Activity]],Costs!$C$9:$C$504,0)))) -> Contribution ciblée sur le domaine de Surveillance à allouer à une activité spécifique dans le plan de riposte | J93: =IF($F93="","",(INDEX(Costs!$F$9:$F$504, MATCH(ResFin[[#This Row],[N° Activity]],Costs!$C$9:$C$504,0)))) -> Surveillance | K93: =IF(F93="","",(INDEX(Costs!$H$9:$H$504, MATCH(ResFin[[#This Row],[N° Activity]],Costs!$C$9:$C$504,0)))) -> 0 | L93: =IF($F93="","",(INDEX(Costs!$I$9:$I$504, MATCH(ResFin[[#This Row],[N° Activity]],Costs!$C$9:$C$504,0)))) -> 0 | M93: =IF($F93="","",(INDEX(Costs!$J$9:$J$504, MATCH(ResFin[[#This Row],[N° Activity]],Costs!$C$9:$C$504,0)))) -> 0 | N93: Riposte | O93: =IF(ResFin[[#This Row],[Area]]= "", "", IF(OR(ResFin[[#This Row],[Area]]= "EIR ", ResFin[[#This Row],[Area]]= "Points d'entrée"),"Surveillance",ResFin[[#This Row],[Area]])) -> Surveillance | Q93: Niveau des districts | T93: =IF($F93="","", "Ressources financières") -> Ressources financières | U93: 44916.66667 | W93: 22458.33333 | Y93: =ResFin[[#This Row],[Date of disbursement]]-ResFin[[#This Row],[Date of commitment]] -> 0
C94: Financement PTF | D94: PTF10 | E94: Nouveau don | F94: Ciblé (EIR) | G94: =IF($F94="","",IF(ISNA(MATCH(F94,Costs!$C$22:$C$504,0)),(IF(F94="","",IF(ISNA(MATCH(F94,Costs!$C$10:$C$20,0)),"Non-ciblé","Ciblé sur un domaine"))),"Ciblé sur une activité")) -> Ciblé sur un domaine | H94: =IF($F94="","",(INDEX(Costs!$B$9:$B$504, MATCH('Financial Resources'!F94,Costs!$C$9:$C$504,0)))) -> Plan riposte central | I94: =IF($F94="","",(INDEX(Costs!$D$9:$D$504, MATCH(ResFin[[#This Row],[N° Activity]],Costs!$C$9:$C$504,0)))) -> Contribution ciblée sur le domaine de EIR à allouer à une activité spécifique dans le plan de riposte | J94: =IF($F94="","",(INDEX(Costs!$F$9:$F$504, MATCH(ResFin[[#This Row],[N° Activity]],Costs!$C$9:$C$504,0)))) -> EIR | K94: =IF(F94="","",(INDEX(Costs!$H$9:$H$504, MATCH(ResFin[[#This Row],[N° Activity]],Costs!$C$9:$C$504,0)))) -> 0 | L94: =IF($F94="","",(INDEX(Costs!$I$9:$I$504, MATCH(ResFin[[#This Row],[N° Activity]],Costs!$C$9:$C$504,0)))) -> 0 | M94: =IF($F94="","",(INDEX(Costs!$J$9:$J$504, MATCH(ResFin[[#This Row],[N° Activity]],Costs!$C$9:$C$504,0)))) -> 0 | N94: Riposte | O94: =IF(ResFin[[#This Row],[Area]]= "", "", IF(OR(ResFin[[#This Row],[Area]]= "EIR ", ResFin[[#This Row],[Area]]= "Points d'entrée"),"Surveillance",ResFin[[#This Row],[Area]])) -> Surveillance | Q94: Niveau régional | T94: Ressources financières | U94: 5234.561905 | W94: 2617.280952 | Y94: =ResFin[[#This Row],[Date of disbursement]]-ResFin[[#This Row],[Date of commitment]] -> 0
C95: Financement PTF | D95: PTF13 | E95: Nouveau don | F95: Ciblé (Coordination) | G95: =IF($F95="","",IF(ISNA(MATCH(F95,Costs!$C$22:$C$504,0)),(IF(F95="","",IF(ISNA(MATCH(F95,Costs!$C$10:$C$20,0)),"Non-ciblé","Ciblé sur un domaine"))),"Ciblé sur une activité")) -> Ciblé sur un domaine | H95: =IF($F95="","",(INDEX(Costs!$B$9:$B$504, MATCH('Financial Resources'!F95,Costs!$C$9:$C$504,0)))) -> Plan riposte central | I95: =IF($F95="","",(INDEX(Costs!$D$9:$D$504, MATCH(ResFin[[#This Row],[N° Activity]],Costs!$C$9:$C$504,0)))) -> Contribution ciblée sur le domaine de Coordination à allouer à une activité spécifique dans le plan de riposte | J95: =IF($F95="","",(INDEX(Costs!$F$9:$F$504, MATCH(ResFin[[#This Row],[N° Activity]],Costs!$C$9:$C$504,0)))) -> Coordination | K95: =IF(F95="","",(INDEX(Costs!$H$9:$H$504, MATCH(ResFin[[#This Row],[N° Activity]],Costs!$C$9:$C$504,0)))) -> 0 | L95: =IF($F95="","",(INDEX(Costs!$I$9:$I$504, MATCH(ResFin[[#This Row],[N° Activity]],Costs!$C$9:$C$504,0)))) -> 0 | M95: =IF($F95="","",(INDEX(Costs!$J$9:$J$504, MATCH(ResFin[[#This Row],[N° Activity]],Costs!$C$9:$C$504,0)))) -> 0 | N95: Riposte | O95: =IF(ResFin[[#This Row],[Area]]= "", "", IF(OR(ResFin[[#This Row],[Area]]= "EIR ", ResFin[[#This Row],[Area]]= "Points d'entrée"),"Surveillance",ResFin[[#This Row],[Area]])) -> Coordination | Q95: Niveau des districts | T95: =IF($F95="","", "Ressources financières") -> Ressources financières | U95: 84584.52381 | W95: 42292.2619 | Y95: =ResFin[[#This Row],[Date of disbursement]]-ResFin[[#This Row],[Date of commitment]] -> 0
C96: Financement PTF | D96: PTF13 | E96: Nouveau don | F96: Ciblé (Communication) | G96: =IF($F96="","",IF(ISNA(MATCH(F96,Costs!$C$22:$C$504,0)),(IF(F96="","",IF(ISNA(MATCH(F96,Costs!$C$10:$C$20,0)),"Non-ciblé","Ciblé sur un domaine"))),"Ciblé sur une activité")) -> Ciblé sur un domaine | H96: =IF($F96="","",(INDEX(Costs!$B$9:$B$504, MATCH('Financial Resources'!F96,Costs!$C$9:$C$504,0)))) -> Plan riposte central | I96: =IF($F96="","",(INDEX(Costs!$D$9:$D$504, MATCH(ResFin[[#This Row],[N° Activity]],Costs!$C$9:$C$504,0)))) -> Contribution ciblée sur le domaine de Communication à allouer à une activité spécifique dans le plan de riposte | J96: =IF($F96="","",(INDEX(Costs!$F$9:$F$504, MATCH(ResFin[[#This Row],[N° Activity]],Costs!$C$9:$C$504,0)))) -> Communication | K96: =IF(F96="","",(INDEX(Costs!$H$9:$H$504, MATCH(ResFin[[#This Row],[N° Activity]],Costs!$C$9:$C$504,0)))) -> 0 | L96: =IF($F96="","",(INDEX(Costs!$I$9:$I$504, MATCH(ResFin[[#This Row],[N° Activity]],Costs!$C$9:$C$504,0)))) -> 0 | M96: =IF($F96="","",(INDEX(Costs!$J$9:$J$504, MATCH(ResFin[[#This Row],[N° Activity]],Costs!$C$9:$C$504,0)))) -> 0 | N96: Riposte | O96: =IF(ResFin[[#This Row],[Area]]= "", "", IF(OR(ResFin[[#This Row],[Area]]= "EIR ", ResFin[[#This Row],[Area]]= "Points d'entrée"),"Surveillance",ResFin[[#This Row],[Area]])) -> Communication | Q96: Niveau des districts | T96: Ressources financières | U96: 183631.5476 | W96: 91815.77381 | Y96: =ResFin[[#This Row],[Date of disbursement]]-ResFin[[#This Row],[Date of commitment]] -> 0
C97: Financement PTF | D97: PTF13 | E97: Nouveau don | F97: Ciblé (Surveillance) | G97: =IF($F97="","",IF(ISNA(MATCH(F97,Costs!$C$22:$C$504,0)),(IF(F97="","",IF(ISNA(MATCH(F97,Costs!$C$10:$C$20,0)),"Non-ciblé","Ciblé sur un domaine"))),"Ciblé sur une activité")) -> Ciblé sur un domaine | H97: =IF($F97="","",(INDEX(Costs!$B$9:$B$504, MATCH('Financial Resources'!F97,Costs!$C$9:$C$504,0)))) -> Plan riposte central | I97: =IF($F97="","",(INDEX(Costs!$D$9:$D$504, MATCH(ResFin[[#This Row],[N° Activity]],Costs!$C$9:$C$504,0)))) -> Contribution ciblée sur le domaine de Surveillance à allouer à une activité spécifique dans le plan de riposte | J97: =IF($F97="","",(INDEX(Costs!$F$9:$F$504, MATCH(ResFin[[#This Row],[N° Activity]],Costs!$C$9:$C$504,0)))) -> Surveillance | K97: =IF(F97="","",(INDEX(Costs!$H$9:$H$504, MATCH(ResFin[[#This Row],[N° Activity]],Costs!$C$9:$C$504,0)))) -> 0 | L97: =IF($F97="","",(INDEX(Costs!$I$9:$I$504, MATCH(ResFin[[#This Row],[N° Activity]],Costs!$C$9:$C$504,0)))) -> 0 | M97: =IF($F97="","",(INDEX(Costs!$J$9:$J$504, MATCH(ResFin[[#This Row],[N° Activity]],Costs!$C$9:$C$504,0)))) -> 0 | N97: Riposte | O97: =IF(ResFin[[#This Row],[Area]]= "", "", IF(OR(ResFin[[#This Row],[Area]]= "EIR ", ResFin[[#This Row],[Area]]= "Points d'entrée"),"Surveillance",ResFin[[#This Row],[Area]])) -> Surveillance | Q97: Niveau des districts | T97: Ressources financières | U97: 174437.5 | W97: 87218.75 | Y97: =ResFin[[#This Row],[Date of disbursement]]-ResFin[[#This Row],[Date of commitment]] -> 0
C98: Financement PTF | D98: PTF13 | E98: Nouveau don | F98: Ciblé (Points d'entrée) | G98: =IF($F98="","",IF(ISNA(MATCH(F98,Costs!$C$22:$C$504,0)),(IF(F98="","",IF(ISNA(MATCH(F98,Costs!$C$10:$C$20,0)),"Non-ciblé","Ciblé sur un domaine"))),"Ciblé sur une activité")) -> Ciblé sur un domaine | H98: =IF($F98="","",(INDEX(Costs!$B$9:$B$504, MATCH('Financial Resources'!F98,Costs!$C$9:$C$504,0)))) -> Plan riposte central | I98: =IF($F98="","",(INDEX(Costs!$D$9:$D$504, MATCH(ResFin[[#This Row],[N° Activity]],Costs!$C$9:$C$504,0)))) -> Contribution ciblée sur le domaine de Points d'entrée à allouer à une activité spécifique dans le plan de riposte | J98: =IF($F98="","",(INDEX(Costs!$F$9:$F$504, MATCH(ResFin[[#This Row],[N° Activity]],Costs!$C$9:$C$504,0)))) -> Points d'entrée | K98: =IF(F98="","",(INDEX(Costs!$H$9:$H$504, MATCH(ResFin[[#This Row],[N° Activity]],Costs!$C$9:$C$504,0)))) -> 0 | L98: =IF($F98="","",(INDEX(Costs!$I$9:$I$504, MATCH(ResFin[[#This Row],[N° Activity]],Costs!$C$9:$C$504,0)))) -> 0 | M98: =IF($F98="","",(INDEX(Costs!$J$9:$J$504, MATCH(ResFin[[#This Row],[N° Activity]],Costs!$C$9:$C$504,0)))) -> 0 | N98: Riposte | O98: =IF(ResFin[[#This Row],[Area]]= "", "", IF(OR(ResFin[[#This Row],[Area]]= "EIR ", ResFin[[#This Row],[Area]]= "Points d'entrée"),"Surveillance",ResFin[[#This Row],[Area]])) -> Surveillance | Q98: Niveau des districts | T98: Ressources financières | U98: 21922.61905 | W98: 10961.30952 | Y98: =ResFin[[#This Row],[Date of disbursement]]-ResFin[[#This Row],[Date of commitment]] -> 0
C99: Financement PTF | D99: PTF13 | E99: Nouveau don | F99: Ciblé (Labratoire) | G99: =IF($F99="","",IF(ISNA(MATCH(F99,Costs!$C$22:$C$504,0)),(IF(F99="","",IF(ISNA(MATCH(F99,Costs!$C$10:$C$20,0)),"Non-ciblé","Ciblé sur un domaine"))),"Ciblé sur une activité")) -> Ciblé sur un domaine | H99: =IF($F99="","",(INDEX(Costs!$B$9:$B$504, MATCH('Financial Resources'!F99,Costs!$C$9:$C$504,0)))) -> Plan riposte central | I99: =IF($F99="","",(INDEX(Costs!$D$9:$D$504, MATCH(ResFin[[#This Row],[N° Activity]],Costs!$C$9:$C$504,0)))) -> Contribution ciblée sur le domaine de Laboratoire à allouer à une activité spécifique dans le plan de riposte | J99: =IF($F99="","",(INDEX(Costs!$F$9:$F$504, MATCH(ResFin[[#This Row],[N° Activity]],Costs!$C$9:$C$504,0)))) -> Laboratoire | K99: =IF(F99="","",(INDEX(Costs!$H$9:$H$504, MATCH(ResFin[[#This Row],[N° Activity]],Costs!$C$9:$C$504,0)))) -> 0 | L99: =IF($F99="","",(INDEX(Costs!$I$9:$I$504, MATCH(ResFin[[#This Row],[N° Activity]],Costs!$C$9:$C$504,0)))) -> 0 | M99: =IF($F99="","",(INDEX(Costs!$J$9:$J$504, MATCH(ResFin[[#This Row],[N° Activity]],Costs!$C$9:$C$504,0)))) -> 0 | N99: Riposte | O99: =IF(ResFin[[#This Row],[Area]]= "", "", IF(OR(ResFin[[#This Row],[Area]]= "EIR ", ResFin[[#This Row],[Area]]= "Points d'entrée"),"Surveillance",ResFin[[#This Row],[Area]])) -> Laboratoire | Q99: Niveau des districts | T99: Ressources financières | U99: 4209.821429 | W99: 2104.910714 | Y99: =ResFin[[#This Row],[Date of disbursement]]-ResFin[[#This Row],[Date of commitment]] -> 0
C100: Financement PTF | D100: PTF13 | E100: Nouveau don | F100: Ciblé (Recherche) | G100: =IF($F100="","",IF(ISNA(MATCH(F100,Costs!$C$22:$C$504,0)),(IF(F100="","",IF(ISNA(MATCH(F100,Costs!$C$10:$C$20,0)),"Non-ciblé","Ciblé sur un domaine"))),"Ciblé sur une activité")) -> Ciblé sur un domaine | H100: =IF($F100="","",(INDEX(Costs!$B$9:$B$504, MATCH('Financial Resources'!F100,Costs!$C$9:$C$504,0)))) -> Plan riposte central | I100: =IF($F100="","",(INDEX(Costs!$D$9:$D$504, MATCH(ResFin[[#This Row],[N° Activity]],Costs!$C$9:$C$504,0)))) -> Contribution ciblée sur le domaine de Recherche à allouer à une activité spécifique dans le plan de riposte | J100: =IF($F100="","",(INDEX(Costs!$F$9:$F$504, MATCH(ResFin[[#This Row],[N° Activity]],Costs!$C$9:$C$504,0)))) -> Recherche | K100: =IF(F100="","",(INDEX(Costs!$H$9:$H$504, MATCH(ResFin[[#This Row],[N° Activity]],Costs!$C$9:$C$504,0)))) -> 0 | L100: =IF($F100="","",(INDEX(Costs!$I$9:$I$504, MATCH(ResFin[[#This Row],[N° Activity]],Costs!$C$9:$C$504,0)))) -> 0 | M100: =IF($F100="","",(INDEX(Costs!$J$9:$J$504, MATCH(ResFin[[#This Row],[N° Activity]],Costs!$C$9:$C$504,0)))) -> 0 | N100: Riposte | O100: =IF(ResFin[[#This Row],[Area]]= "", "", IF(OR(ResFin[[#This Row],[Area]]= "EIR ", ResFin[[#This Row],[Area]]= "Points d'entrée"),"Surveillance",ResFin[[#This Row],[Area]])) -> Recherche | Q100: Niveau des districts | T100: Ressources financières | U100: 62380.95238 | W100: 31190.47619 | Y100: =ResFin[[#This Row],[Date of disbursement]]-ResFin[[#This Row],[Date of commitment]] -> 0
G101: =IF($F101="","",IF(ISNA(MATCH(F101,Costs!$C$22:$C$504,0)),(IF(F101="","",IF(ISNA(MATCH(F101,Costs!$C$10:$C$20,0)),"Non-ciblé","Ciblé sur un domaine"))),"Ciblé sur une activité")) ->  | H101: =IF($F101="","",(INDEX(Costs!$B$9:$B$504, MATCH('Financial Resources'!F101,Costs!$C$9:$C$504,0)))) ->  | I101: =IF($F101="","",(INDEX(Costs!$D$9:$D$504, MATCH(ResFin[[#This Row],[N° Activity]],Costs!$C$9:$C$504,0)))) ->  | J101: =IF($F101="","",(INDEX(Costs!$F$9:$F$504, MATCH(ResFin[[#This Row],[N° Activity]],Costs!$C$9:$C$504,0)))) ->  | K101: =IF(F101="","",(INDEX(Costs!$H$9:$H$504, MATCH(ResFin[[#This Row],[N° Activity]],Costs!$C$9:$C$504,0)))) ->  | L101: =IF($F101="","",(INDEX(Costs!$I$9:$I$504, MATCH(ResFin[[#This Row],[N° Activity]],Costs!$C$9:$C$504,0)))) ->  | M101: =IF($F101="","",(INDEX(Costs!$J$9:$J$504, MATCH(ResFin[[#This Row],[N° Activity]],Costs!$C$9:$C$504,0)))) ->  | O101: =IF(ResFin[[#This Row],[Area]]= "", "", IF(OR(ResFin[[#This Row],[Area]]= "EIR ", ResFin[[#This Row],[Area]]= "Points d'entrée"),"Surveillance",ResFin[[#This Row],[Area]])) ->  | Y101: =ResFin[[#This Row],[Date of disbursement]]-ResFin[[#This Row],[Date of commitment]] -> 0
G102: =IF($F102="","",IF(ISNA(MATCH(F102,Costs!$C$22:$C$504,0)),(IF(F102="","",IF(ISNA(MATCH(F102,Costs!$C$10:$C$20,0)),"Non-ciblé","Ciblé sur un domaine"))),"Ciblé sur une activité")) ->  | H102: =IF($F102="","",(INDEX(Costs!$B$9:$B$504, MATCH('Financial Resources'!F102,Costs!$C$9:$C$504,0)))) ->  | I102: =IF($F102="","",(INDEX(Costs!$D$9:$D$504, MATCH(ResFin[[#This Row],[N° Activity]],Costs!$C$9:$C$504,0)))) ->  | J102: =IF($F102="","",(INDEX(Costs!$F$9:$F$504, MATCH(ResFin[[#This Row],[N° Activity]],Costs!$C$9:$C$504,0)))) ->  | K102: =IF(F102="","",(INDEX(Costs!$H$9:$H$504, MATCH(ResFin[[#This Row],[N° Activity]],Costs!$C$9:$C$504,0)))) ->  | L102: =IF($F102="","",(INDEX(Costs!$I$9:$I$504, MATCH(ResFin[[#This Row],[N° Activity]],Costs!$C$9:$C$504,0)))) ->  | M102: =IF($F102="","",(INDEX(Costs!$J$9:$J$504, MATCH(ResFin[[#This Row],[N° Activity]],Costs!$C$9:$C$504,0)))) ->  | O102: =IF(ResFin[[#This Row],[Area]]= "", "", IF(OR(ResFin[[#This Row],[Area]]= "EIR ", ResFin[[#This Row],[Area]]= "Points d'entrée"),"Surveillance",ResFin[[#This Row],[Area]])) ->  | Y102: =ResFin[[#This Row],[Date of disbursement]]-ResFin[[#This Row],[Date of commitment]] -> 0
G103: =IF($F103="","",IF(ISNA(MATCH(F103,Costs!$C$22:$C$504,0)),(IF(F103="","",IF(ISNA(MATCH(F103,Costs!$C$10:$C$20,0)),"Non-ciblé","Ciblé sur un domaine"))),"Ciblé sur une activité")) ->  | H103: =IF($F103="","",(INDEX(Costs!$B$9:$B$504, MATCH('Financial Resources'!F103,Costs!$C$9:$C$504,0)))) ->  | I103: =IF($F103="","",(INDEX(Costs!$D$9:$D$504, MATCH(ResFin[[#This Row],[N° Activity]],Costs!$C$9:$C$504,0)))) ->  | J103: =IF($F103="","",(INDEX(Costs!$F$9:$F$504, MATCH(ResFin[[#This Row],[N° Activity]],Costs!$C$9:$C$504,0)))) ->  | K103: =IF(F103="","",(INDEX(Costs!$H$9:$H$504, MATCH(ResFin[[#This Row],[N° Activity]],Costs!$C$9:$C$504,0)))) ->  | L103: =IF($F103="","",(INDEX(Costs!$I$9:$I$504, MATCH(ResFin[[#This Row],[N° Activity]],Costs!$C$9:$C$504,0)))) ->  | M103: =IF($F103="","",(INDEX(Costs!$J$9:$J$504, MATCH(ResFin[[#This Row],[N° Activity]],Costs!$C$9:$C$504,0)))) ->  | O103: =IF(ResFin[[#This Row],[Area]]= "", "", IF(OR(ResFin[[#This Row],[Area]]= "EIR ", ResFin[[#This Row],[Area]]= "Points d'entrée"),"Surveillance",ResFin[[#This Row],[Area]])) ->  | Y103: =ResFin[[#This Row],[Date of disbursement]]-ResFin[[#This Row],[Date of commitment]] -> 0
G104: =IF($F104="","",IF(ISNA(MATCH(F104,Costs!$C$22:$C$504,0)),(IF(F104="","",IF(ISNA(MATCH(F104,Costs!$C$10:$C$20,0)),"Non-ciblé","Ciblé sur un domaine"))),"Ciblé sur une activité")) ->  | H104: =IF($F104="","",(INDEX(Costs!$B$9:$B$504, MATCH('Financial Resources'!F104,Costs!$C$9:$C$504,0)))) ->  | I104: =IF($F104="","",(INDEX(Costs!$D$9:$D$504, MATCH(ResFin[[#This Row],[N° Activity]],Costs!$C$9:$C$504,0)))) ->  | J104: =IF($F104="","",(INDEX(Costs!$F$9:$F$504, MATCH(ResFin[[#This Row],[N° Activity]],Costs!$C$9:$C$504,0)))) ->  | K104: =IF(F104="","",(INDEX(Costs!$H$9:$H$504, MATCH(ResFin[[#This Row],[N° Activity]],Costs!$C$9:$C$504,0)))) ->  | L104: =IF($F104="","",(INDEX(Costs!$I$9:$I$504, MATCH(ResFin[[#This Row],[N° Activity]],Costs!$C$9:$C$504,0)))) ->  | M104: =IF($F104="","",(INDEX(Costs!$J$9:$J$504, MATCH(ResFin[[#This Row],[N° Activity]],Costs!$C$9:$C$504,0)))) ->  | O104: =IF(ResFin[[#This Row],[Area]]= "", "", IF(OR(ResFin[[#This Row],[Area]]= "EIR ", ResFin[[#This Row],[Area]]= "Points d'entrée"),"Surveillance",ResFin[[#This Row],[Area]])) ->  | Y104: =ResFin[[#This Row],[Date of disbursement]]-ResFin[[#This Row],[Date of commitment]] -> 0
G105: =IF($F105="","",IF(ISNA(MATCH(F105,Costs!$C$22:$C$504,0)),(IF(F105="","",IF(ISNA(MATCH(F105,Costs!$C$10:$C$20,0)),"Non-ciblé","Ciblé sur un domaine"))),"Ciblé sur une activité")) ->  | H105: =IF($F105="","",(INDEX(Costs!$B$9:$B$504, MATCH('Financial Resources'!F105,Costs!$C$9:$C$504,0)))) ->  | I105: =IF($F105="","",(INDEX(Costs!$D$9:$D$504, MATCH(ResFin[[#This Row],[N° Activity]],Costs!$C$9:$C$504,0)))) ->  | J105: =IF($F105="","",(INDEX(Costs!$F$9:$F$504, MATCH(ResFin[[#This Row],[N° Activity]],Costs!$C$9:$C$504,0)))) ->  | K105: =IF(F105="","",(INDEX(Costs!$H$9:$H$504, MATCH(ResFin[[#This Row],[N° Activity]],Costs!$C$9:$C$504,0)))) ->  | L105: =IF($F105="","",(INDEX(Costs!$I$9:$I$504, MATCH(ResFin[[#This Row],[N° Activity]],Costs!$C$9:$C$504,0)))) ->  | M105: =IF($F105="","",(INDEX(Costs!$J$9:$J$504, MATCH(ResFin[[#This Row],[N° Activity]],Costs!$C$9:$C$504,0)))) ->  | O105: =IF(ResFin[[#This Row],[Area]]= "", "", IF(OR(ResFin[[#This Row],[Area]]= "EIR ", ResFin[[#This Row],[Area]]= "Points d'entrée"),"Surveillance",ResFin[[#This Row],[Area]])) ->  | Y105: =ResFin[[#This Row],[Date of disbursement]]-ResFin[[#This Row],[Date of commitment]] -> 0
G106: =IF($F106="","",IF(ISNA(MATCH(F106,Costs!$C$22:$C$504,0)),(IF(F106="","",IF(ISNA(MATCH(F106,Costs!$C$10:$C$20,0)),"Non-ciblé","Ciblé sur un domaine"))),"Ciblé sur une activité")) ->  | H106: =IF($F106="","",(INDEX(Costs!$B$9:$B$504, MATCH('Financial Resources'!F106,Costs!$C$9:$C$504,0)))) ->  | I106: =IF($F106="","",(INDEX(Costs!$D$9:$D$504, MATCH(ResFin[[#This Row],[N° Activity]],Costs!$C$9:$C$504,0)))) ->  | J106: =IF($F106="","",(INDEX(Costs!$F$9:$F$504, MATCH(ResFin[[#This Row],[N° Activity]],Costs!$C$9:$C$504,0)))) ->  | K106: =IF(F106="","",(INDEX(Costs!$H$9:$H$504, MATCH(ResFin[[#This Row],[N° Activity]],Costs!$C$9:$C$504,0)))) ->  | L106: =IF($F106="","",(INDEX(Costs!$I$9:$I$504, MATCH(ResFin[[#This Row],[N° Activity]],Costs!$C$9:$C$504,0)))) ->  | M106: =IF($F106="","",(INDEX(Costs!$J$9:$J$504, MATCH(ResFin[[#This Row],[N° Activity]],Costs!$C$9:$C$504,0)))) ->  | O106: =IF(ResFin[[#This Row],[Area]]= "", "", IF(OR(ResFin[[#This Row],[Area]]= "EIR ", ResFin[[#This Row],[Area]]= "Points d'entrée"),"Surveillance",ResFin[[#This Row],[Area]])) ->  | Y106: =ResFin[[#This Row],[Date of disbursement]]-ResFin[[#This Row],[Date of commitment]] -> 0
G107: =IF($F107="","",IF(ISNA(MATCH(F107,Costs!$C$22:$C$504,0)),(IF(F107="","",IF(ISNA(MATCH(F107,Costs!$C$10:$C$20,0)),"Non-ciblé","Ciblé sur un domaine"))),"Ciblé sur une activité")) ->  | H107: =IF($F107="","",(INDEX(Costs!$B$9:$B$504, MATCH('Financial Resources'!F107,Costs!$C$9:$C$504,0)))) ->  | I107: =IF($F107="","",(INDEX(Costs!$D$9:$D$504, MATCH(ResFin[[#This Row],[N° Activity]],Costs!$C$9:$C$504,0)))) ->  | J107: =IF($F107="","",(INDEX(Costs!$F$9:$F$504, MATCH(ResFin[[#This Row],[N° Activity]],Costs!$C$9:$C$504,0)))) ->  | K107: =IF(F107="","",(INDEX(Costs!$H$9:$H$504, MATCH(ResFin[[#This Row],[N° Activity]],Costs!$C$9:$C$504,0)))) ->  | L107: =IF($F107="","",(INDEX(Costs!$I$9:$I$504, MATCH(ResFin[[#This Row],[N° Activity]],Costs!$C$9:$C$504,0)))) ->  | M107: =IF($F107="","",(INDEX(Costs!$J$9:$J$504, MATCH(ResFin[[#This Row],[N° Activity]],Costs!$C$9:$C$504,0)))) ->  | O107: =IF(ResFin[[#This Row],[Area]]= "", "", IF(OR(ResFin[[#This Row],[Area]]= "EIR ", ResFin[[#This Row],[Area]]= "Points d'entrée"),"Surveillance",ResFin[[#This Row],[Area]])) ->  | Y107: =ResFin[[#This Row],[Date of disbursement]]-ResFin[[#This Row],[Date of commitment]] -> 0
G108: =IF($F108="","",IF(ISNA(MATCH(F108,Costs!$C$22:$C$504,0)),(IF(F108="","",IF(ISNA(MATCH(F108,Costs!$C$10:$C$20,0)),"Non-ciblé","Ciblé sur un domaine"))),"Ciblé sur une activité")) ->  | H108: =IF($F108="","",(INDEX(Costs!$B$9:$B$504, MATCH('Financial Resources'!F108,Costs!$C$9:$C$504,0)))) ->  | I108: =IF($F108="","",(INDEX(Costs!$D$9:$D$504, MATCH(ResFin[[#This Row],[N° Activity]],Costs!$C$9:$C$504,0)))) ->  | J108: =IF($F108="","",(INDEX(Costs!$F$9:$F$504, MATCH(ResFin[[#This Row],[N° Activity]],Costs!$C$9:$C$504,0)))) ->  | K108: =IF(F108="","",(INDEX(Costs!$H$9:$H$504, MATCH(ResFin[[#This Row],[N° Activity]],Costs!$C$9:$C$504,0)))) ->  | L108: =IF($F108="","",(INDEX(Costs!$I$9:$I$504, MATCH(ResFin[[#This Row],[N° Activity]],Costs!$C$9:$C$504,0)))) ->  | M108: =IF($F108="","",(INDEX(Costs!$J$9:$J$504, MATCH(ResFin[[#This Row],[N° Activity]],Costs!$C$9:$C$504,0)))) ->  | O108: =IF(ResFin[[#This Row],[Area]]= "", "", IF(OR(ResFin[[#This Row],[Area]]= "EIR ", ResFin[[#This Row],[Area]]= "Points d'entrée"),"Surveillance",ResFin[[#This Row],[Area]])) ->  | Y108: =ResFin[[#This Row],[Date of disbursement]]-ResFin[[#This Row],[Date of commitment]] -> 0
G109: =IF($F109="","",IF(ISNA(MATCH(F109,Costs!$C$22:$C$504,0)),(IF(F109="","",IF(ISNA(MATCH(F109,Costs!$C$10:$C$20,0)),"Non-ciblé","Ciblé sur un domaine"))),"Ciblé sur une activité")) ->  | H109: =IF($F109="","",(INDEX(Costs!$B$9:$B$504, MATCH('Financial Resources'!F109,Costs!$C$9:$C$504,0)))) ->  | I109: =IF($F109="","",(INDEX(Costs!$D$9:$D$504, MATCH(ResFin[[#This Row],[N° Activity]],Costs!$C$9:$C$504,0)))) ->  | J109: =IF($F109="","",(INDEX(Costs!$F$9:$F$504, MATCH(ResFin[[#This Row],[N° Activity]],Costs!$C$9:$C$504,0)))) ->  | K109: =IF(F109="","",(INDEX(Costs!$H$9:$H$504, MATCH(ResFin[[#This Row],[N° Activity]],Costs!$C$9:$C$504,0)))) ->  | L109: =IF($F109="","",(INDEX(Costs!$I$9:$I$504, MATCH(ResFin[[#This Row],[N° Activity]],Costs!$C$9:$C$504,0)))) ->  | M109: =IF($F109="","",(INDEX(Costs!$J$9:$J$504, MATCH(ResFin[[#This Row],[N° Activity]],Costs!$C$9:$C$504,0)))) ->  | O109: =IF(ResFin[[#This Row],[Area]]= "", "", IF(OR(ResFin[[#This Row],[Area]]= "EIR ", ResFin[[#This Row],[Area]]= "Points d'entrée"),"Surveillance",ResFin[[#This Row],[Area]])) ->  | Y109: =ResFin[[#This Row],[Date of disbursement]]-ResFin[[#This Row],[Date of commitment]] -> 0
G110: =IF($F110="","",IF(ISNA(MATCH(F110,Costs!$C$22:$C$504,0)),(IF(F110="","",IF(ISNA(MATCH(F110,Costs!$C$10:$C$20,0)),"Non-ciblé","Ciblé sur un domaine"))),"Ciblé sur une activité")) ->  | H110: =IF($F110="","",(INDEX(Costs!$B$9:$B$504, MATCH('Financial Resources'!F110,Costs!$C$9:$C$504,0)))) ->  | I110: =IF($F110="","",(INDEX(Costs!$D$9:$D$504, MATCH(ResFin[[#This Row],[N° Activity]],Costs!$C$9:$C$504,0)))) ->  | J110: =IF($F110="","",(INDEX(Costs!$F$9:$F$504, MATCH(ResFin[[#This Row],[N° Activity]],Costs!$C$9:$C$504,0)))) ->  | K110: =IF(F110="","",(INDEX(Costs!$H$9:$H$504, MATCH(ResFin[[#This Row],[N° Activity]],Costs!$C$9:$C$504,0)))) ->  | L110: =IF($F110="","",(INDEX(Costs!$I$9:$I$504, MATCH(ResFin[[#This Row],[N° Activity]],Costs!$C$9:$C$504,0)))) ->  | M110: =IF($F110="","",(INDEX(Costs!$J$9:$J$504, MATCH(ResFin[[#This Row],[N° Activity]],Costs!$C$9:$C$504,0)))) ->  | O110: =IF(ResFin[[#This Row],[Area]]= "", "", IF(OR(ResFin[[#This Row],[Area]]= "EIR ", ResFin[[#This Row],[Area]]= "Points d'entrée"),"Surveillance",ResFin[[#This Row],[Area]])) ->  | Y110: =ResFin[[#This Row],[Date of disbursement]]-ResFin[[#This Row],[Date of commitment]] -> 0
G111: =IF($F111="","",IF(ISNA(MATCH(F111,Costs!$C$22:$C$504,0)),(IF(F111="","",IF(ISNA(MATCH(F111,Costs!$C$10:$C$20,0)),"Non-ciblé","Ciblé sur un domaine"))),"Ciblé sur une activité")) ->  | H111: =IF($F111="","",(INDEX(Costs!$B$9:$B$504, MATCH('Financial Resources'!F111,Costs!$C$9:$C$504,0)))) ->  | I111: =IF($F111="","",(INDEX(Costs!$D$9:$D$504, MATCH(ResFin[[#This Row],[N° Activity]],Costs!$C$9:$C$504,0)))) ->  | J111: =IF($F111="","",(INDEX(Costs!$F$9:$F$504, MATCH(ResFin[[#This Row],[N° Activity]],Costs!$C$9:$C$504,0)))) ->  | K111: =IF(F111="","",(INDEX(Costs!$H$9:$H$504, MATCH(ResFin[[#This Row],[N° Activity]],Costs!$C$9:$C$504,0)))) ->  | L111: =IF($F111="","",(INDEX(Costs!$I$9:$I$504, MATCH(ResFin[[#This Row],[N° Activity]],Costs!$C$9:$C$504,0)))) ->  | M111: =IF($F111="","",(INDEX(Costs!$J$9:$J$504, MATCH(ResFin[[#This Row],[N° Activity]],Costs!$C$9:$C$504,0)))) ->  | O111: =IF(ResFin[[#This Row],[Area]]= "", "", IF(OR(ResFin[[#This Row],[Area]]= "EIR ", ResFin[[#This Row],[Area]]= "Points d'entrée"),"Surveillance",ResFin[[#This Row],[Area]])) ->  | T111: =IF($F111="","", "Ressources financières") ->  | Y111: =ResFin[[#This Row],[Date of disbursement]]-ResFin[[#This Row],[Date of commitment]] -> 0
G112: =IF($F112="","",IF(ISNA(MATCH(F112,Costs!$C$22:$C$504,0)),(IF(F112="","",IF(ISNA(MATCH(F112,Costs!$C$10:$C$20,0)),"Non-ciblé","Ciblé sur un domaine"))),"Ciblé sur une activité")) ->  | H112: =IF($F112="","",(INDEX(Costs!$B$9:$B$504, MATCH('Financial Resources'!F112,Costs!$C$9:$C$504,0)))) ->  | I112: =IF($F112="","",(INDEX(Costs!$D$9:$D$504, MATCH(ResFin[[#This Row],[N° Activity]],Costs!$C$9:$C$504,0)))) ->  | J112: =IF($F112="","",(INDEX(Costs!$F$9:$F$504, MATCH(ResFin[[#This Row],[N° Activity]],Costs!$C$9:$C$504,0)))) ->  | K112: =IF(F112="","",(INDEX(Costs!$H$9:$H$504, MATCH(ResFin[[#This Row],[N° Activity]],Costs!$C$9:$C$504,0)))) ->  | L112: =IF($F112="","",(INDEX(Costs!$I$9:$I$504, MATCH(ResFin[[#This Row],[N° Activity]],Costs!$C$9:$C$504,0)))) ->  | M112: =IF($F112="","",(INDEX(Costs!$J$9:$J$504, MATCH(ResFin[[#This Row],[N° Activity]],Costs!$C$9:$C$504,0)))) ->  | O112: =IF(ResFin[[#This Row],[Area]]= "", "", IF(OR(ResFin[[#This Row],[Area]]= "EIR ", ResFin[[#This Row],[Area]]= "Points d'entrée"),"Surveillance",ResFin[[#This Row],[Area]])) ->  | Y112: =ResFin[[#This Row],[Date of disbursement]]-ResFin[[#This Row],[Date of commitment]] -> 0
G113: =IF($F113="","",IF(ISNA(MATCH(F113,Costs!$C$22:$C$504,0)),(IF(F113="","",IF(ISNA(MATCH(F113,Costs!$C$10:$C$20,0)),"Non-ciblé","Ciblé sur un domaine"))),"Ciblé sur une activité")) ->  | H113: =IF($F113="","",(INDEX(Costs!$B$9:$B$504, MATCH('Financial Resources'!F113,Costs!$C$9:$C$504,0)))) ->  | I113: =IF($F113="","",(INDEX(Costs!$D$9:$D$504, MATCH(ResFin[[#This Row],[N° Activity]],Costs!$C$9:$C$504,0)))) ->  | J113: =IF($F113="","",(INDEX(Costs!$F$9:$F$504, MATCH(ResFin[[#This Row],[N° Activity]],Costs!$C$9:$C$504,0)))) ->  | K113: =IF(F113="","",(INDEX(Costs!$H$9:$H$504, MATCH(ResFin[[#This Row],[N° Activity]],Costs!$C$9:$C$504,0)))) ->  | L113: =IF($F113="","",(INDEX(Costs!$I$9:$I$504, MATCH(ResFin[[#This Row],[N° Activity]],Costs!$C$9:$C$504,0)))) ->  | M113: =IF($F113="","",(INDEX(Costs!$J$9:$J$504, MATCH(ResFin[[#This Row],[N° Activity]],Costs!$C$9:$C$504,0)))) ->  | O113: =IF(ResFin[[#This Row],[Area]]= "", "", IF(OR(ResFin[[#This Row],[Area]]= "EIR ", ResFin[[#This Row],[Area]]= "Points d'entrée"),"Surveillance",ResFin[[#This Row],[Area]])) ->  | Y113: =ResFin[[#This Row],[Date of disbursement]]-ResFin[[#This Row],[Date of commitment]] -> 0
G114: =IF($F114="","",IF(ISNA(MATCH(F114,Costs!$C$22:$C$504,0)),(IF(F114="","",IF(ISNA(MATCH(F114,Costs!$C$10:$C$20,0)),"Non-ciblé","Ciblé sur un domaine"))),"Ciblé sur une activité")) ->  | H114: =IF($F114="","",(INDEX(Costs!$B$9:$B$504, MATCH('Financial Resources'!F114,Costs!$C$9:$C$504,0)))) ->  | I114: =IF($F114="","",(INDEX(Costs!$D$9:$D$504, MATCH(ResFin[[#This Row],[N° Activity]],Costs!$C$9:$C$504,0)))) ->  | J114: =IF($F114="","",(INDEX(Costs!$F$9:$F$504, MATCH(ResFin[[#This Row],[N° Activity]],Costs!$C$9:$C$504,0)))) ->  | K114: =IF(F114="","",(INDEX(Costs!$H$9:$H$504, MATCH(ResFin[[#This Row],[N° Activity]],Costs!$C$9:$C$504,0)))) ->  | L114: =IF($F114="","",(INDEX(Costs!$I$9:$I$504, MATCH(ResFin[[#This Row],[N° Activity]],Costs!$C$9:$C$504,0)))) ->  | M114: =IF($F114="","",(INDEX(Costs!$J$9:$J$504, MATCH(ResFin[[#This Row],[N° Activity]],Costs!$C$9:$C$504,0)))) ->  | O114: =IF(ResFin[[#This Row],[Area]]= "", "", IF(OR(ResFin[[#This Row],[Area]]= "EIR ", ResFin[[#This Row],[Area]]= "Points d'entrée"),"Surveillance",ResFin[[#This Row],[Area]])) ->  | Y114: =ResFin[[#This Row],[Date of disbursement]]-ResFin[[#This Row],[Date of commitment]] -> 0
G115: =IF($F115="","",IF(ISNA(MATCH(F115,Costs!$C$22:$C$504,0)),(IF(F115="","",IF(ISNA(MATCH(F115,Costs!$C$10:$C$20,0)),"Non-ciblé","Ciblé sur un domaine"))),"Ciblé sur une activité")) ->  | H115: =IF($F115="","",(INDEX(Costs!$B$9:$B$504, MATCH('Financial Resources'!F115,Costs!$C$9:$C$504,0)))) ->  | I115: =IF($F115="","",(INDEX(Costs!$D$9:$D$504, MATCH(ResFin[[#This Row],[N° Activity]],Costs!$C$9:$C$504,0)))) ->  | J115: =IF($F115="","",(INDEX(Costs!$F$9:$F$504, MATCH(ResFin[[#This Row],[N° Activity]],Costs!$C$9:$C$504,0)))) ->  | K115: =IF(F115="","",(INDEX(Costs!$H$9:$H$504, MATCH(ResFin[[#This Row],[N° Activity]],Costs!$C$9:$C$504,0)))) ->  | L115: =IF($F115="","",(INDEX(Costs!$I$9:$I$504, MATCH(ResFin[[#This Row],[N° Activity]],Costs!$C$9:$C$504,0)))) ->  | M115: =IF($F115="","",(INDEX(Costs!$J$9:$J$504, MATCH(ResFin[[#This Row],[N° Activity]],Costs!$C$9:$C$504,0)))) ->  | O115: =IF(ResFin[[#This Row],[Area]]= "", "", IF(OR(ResFin[[#This Row],[Area]]= "EIR ", ResFin[[#This Row],[Area]]= "Points d'entrée"),"Surveillance",ResFin[[#This Row],[Area]])) ->  | Y115: =ResFin[[#This Row],[Date of disbursement]]-ResFin[[#This Row],[Date of commitment]] -> 0
G116: =IF($F116="","",IF(ISNA(MATCH(F116,Costs!$C$22:$C$504,0)),(IF(F116="","",IF(ISNA(MATCH(F116,Costs!$C$10:$C$20,0)),"Non-ciblé","Ciblé sur un domaine"))),"Ciblé sur une activité")) ->  | H116: =IF($F116="","",(INDEX(Costs!$B$9:$B$504, MATCH('Financial Resources'!F116,Costs!$C$9:$C$504,0)))) ->  | I116: =IF($F116="","",(INDEX(Costs!$D$9:$D$504, MATCH(ResFin[[#This Row],[N° Activity]],Costs!$C$9:$C$504,0)))) ->  | J116: =IF($F116="","",(INDEX(Costs!$F$9:$F$504, MATCH(ResFin[[#This Row],[N° Activity]],Costs!$C$9:$C$504,0)))) ->  | K116: =IF(F116="","",(INDEX(Costs!$H$9:$H$504, MATCH(ResFin[[#This Row],[N° Activity]],Costs!$C$9:$C$504,0)))) ->  | L116: =IF($F116="","",(INDEX(Costs!$I$9:$I$504, MATCH(ResFin[[#This Row],[N° Activity]],Costs!$C$9:$C$504,0)))) ->  | M116: =IF($F116="","",(INDEX(Costs!$J$9:$J$504, MATCH(ResFin[[#This Row],[N° Activity]],Costs!$C$9:$C$504,0)))) ->  | O116: =IF(ResFin[[#This Row],[Area]]= "", "", IF(OR(ResFin[[#This Row],[Area]]= "EIR ", ResFin[[#This Row],[Area]]= "Points d'entrée"),"Surveillance",ResFin[[#This Row],[Area]])) ->  | Y116: =ResFin[[#This Row],[Date of disbursement]]-ResFin[[#This Row],[Date of commitment]] -> 0
G117: =IF($F117="","",IF(ISNA(MATCH(F117,Costs!$C$22:$C$504,0)),(IF(F117="","",IF(ISNA(MATCH(F117,Costs!$C$10:$C$20,0)),"Non-ciblé","Ciblé sur un domaine"))),"Ciblé sur une activité")) ->  | H117: =IF($F117="","",(INDEX(Costs!$B$9:$B$504, MATCH('Financial Resources'!F117,Costs!$C$9:$C$504,0)))) ->  | I117: =IF($F117="","",(INDEX(Costs!$D$9:$D$504, MATCH(ResFin[[#This Row],[N° Activity]],Costs!$C$9:$C$504,0)))) ->  | J117: =IF($F117="","",(INDEX(Costs!$F$9:$F$504, MATCH(ResFin[[#This Row],[N° Activity]],Costs!$C$9:$C$504,0)))) ->  | K117: =IF(F117="","",(INDEX(Costs!$H$9:$H$504, MATCH(ResFin[[#This Row],[N° Activity]],Costs!$C$9:$C$504,0)))) ->  | L117: =IF($F117="","",(INDEX(Costs!$I$9:$I$504, MATCH(ResFin[[#This Row],[N° Activity]],Costs!$C$9:$C$504,0)))) ->  | M117: =IF($F117="","",(INDEX(Costs!$J$9:$J$504, MATCH(ResFin[[#This Row],[N° Activity]],Costs!$C$9:$C$504,0)))) ->  | O117: =IF(ResFin[[#This Row],[Area]]= "", "", IF(OR(ResFin[[#This Row],[Area]]= "EIR ", ResFin[[#This Row],[Area]]= "Points d'entrée"),"Surveillance",ResFin[[#This Row],[Area]])) ->  | Y117: =ResFin[[#This Row],[Date of disbursement]]-ResFin[[#This Row],[Date of commitment]] -> 0
G118: =IF($F118="","",IF(ISNA(MATCH(F118,Costs!$C$22:$C$504,0)),(IF(F118="","",IF(ISNA(MATCH(F118,Costs!$C$10:$C$20,0)),"Non-ciblé","Ciblé sur un domaine"))),"Ciblé sur une activité")) ->  | H118: =IF($F118="","",(INDEX(Costs!$B$9:$B$504, MATCH('Financial Resources'!F118,Costs!$C$9:$C$504,0)))) ->  | I118: =IF($F118="","",(INDEX(Costs!$D$9:$D$504, MATCH(ResFin[[#This Row],[N° Activity]],Costs!$C$9:$C$504,0)))) ->  | J118: =IF($F118="","",(INDEX(Costs!$F$9:$F$504, MATCH(ResFin[[#This Row],[N° Activity]],Costs!$C$9:$C$504,0)))) ->  | K118: =IF(F118="","",(INDEX(Costs!$H$9:$H$504, MATCH(ResFin[[#This Row],[N° Activity]],Costs!$C$9:$C$504,0)))) ->  | L118: =IF($F118="","",(INDEX(Costs!$I$9:$I$504, MATCH(ResFin[[#This Row],[N° Activity]],Costs!$C$9:$C$504,0)))) ->  | M118: =IF($F118="","",(INDEX(Costs!$J$9:$J$504, MATCH(ResFin[[#This Row],[N° Activity]],Costs!$C$9:$C$504,0)))) ->  | O118: =IF(ResFin[[#This Row],[Area]]= "", "", IF(OR(ResFin[[#This Row],[Area]]= "EIR ", ResFin[[#This Row],[Area]]= "Points d'entrée"),"Surveillance",ResFin[[#This Row],[Area]])) ->  | Y118: =ResFin[[#This Row],[Date of disbursement]]-ResFin[[#This Row],[Date of commitment]] -> 0
G119: =IF($F119="","",IF(ISNA(MATCH(F119,Costs!$C$22:$C$504,0)),(IF(F119="","",IF(ISNA(MATCH(F119,Costs!$C$10:$C$20,0)),"Non-ciblé","Ciblé sur un domaine"))),"Ciblé sur une activité")) ->  | H119: =IF($F119="","",(INDEX(Costs!$B$9:$B$504, MATCH('Financial Resources'!F119,Costs!$C$9:$C$504,0)))) ->  | I119: =IF($F119="","",(INDEX(Costs!$D$9:$D$504, MATCH(ResFin[[#This Row],[N° Activity]],Costs!$C$9:$C$504,0)))) ->  | J119: =IF($F119="","",(INDEX(Costs!$F$9:$F$504, MATCH(ResFin[[#This Row],[N° Activity]],Costs!$C$9:$C$504,0)))) ->  | K119: =IF(F119="","",(INDEX(Costs!$H$9:$H$504, MATCH(ResFin[[#This Row],[N° Activity]],Costs!$C$9:$C$504,0)))) ->  | L119: =IF($F119="","",(INDEX(Costs!$I$9:$I$504, MATCH(ResFin[[#This Row],[N° Activity]],Costs!$C$9:$C$504,0)))) ->  | M119: =IF($F119="","",(INDEX(Costs!$J$9:$J$504, MATCH(ResFin[[#This Row],[N° Activity]],Costs!$C$9:$C$504,0)))) ->  | O119: =IF(ResFin[[#This Row],[Area]]= "", "", IF(OR(ResFin[[#This Row],[Area]]= "EIR ", ResFin[[#This Row],[Area]]= "Points d'entrée"),"Surveillance",ResFin[[#This Row],[Area]])) ->  | Y119: =ResFin[[#This Row],[Date of disbursement]]-ResFin[[#This Row],[Date of commitment]] -> 0
G120: =IF($F120="","",IF(ISNA(MATCH(F120,Costs!$C$22:$C$504,0)),(IF(F120="","",IF(ISNA(MATCH(F120,Costs!$C$10:$C$20,0)),"Non-ciblé","Ciblé sur un domaine"))),"Ciblé sur une activité")) ->  | H120: =IF($F120="","",(INDEX(Costs!$B$9:$B$504, MATCH('Financial Resources'!F120,Costs!$C$9:$C$504,0)))) ->  | I120: =IF($F120="","",(INDEX(Costs!$D$9:$D$504, MATCH(ResFin[[#This Row],[N° Activity]],Costs!$C$9:$C$504,0)))) ->  | J120: =IF($F120="","",(INDEX(Costs!$F$9:$F$504, MATCH(ResFin[[#This Row],[N° Activity]],Costs!$C$9:$C$504,0)))) ->  | K120: =IF(F120="","",(INDEX(Costs!$H$9:$H$504, MATCH(ResFin[[#This Row],[N° Activity]],Costs!$C$9:$C$504,0)))) ->  | L120: =IF($F120="","",(INDEX(Costs!$I$9:$I$504, MATCH(ResFin[[#This Row],[N° Activity]],Costs!$C$9:$C$504,0)))) ->  | M120: =IF($F120="","",(INDEX(Costs!$J$9:$J$504, MATCH(ResFin[[#This Row],[N° Activity]],Costs!$C$9:$C$504,0)))) ->  | O120: =IF(ResFin[[#This Row],[Area]]= "", "", IF(OR(ResFin[[#This Row],[Area]]= "EIR ", ResFin[[#This Row],[Area]]= "Points d'entrée"),"Surveillance",ResFin[[#This Row],[Area]])) ->  | Y120: =ResFin[[#This Row],[Date of disbursement]]-ResFin[[#This Row],[Date of commitment]] -> 0
G121: =IF($F121="","",IF(ISNA(MATCH(F121,Costs!$C$22:$C$504,0)),(IF(F121="","",IF(ISNA(MATCH(F121,Costs!$C$10:$C$20,0)),"Non-ciblé","Ciblé sur un domaine"))),"Ciblé sur une activité")) ->  | H121: =IF($F121="","",(INDEX(Costs!$B$9:$B$504, MATCH('Financial Resources'!F121,Costs!$C$9:$C$504,0)))) ->  | I121: =IF($F121="","",(INDEX(Costs!$D$9:$D$504, MATCH(ResFin[[#This Row],[N° Activity]],Costs!$C$9:$C$504,0)))) ->  | J121: =IF($F121="","",(INDEX(Costs!$F$9:$F$504, MATCH(ResFin[[#This Row],[N° Activity]],Costs!$C$9:$C$504,0)))) ->  | K121: =IF(F121="","",(INDEX(Costs!$H$9:$H$504, MATCH(ResFin[[#This Row],[N° Activity]],Costs!$C$9:$C$504,0)))) ->  | L121: =IF($F121="","",(INDEX(Costs!$I$9:$I$504, MATCH(ResFin[[#This Row],[N° Activity]],Costs!$C$9:$C$504,0)))) ->  | M121: =IF($F121="","",(INDEX(Costs!$J$9:$J$504, MATCH(ResFin[[#This Row],[N° Activity]],Costs!$C$9:$C$504,0)))) ->  | O121: =IF(ResFin[[#This Row],[Area]]= "", "", IF(OR(ResFin[[#This Row],[Area]]= "EIR ", ResFin[[#This Row],[Area]]= "Points d'entrée"),"Surveillance",ResFin[[#This Row],[Area]])) ->  | Y121: =ResFin[[#This Row],[Date of disbursement]]-ResFin[[#This Row],[Date of commitment]] -> 0
G122: =IF($F122="","",IF(ISNA(MATCH(F122,Costs!$C$22:$C$504,0)),(IF(F122="","",IF(ISNA(MATCH(F122,Costs!$C$10:$C$20,0)),"Non-ciblé","Ciblé sur un domaine"))),"Ciblé sur une activité")) ->  | H122: =IF($F122="","",(INDEX(Costs!$B$9:$B$504, MATCH('Financial Resources'!F122,Costs!$C$9:$C$504,0)))) ->  | I122: =IF($F122="","",(INDEX(Costs!$D$9:$D$504, MATCH(ResFin[[#This Row],[N° Activity]],Costs!$C$9:$C$504,0)))) ->  | J122: =IF($F122="","",(INDEX(Costs!$F$9:$F$504, MATCH(ResFin[[#This Row],[N° Activity]],Costs!$C$9:$C$504,0)))) ->  | K122: =IF(F122="","",(INDEX(Costs!$H$9:$H$504, MATCH(ResFin[[#This Row],[N° Activity]],Costs!$C$9:$C$504,0)))) ->  | L122: =IF($F122="","",(INDEX(Costs!$I$9:$I$504, MATCH(ResFin[[#This Row],[N° Activity]],Costs!$C$9:$C$504,0)))) ->  | M122: =IF($F122="","",(INDEX(Costs!$J$9:$J$504, MATCH(ResFin[[#This Row],[N° Activity]],Costs!$C$9:$C$504,0)))) ->  | O122: =IF(ResFin[[#This Row],[Area]]= "", "", IF(OR(ResFin[[#This Row],[Area]]= "EIR ", ResFin[[#This Row],[Area]]= "Points d'entrée"),"Surveillance",ResFin[[#This Row],[Area]])) ->  | Y122: =ResFin[[#This Row],[Date of disbursement]]-ResFin[[#This Row],[Date of commitment]] -> 0
G123: =IF($F123="","",IF(ISNA(MATCH(F123,Costs!$C$22:$C$504,0)),(IF(F123="","",IF(ISNA(MATCH(F123,Costs!$C$10:$C$20,0)),"Non-ciblé","Ciblé sur un domaine"))),"Ciblé sur une activité")) ->  | H123: =IF($F123="","",(INDEX(Costs!$B$9:$B$504, MATCH('Financial Resources'!F123,Costs!$C$9:$C$504,0)))) ->  | I123: =IF($F123="","",(INDEX(Costs!$D$9:$D$504, MATCH(ResFin[[#This Row],[N° Activity]],Costs!$C$9:$C$504,0)))) ->  | J123: =IF($F123="","",(INDEX(Costs!$F$9:$F$504, MATCH(ResFin[[#This Row],[N° Activity]],Costs!$C$9:$C$504,0)))) ->  | K123: =IF(F123="","",(INDEX(Costs!$H$9:$H$504, MATCH(ResFin[[#This Row],[N° Activity]],Costs!$C$9:$C$504,0)))) ->  | L123: =IF($F123="","",(INDEX(Costs!$I$9:$I$504, MATCH(ResFin[[#This Row],[N° Activity]],Costs!$C$9:$C$504,0)))) ->  | M123: =IF($F123="","",(INDEX(Costs!$J$9:$J$504, MATCH(ResFin[[#This Row],[N° Activity]],Costs!$C$9:$C$504,0)))) ->  | O123: =IF(ResFin[[#This Row],[Area]]= "", "", IF(OR(ResFin[[#This Row],[Area]]= "EIR ", ResFin[[#This Row],[Area]]= "Points d'entrée"),"Surveillance",ResFin[[#This Row],[Area]])) ->  | Y123: =ResFin[[#This Row],[Date of disbursement]]-ResFin[[#This Row],[Date of commitment]] -> 0
G124: =IF($F124="","",IF(ISNA(MATCH(F124,Costs!$C$22:$C$504,0)),(IF(F124="","",IF(ISNA(MATCH(F124,Costs!$C$10:$C$20,0)),"Non-ciblé","Ciblé sur un domaine"))),"Ciblé sur une activité")) ->  | H124: =IF($F124="","",(INDEX(Costs!$B$9:$B$504, MATCH('Financial Resources'!F124,Costs!$C$9:$C$504,0)))) ->  | I124: =IF($F124="","",(INDEX(Costs!$D$9:$D$504, MATCH(ResFin[[#This Row],[N° Activity]],Costs!$C$9:$C$504,0)))) ->  | J124: =IF($F124="","",(INDEX(Costs!$F$9:$F$504, MATCH(ResFin[[#This Row],[N° Activity]],Costs!$C$9:$C$504,0)))) ->  | K124: =IF(F124="","",(INDEX(Costs!$H$9:$H$504, MATCH(ResFin[[#This Row],[N° Activity]],Costs!$C$9:$C$504,0)))) ->  | L124: =IF($F124="","",(INDEX(Costs!$I$9:$I$504, MATCH(ResFin[[#This Row],[N° Activity]],Costs!$C$9:$C$504,0)))) ->  | M124: =IF($F124="","",(INDEX(Costs!$J$9:$J$504, MATCH(ResFin[[#This Row],[N° Activity]],Costs!$C$9:$C$504,0)))) ->  | O124: =IF(ResFin[[#This Row],[Area]]= "", "", IF(OR(ResFin[[#This Row],[Area]]= "EIR ", ResFin[[#This Row],[Area]]= "Points d'entrée"),"Surveillance",ResFin[[#This Row],[Area]])) ->  | Y124: =ResFin[[#This Row],[Date of disbursement]]-ResFin[[#This Row],[Date of commitment]] -> 0
G125: =IF($F125="","",IF(ISNA(MATCH(F125,Costs!$C$22:$C$504,0)),(IF(F125="","",IF(ISNA(MATCH(F125,Costs!$C$10:$C$20,0)),"Non-ciblé","Ciblé sur un domaine"))),"Ciblé sur une activité")) ->  | H125: =IF($F125="","",(INDEX(Costs!$B$9:$B$504, MATCH('Financial Resources'!F125,Costs!$C$9:$C$504,0)))) ->  | I125: =IF($F125="","",(INDEX(Costs!$D$9:$D$504, MATCH(ResFin[[#This Row],[N° Activity]],Costs!$C$9:$C$504,0)))) ->  | J125: =IF($F125="","",(INDEX(Costs!$F$9:$F$504, MATCH(ResFin[[#This Row],[N° Activity]],Costs!$C$9:$C$504,0)))) ->  | K125: =IF(F125="","",(INDEX(Costs!$H$9:$H$504, MATCH(ResFin[[#This Row],[N° Activity]],Costs!$C$9:$C$504,0)))) ->  | L125: =IF($F125="","",(INDEX(Costs!$I$9:$I$504, MATCH(ResFin[[#This Row],[N° Activity]],Costs!$C$9:$C$504,0)))) ->  | M125: =IF($F125="","",(INDEX(Costs!$J$9:$J$504, MATCH(ResFin[[#This Row],[N° Activity]],Costs!$C$9:$C$504,0)))) ->  | O125: =IF(ResFin[[#This Row],[Area]]= "", "", IF(OR(ResFin[[#This Row],[Area]]= "EIR ", ResFin[[#This Row],[Area]]= "Points d'entrée"),"Surveillance",ResFin[[#This Row],[Area]])) ->  | Y125: =ResFin[[#This Row],[Date of disbursement]]-ResFin[[#This Row],[Date of commitment]] -> 0
G126: =IF($F126="","",IF(ISNA(MATCH(F126,Costs!$C$22:$C$504,0)),(IF(F126="","",IF(ISNA(MATCH(F126,Costs!$C$10:$C$20,0)),"Non-ciblé","Ciblé sur un domaine"))),"Ciblé sur une activité")) ->  | H126: =IF($F126="","",(INDEX(Costs!$B$9:$B$504, MATCH('Financial Resources'!F126,Costs!$C$9:$C$504,0)))) ->  | I126: =IF($F126="","",(INDEX(Costs!$D$9:$D$504, MATCH(ResFin[[#This Row],[N° Activity]],Costs!$C$9:$C$504,0)))) ->  | J126: =IF($F126="","",(INDEX(Costs!$F$9:$F$504, MATCH(ResFin[[#This Row],[N° Activity]],Costs!$C$9:$C$504,0)))) ->  | K126: =IF(F126="","",(INDEX(Costs!$H$9:$H$504, MATCH(ResFin[[#This Row],[N° Activity]],Costs!$C$9:$C$504,0)))) ->  | L126: =IF($F126="","",(INDEX(Costs!$I$9:$I$504, MATCH(ResFin[[#This Row],[N° Activity]],Costs!$C$9:$C$504,0)))) ->  | M126: =IF($F126="","",(INDEX(Costs!$J$9:$J$504, MATCH(ResFin[[#This Row],[N° Activity]],Costs!$C$9:$C$504,0)))) ->  | O126: =IF(ResFin[[#This Row],[Area]]= "", "", IF(OR(ResFin[[#This Row],[Area]]= "EIR ", ResFin[[#This Row],[Area]]= "Points d'entrée"),"Surveillance",ResFin[[#This Row],[Area]])) ->  | Y126: =ResFin[[#This Row],[Date of disbursement]]-ResFin[[#This Row],[Date of commitment]] -> 0
G127: =IF($F127="","",IF(ISNA(MATCH(F127,Costs!$C$22:$C$504,0)),(IF(F127="","",IF(ISNA(MATCH(F127,Costs!$C$10:$C$20,0)),"Non-ciblé","Ciblé sur un domaine"))),"Ciblé sur une activité")) ->  | H127: =IF($F127="","",(INDEX(Costs!$B$9:$B$504, MATCH('Financial Resources'!F127,Costs!$C$9:$C$504,0)))) ->  | I127: =IF($F127="","",(INDEX(Costs!$D$9:$D$504, MATCH(ResFin[[#This Row],[N° Activity]],Costs!$C$9:$C$504,0)))) ->  | J127: =IF($F127="","",(INDEX(Costs!$F$9:$F$504, MATCH(ResFin[[#This Row],[N° Activity]],Costs!$C$9:$C$504,0)))) ->  | K127: =IF(F127="","",(INDEX(Costs!$H$9:$H$504, MATCH(ResFin[[#This Row],[N° Activity]],Costs!$C$9:$C$504,0)))) ->  | L127: =IF($F127="","",(INDEX(Costs!$I$9:$I$504, MATCH(ResFin[[#This Row],[N° Activity]],Costs!$C$9:$C$504,0)))) ->  | M127: =IF($F127="","",(INDEX(Costs!$J$9:$J$504, MATCH(ResFin[[#This Row],[N° Activity]],Costs!$C$9:$C$504,0)))) ->  | O127: =IF(ResFin[[#This Row],[Area]]= "", "", IF(OR(ResFin[[#This Row],[Area]]= "EIR ", ResFin[[#This Row],[Area]]= "Points d'entrée"),"Surveillance",ResFin[[#This Row],[Area]])) ->  | Y127: =ResFin[[#This Row],[Date of disbursement]]-ResFin[[#This Row],[Date of commitment]] -> 0
G128: =IF($F128="","",IF(ISNA(MATCH(F128,Costs!$C$22:$C$504,0)),(IF(F128="","",IF(ISNA(MATCH(F128,Costs!$C$10:$C$20,0)),"Non-ciblé","Ciblé sur un domaine"))),"Ciblé sur une activité")) ->  | H128: =IF($F128="","",(INDEX(Costs!$B$9:$B$504, MATCH('Financial Resources'!F128,Costs!$C$9:$C$504,0)))) ->  | I128: =IF($F128="","",(INDEX(Costs!$D$9:$D$504, MATCH(ResFin[[#This Row],[N° Activity]],Costs!$C$9:$C$504,0)))) ->  | J128: =IF($F128="","",(INDEX(Costs!$F$9:$F$504, MATCH(ResFin[[#This Row],[N° Activity]],Costs!$C$9:$C$504,0)))) ->  | K128: =IF(F128="","",(INDEX(Costs!$H$9:$H$504, MATCH(ResFin[[#This Row],[N° Activity]],Costs!$C$9:$C$504,0)))) ->  | L128: =IF($F128="","",(INDEX(Costs!$I$9:$I$504, MATCH(ResFin[[#This Row],[N° Activity]],Costs!$C$9:$C$504,0)))) ->  | M128: =IF($F128="","",(INDEX(Costs!$J$9:$J$504, MATCH(ResFin[[#This Row],[N° Activity]],Costs!$C$9:$C$504,0)))) ->  | O128: =IF(ResFin[[#This Row],[Area]]= "", "", IF(OR(ResFin[[#This Row],[Area]]= "EIR ", ResFin[[#This Row],[Area]]= "Points d'entrée"),"Surveillance",ResFin[[#This Row],[Area]])) ->  | Y128: =ResFin[[#This Row],[Date of disbursement]]-ResFin[[#This Row],[Date of commitment]] -> 0
G129: =IF($F129="","",IF(ISNA(MATCH(F129,Costs!$C$22:$C$504,0)),(IF(F129="","",IF(ISNA(MATCH(F129,Costs!$C$10:$C$20,0)),"Non-ciblé","Ciblé sur un domaine"))),"Ciblé sur une activité")) ->  | H129: =IF($F129="","",(INDEX(Costs!$B$9:$B$504, MATCH('Financial Resources'!F129,Costs!$C$9:$C$504,0)))) ->  | I129: =IF($F129="","",(INDEX(Costs!$D$9:$D$504, MATCH(ResFin[[#This Row],[N° Activity]],Costs!$C$9:$C$504,0)))) ->  | J129: =IF($F129="","",(INDEX(Costs!$F$9:$F$504, MATCH(ResFin[[#This Row],[N° Activity]],Costs!$C$9:$C$504,0)))) ->  | K129: =IF(F129="","",(INDEX(Costs!$H$9:$H$504, MATCH(ResFin[[#This Row],[N° Activity]],Costs!$C$9:$C$504,0)))) ->  | L129: =IF($F129="","",(INDEX(Costs!$I$9:$I$504, MATCH(ResFin[[#This Row],[N° Activity]],Costs!$C$9:$C$504,0)))) ->  | M129: =IF($F129="","",(INDEX(Costs!$J$9:$J$504, MATCH(ResFin[[#This Row],[N° Activity]],Costs!$C$9:$C$504,0)))) ->  | O129: =IF(ResFin[[#This Row],[Area]]= "", "", IF(OR(ResFin[[#This Row],[Area]]= "EIR ", ResFin[[#This Row],[Area]]= "Points d'entrée"),"Surveillance",ResFin[[#This Row],[Area]])) ->  | Y129: =ResFin[[#This Row],[Date of disbursement]]-ResFin[[#This Row],[Date of commitment]] -> 0
G130: =IF($F130="","",IF(ISNA(MATCH(F130,Costs!$C$22:$C$504,0)),(IF(F130="","",IF(ISNA(MATCH(F130,Costs!$C$10:$C$20,0)),"Non-ciblé","Ciblé sur un domaine"))),"Ciblé sur une activité")) ->  | H130: =IF($F130="","",(INDEX(Costs!$B$9:$B$504, MATCH('Financial Resources'!F130,Costs!$C$9:$C$504,0)))) ->  | I130: =IF($F130="","",(INDEX(Costs!$D$9:$D$504, MATCH(ResFin[[#This Row],[N° Activity]],Costs!$C$9:$C$504,0)))) ->  | J130: =IF($F130="","",(INDEX(Costs!$F$9:$F$504, MATCH(ResFin[[#This Row],[N° Activity]],Costs!$C$9:$C$504,0)))) ->  | K130: =IF(F130="","",(INDEX(Costs!$H$9:$H$504, MATCH(ResFin[[#This Row],[N° Activity]],Costs!$C$9:$C$504,0)))) ->  | L130: =IF($F130="","",(INDEX(Costs!$I$9:$I$504, MATCH(ResFin[[#This Row],[N° Activity]],Costs!$C$9:$C$504,0)))) ->  | M130: =IF($F130="","",(INDEX(Costs!$J$9:$J$504, MATCH(ResFin[[#This Row],[N° Activity]],Costs!$C$9:$C$504,0)))) ->  | O130: =IF(ResFin[[#This Row],[Area]]= "", "", IF(OR(ResFin[[#This Row],[Area]]= "EIR ", ResFin[[#This Row],[Area]]= "Points d'entrée"),"Surveillance",ResFin[[#This Row],[Area]])) ->  | Y130: =ResFin[[#This Row],[Date of disbursement]]-ResFin[[#This Row],[Date of commitment]] -> 0
G131: =IF($F131="","",IF(ISNA(MATCH(F131,Costs!$C$22:$C$504,0)),(IF(F131="","",IF(ISNA(MATCH(F131,Costs!$C$10:$C$20,0)),"Non-ciblé","Ciblé sur un domaine"))),"Ciblé sur une activité")) ->  | H131: =IF($F131="","",(INDEX(Costs!$B$9:$B$504, MATCH('Financial Resources'!F131,Costs!$C$9:$C$504,0)))) ->  | I131: =IF($F131="","",(INDEX(Costs!$D$9:$D$504, MATCH(ResFin[[#This Row],[N° Activity]],Costs!$C$9:$C$504,0)))) ->  | J131: =IF($F131="","",(INDEX(Costs!$F$9:$F$504, MATCH(ResFin[[#This Row],[N° Activity]],Costs!$C$9:$C$504,0)))) ->  | K131: =IF(F131="","",(INDEX(Costs!$H$9:$H$504, MATCH(ResFin[[#This Row],[N° Activity]],Costs!$C$9:$C$504,0)))) ->  | L131: =IF($F131="","",(INDEX(Costs!$I$9:$I$504, MATCH(ResFin[[#This Row],[N° Activity]],Costs!$C$9:$C$504,0)))) ->  | M131: =IF($F131="","",(INDEX(Costs!$J$9:$J$504, MATCH(ResFin[[#This Row],[N° Activity]],Costs!$C$9:$C$504,0)))) ->  | O131: =IF(ResFin[[#This Row],[Area]]= "", "", IF(OR(ResFin[[#This Row],[Area]]= "EIR ", ResFin[[#This Row],[Area]]= "Points d'entrée"),"Surveillance",ResFin[[#This Row],[Area]])) ->  | Y131: =ResFin[[#This Row],[Date of disbursement]]-ResFin[[#This Row],[Date of commitment]] -> 0
G132: =IF($F132="","",IF(ISNA(MATCH(F132,Costs!$C$22:$C$504,0)),(IF(F132="","",IF(ISNA(MATCH(F132,Costs!$C$10:$C$20,0)),"Non-ciblé","Ciblé sur un domaine"))),"Ciblé sur une activité")) ->  | H132: =IF($F132="","",(INDEX(Costs!$B$9:$B$504, MATCH('Financial Resources'!F132,Costs!$C$9:$C$504,0)))) ->  | I132: =IF($F132="","",(INDEX(Costs!$D$9:$D$504, MATCH(ResFin[[#This Row],[N° Activity]],Costs!$C$9:$C$504,0)))) ->  | J132: =IF($F132="","",(INDEX(Costs!$F$9:$F$504, MATCH(ResFin[[#This Row],[N° Activity]],Costs!$C$9:$C$504,0)))) ->  | K132: =IF(F132="","",(INDEX(Costs!$H$9:$H$504, MATCH(ResFin[[#This Row],[N° Activity]],Costs!$C$9:$C$504,0)))) ->  | L132: =IF($F132="","",(INDEX(Costs!$I$9:$I$504, MATCH(ResFin[[#This Row],[N° Activity]],Costs!$C$9:$C$504,0)))) ->  | M132: =IF($F132="","",(INDEX(Costs!$J$9:$J$504, MATCH(ResFin[[#This Row],[N° Activity]],Costs!$C$9:$C$504,0)))) ->  | O132: =IF(ResFin[[#This Row],[Area]]= "", "", IF(OR(ResFin[[#This Row],[Area]]= "EIR ", ResFin[[#This Row],[Area]]= "Points d'entrée"),"Surveillance",ResFin[[#This Row],[Area]])) ->  | Y132: =ResFin[[#This Row],[Date of disbursement]]-ResFin[[#This Row],[Date of commitment]] -> 0
G133: =IF($F133="","",IF(ISNA(MATCH(F133,Costs!$C$22:$C$504,0)),(IF(F133="","",IF(ISNA(MATCH(F133,Costs!$C$10:$C$20,0)),"Non-ciblé","Ciblé sur un domaine"))),"Ciblé sur une activité")) ->  | H133: =IF($F133="","",(INDEX(Costs!$B$9:$B$504, MATCH('Financial Resources'!F133,Costs!$C$9:$C$504,0)))) ->  | I133: =IF($F133="","",(INDEX(Costs!$D$9:$D$504, MATCH(ResFin[[#This Row],[N° Activity]],Costs!$C$9:$C$504,0)))) ->  | J133: =IF($F133="","",(INDEX(Costs!$F$9:$F$504, MATCH(ResFin[[#This Row],[N° Activity]],Costs!$C$9:$C$504,0)))) ->  | K133: =IF(F133="","",(INDEX(Costs!$H$9:$H$504, MATCH(ResFin[[#This Row],[N° Activity]],Costs!$C$9:$C$504,0)))) ->  | L133: =IF($F133="","",(INDEX(Costs!$I$9:$I$504, MATCH(ResFin[[#This Row],[N° Activity]],Costs!$C$9:$C$504,0)))) ->  | M133: =IF($F133="","",(INDEX(Costs!$J$9:$J$504, MATCH(ResFin[[#This Row],[N° Activity]],Costs!$C$9:$C$504,0)))) ->  | O133: =IF(ResFin[[#This Row],[Area]]= "", "", IF(OR(ResFin[[#This Row],[Area]]= "EIR ", ResFin[[#This Row],[Area]]= "Points d'entrée"),"Surveillance",ResFin[[#This Row],[Area]])) ->  | Y133: =ResFin[[#This Row],[Date of disbursement]]-ResFin[[#This Row],[Date of commitment]] -> 0
G134: =IF($F134="","",IF(ISNA(MATCH(F134,Costs!$C$22:$C$504,0)),(IF(F134="","",IF(ISNA(MATCH(F134,Costs!$C$10:$C$20,0)),"Non-ciblé","Ciblé sur un domaine"))),"Ciblé sur une activité")) ->  | H134: =IF($F134="","",(INDEX(Costs!$B$9:$B$504, MATCH('Financial Resources'!F134,Costs!$C$9:$C$504,0)))) ->  | I134: =IF($F134="","",(INDEX(Costs!$D$9:$D$504, MATCH(ResFin[[#This Row],[N° Activity]],Costs!$C$9:$C$504,0)))) ->  | J134: =IF($F134="","",(INDEX(Costs!$F$9:$F$504, MATCH(ResFin[[#This Row],[N° Activity]],Costs!$C$9:$C$504,0)))) ->  | K134: =IF(F134="","",(INDEX(Costs!$H$9:$H$504, MATCH(ResFin[[#This Row],[N° Activity]],Costs!$C$9:$C$504,0)))) ->  | L134: =IF($F134="","",(INDEX(Costs!$I$9:$I$504, MATCH(ResFin[[#This Row],[N° Activity]],Costs!$C$9:$C$504,0)))) ->  | M134: =IF($F134="","",(INDEX(Costs!$J$9:$J$504, MATCH(ResFin[[#This Row],[N° Activity]],Costs!$C$9:$C$504,0)))) ->  | O134: =IF(ResFin[[#This Row],[Area]]= "", "", IF(OR(ResFin[[#This Row],[Area]]= "EIR ", ResFin[[#This Row],[Area]]= "Points d'entrée"),"Surveillance",ResFin[[#This Row],[Area]])) ->  | Y134: =ResFin[[#This Row],[Date of disbursement]]-ResFin[[#This Row],[Date of commitment]] -> 0
G135: =IF($F135="","",IF(ISNA(MATCH(F135,Costs!$C$22:$C$504,0)),(IF(F135="","",IF(ISNA(MATCH(F135,Costs!$C$10:$C$20,0)),"Non-ciblé","Ciblé sur un domaine"))),"Ciblé sur une activité")) ->  | H135: =IF($F135="","",(INDEX(Costs!$B$9:$B$504, MATCH('Financial Resources'!F135,Costs!$C$9:$C$504,0)))) ->  | I135: =IF($F135="","",(INDEX(Costs!$D$9:$D$504, MATCH(ResFin[[#This Row],[N° Activity]],Costs!$C$9:$C$504,0)))) ->  | J135: =IF($F135="","",(INDEX(Costs!$F$9:$F$504, MATCH(ResFin[[#This Row],[N° Activity]],Costs!$C$9:$C$504,0)))) ->  | K135: =IF(F135="","",(INDEX(Costs!$H$9:$H$504, MATCH(ResFin[[#This Row],[N° Activity]],Costs!$C$9:$C$504,0)))) ->  | L135: =IF($F135="","",(INDEX(Costs!$I$9:$I$504, MATCH(ResFin[[#This Row],[N° Activity]],Costs!$C$9:$C$504,0)))) ->  | M135: =IF($F135="","",(INDEX(Costs!$J$9:$J$504, MATCH(ResFin[[#This Row],[N° Activity]],Costs!$C$9:$C$504,0)))) ->  | O135: =IF(ResFin[[#This Row],[Area]]= "", "", IF(OR(ResFin[[#This Row],[Area]]= "EIR ", ResFin[[#This Row],[Area]]= "Points d'entrée"),"Surveillance",ResFin[[#This Row],[Area]])) ->  | Y135: =ResFin[[#This Row],[Date of disbursement]]-ResFin[[#This Row],[Date of commitment]] -> 0
G136: =IF($F136="","",IF(ISNA(MATCH(F136,Costs!$C$22:$C$504,0)),(IF(F136="","",IF(ISNA(MATCH(F136,Costs!$C$10:$C$20,0)),"Non-ciblé","Ciblé sur un domaine"))),"Ciblé sur une activité")) ->  | H136: =IF($F136="","",(INDEX(Costs!$B$9:$B$504, MATCH('Financial Resources'!F136,Costs!$C$9:$C$504,0)))) ->  | I136: =IF($F136="","",(INDEX(Costs!$D$9:$D$504, MATCH(ResFin[[#This Row],[N° Activity]],Costs!$C$9:$C$504,0)))) ->  | J136: =IF($F136="","",(INDEX(Costs!$F$9:$F$504, MATCH(ResFin[[#This Row],[N° Activity]],Costs!$C$9:$C$504,0)))) ->  | K136: =IF(F136="","",(INDEX(Costs!$H$9:$H$504, MATCH(ResFin[[#This Row],[N° Activity]],Costs!$C$9:$C$504,0)))) ->  | L136: =IF($F136="","",(INDEX(Costs!$I$9:$I$504, MATCH(ResFin[[#This Row],[N° Activity]],Costs!$C$9:$C$504,0)))) ->  | M136: =IF($F136="","",(INDEX(Costs!$J$9:$J$504, MATCH(ResFin[[#This Row],[N° Activity]],Costs!$C$9:$C$504,0)))) ->  | O136: =IF(ResFin[[#This Row],[Area]]= "", "", IF(OR(ResFin[[#This Row],[Area]]= "EIR ", ResFin[[#This Row],[Area]]= "Points d'entrée"),"Surveillance",ResFin[[#This Row],[Area]])) ->  | Y136: =ResFin[[#This Row],[Date of disbursement]]-ResFin[[#This Row],[Date of commitment]] -> 0
G137: =IF($F137="","",IF(ISNA(MATCH(F137,Costs!$C$22:$C$504,0)),(IF(F137="","",IF(ISNA(MATCH(F137,Costs!$C$10:$C$20,0)),"Non-ciblé","Ciblé sur un domaine"))),"Ciblé sur une activité")) ->  | H137: =IF($F137="","",(INDEX(Costs!$B$9:$B$504, MATCH('Financial Resources'!F137,Costs!$C$9:$C$504,0)))) ->  | I137: =IF($F137="","",(INDEX(Costs!$D$9:$D$504, MATCH(ResFin[[#This Row],[N° Activity]],Costs!$C$9:$C$504,0)))) ->  | J137: =IF($F137="","",(INDEX(Costs!$F$9:$F$504, MATCH(ResFin[[#This Row],[N° Activity]],Costs!$C$9:$C$504,0)))) ->  | K137: =IF(F137="","",(INDEX(Costs!$H$9:$H$504, MATCH(ResFin[[#This Row],[N° Activity]],Costs!$C$9:$C$504,0)))) ->  | L137: =IF($F137="","",(INDEX(Costs!$I$9:$I$504, MATCH(ResFin[[#This Row],[N° Activity]],Costs!$C$9:$C$504,0)))) ->  | M137: =IF($F137="","",(INDEX(Costs!$J$9:$J$504, MATCH(ResFin[[#This Row],[N° Activity]],Costs!$C$9:$C$504,0)))) ->  | O137: =IF(ResFin[[#This Row],[Area]]= "", "", IF(OR(ResFin[[#This Row],[Area]]= "EIR ", ResFin[[#This Row],[Area]]= "Points d'entrée"),"Surveillance",ResFin[[#This Row],[Area]])) ->  | Y137: =ResFin[[#This Row],[Date of disbursement]]-ResFin[[#This Row],[Date of commitment]] -> 0
G138: =IF($F138="","",IF(ISNA(MATCH(F138,Costs!$C$22:$C$504,0)),(IF(F138="","",IF(ISNA(MATCH(F138,Costs!$C$10:$C$20,0)),"Non-ciblé","Ciblé sur un domaine"))),"Ciblé sur une activité")) ->  | H138: =IF($F138="","",(INDEX(Costs!$B$9:$B$504, MATCH('Financial Resources'!F138,Costs!$C$9:$C$504,0)))) ->  | I138: =IF($F138="","",(INDEX(Costs!$D$9:$D$504, MATCH(ResFin[[#This Row],[N° Activity]],Costs!$C$9:$C$504,0)))) ->  | J138: =IF($F138="","",(INDEX(Costs!$F$9:$F$504, MATCH(ResFin[[#This Row],[N° Activity]],Costs!$C$9:$C$504,0)))) ->  | K138: =IF(F138="","",(INDEX(Costs!$H$9:$H$504, MATCH(ResFin[[#This Row],[N° Activity]],Costs!$C$9:$C$504,0)))) ->  | L138: =IF($F138="","",(INDEX(Costs!$I$9:$I$504, MATCH(ResFin[[#This Row],[N° Activity]],Costs!$C$9:$C$504,0)))) ->  | M138: =IF($F138="","",(INDEX(Costs!$J$9:$J$504, MATCH(ResFin[[#This Row],[N° Activity]],Costs!$C$9:$C$504,0)))) ->  | O138: =IF(ResFin[[#This Row],[Area]]= "", "", IF(OR(ResFin[[#This Row],[Area]]= "EIR ", ResFin[[#This Row],[Area]]= "Points d'entrée"),"Surveillance",ResFin[[#This Row],[Area]])) ->  | Y138: =ResFin[[#This Row],[Date of disbursement]]-ResFin[[#This Row],[Date of commitment]] -> 0
G139: =IF($F139="","",IF(ISNA(MATCH(F139,Costs!$C$22:$C$504,0)),(IF(F139="","",IF(ISNA(MATCH(F139,Costs!$C$10:$C$20,0)),"Non-ciblé","Ciblé sur un domaine"))),"Ciblé sur une activité")) ->  | H139: =IF($F139="","",(INDEX(Costs!$B$9:$B$504, MATCH('Financial Resources'!F139,Costs!$C$9:$C$504,0)))) ->  | I139: =IF($F139="","",(INDEX(Costs!$D$9:$D$504, MATCH(ResFin[[#This Row],[N° Activity]],Costs!$C$9:$C$504,0)))) ->  | J139: =IF($F139="","",(INDEX(Costs!$F$9:$F$504, MATCH(ResFin[[#This Row],[N° Activity]],Costs!$C$9:$C$504,0)))) ->  | K139: =IF(F139="","",(INDEX(Costs!$H$9:$H$504, MATCH(ResFin[[#This Row],[N° Activity]],Costs!$C$9:$C$504,0)))) ->  | L139: =IF($F139="","",(INDEX(Costs!$I$9:$I$504, MATCH(ResFin[[#This Row],[N° Activity]],Costs!$C$9:$C$504,0)))) ->  | M139: =IF($F139="","",(INDEX(Costs!$J$9:$J$504, MATCH(ResFin[[#This Row],[N° Activity]],Costs!$C$9:$C$504,0)))) ->  | O139: =IF(ResFin[[#This Row],[Area]]= "", "", IF(OR(ResFin[[#This Row],[Area]]= "EIR ", ResFin[[#This Row],[Area]]= "Points d'entrée"),"Surveillance",ResFin[[#This Row],[Area]])) ->  | Y139: =ResFin[[#This Row],[Date of disbursement]]-ResFin[[#This Row],[Date of commitment]] -> 0
G140: =IF($F140="","",IF(ISNA(MATCH(F140,Costs!$C$22:$C$504,0)),(IF(F140="","",IF(ISNA(MATCH(F140,Costs!$C$10:$C$20,0)),"Non-ciblé","Ciblé sur un domaine"))),"Ciblé sur une activité")) ->  | H140: =IF($F140="","",(INDEX(Costs!$B$9:$B$504, MATCH('Financial Resources'!F140,Costs!$C$9:$C$504,0)))) ->  | I140: =IF($F140="","",(INDEX(Costs!$D$9:$D$504, MATCH(ResFin[[#This Row],[N° Activity]],Costs!$C$9:$C$504,0)))) ->  | J140: =IF($F140="","",(INDEX(Costs!$F$9:$F$504, MATCH(ResFin[[#This Row],[N° Activity]],Costs!$C$9:$C$504,0)))) ->  | K140: =IF(F140="","",(INDEX(Costs!$H$9:$H$504, MATCH(ResFin[[#This Row],[N° Activity]],Costs!$C$9:$C$504,0)))) ->  | L140: =IF($F140="","",(INDEX(Costs!$I$9:$I$504, MATCH(ResFin[[#This Row],[N° Activity]],Costs!$C$9:$C$504,0)))) ->  | M140: =IF($F140="","",(INDEX(Costs!$J$9:$J$504, MATCH(ResFin[[#This Row],[N° Activity]],Costs!$C$9:$C$504,0)))) ->  | O140: =IF(ResFin[[#This Row],[Area]]= "", "", IF(OR(ResFin[[#This Row],[Area]]= "EIR ", ResFin[[#This Row],[Area]]= "Points d'entrée"),"Surveillance",ResFin[[#This Row],[Area]])) ->  | Y140: =ResFin[[#This Row],[Date of disbursement]]-ResFin[[#This Row],[Date of commitment]] -> 0
G141: =IF($F141="","",IF(ISNA(MATCH(F141,Costs!$C$22:$C$504,0)),(IF(F141="","",IF(ISNA(MATCH(F141,Costs!$C$10:$C$20,0)),"Non-ciblé","Ciblé sur un domaine"))),"Ciblé sur une activité")) ->  | H141: =IF($F141="","",(INDEX(Costs!$B$9:$B$504, MATCH('Financial Resources'!F141,Costs!$C$9:$C$504,0)))) ->  | I141: =IF($F141="","",(INDEX(Costs!$D$9:$D$504, MATCH(ResFin[[#This Row],[N° Activity]],Costs!$C$9:$C$504,0)))) ->  | J141: =IF($F141="","",(INDEX(Costs!$F$9:$F$504, MATCH(ResFin[[#This Row],[N° Activity]],Costs!$C$9:$C$504,0)))) ->  | K141: =IF(F141="","",(INDEX(Costs!$H$9:$H$504, MATCH(ResFin[[#This Row],[N° Activity]],Costs!$C$9:$C$504,0)))) ->  | L141: =IF($F141="","",(INDEX(Costs!$I$9:$I$504, MATCH(ResFin[[#This Row],[N° Activity]],Costs!$C$9:$C$504,0)))) ->  | M141: =IF($F141="","",(INDEX(Costs!$J$9:$J$504, MATCH(ResFin[[#This Row],[N° Activity]],Costs!$C$9:$C$504,0)))) ->  | O141: =IF(ResFin[[#This Row],[Area]]= "", "", IF(OR(ResFin[[#This Row],[Area]]= "EIR ", ResFin[[#This Row],[Area]]= "Points d'entrée"),"Surveillance",ResFin[[#This Row],[Area]])) ->  | Y141: =ResFin[[#This Row],[Date of disbursement]]-ResFin[[#This Row],[Date of commitment]] -> 0
G142: =IF($F142="","",IF(ISNA(MATCH(F142,Costs!$C$22:$C$504,0)),(IF(F142="","",IF(ISNA(MATCH(F142,Costs!$C$10:$C$20,0)),"Non-ciblé","Ciblé sur un domaine"))),"Ciblé sur une activité")) ->  | H142: =IF($F142="","",(INDEX(Costs!$B$9:$B$504, MATCH('Financial Resources'!F142,Costs!$C$9:$C$504,0)))) ->  | I142: =IF($F142="","",(INDEX(Costs!$D$9:$D$504, MATCH(ResFin[[#This Row],[N° Activity]],Costs!$C$9:$C$504,0)))) ->  | J142: =IF($F142="","",(INDEX(Costs!$F$9:$F$504, MATCH(ResFin[[#This Row],[N° Activity]],Costs!$C$9:$C$504,0)))) ->  | K142: =IF(F142="","",(INDEX(Costs!$H$9:$H$504, MATCH(ResFin[[#This Row],[N° Activity]],Costs!$C$9:$C$504,0)))) ->  | L142: =IF($F142="","",(INDEX(Costs!$I$9:$I$504, MATCH(ResFin[[#This Row],[N° Activity]],Costs!$C$9:$C$504,0)))) ->  | M142: =IF($F142="","",(INDEX(Costs!$J$9:$J$504, MATCH(ResFin[[#This Row],[N° Activity]],Costs!$C$9:$C$504,0)))) ->  | O142: =IF(ResFin[[#This Row],[Area]]= "", "", IF(OR(ResFin[[#This Row],[Area]]= "EIR ", ResFin[[#This Row],[Area]]= "Points d'entrée"),"Surveillance",ResFin[[#This Row],[Area]])) ->  | Y142: =ResFin[[#This Row],[Date of disbursement]]-ResFin[[#This Row],[Date of commitment]] -> 0
G143: =IF($F143="","",IF(ISNA(MATCH(F143,Costs!$C$22:$C$504,0)),(IF(F143="","",IF(ISNA(MATCH(F143,Costs!$C$10:$C$20,0)),"Non-ciblé","Ciblé sur un domaine"))),"Ciblé sur une activité")) ->  | H143: =IF($F143="","",(INDEX(Costs!$B$9:$B$504, MATCH('Financial Resources'!F143,Costs!$C$9:$C$504,0)))) ->  | I143: =IF($F143="","",(INDEX(Costs!$D$9:$D$504, MATCH(ResFin[[#This Row],[N° Activity]],Costs!$C$9:$C$504,0)))) ->  | J143: =IF($F143="","",(INDEX(Costs!$F$9:$F$504, MATCH(ResFin[[#This Row],[N° Activity]],Costs!$C$9:$C$504,0)))) ->  | K143: =IF(F143="","",(INDEX(Costs!$H$9:$H$504, MATCH(ResFin[[#This Row],[N° Activity]],Costs!$C$9:$C$504,0)))) ->  | L143: =IF($F143="","",(INDEX(Costs!$I$9:$I$504, MATCH(ResFin[[#This Row],[N° Activity]],Costs!$C$9:$C$504,0)))) ->  | M143: =IF($F143="","",(INDEX(Costs!$J$9:$J$504, MATCH(ResFin[[#This Row],[N° Activity]],Costs!$C$9:$C$504,0)))) ->  | O143: =IF(ResFin[[#This Row],[Area]]= "", "", IF(OR(ResFin[[#This Row],[Area]]= "EIR ", ResFin[[#This Row],[Area]]= "Points d'entrée"),"Surveillance",ResFin[[#This Row],[Area]])) ->  | Y143: =ResFin[[#This Row],[Date of disbursement]]-ResFin[[#This Row],[Date of commitment]] -> 0
G144: =IF($F144="","",IF(ISNA(MATCH(F144,Costs!$C$22:$C$504,0)),(IF(F144="","",IF(ISNA(MATCH(F144,Costs!$C$10:$C$20,0)),"Non-ciblé","Ciblé sur un domaine"))),"Ciblé sur une activité")) ->  | H144: =IF($F144="","",(INDEX(Costs!$B$9:$B$504, MATCH('Financial Resources'!F144,Costs!$C$9:$C$504,0)))) ->  | I144: =IF($F144="","",(INDEX(Costs!$D$9:$D$504, MATCH(ResFin[[#This Row],[N° Activity]],Costs!$C$9:$C$504,0)))) ->  | J144: =IF($F144="","",(INDEX(Costs!$F$9:$F$504, MATCH(ResFin[[#This Row],[N° Activity]],Costs!$C$9:$C$504,0)))) ->  | K144: =IF(F144="","",(INDEX(Costs!$H$9:$H$504, MATCH(ResFin[[#This Row],[N° Activity]],Costs!$C$9:$C$504,0)))) ->  | L144: =IF($F144="","",(INDEX(Costs!$I$9:$I$504, MATCH(ResFin[[#This Row],[N° Activity]],Costs!$C$9:$C$504,0)))) ->  | M144: =IF($F144="","",(INDEX(Costs!$J$9:$J$504, MATCH(ResFin[[#This Row],[N° Activity]],Costs!$C$9:$C$504,0)))) ->  | O144: =IF(ResFin[[#This Row],[Area]]= "", "", IF(OR(ResFin[[#This Row],[Area]]= "EIR ", ResFin[[#This Row],[Area]]= "Points d'entrée"),"Surveillance",ResFin[[#This Row],[Area]])) ->  | Y144: =ResFin[[#This Row],[Date of disbursement]]-ResFin[[#This Row],[Date of commitment]] -> 0
G145: =IF($F145="","",IF(ISNA(MATCH(F145,Costs!$C$22:$C$504,0)),(IF(F145="","",IF(ISNA(MATCH(F145,Costs!$C$10:$C$20,0)),"Non-ciblé","Ciblé sur un domaine"))),"Ciblé sur une activité")) ->  | H145: =IF($F145="","",(INDEX(Costs!$B$9:$B$504, MATCH('Financial Resources'!F145,Costs!$C$9:$C$504,0)))) ->  | I145: =IF($F145="","",(INDEX(Costs!$D$9:$D$504, MATCH(ResFin[[#This Row],[N° Activity]],Costs!$C$9:$C$504,0)))) ->  | J145: =IF($F145="","",(INDEX(Costs!$F$9:$F$504, MATCH(ResFin[[#This Row],[N° Activity]],Costs!$C$9:$C$504,0)))) ->  | K145: =IF(F145="","",(INDEX(Costs!$H$9:$H$504, MATCH(ResFin[[#This Row],[N° Activity]],Costs!$C$9:$C$504,0)))) ->  | L145: =IF($F145="","",(INDEX(Costs!$I$9:$I$504, MATCH(ResFin[[#This Row],[N° Activity]],Costs!$C$9:$C$504,0)))) ->  | M145: =IF($F145="","",(INDEX(Costs!$J$9:$J$504, MATCH(ResFin[[#This Row],[N° Activity]],Costs!$C$9:$C$504,0)))) ->  | O145: =IF(ResFin[[#This Row],[Area]]= "", "", IF(OR(ResFin[[#This Row],[Area]]= "EIR ", ResFin[[#This Row],[Area]]= "Points d'entrée"),"Surveillance",ResFin[[#This Row],[Area]])) ->  | Y145: =ResFin[[#This Row],[Date of disbursement]]-ResFin[[#This Row],[Date of commitment]] -> 0
G146: =IF($F146="","",IF(ISNA(MATCH(F146,Costs!$C$22:$C$504,0)),(IF(F146="","",IF(ISNA(MATCH(F146,Costs!$C$10:$C$20,0)),"Non-ciblé","Ciblé sur un domaine"))),"Ciblé sur une activité")) ->  | H146: =IF($F146="","",(INDEX(Costs!$B$9:$B$504, MATCH('Financial Resources'!F146,Costs!$C$9:$C$504,0)))) ->  | I146: =IF($F146="","",(INDEX(Costs!$D$9:$D$504, MATCH(ResFin[[#This Row],[N° Activity]],Costs!$C$9:$C$504,0)))) ->  | J146: =IF($F146="","",(INDEX(Costs!$F$9:$F$504, MATCH(ResFin[[#This Row],[N° Activity]],Costs!$C$9:$C$504,0)))) ->  | K146: =IF(F146="","",(INDEX(Costs!$H$9:$H$504, MATCH(ResFin[[#This Row],[N° Activity]],Costs!$C$9:$C$504,0)))) ->  | L146: =IF($F146="","",(INDEX(Costs!$I$9:$I$504, MATCH(ResFin[[#This Row],[N° Activity]],Costs!$C$9:$C$504,0)))) ->  | M146: =IF($F146="","",(INDEX(Costs!$J$9:$J$504, MATCH(ResFin[[#This Row],[N° Activity]],Costs!$C$9:$C$504,0)))) ->  | O146: =IF(ResFin[[#This Row],[Area]]= "", "", IF(OR(ResFin[[#This Row],[Area]]= "EIR ", ResFin[[#This Row],[Area]]= "Points d'entrée"),"Surveillance",ResFin[[#This Row],[Area]])) ->  | Y146: =ResFin[[#This Row],[Date of disbursement]]-ResFin[[#This Row],[Date of commitment]] -> 0
G147: =IF($F147="","",IF(ISNA(MATCH(F147,Costs!$C$22:$C$504,0)),(IF(F147="","",IF(ISNA(MATCH(F147,Costs!$C$10:$C$20,0)),"Non-ciblé","Ciblé sur un domaine"))),"Ciblé sur une activité")) ->  | H147: =IF($F147="","",(INDEX(Costs!$B$9:$B$504, MATCH('Financial Resources'!F147,Costs!$C$9:$C$504,0)))) ->  | I147: =IF($F147="","",(INDEX(Costs!$D$9:$D$504, MATCH(ResFin[[#This Row],[N° Activity]],Costs!$C$9:$C$504,0)))) ->  | J147: =IF($F147="","",(INDEX(Costs!$F$9:$F$504, MATCH(ResFin[[#This Row],[N° Activity]],Costs!$C$9:$C$504,0)))) ->  | K147: =IF(F147="","",(INDEX(Costs!$H$9:$H$504, MATCH(ResFin[[#This Row],[N° Activity]],Costs!$C$9:$C$504,0)))) ->  | L147: =IF($F147="","",(INDEX(Costs!$I$9:$I$504, MATCH(ResFin[[#This Row],[N° Activity]],Costs!$C$9:$C$504,0)))) ->  | M147: =IF($F147="","",(INDEX(Costs!$J$9:$J$504, MATCH(ResFin[[#This Row],[N° Activity]],Costs!$C$9:$C$504,0)))) ->  | O147: =IF(ResFin[[#This Row],[Area]]= "", "", IF(OR(ResFin[[#This Row],[Area]]= "EIR ", ResFin[[#This Row],[Area]]= "Points d'entrée"),"Surveillance",ResFin[[#This Row],[Area]])) ->  | Y147: =ResFin[[#This Row],[Date of disbursement]]-ResFin[[#This Row],[Date of commitment]] -> 0
G148: =IF($F148="","",IF(ISNA(MATCH(F148,Costs!$C$22:$C$504,0)),(IF(F148="","",IF(ISNA(MATCH(F148,Costs!$C$10:$C$20,0)),"Non-ciblé","Ciblé sur un domaine"))),"Ciblé sur une activité")) ->  | H148: =IF($F148="","",(INDEX(Costs!$B$9:$B$504, MATCH('Financial Resources'!F148,Costs!$C$9:$C$504,0)))) ->  | I148: =IF($F148="","",(INDEX(Costs!$D$9:$D$504, MATCH(ResFin[[#This Row],[N° Activity]],Costs!$C$9:$C$504,0)))) ->  | J148: =IF($F148="","",(INDEX(Costs!$F$9:$F$504, MATCH(ResFin[[#This Row],[N° Activity]],Costs!$C$9:$C$504,0)))) ->  | K148: =IF(F148="","",(INDEX(Costs!$H$9:$H$504, MATCH(ResFin[[#This Row],[N° Activity]],Costs!$C$9:$C$504,0)))) ->  | L148: =IF($F148="","",(INDEX(Costs!$I$9:$I$504, MATCH(ResFin[[#This Row],[N° Activity]],Costs!$C$9:$C$504,0)))) ->  | M148: =IF($F148="","",(INDEX(Costs!$J$9:$J$504, MATCH(ResFin[[#This Row],[N° Activity]],Costs!$C$9:$C$504,0)))) ->  | O148: =IF(ResFin[[#This Row],[Area]]= "", "", IF(OR(ResFin[[#This Row],[Area]]= "EIR ", ResFin[[#This Row],[Area]]= "Points d'entrée"),"Surveillance",ResFin[[#This Row],[Area]])) ->  | Y148: =ResFin[[#This Row],[Date of disbursement]]-ResFin[[#This Row],[Date of commitment]] -> 0
G149: =IF($F149="","",IF(ISNA(MATCH(F149,Costs!$C$22:$C$504,0)),(IF(F149="","",IF(ISNA(MATCH(F149,Costs!$C$10:$C$20,0)),"Non-ciblé","Ciblé sur un domaine"))),"Ciblé sur une activité")) ->  | H149: =IF($F149="","",(INDEX(Costs!$B$9:$B$504, MATCH('Financial Resources'!F149,Costs!$C$9:$C$504,0)))) ->  | I149: =IF($F149="","",(INDEX(Costs!$D$9:$D$504, MATCH(ResFin[[#This Row],[N° Activity]],Costs!$C$9:$C$504,0)))) ->  | J149: =IF($F149="","",(INDEX(Costs!$F$9:$F$504, MATCH(ResFin[[#This Row],[N° Activity]],Costs!$C$9:$C$504,0)))) ->  | K149: =IF(F149="","",(INDEX(Costs!$H$9:$H$504, MATCH(ResFin[[#This Row],[N° Activity]],Costs!$C$9:$C$504,0)))) ->  | L149: =IF($F149="","",(INDEX(Costs!$I$9:$I$504, MATCH(ResFin[[#This Row],[N° Activity]],Costs!$C$9:$C$504,0)))) ->  | M149: =IF($F149="","",(INDEX(Costs!$J$9:$J$504, MATCH(ResFin[[#This Row],[N° Activity]],Costs!$C$9:$C$504,0)))) ->  | O149: =IF(ResFin[[#This Row],[Area]]= "", "", IF(OR(ResFin[[#This Row],[Area]]= "EIR ", ResFin[[#This Row],[Area]]= "Points d'entrée"),"Surveillance",ResFin[[#This Row],[Area]])) ->  | Y149: =ResFin[[#This Row],[Date of disbursement]]-ResFin[[#This Row],[Date of commitment]] -> 0
G150: =IF($F150="","",IF(ISNA(MATCH(F150,Costs!$C$22:$C$504,0)),(IF(F150="","",IF(ISNA(MATCH(F150,Costs!$C$10:$C$20,0)),"Non-ciblé","Ciblé sur un domaine"))),"Ciblé sur une activité")) ->  | H150: =IF($F150="","",(INDEX(Costs!$B$9:$B$504, MATCH('Financial Resources'!F150,Costs!$C$9:$C$504,0)))) ->  | I150: =IF($F150="","",(INDEX(Costs!$D$9:$D$504, MATCH(ResFin[[#This Row],[N° Activity]],Costs!$C$9:$C$504,0)))) ->  | J150: =IF($F150="","",(INDEX(Costs!$F$9:$F$504, MATCH(ResFin[[#This Row],[N° Activity]],Costs!$C$9:$C$504,0)))) ->  | K150: =IF(F150="","",(INDEX(Costs!$H$9:$H$504, MATCH(ResFin[[#This Row],[N° Activity]],Costs!$C$9:$C$504,0)))) ->  | L150: =IF($F150="","",(INDEX(Costs!$I$9:$I$504, MATCH(ResFin[[#This Row],[N° Activity]],Costs!$C$9:$C$504,0)))) ->  | M150: =IF($F150="","",(INDEX(Costs!$J$9:$J$504, MATCH(ResFin[[#This Row],[N° Activity]],Costs!$C$9:$C$504,0)))) ->  | O150: =IF(ResFin[[#This Row],[Area]]= "", "", IF(OR(ResFin[[#This Row],[Area]]= "EIR ", ResFin[[#This Row],[Area]]= "Points d'entrée"),"Surveillance",ResFin[[#This Row],[Area]])) ->  | Y150: =ResFin[[#This Row],[Date of disbursement]]-ResFin[[#This Row],[Date of commitment]] -> 0
G151: =IF($F151="","",IF(ISNA(MATCH(F151,Costs!$C$22:$C$504,0)),(IF(F151="","",IF(ISNA(MATCH(F151,Costs!$C$10:$C$20,0)),"Non-ciblé","Ciblé sur un domaine"))),"Ciblé sur une activité")) ->  | H151: =IF($F151="","",(INDEX(Costs!$B$9:$B$504, MATCH('Financial Resources'!F151,Costs!$C$9:$C$504,0)))) ->  | I151: =IF($F151="","",(INDEX(Costs!$D$9:$D$504, MATCH(ResFin[[#This Row],[N° Activity]],Costs!$C$9:$C$504,0)))) ->  | J151: =IF($F151="","",(INDEX(Costs!$F$9:$F$504, MATCH(ResFin[[#This Row],[N° Activity]],Costs!$C$9:$C$504,0)))) ->  | K151: =IF(F151="","",(INDEX(Costs!$H$9:$H$504, MATCH(ResFin[[#This Row],[N° Activity]],Costs!$C$9:$C$504,0)))) ->  | L151: =IF($F151="","",(INDEX(Costs!$I$9:$I$504, MATCH(ResFin[[#This Row],[N° Activity]],Costs!$C$9:$C$504,0)))) ->  | M151: =IF($F151="","",(INDEX(Costs!$J$9:$J$504, MATCH(ResFin[[#This Row],[N° Activity]],Costs!$C$9:$C$504,0)))) ->  | O151: =IF(ResFin[[#This Row],[Area]]= "", "", IF(OR(ResFin[[#This Row],[Area]]= "EIR ", ResFin[[#This Row],[Area]]= "Points d'entrée"),"Surveillance",ResFin[[#This Row],[Area]])) ->  | Y151: =ResFin[[#This Row],[Date of disbursement]]-ResFin[[#This Row],[Date of commitment]] -> 0
G152: =IF($F152="","",IF(ISNA(MATCH(F152,Costs!$C$22:$C$504,0)),(IF(F152="","",IF(ISNA(MATCH(F152,Costs!$C$10:$C$20,0)),"Non-ciblé","Ciblé sur un domaine"))),"Ciblé sur une activité")) ->  | H152: =IF($F152="","",(INDEX(Costs!$B$9:$B$504, MATCH('Financial Resources'!F152,Costs!$C$9:$C$504,0)))) ->  | I152: =IF($F152="","",(INDEX(Costs!$D$9:$D$504, MATCH(ResFin[[#This Row],[N° Activity]],Costs!$C$9:$C$504,0)))) ->  | J152: =IF($F152="","",(INDEX(Costs!$F$9:$F$504, MATCH(ResFin[[#This Row],[N° Activity]],Costs!$C$9:$C$504,0)))) ->  | K152: =IF(F152="","",(INDEX(Costs!$H$9:$H$504, MATCH(ResFin[[#This Row],[N° Activity]],Costs!$C$9:$C$504,0)))) ->  | L152: =IF($F152="","",(INDEX(Costs!$I$9:$I$504, MATCH(ResFin[[#This Row],[N° Activity]],Costs!$C$9:$C$504,0)))) ->  | M152: =IF($F152="","",(INDEX(Costs!$J$9:$J$504, MATCH(ResFin[[#This Row],[N° Activity]],Costs!$C$9:$C$504,0)))) ->  | O152: =IF(ResFin[[#This Row],[Area]]= "", "", IF(OR(ResFin[[#This Row],[Area]]= "EIR ", ResFin[[#This Row],[Area]]= "Points d'entrée"),"Surveillance",ResFin[[#This Row],[Area]])) ->  | Y152: =ResFin[[#This Row],[Date of disbursement]]-ResFin[[#This Row],[Date of commitment]] -> 0
G153: =IF($F153="","",IF(ISNA(MATCH(F153,Costs!$C$22:$C$504,0)),(IF(F153="","",IF(ISNA(MATCH(F153,Costs!$C$10:$C$20,0)),"Non-ciblé","Ciblé sur un domaine"))),"Ciblé sur une activité")) ->  | H153: =IF($F153="","",(INDEX(Costs!$B$9:$B$504, MATCH('Financial Resources'!F153,Costs!$C$9:$C$504,0)))) ->  | I153: =IF($F153="","",(INDEX(Costs!$D$9:$D$504, MATCH(ResFin[[#This Row],[N° Activity]],Costs!$C$9:$C$504,0)))) ->  | J153: =IF($F153="","",(INDEX(Costs!$F$9:$F$504, MATCH(ResFin[[#This Row],[N° Activity]],Costs!$C$9:$C$504,0)))) ->  | K153: =IF(F153="","",(INDEX(Costs!$H$9:$H$504, MATCH(ResFin[[#This Row],[N° Activity]],Costs!$C$9:$C$504,0)))) ->  | L153: =IF($F153="","",(INDEX(Costs!$I$9:$I$504, MATCH(ResFin[[#This Row],[N° Activity]],Costs!$C$9:$C$504,0)))) ->  | M153: =IF($F153="","",(INDEX(Costs!$J$9:$J$504, MATCH(ResFin[[#This Row],[N° Activity]],Costs!$C$9:$C$504,0)))) ->  | O153: =IF(ResFin[[#This Row],[Area]]= "", "", IF(OR(ResFin[[#This Row],[Area]]= "EIR ", ResFin[[#This Row],[Area]]= "Points d'entrée"),"Surveillance",ResFin[[#This Row],[Area]])) ->  | Y153: =ResFin[[#This Row],[Date of disbursement]]-ResFin[[#This Row],[Date of commitment]] -> 0
G154: =IF($F154="","",IF(ISNA(MATCH(F154,Costs!$C$22:$C$504,0)),(IF(F154="","",IF(ISNA(MATCH(F154,Costs!$C$10:$C$20,0)),"Non-ciblé","Ciblé sur un domaine"))),"Ciblé sur une activité")) ->  | H154: =IF($F154="","",(INDEX(Costs!$B$9:$B$504, MATCH('Financial Resources'!F154,Costs!$C$9:$C$504,0)))) ->  | I154: =IF($F154="","",(INDEX(Costs!$D$9:$D$504, MATCH(ResFin[[#This Row],[N° Activity]],Costs!$C$9:$C$504,0)))) ->  | J154: =IF($F154="","",(INDEX(Costs!$F$9:$F$504, MATCH(ResFin[[#This Row],[N° Activity]],Costs!$C$9:$C$504,0)))) ->  | K154: =IF(F154="","",(INDEX(Costs!$H$9:$H$504, MATCH(ResFin[[#This Row],[N° Activity]],Costs!$C$9:$C$504,0)))) ->  | L154: =IF($F154="","",(INDEX(Costs!$I$9:$I$504, MATCH(ResFin[[#This Row],[N° Activity]],Costs!$C$9:$C$504,0)))) ->  | M154: =IF($F154="","",(INDEX(Costs!$J$9:$J$504, MATCH(ResFin[[#This Row],[N° Activity]],Costs!$C$9:$C$504,0)))) ->  | O154: =IF(ResFin[[#This Row],[Area]]= "", "", IF(OR(ResFin[[#This Row],[Area]]= "EIR ", ResFin[[#This Row],[Area]]= "Points d'entrée"),"Surveillance",ResFin[[#This Row],[Area]])) ->  | Y154: =ResFin[[#This Row],[Date of disbursement]]-ResFin[[#This Row],[Date of commitment]] -> 0
G155: =IF($F155="","",IF(ISNA(MATCH(F155,Costs!$C$22:$C$504,0)),(IF(F155="","",IF(ISNA(MATCH(F155,Costs!$C$10:$C$20,0)),"Non-ciblé","Ciblé sur un domaine"))),"Ciblé sur une activité")) ->  | H155: =IF($F155="","",(INDEX(Costs!$B$9:$B$504, MATCH('Financial Resources'!F155,Costs!$C$9:$C$504,0)))) ->  | I155: =IF($F155="","",(INDEX(Costs!$D$9:$D$504, MATCH(ResFin[[#This Row],[N° Activity]],Costs!$C$9:$C$504,0)))) ->  | J155: =IF($F155="","",(INDEX(Costs!$F$9:$F$504, MATCH(ResFin[[#This Row],[N° Activity]],Costs!$C$9:$C$504,0)))) ->  | K155: =IF(F155="","",(INDEX(Costs!$H$9:$H$504, MATCH(ResFin[[#This Row],[N° Activity]],Costs!$C$9:$C$504,0)))) ->  | L155: =IF($F155="","",(INDEX(Costs!$I$9:$I$504, MATCH(ResFin[[#This Row],[N° Activity]],Costs!$C$9:$C$504,0)))) ->  | M155: =IF($F155="","",(INDEX(Costs!$J$9:$J$504, MATCH(ResFin[[#This Row],[N° Activity]],Costs!$C$9:$C$504,0)))) ->  | O155: =IF(ResFin[[#This Row],[Area]]= "", "", IF(OR(ResFin[[#This Row],[Area]]= "EIR ", ResFin[[#This Row],[Area]]= "Points d'entrée"),"Surveillance",ResFin[[#This Row],[Area]])) ->  | Y155: =ResFin[[#This Row],[Date of disbursement]]-ResFin[[#This Row],[Date of commitment]] -> 0
G156: =IF($F156="","",IF(ISNA(MATCH(F156,Costs!$C$22:$C$504,0)),(IF(F156="","",IF(ISNA(MATCH(F156,Costs!$C$10:$C$20,0)),"Non-ciblé","Ciblé sur un domaine"))),"Ciblé sur une activité")) ->  | H156: =IF($F156="","",(INDEX(Costs!$B$9:$B$504, MATCH('Financial Resources'!F156,Costs!$C$9:$C$504,0)))) ->  | I156: =IF($F156="","",(INDEX(Costs!$D$9:$D$504, MATCH(ResFin[[#This Row],[N° Activity]],Costs!$C$9:$C$504,0)))) ->  | J156: =IF($F156="","",(INDEX(Costs!$F$9:$F$504, MATCH(ResFin[[#This Row],[N° Activity]],Costs!$C$9:$C$504,0)))) ->  | K156: =IF(F156="","",(INDEX(Costs!$H$9:$H$504, MATCH(ResFin[[#This Row],[N° Activity]],Costs!$C$9:$C$504,0)))) ->  | L156: =IF($F156="","",(INDEX(Costs!$I$9:$I$504, MATCH(ResFin[[#This Row],[N° Activity]],Costs!$C$9:$C$504,0)))) ->  | M156: =IF($F156="","",(INDEX(Costs!$J$9:$J$504, MATCH(ResFin[[#This Row],[N° Activity]],Costs!$C$9:$C$504,0)))) ->  | O156: =IF(ResFin[[#This Row],[Area]]= "", "", IF(OR(ResFin[[#This Row],[Area]]= "EIR ", ResFin[[#This Row],[Area]]= "Points d'entrée"),"Surveillance",ResFin[[#This Row],[Area]])) ->  | Y156: =ResFin[[#This Row],[Date of disbursement]]-ResFin[[#This Row],[Date of commitment]] -> 0
G157: =IF($F157="","",IF(ISNA(MATCH(F157,Costs!$C$22:$C$504,0)),(IF(F157="","",IF(ISNA(MATCH(F157,Costs!$C$10:$C$20,0)),"Non-ciblé","Ciblé sur un domaine"))),"Ciblé sur une activité")) ->  | H157: =IF($F157="","",(INDEX(Costs!$B$9:$B$504, MATCH('Financial Resources'!F157,Costs!$C$9:$C$504,0)))) ->  | I157: =IF($F157="","",(INDEX(Costs!$D$9:$D$504, MATCH(ResFin[[#This Row],[N° Activity]],Costs!$C$9:$C$504,0)))) ->  | J157: =IF($F157="","",(INDEX(Costs!$F$9:$F$504, MATCH(ResFin[[#This Row],[N° Activity]],Costs!$C$9:$C$504,0)))) ->  | K157: =IF(F157="","",(INDEX(Costs!$H$9:$H$504, MATCH(ResFin[[#This Row],[N° Activity]],Costs!$C$9:$C$504,0)))) ->  | L157: =IF($F157="","",(INDEX(Costs!$I$9:$I$504, MATCH(ResFin[[#This Row],[N° Activity]],Costs!$C$9:$C$504,0)))) ->  | M157: =IF($F157="","",(INDEX(Costs!$J$9:$J$504, MATCH(ResFin[[#This Row],[N° Activity]],Costs!$C$9:$C$504,0)))) ->  | O157: =IF(ResFin[[#This Row],[Area]]= "", "", IF(OR(ResFin[[#This Row],[Area]]= "EIR ", ResFin[[#This Row],[Area]]= "Points d'entrée"),"Surveillance",ResFin[[#This Row],[Area]])) ->  | Y157: =ResFin[[#This Row],[Date of disbursement]]-ResFin[[#This Row],[Date of commitment]] -> 0
G158: =IF($F158="","",IF(ISNA(MATCH(F158,Costs!$C$22:$C$504,0)),(IF(F158="","",IF(ISNA(MATCH(F158,Costs!$C$10:$C$20,0)),"Non-ciblé","Ciblé sur un domaine"))),"Ciblé sur une activité")) ->  | H158: =IF($F158="","",(INDEX(Costs!$B$9:$B$504, MATCH('Financial Resources'!F158,Costs!$C$9:$C$504,0)))) ->  | I158: =IF($F158="","",(INDEX(Costs!$D$9:$D$504, MATCH(ResFin[[#This Row],[N° Activity]],Costs!$C$9:$C$504,0)))) ->  | J158: =IF($F158="","",(INDEX(Costs!$F$9:$F$504, MATCH(ResFin[[#This Row],[N° Activity]],Costs!$C$9:$C$504,0)))) ->  | K158: =IF(F158="","",(INDEX(Costs!$H$9:$H$504, MATCH(ResFin[[#This Row],[N° Activity]],Costs!$C$9:$C$504,0)))) ->  | L158: =IF($F158="","",(INDEX(Costs!$I$9:$I$504, MATCH(ResFin[[#This Row],[N° Activity]],Costs!$C$9:$C$504,0)))) ->  | M158: =IF($F158="","",(INDEX(Costs!$J$9:$J$504, MATCH(ResFin[[#This Row],[N° Activity]],Costs!$C$9:$C$504,0)))) ->  | O158: =IF(ResFin[[#This Row],[Area]]= "", "", IF(OR(ResFin[[#This Row],[Area]]= "EIR ", ResFin[[#This Row],[Area]]= "Points d'entrée"),"Surveillance",ResFin[[#This Row],[Area]])) ->  | Y158: =ResFin[[#This Row],[Date of disbursement]]-ResFin[[#This Row],[Date of commitment]] -> 0
G159: =IF($F159="","",IF(ISNA(MATCH(F159,Costs!$C$22:$C$504,0)),(IF(F159="","",IF(ISNA(MATCH(F159,Costs!$C$10:$C$20,0)),"Non-ciblé","Ciblé sur un domaine"))),"Ciblé sur une activité")) ->  | H159: =IF($F159="","",(INDEX(Costs!$B$9:$B$504, MATCH('Financial Resources'!F159,Costs!$C$9:$C$504,0)))) ->  | I159: =IF($F159="","",(INDEX(Costs!$D$9:$D$504, MATCH(ResFin[[#This Row],[N° Activity]],Costs!$C$9:$C$504,0)))) ->  | J159: =IF($F159="","",(INDEX(Costs!$F$9:$F$504, MATCH(ResFin[[#This Row],[N° Activity]],Costs!$C$9:$C$504,0)))) ->  | K159: =IF(F159="","",(INDEX(Costs!$H$9:$H$504, MATCH(ResFin[[#This Row],[N° Activity]],Costs!$C$9:$C$504,0)))) ->  | L159: =IF($F159="","",(INDEX(Costs!$I$9:$I$504, MATCH(ResFin[[#This Row],[N° Activity]],Costs!$C$9:$C$504,0)))) ->  | M159: =IF($F159="","",(INDEX(Costs!$J$9:$J$504, MATCH(ResFin[[#This Row],[N° Activity]],Costs!$C$9:$C$504,0)))) ->  | O159: =IF(ResFin[[#This Row],[Area]]= "", "", IF(OR(ResFin[[#This Row],[Area]]= "EIR ", ResFin[[#This Row],[Area]]= "Points d'entrée"),"Surveillance",ResFin[[#This Row],[Area]])) ->  | Y159: =ResFin[[#This Row],[Date of disbursement]]-ResFin[[#This Row],[Date of commitment]] -> 0
G160: =IF($F160="","",IF(ISNA(MATCH(F160,Costs!$C$22:$C$504,0)),(IF(F160="","",IF(ISNA(MATCH(F160,Costs!$C$10:$C$20,0)),"Non-ciblé","Ciblé sur un domaine"))),"Ciblé sur une activité")) ->  | H160: =IF($F160="","",(INDEX(Costs!$B$9:$B$504, MATCH('Financial Resources'!F160,Costs!$C$9:$C$504,0)))) ->  | I160: =IF($F160="","",(INDEX(Costs!$D$9:$D$504, MATCH(ResFin[[#This Row],[N° Activity]],Costs!$C$9:$C$504,0)))) ->  | J160: =IF($F160="","",(INDEX(Costs!$F$9:$F$504, MATCH(ResFin[[#This Row],[N° Activity]],Costs!$C$9:$C$504,0)))) ->  | K160: =IF(F160="","",(INDEX(Costs!$H$9:$H$504, MATCH(ResFin[[#This Row],[N° Activity]],Costs!$C$9:$C$504,0)))) ->  | L160: =IF($F160="","",(INDEX(Costs!$I$9:$I$504, MATCH(ResFin[[#This Row],[N° Activity]],Costs!$C$9:$C$504,0)))) ->  | M160: =IF($F160="","",(INDEX(Costs!$J$9:$J$504, MATCH(ResFin[[#This Row],[N° Activity]],Costs!$C$9:$C$504,0)))) ->  | O160: =IF(ResFin[[#This Row],[Area]]= "", "", IF(OR(ResFin[[#This Row],[Area]]= "EIR ", ResFin[[#This Row],[Area]]= "Points d'entrée"),"Surveillance",ResFin[[#This Row],[Area]])) ->  | Y160: =ResFin[[#This Row],[Date of disbursement]]-ResFin[[#This Row],[Date of commitment]] -> 0
G161: =IF($F161="","",IF(ISNA(MATCH(F161,Costs!$C$22:$C$504,0)),(IF(F161="","",IF(ISNA(MATCH(F161,Costs!$C$10:$C$20,0)),"Non-ciblé","Ciblé sur un domaine"))),"Ciblé sur une activité")) ->  | H161: =IF($F161="","",(INDEX(Costs!$B$9:$B$504, MATCH('Financial Resources'!F161,Costs!$C$9:$C$504,0)))) ->  | I161: =IF($F161="","",(INDEX(Costs!$D$9:$D$504, MATCH(ResFin[[#This Row],[N° Activity]],Costs!$C$9:$C$504,0)))) ->  | J161: =IF($F161="","",(INDEX(Costs!$F$9:$F$504, MATCH(ResFin[[#This Row],[N° Activity]],Costs!$C$9:$C$504,0)))) ->  | K161: =IF(F161="","",(INDEX(Costs!$H$9:$H$504, MATCH(ResFin[[#This Row],[N° Activity]],Costs!$C$9:$C$504,0)))) ->  | L161: =IF($F161="","",(INDEX(Costs!$I$9:$I$504, MATCH(ResFin[[#This Row],[N° Activity]],Costs!$C$9:$C$504,0)))) ->  | M161: =IF($F161="","",(INDEX(Costs!$J$9:$J$504, MATCH(ResFin[[#This Row],[N° Activity]],Costs!$C$9:$C$504,0)))) ->  | O161: =IF(ResFin[[#This Row],[Area]]= "", "", IF(OR(ResFin[[#This Row],[Area]]= "EIR ", ResFin[[#This Row],[Area]]= "Points d'entrée"),"Surveillance",ResFin[[#This Row],[Area]])) ->  | Y161: =ResFin[[#This Row],[Date of disbursement]]-ResFin[[#This Row],[Date of commitment]] -> 0
G162: =IF($F162="","",IF(ISNA(MATCH(F162,Costs!$C$22:$C$504,0)),(IF(F162="","",IF(ISNA(MATCH(F162,Costs!$C$10:$C$20,0)),"Non-ciblé","Ciblé sur un domaine"))),"Ciblé sur une activité")) ->  | H162: =IF($F162="","",(INDEX(Costs!$B$9:$B$504, MATCH('Financial Resources'!F162,Costs!$C$9:$C$504,0)))) ->  | I162: =IF($F162="","",(INDEX(Costs!$D$9:$D$504, MATCH(ResFin[[#This Row],[N° Activity]],Costs!$C$9:$C$504,0)))) ->  | J162: =IF($F162="","",(INDEX(Costs!$F$9:$F$504, MATCH(ResFin[[#This Row],[N° Activity]],Costs!$C$9:$C$504,0)))) ->  | K162: =IF(F162="","",(INDEX(Costs!$H$9:$H$504, MATCH(ResFin[[#This Row],[N° Activity]],Costs!$C$9:$C$504,0)))) ->  | L162: =IF($F162="","",(INDEX(Costs!$I$9:$I$504, MATCH(ResFin[[#This Row],[N° Activity]],Costs!$C$9:$C$504,0)))) ->  | M162: =IF($F162="","",(INDEX(Costs!$J$9:$J$504, MATCH(ResFin[[#This Row],[N° Activity]],Costs!$C$9:$C$504,0)))) ->  | O162: =IF(ResFin[[#This Row],[Area]]= "", "", IF(OR(ResFin[[#This Row],[Area]]= "EIR ", ResFin[[#This Row],[Area]]= "Points d'entrée"),"Surveillance",ResFin[[#This Row],[Area]])) ->  | Y162: =ResFin[[#This Row],[Date of disbursement]]-ResFin[[#This Row],[Date of commitment]] -> 0
G163: =IF($F163="","",IF(ISNA(MATCH(F163,Costs!$C$22:$C$504,0)),(IF(F163="","",IF(ISNA(MATCH(F163,Costs!$C$10:$C$20,0)),"Non-ciblé","Ciblé sur un domaine"))),"Ciblé sur une activité")) ->  | H163: =IF($F163="","",(INDEX(Costs!$B$9:$B$504, MATCH('Financial Resources'!F163,Costs!$C$9:$C$504,0)))) ->  | I163: =IF($F163="","",(INDEX(Costs!$D$9:$D$504, MATCH(ResFin[[#This Row],[N° Activity]],Costs!$C$9:$C$504,0)))) ->  | J163: =IF($F163="","",(INDEX(Costs!$F$9:$F$504, MATCH(ResFin[[#This Row],[N° Activity]],Costs!$C$9:$C$504,0)))) ->  | K163: =IF(F163="","",(INDEX(Costs!$H$9:$H$504, MATCH(ResFin[[#This Row],[N° Activity]],Costs!$C$9:$C$504,0)))) ->  | L163: =IF($F163="","",(INDEX(Costs!$I$9:$I$504, MATCH(ResFin[[#This Row],[N° Activity]],Costs!$C$9:$C$504,0)))) ->  | M163: =IF($F163="","",(INDEX(Costs!$J$9:$J$504, MATCH(ResFin[[#This Row],[N° Activity]],Costs!$C$9:$C$504,0)))) ->  | O163: =IF(ResFin[[#This Row],[Area]]= "", "", IF(OR(ResFin[[#This Row],[Area]]= "EIR ", ResFin[[#This Row],[Area]]= "Points d'entrée"),"Surveillance",ResFin[[#This Row],[Area]])) ->  | Y163: =ResFin[[#This Row],[Date of disbursement]]-ResFin[[#This Row],[Date of commitment]] -> 0
G164: =IF($F164="","",IF(ISNA(MATCH(F164,Costs!$C$22:$C$504,0)),(IF(F164="","",IF(ISNA(MATCH(F164,Costs!$C$10:$C$20,0)),"Non-ciblé","Ciblé sur un domaine"))),"Ciblé sur une activité")) ->  | H164: =IF($F164="","",(INDEX(Costs!$B$9:$B$504, MATCH('Financial Resources'!F164,Costs!$C$9:$C$504,0)))) ->  | I164: =IF($F164="","",(INDEX(Costs!$D$9:$D$504, MATCH(ResFin[[#This Row],[N° Activity]],Costs!$C$9:$C$504,0)))) ->  | J164: =IF($F164="","",(INDEX(Costs!$F$9:$F$504, MATCH(ResFin[[#This Row],[N° Activity]],Costs!$C$9:$C$504,0)))) ->  | K164: =IF(F164="","",(INDEX(Costs!$H$9:$H$504, MATCH(ResFin[[#This Row],[N° Activity]],Costs!$C$9:$C$504,0)))) ->  | L164: =IF($F164="","",(INDEX(Costs!$I$9:$I$504, MATCH(ResFin[[#This Row],[N° Activity]],Costs!$C$9:$C$504,0)))) ->  | M164: =IF($F164="","",(INDEX(Costs!$J$9:$J$504, MATCH(ResFin[[#This Row],[N° Activity]],Costs!$C$9:$C$504,0)))) ->  | O164: =IF(ResFin[[#This Row],[Area]]= "", "", IF(OR(ResFin[[#This Row],[Area]]= "EIR ", ResFin[[#This Row],[Area]]= "Points d'entrée"),"Surveillance",ResFin[[#This Row],[Area]])) ->  | Y164: =ResFin[[#This Row],[Date of disbursement]]-ResFin[[#This Row],[Date of commitment]] -> 0
G165: =IF($F165="","",IF(ISNA(MATCH(F165,Costs!$C$22:$C$504,0)),(IF(F165="","",IF(ISNA(MATCH(F165,Costs!$C$10:$C$20,0)),"Non-ciblé","Ciblé sur un domaine"))),"Ciblé sur une activité")) ->  | H165: =IF($F165="","",(INDEX(Costs!$B$9:$B$504, MATCH('Financial Resources'!F165,Costs!$C$9:$C$504,0)))) ->  | I165: =IF($F165="","",(INDEX(Costs!$D$9:$D$504, MATCH(ResFin[[#This Row],[N° Activity]],Costs!$C$9:$C$504,0)))) ->  | J165: =IF($F165="","",(INDEX(Costs!$F$9:$F$504, MATCH(ResFin[[#This Row],[N° Activity]],Costs!$C$9:$C$504,0)))) ->  | K165: =IF(F165="","",(INDEX(Costs!$H$9:$H$504, MATCH(ResFin[[#This Row],[N° Activity]],Costs!$C$9:$C$504,0)))) ->  | L165: =IF($F165="","",(INDEX(Costs!$I$9:$I$504, MATCH(ResFin[[#This Row],[N° Activity]],Costs!$C$9:$C$504,0)))) ->  | M165: =IF($F165="","",(INDEX(Costs!$J$9:$J$504, MATCH(ResFin[[#This Row],[N° Activity]],Costs!$C$9:$C$504,0)))) ->  | O165: =IF(ResFin[[#This Row],[Area]]= "", "", IF(OR(ResFin[[#This Row],[Area]]= "EIR ", ResFin[[#This Row],[Area]]= "Points d'entrée"),"Surveillance",ResFin[[#This Row],[Area]])) ->  | Y165: =ResFin[[#This Row],[Date of disbursement]]-ResFin[[#This Row],[Date of commitment]] -> 0
G166: =IF($F166="","",IF(ISNA(MATCH(F166,Costs!$C$22:$C$504,0)),(IF(F166="","",IF(ISNA(MATCH(F166,Costs!$C$10:$C$20,0)),"Non-ciblé","Ciblé sur un domaine"))),"Ciblé sur une activité")) ->  | H166: =IF($F166="","",(INDEX(Costs!$B$9:$B$504, MATCH('Financial Resources'!F166,Costs!$C$9:$C$504,0)))) ->  | I166: =IF($F166="","",(INDEX(Costs!$D$9:$D$504, MATCH(ResFin[[#This Row],[N° Activity]],Costs!$C$9:$C$504,0)))) ->  | J166: =IF($F166="","",(INDEX(Costs!$F$9:$F$504, MATCH(ResFin[[#This Row],[N° Activity]],Costs!$C$9:$C$504,0)))) ->  | K166: =IF(F166="","",(INDEX(Costs!$H$9:$H$504, MATCH(ResFin[[#This Row],[N° Activity]],Costs!$C$9:$C$504,0)))) ->  | L166: =IF($F166="","",(INDEX(Costs!$I$9:$I$504, MATCH(ResFin[[#This Row],[N° Activity]],Costs!$C$9:$C$504,0)))) ->  | M166: =IF($F166="","",(INDEX(Costs!$J$9:$J$504, MATCH(ResFin[[#This Row],[N° Activity]],Costs!$C$9:$C$504,0)))) ->  | O166: =IF(ResFin[[#This Row],[Area]]= "", "", IF(OR(ResFin[[#This Row],[Area]]= "EIR ", ResFin[[#This Row],[Area]]= "Points d'entrée"),"Surveillance",ResFin[[#This Row],[Area]])) ->  | Y166: =ResFin[[#This Row],[Date of disbursement]]-ResFin[[#This Row],[Date of commitment]] -> 0
G167: =IF($F167="","",IF(ISNA(MATCH(F167,Costs!$C$22:$C$504,0)),(IF(F167="","",IF(ISNA(MATCH(F167,Costs!$C$10:$C$20,0)),"Non-ciblé","Ciblé sur un domaine"))),"Ciblé sur une activité")) ->  | H167: =IF($F167="","",(INDEX(Costs!$B$9:$B$504, MATCH('Financial Resources'!F167,Costs!$C$9:$C$504,0)))) ->  | I167: =IF($F167="","",(INDEX(Costs!$D$9:$D$504, MATCH(ResFin[[#This Row],[N° Activity]],Costs!$C$9:$C$504,0)))) ->  | J167: =IF($F167="","",(INDEX(Costs!$F$9:$F$504, MATCH(ResFin[[#This Row],[N° Activity]],Costs!$C$9:$C$504,0)))) ->  | K167: =IF(F167="","",(INDEX(Costs!$H$9:$H$504, MATCH(ResFin[[#This Row],[N° Activity]],Costs!$C$9:$C$504,0)))) ->  | L167: =IF($F167="","",(INDEX(Costs!$I$9:$I$504, MATCH(ResFin[[#This Row],[N° Activity]],Costs!$C$9:$C$504,0)))) ->  | M167: =IF($F167="","",(INDEX(Costs!$J$9:$J$504, MATCH(ResFin[[#This Row],[N° Activity]],Costs!$C$9:$C$504,0)))) ->  | O167: =IF(ResFin[[#This Row],[Area]]= "", "", IF(OR(ResFin[[#This Row],[Area]]= "EIR ", ResFin[[#This Row],[Area]]= "Points d'entrée"),"Surveillance",ResFin[[#This Row],[Area]])) ->  | Y167: =ResFin[[#This Row],[Date of disbursement]]-ResFin[[#This Row],[Date of commitment]] -> 0
G168: =IF($F168="","",IF(ISNA(MATCH(F168,Costs!$C$22:$C$504,0)),(IF(F168="","",IF(ISNA(MATCH(F168,Costs!$C$10:$C$20,0)),"Non-ciblé","Ciblé sur un domaine"))),"Ciblé sur une activité")) ->  | H168: =IF($F168="","",(INDEX(Costs!$B$9:$B$504, MATCH('Financial Resources'!F168,Costs!$C$9:$C$504,0)))) ->  | I168: =IF($F168="","",(INDEX(Costs!$D$9:$D$504, MATCH(ResFin[[#This Row],[N° Activity]],Costs!$C$9:$C$504,0)))) ->  | J168: =IF($F168="","",(INDEX(Costs!$F$9:$F$504, MATCH(ResFin[[#This Row],[N° Activity]],Costs!$C$9:$C$504,0)))) ->  | K168: =IF(F168="","",(INDEX(Costs!$H$9:$H$504, MATCH(ResFin[[#This Row],[N° Activity]],Costs!$C$9:$C$504,0)))) ->  | L168: =IF($F168="","",(INDEX(Costs!$I$9:$I$504, MATCH(ResFin[[#This Row],[N° Activity]],Costs!$C$9:$C$504,0)))) ->  | M168: =IF($F168="","",(INDEX(Costs!$J$9:$J$504, MATCH(ResFin[[#This Row],[N° Activity]],Costs!$C$9:$C$504,0)))) ->  | O168: =IF(ResFin[[#This Row],[Area]]= "", "", IF(OR(ResFin[[#This Row],[Area]]= "EIR ", ResFin[[#This Row],[Area]]= "Points d'entrée"),"Surveillance",ResFin[[#This Row],[Area]])) ->  | Y168: =ResFin[[#This Row],[Date of disbursement]]-ResFin[[#This Row],[Date of commitment]] -> 0
G169: =IF($F169="","",IF(ISNA(MATCH(F169,Costs!$C$22:$C$504,0)),(IF(F169="","",IF(ISNA(MATCH(F169,Costs!$C$10:$C$20,0)),"Non-ciblé","Ciblé sur un domaine"))),"Ciblé sur une activité")) ->  | H169: =IF($F169="","",(INDEX(Costs!$B$9:$B$504, MATCH('Financial Resources'!F169,Costs!$C$9:$C$504,0)))) ->  | I169: =IF($F169="","",(INDEX(Costs!$D$9:$D$504, MATCH(ResFin[[#This Row],[N° Activity]],Costs!$C$9:$C$504,0)))) ->  | J169: =IF($F169="","",(INDEX(Costs!$F$9:$F$504, MATCH(ResFin[[#This Row],[N° Activity]],Costs!$C$9:$C$504,0)))) ->  | K169: =IF(F169="","",(INDEX(Costs!$H$9:$H$504, MATCH(ResFin[[#This Row],[N° Activity]],Costs!$C$9:$C$504,0)))) ->  | L169: =IF($F169="","",(INDEX(Costs!$I$9:$I$504, MATCH(ResFin[[#This Row],[N° Activity]],Costs!$C$9:$C$504,0)))) ->  | M169: =IF($F169="","",(INDEX(Costs!$J$9:$J$504, MATCH(ResFin[[#This Row],[N° Activity]],Costs!$C$9:$C$504,0)))) ->  | O169: =IF(ResFin[[#This Row],[Area]]= "", "", IF(OR(ResFin[[#This Row],[Area]]= "EIR ", ResFin[[#This Row],[Area]]= "Points d'entrée"),"Surveillance",ResFin[[#This Row],[Area]])) ->  | Y169: =ResFin[[#This Row],[Date of disbursement]]-ResFin[[#This Row],[Date of commitment]] -> 0
G170: =IF($F170="","",IF(ISNA(MATCH(F170,Costs!$C$22:$C$504,0)),(IF(F170="","",IF(ISNA(MATCH(F170,Costs!$C$10:$C$20,0)),"Non-ciblé","Ciblé sur un domaine"))),"Ciblé sur une activité")) ->  | H170: =IF($F170="","",(INDEX(Costs!$B$9:$B$504, MATCH('Financial Resources'!F170,Costs!$C$9:$C$504,0)))) ->  | I170: =IF($F170="","",(INDEX(Costs!$D$9:$D$504, MATCH(ResFin[[#This Row],[N° Activity]],Costs!$C$9:$C$504,0)))) ->  | J170: =IF($F170="","",(INDEX(Costs!$F$9:$F$504, MATCH(ResFin[[#This Row],[N° Activity]],Costs!$C$9:$C$504,0)))) ->  | K170: =IF(F170="","",(INDEX(Costs!$H$9:$H$504, MATCH(ResFin[[#This Row],[N° Activity]],Costs!$C$9:$C$504,0)))) ->  | L170: =IF($F170="","",(INDEX(Costs!$I$9:$I$504, MATCH(ResFin[[#This Row],[N° Activity]],Costs!$C$9:$C$504,0)))) ->  | M170: =IF($F170="","",(INDEX(Costs!$J$9:$J$504, MATCH(ResFin[[#This Row],[N° Activity]],Costs!$C$9:$C$504,0)))) ->  | O170: =IF(ResFin[[#This Row],[Area]]= "", "", IF(OR(ResFin[[#This Row],[Area]]= "EIR ", ResFin[[#This Row],[Area]]= "Points d'entrée"),"Surveillance",ResFin[[#This Row],[Area]])) ->  | Y170: =ResFin[[#This Row],[Date of disbursement]]-ResFin[[#This Row],[Date of commitment]] -> 0
G171: =IF($F171="","",IF(ISNA(MATCH(F171,Costs!$C$22:$C$504,0)),(IF(F171="","",IF(ISNA(MATCH(F171,Costs!$C$10:$C$20,0)),"Non-ciblé","Ciblé sur un domaine"))),"Ciblé sur une activité")) ->  | H171: =IF($F171="","",(INDEX(Costs!$B$9:$B$504, MATCH('Financial Resources'!F171,Costs!$C$9:$C$504,0)))) ->  | I171: =IF($F171="","",(INDEX(Costs!$D$9:$D$504, MATCH(ResFin[[#This Row],[N° Activity]],Costs!$C$9:$C$504,0)))) ->  | J171: =IF($F171="","",(INDEX(Costs!$F$9:$F$504, MATCH(ResFin[[#This Row],[N° Activity]],Costs!$C$9:$C$504,0)))) ->  | K171: =IF(F171="","",(INDEX(Costs!$H$9:$H$504, MATCH(ResFin[[#This Row],[N° Activity]],Costs!$C$9:$C$504,0)))) ->  | L171: =IF($F171="","",(INDEX(Costs!$I$9:$I$504, MATCH(ResFin[[#This Row],[N° Activity]],Costs!$C$9:$C$504,0)))) ->  | M171: =IF($F171="","",(INDEX(Costs!$J$9:$J$504, MATCH(ResFin[[#This Row],[N° Activity]],Costs!$C$9:$C$504,0)))) ->  | O171: =IF(ResFin[[#This Row],[Area]]= "", "", IF(OR(ResFin[[#This Row],[Area]]= "EIR ", ResFin[[#This Row],[Area]]= "Points d'entrée"),"Surveillance",ResFin[[#This Row],[Area]])) ->  | Y171: =ResFin[[#This Row],[Date of disbursement]]-ResFin[[#This Row],[Date of commitment]] -> 0
G172: =IF($F172="","",IF(ISNA(MATCH(F172,Costs!$C$22:$C$504,0)),(IF(F172="","",IF(ISNA(MATCH(F172,Costs!$C$10:$C$20,0)),"Non-ciblé","Ciblé sur un domaine"))),"Ciblé sur une activité")) ->  | H172: =IF($F172="","",(INDEX(Costs!$B$9:$B$504, MATCH('Financial Resources'!F172,Costs!$C$9:$C$504,0)))) ->  | I172: =IF($F172="","",(INDEX(Costs!$D$9:$D$504, MATCH(ResFin[[#This Row],[N° Activity]],Costs!$C$9:$C$504,0)))) ->  | J172: =IF($F172="","",(INDEX(Costs!$F$9:$F$504, MATCH(ResFin[[#This Row],[N° Activity]],Costs!$C$9:$C$504,0)))) ->  | K172: =IF(F172="","",(INDEX(Costs!$H$9:$H$504, MATCH(ResFin[[#This Row],[N° Activity]],Costs!$C$9:$C$504,0)))) ->  | L172: =IF($F172="","",(INDEX(Costs!$I$9:$I$504, MATCH(ResFin[[#This Row],[N° Activity]],Costs!$C$9:$C$504,0)))) ->  | M172: =IF($F172="","",(INDEX(Costs!$J$9:$J$504, MATCH(ResFin[[#This Row],[N° Activity]],Costs!$C$9:$C$504,0)))) ->  | O172: =IF(ResFin[[#This Row],[Area]]= "", "", IF(OR(ResFin[[#This Row],[Area]]= "EIR ", ResFin[[#This Row],[Area]]= "Points d'entrée"),"Surveillance",ResFin[[#This Row],[Area]])) ->  | Y172: =ResFin[[#This Row],[Date of disbursement]]-ResFin[[#This Row],[Date of commitment]] -> 0
G173: =IF($F173="","",IF(ISNA(MATCH(F173,Costs!$C$22:$C$504,0)),(IF(F173="","",IF(ISNA(MATCH(F173,Costs!$C$10:$C$20,0)),"Non-ciblé","Ciblé sur un domaine"))),"Ciblé sur une activité")) ->  | H173: =IF($F173="","",(INDEX(Costs!$B$9:$B$504, MATCH('Financial Resources'!F173,Costs!$C$9:$C$504,0)))) ->  | I173: =IF($F173="","",(INDEX(Costs!$D$9:$D$504, MATCH(ResFin[[#This Row],[N° Activity]],Costs!$C$9:$C$504,0)))) ->  | J173: =IF($F173="","",(INDEX(Costs!$F$9:$F$504, MATCH(ResFin[[#This Row],[N° Activity]],Costs!$C$9:$C$504,0)))) ->  | K173: =IF(F173="","",(INDEX(Costs!$H$9:$H$504, MATCH(ResFin[[#This Row],[N° Activity]],Costs!$C$9:$C$504,0)))) ->  | L173: =IF($F173="","",(INDEX(Costs!$I$9:$I$504, MATCH(ResFin[[#This Row],[N° Activity]],Costs!$C$9:$C$504,0)))) ->  | M173: =IF($F173="","",(INDEX(Costs!$J$9:$J$504, MATCH(ResFin[[#This Row],[N° Activity]],Costs!$C$9:$C$504,0)))) ->  | O173: =IF(ResFin[[#This Row],[Area]]= "", "", IF(OR(ResFin[[#This Row],[Area]]= "EIR ", ResFin[[#This Row],[Area]]= "Points d'entrée"),"Surveillance",ResFin[[#This Row],[Area]])) ->  | Y173: =ResFin[[#This Row],[Date of disbursement]]-ResFin[[#This Row],[Date of commitment]] -> 0
